Workbook

Sheet Project Inputs
A1: A: PROJECT INFORMATION
A3: To reset all user inputs, please click here:
A5: Analysis prepared by: | B5: Hydro One
A7: Plan Number: | B7: 17503
A9: Project name: | B9: Supply to Essex County Transmission Reinforcement
A11: Description: | B11: Transformation Capital Contribution Analysis
A13: Customer: | B13: Hydro One Distribution
A15: Project in-service date: | B15: 43190
A17: Type of Project: | B17: Transformation
A19: Customer Risk Classification | B19: Low | C19: Evaluation period (years): | E19: =VLOOKUP('Project Inputs'!B19,Menus!D6:E6,MATCH(C19,Menus!D5:E5,0),0) -> 25
A21: Alternate evaluation period (enter in years) | C21: =IF('Project Inputs'!B21>E19,"Warning - please select an alternate horizon that is less than the standard horizon of "&E19&" years.","Check: ok") -> Check: ok
A23: Rationale for selected economic evaluation period: | B23: Hydro One Dx is a Distributor
A26: B: STAGE INFORMATION
A28: Current stage of economic evaluation: | B28: Estimated cost | C28: =IF(OR(AND('Project Inputs'!B19="Low",OR('Project Inputs'!B28="4th true-up",'Project Inputs'!B28="5th true-up")),AND('Project Inputs'!B19="Medium-low",OR('Project Inputs'!B28="4th true-up",'Project Inputs'!B28="5th true-up")),AND('Project Inputs'!B19="Medium-high",OR('Project Inputs'!B28="4th true-up",'Project Inputs'!B28="5th true-up"))),"A true-up stage has been selected that does not exist for the selected customer risk classification. Please review the inputs.","Check: ok") -> Check: ok
A31: C: UP-FRONT COSTS:
A33: ='Standard Inputs'!A33 -> Land costs | B33: ='Capital Cont Inputs'!B15 -> 2018
A34: Enter total up-front capital costs ($k): | B34: 540.3945586
A37: ='Standard Inputs'!A34 -> Class 47 costs | B37: ='Capital Cont Inputs'!B15 -> 2018
A38: Enter total up-front capital costs (excluding AFUDC & OH - $k): | B38: 16647.74664 | C38: =IF(AND(SUM(B38:B40)<>0,ISBLANK('Standard Inputs'!C34)),"Error - Decision Support has not assigned a class of asset for this input. Remove any inputs within this section","Check: ok") -> Check: ok
A39: Enter Overhead - $k | B39: 2370.739767
A40: Enter AFUDC - $k | B40: 653.835353
A43: Removal costs | B43: ='Capital Cont Inputs'!B15 -> 2018
A44: Enter Cash Flows (excluding OH - $k):
A45: Enter Overhead - $k
A48: ='Standard Inputs'!A35 -> Decision Support defined costs (1) | B48: ='Capital Cont Inputs'!B15 -> 2018
A49: Enter total up-front capital costs (excluding AFUDC & OH - $k): | C49: =IF(AND(SUM(B49:B51)<>0,ISBLANK('Standard Inputs'!C35)),"Error - Decision Support has not assigned a class of asset for this input. Remove any inputs within this section","Check: ok") -> Check: ok
A50: Enter Overhead - $k
A51: Enter AFUDC - $k
A54: ='Standard Inputs'!A36 -> Decision Support defined costs (2) | B54: ='Capital Cont Inputs'!B15 -> 2018
A55: Enter total up-front capital costs (excluding AFUDC & OH - $k): | C55: =IF(AND(SUM(B55:B57)<>0,ISBLANK('Standard Inputs'!C36)),"Error - Decision Support has not assigned a class of asset for this input. Remove any inputs within this section","Check: ok") -> Check: ok
A56: Enter Overhead - $k
A57: Enter AFUDC - $k
A60: ='Standard Inputs'!A37 -> Decision Support defined costs (3) | B60: ='Capital Cont Inputs'!B15 -> 2018
A61: Enter total up-front capital costs (excluding AFUDC & OH - $k): | C61: =IF(AND(SUM(B61:B63)<>0,ISBLANK('Standard Inputs'!C37)),"Error - Decision Support has not assigned a class of asset for this input. Remove any inputs within this section","Check: ok") -> Check: ok
A62: Enter Overhead - $k
A63: Enter AFUDC - $k
A67: D: INCREMENTAL OM&A:
A69: Asset Type 1: | B69: N/A | D69: =IF(B69="N/A","","% applicable to customer:") ->  | G69: 1 | H69: =IF(OR(B69="Line - Overhead",B69="Line - Underground"),"Enter KM of line","") ->  | J69: 13 | K69: =VLOOKUP($B$17&$B$69,Warnings!$B$4:$C$24,MATCH(Warnings!$C$3,Warnings!$B$3:$C$3,0),0) -> Check: ok
A70: Asset Type 2: | B70: N/A | D70: =IF(B70="N/A","","% applicable to customer:") ->  | H70: =IF(OR(B70="Line - Overhead",B70="Line - Underground"),"Enter KM of line","") ->  | J70: 13 | K70: =VLOOKUP($B$17&$B$70,Warnings!$B$4:$C$24,MATCH(Warnings!$C$3,Warnings!$B$3:$C$3,0),0) -> Check: ok
A71: Asset Type 3: | B71: N/A | D71: =IF(B71="N/A","","% applicable to customer:") ->  | H71: =IF(OR(B71="Line - Overhead",B71="Line - Underground"),"Enter KM of line","") ->  | J71: 13 | K71: =VLOOKUP($B$17&$B$71,Warnings!$B$4:$C$24,MATCH(Warnings!$C$3,Warnings!$B$3:$C$3,0),0) -> Check: ok
A74: Enter the total up-front capital costs by asset type: | B74: ='Capital Cont Inputs'!B15 -> 2018
B75: =IF(B69="N/A","N/A","Asset 1") -> N/A | C75: =IF(B70="N/A","N/A","Asset 2") -> N/A | D75: =IF(B71="N/A","N/A","Asset 3") -> N/A | E75: Total
A76: *Enter total up-front capital costs (including AFUDC & OH) - $k: | E76: =B76+C76+D76 -> 0
A77: *total must match capital cost included in section C, excluding removal costs | D77: Check total: | E77: =B34+B38+B39+B40+B49+B50+B51+B55+B56+B57+B61+B62+B63 -> 20212.71632
E78: =IF(AND(OR(B69="Network - SS",B69="Network - TS",B70="Network - SS",B70="Network - TS",B71="Network - SS",B71="Network - TS"),E77<>E76),"Warning, the total capital cost does not match the total capital cost input in section C.","Check: ok") -> Check: ok
A80: Do you agree with the standard OM&A assumptions above? | B80: Yes
C82: ='Capital Cont Inputs'!C15 -> 2019 | D82: ='Capital Cont Inputs'!D15 -> 2020 | E82: ='Capital Cont Inputs'!E15 -> 2021 | F82: ='Capital Cont Inputs'!F15 -> 2022 | G82: ='Capital Cont Inputs'!G15 -> 2023 | H82: ='Capital Cont Inputs'!H15 -> 2024 | I82: ='Capital Cont Inputs'!I15 -> 2025 | J82: ='Capital Cont Inputs'!J15 -> 2026 | K82: ='Capital Cont Inputs'!K15 -> 2027 | L82: ='Capital Cont Inputs'!L15 -> 2028 | M82: ='Capital Cont Inputs'!M15 -> 2029 | N82: ='Capital Cont Inputs'!N15 -> 2030 | O82: ='Capital Cont Inputs'!O15 -> 2031 | P82: ='Capital Cont Inputs'!P15 -> 2032 | Q82: ='Capital Cont Inputs'!Q15 -> 2033 | R82: ='Capital Cont Inputs'!R15 -> 2034 | S82: ='Capital Cont Inputs'!S15 -> 2035 | T82: ='Capital Cont Inputs'!T15 -> 2036 | U82: ='Capital Cont Inputs'!U15 -> 2037 | V82: ='Capital Cont Inputs'!V15 -> 2038 | W82: ='Capital Cont Inputs'!W15 -> 2039 | X82: ='Capital Cont Inputs'!X15 -> 2040 | Y82: ='Capital Cont Inputs'!Y15 -> 2041 | Z82: ='Capital Cont Inputs'!Z15 -> 2042 | AA82: ='Capital Cont Inputs'!AA15 -> 2043
A83: =IF(B80="Yes","","Alternate OM&A input - $k") -> 
A86: E: LOAD INPUTS:
A88: Is this load based on calendar or project year? | B88: Project Year
A89: Has the load been load factor adjusted? | B89: Yes | C89: Enter PLI adj | D89: 0.86
B91: =IF($B$88="Project Year","Project Year Ended",$B$88) -> Project Year Ended | C91: =B91 -> Project Year Ended | D91: Project Year Ended | E91: Project Year Ended | F91: Project Year Ended | G91: Project Year Ended | H91: Project Year Ended | I91: Project Year Ended | J91: Project Year Ended | K91: Project Year Ended | L91: Project Year Ended | M91: Project Year Ended | N91: Project Year Ended | O91: Project Year Ended | P91: Project Year Ended | Q91: Project Year Ended | R91: Project Year Ended | S91: Project Year Ended | T91: Project Year Ended | U91: Project Year Ended | V91: Project Year Ended | W91: Project Year Ended | X91: Project Year Ended | Y91: Project Year Ended | Z91: Project Year Ended | AA91: Project Year Ended
B92: =IF(B88="Calendar Year",'Capital Cont Inputs'!B15,"") ->  | C92: ='Capital Cont Inputs'!C15 -> 2019 | D92: ='Capital Cont Inputs'!D15 -> 2020 | E92: ='Capital Cont Inputs'!E15 -> 2021 | F92: ='Capital Cont Inputs'!F15 -> 2022 | G92: ='Capital Cont Inputs'!G15 -> 2023 | H92: ='Capital Cont Inputs'!H15 -> 2024 | I92: ='Capital Cont Inputs'!I15 -> 2025 | J92: ='Capital Cont Inputs'!J15 -> 2026 | K92: ='Capital Cont Inputs'!K15 -> 2027 | L92: ='Capital Cont Inputs'!L15 -> 2028 | M92: ='Capital Cont Inputs'!M15 -> 2029 | N92: ='Capital Cont Inputs'!N15 -> 2030 | O92: ='Capital Cont Inputs'!O15 -> 2031 | P92: ='Capital Cont Inputs'!P15 -> 2032 | Q92: ='Capital Cont Inputs'!Q15 -> 2033 | R92: ='Capital Cont Inputs'!R15 -> 2034 | S92: ='Capital Cont Inputs'!S15 -> 2035 | T92: ='Capital Cont Inputs'!T15 -> 2036 | U92: ='Capital Cont Inputs'!U15 -> 2037 | V92: ='Capital Cont Inputs'!V15 -> 2038 | W92: ='Capital Cont Inputs'!W15 -> 2039 | X92: ='Capital Cont Inputs'!X15 -> 2040 | Y92: ='Capital Cont Inputs'!Y15 -> 2041 | Z92: ='Capital Cont Inputs'!Z15 -> 2042 | AA92: ='Capital Cont Inputs'!AA15 -> 2043
A93: Actual/Forecasted Load | B93: =C93 -> Forecast | C93: =IF('Capital Cont Inputs'!B8<'Project Inputs'!C92,"Forecast","Actual") -> Forecast | D93: =IF('Capital Cont Inputs'!B8<'Project Inputs'!D92,"Forecast","Actual") -> Forecast | E93: =IF('Capital Cont Inputs'!B8<'Project Inputs'!E92,"Forecast","Actual") -> Forecast | F93: =IF('Capital Cont Inputs'!B8<'Project Inputs'!F92,"Forecast","Actual") -> Forecast | G93: =IF('Capital Cont Inputs'!B8<'Project Inputs'!G92,"Forecast","Actual") -> Forecast | H93: =IF('Capital Cont Inputs'!B8<'Project Inputs'!H92,"Forecast","Actual") -> Forecast | I93: =IF('Capital Cont Inputs'!B8<'Project Inputs'!I92,"Forecast","Actual") -> Forecast | J93: =IF('Capital Cont Inputs'!B8<'Project Inputs'!J92,"Forecast","Actual") -> Forecast | K93: =IF('Capital Cont Inputs'!B8<'Project Inputs'!K92,"Forecast","Actual") -> Forecast | L93: =IF('Capital Cont Inputs'!B8<'Project Inputs'!L92,"Forecast","Actual") -> Forecast | M93: =IF('Capital Cont Inputs'!B8<'Project Inputs'!M92,"Forecast","Actual") -> Forecast | N93: =IF('Capital Cont Inputs'!B8<'Project Inputs'!N92,"Forecast","Actual") -> Forecast | O93: =IF('Capital Cont Inputs'!B8<'Project Inputs'!O92,"Forecast","Actual") -> Forecast | P93: =IF('Capital Cont Inputs'!B8<'Project Inputs'!P92,"Forecast","Actual") -> Forecast | Q93: =IF('Capital Cont Inputs'!B8<'Project Inputs'!Q92,"Forecast","Actual") -> Forecast | R93: =IF('Capital Cont Inputs'!B8<'Project Inputs'!R92,"Forecast","Actual") -> Forecast | S93: =IF('Capital Cont Inputs'!B8<'Project Inputs'!S92,"Forecast","Actual") -> Forecast | T93: =IF('Capital Cont Inputs'!B8<'Project Inputs'!T92,"Forecast","Actual") -> Forecast | U93: =IF('Capital Cont Inputs'!B8<'Project Inputs'!U92,"Forecast","Actual") -> Forecast | V93: =IF('Capital Cont Inputs'!B8<'Project Inputs'!V92,"Forecast","Actual") -> Forecast | W93: =IF('Capital Cont Inputs'!B8<'Project Inputs'!W92,"Forecast","Actual") -> Forecast | X93: =IF('Capital Cont Inputs'!B8<'Project Inputs'!X92,"Forecast","Actual") -> Forecast | Y93: =IF('Capital Cont Inputs'!B8<'Project Inputs'!Y92,"Forecast","Actual") -> Forecast | Z93: =IF('Capital Cont Inputs'!B8<'Project Inputs'!Z92,"Forecast","Actual") -> Forecast | AA93: =IF('Capital Cont Inputs'!B8<'Project Inputs'!AA92,"Forecast","Actual") -> Forecast
A94: Enter Load data by Year (MW) | C94: 38.24252201 | D94: 39.16288127 | E94: 40.08982752 | F94: 41.02340788 | G94: 41.96366986 | H94: 42.91066125 | I94: 43.86443023 | J94: 44.82224671 | K94: 45.78105015 | L94: 46.75411647 | M94: 47.73413809 | N94: 48.72116472 | O94: 49.69544008 | P94: 50.63564221 | Q94: 51.63770044 | R94: 52.64688063 | S94: 53.6632334 | T94: 54.63175584 | U94: 55.4941383 | V94: 56.51904359 | W94: 57.55115112 | X94: 58.59051149 | Y94: 59.63717568 | Z94: 60.70160601 | AA94: 61.80556775
A95: Enter Load adjustments (MW)

Sheet Capital Cont Inputs
A1: SUMMARY OF CAPITAL CONTRIBUTIONS & ECONOMIC EVALUATION PERIOD
A3: Summary of Key Dates:
A4: In-service year | B4: =YEAR('Project Inputs'!B15) -> 2018
A5: Duration of Economic Evaluation | B5: =IF(ISNUMBER('Project Inputs'!B21),'Project Inputs'!B21,'Project Inputs'!E19) -> 25 | C5: ="Based on "&'Project Inputs'!B19&" "&'Project Inputs'!A19&IF(ISNUMBER('Project Inputs'!B21)," with alternate evaluation period of "&'Project Inputs'!B21&" years.",".") -> Based on Low Customer Risk Classification.
B7: Year | C7: Stage
A8: Current Stage Data | B8: =VLOOKUP('Project Inputs'!B19&" - "&'Project Inputs'!B28,'Standard Inputs'!$A$72:$F$104,MATCH('Standard Inputs'!$F$72,'Standard Inputs'!$A$72:$F$72,0),0) -> 2018 | C8: ='Project Inputs'!B28 -> Estimated cost
A10: End of Economic Evaluation | B10: =B4+B5 -> 2043
A12: Economic Evaluation Period by Year: | B12: =IF(ISNUMBER(AlternateEvaluationYears),"Warning - an alternate evaluation period has been selected. This could result in an incorrect economic horizon schedule below. Please consult with your Decision Support contact.","Check: ok") -> Check: ok
B13: =IF(SUM('Standard Inputs'!C73:C104)<>0,"Warning - an alternate period has been used within the standard inputs worksheet. This could result in an incorrect economic horizon schedule below. Please review.","Check: ok") -> Check: ok | Q13: =IF(RiskLevel="Low","Note: the economic horizon schedule above contains a planned third true-up. This may not be required as per 6.5.3 section (c) of the Transmission System Code.","Check: ok") -> Note: the economic horizon schedule above contains a planned third true-up. This may not be required as per 6.5.3 section (c) of the Transmission System Code.
A14: Economic evaluation stages | B14: IEE | C14: =IF('Project Inputs'!$B$19="High",VLOOKUP('Capital Cont Inputs'!C16,'Standard Inputs'!$D$74:$E$80,MATCH('Standard Inputs'!$E$72,'Standard Inputs'!$D$72:$E$72,0),0),IF('Project Inputs'!$B$19="Medium-high",VLOOKUP('Capital Cont Inputs'!C16,'Standard Inputs'!$D$84:$E$88,MATCH('Standard Inputs'!$E$72,'Standard Inputs'!$D$72:$E$72,0),0),IF('Project Inputs'!$B$19="Medium-low",VLOOKUP('Capital Cont Inputs'!C16,'Standard Inputs'!$D$92:$E$96,MATCH('Standard Inputs'!$E$72,'Standard Inputs'!$D$72:$E$72,0),0),IF('Project Inputs'!$B$19="Low",VLOOKUP('Capital Cont Inputs'!C16,'Standard Inputs'!$D$100:$E$104,MATCH('Standard Inputs'!$E$72,'Standard Inputs'!$D$72:$E$72,0),0),"Error")))) ->  | D14: =IF('Project Inputs'!$B$19="High",VLOOKUP('Capital Cont Inputs'!D16,'Standard Inputs'!$D$74:$E$80,MATCH('Standard Inputs'!$E$72,'Standard Inputs'!$D$72:$E$72,0),0),IF('Project Inputs'!$B$19="Medium-high",VLOOKUP('Capital Cont Inputs'!D16,'Standard Inputs'!$D$84:$E$88,MATCH('Standard Inputs'!$E$72,'Standard Inputs'!$D$72:$E$72,0),0),IF('Project Inputs'!$B$19="Medium-low",VLOOKUP('Capital Cont Inputs'!D16,'Standard Inputs'!$D$92:$E$96,MATCH('Standard Inputs'!$E$72,'Standard Inputs'!$D$72:$E$72,0),0),IF('Project Inputs'!$B$19="Low",VLOOKUP('Capital Cont Inputs'!D16,'Standard Inputs'!$D$100:$E$104,MATCH('Standard Inputs'!$E$72,'Standard Inputs'!$D$72:$E$72,0),0),"Error")))) ->  | E14: =IF('Project Inputs'!$B$19="High",VLOOKUP('Capital Cont Inputs'!E16,'Standard Inputs'!$D$74:$E$80,MATCH('Standard Inputs'!$E$72,'Standard Inputs'!$D$72:$E$72,0),0),IF('Project Inputs'!$B$19="Medium-high",VLOOKUP('Capital Cont Inputs'!E16,'Standard Inputs'!$D$84:$E$88,MATCH('Standard Inputs'!$E$72,'Standard Inputs'!$D$72:$E$72,0),0),IF('Project Inputs'!$B$19="Medium-low",VLOOKUP('Capital Cont Inputs'!E16,'Standard Inputs'!$D$92:$E$96,MATCH('Standard Inputs'!$E$72,'Standard Inputs'!$D$72:$E$72,0),0),IF('Project Inputs'!$B$19="Low",VLOOKUP('Capital Cont Inputs'!E16,'Standard Inputs'!$D$100:$E$104,MATCH('Standard Inputs'!$E$72,'Standard Inputs'!$D$72:$E$72,0),0),"Error")))) ->  | F14: =IF('Project Inputs'!$B$19="High",VLOOKUP('Capital Cont Inputs'!F16,'Standard Inputs'!$D$74:$E$80,MATCH('Standard Inputs'!$E$72,'Standard Inputs'!$D$72:$E$72,0),0),IF('Project Inputs'!$B$19="Medium-high",VLOOKUP('Capital Cont Inputs'!F16,'Standard Inputs'!$D$84:$E$88,MATCH('Standard Inputs'!$E$72,'Standard Inputs'!$D$72:$E$72,0),0),IF('Project Inputs'!$B$19="Medium-low",VLOOKUP('Capital Cont Inputs'!F16,'Standard Inputs'!$D$92:$E$96,MATCH('Standard Inputs'!$E$72,'Standard Inputs'!$D$72:$E$72,0),0),IF('Project Inputs'!$B$19="Low",VLOOKUP('Capital Cont Inputs'!F16,'Standard Inputs'!$D$100:$E$104,MATCH('Standard Inputs'!$E$72,'Standard Inputs'!$D$72:$E$72,0),0),"Error")))) ->  | G14: =IF('Project Inputs'!$B$19="High",VLOOKUP('Capital Cont Inputs'!G16,'Standard Inputs'!$D$74:$E$80,MATCH('Standard Inputs'!$E$72,'Standard Inputs'!$D$72:$E$72,0),0),IF('Project Inputs'!$B$19="Medium-high",VLOOKUP('Capital Cont Inputs'!G16,'Standard Inputs'!$D$84:$E$88,MATCH('Standard Inputs'!$E$72,'Standard Inputs'!$D$72:$E$72,0),0),IF('Project Inputs'!$B$19="Medium-low",VLOOKUP('Capital Cont Inputs'!G16,'Standard Inputs'!$D$92:$E$96,MATCH('Standard Inputs'!$E$72,'Standard Inputs'!$D$72:$E$72,0),0),IF('Project Inputs'!$B$19="Low",VLOOKUP('Capital Cont Inputs'!G16,'Standard Inputs'!$D$100:$E$104,MATCH('Standard Inputs'!$E$72,'Standard Inputs'!$D$72:$E$72,0),0),"Error")))) -> 1st true-up | H14: =IF('Project Inputs'!$B$19="High",VLOOKUP('Capital Cont Inputs'!H16,'Standard Inputs'!$D$74:$E$80,MATCH('Standard Inputs'!$E$72,'Standard Inputs'!$D$72:$E$72,0),0),IF('Project Inputs'!$B$19="Medium-high",VLOOKUP('Capital Cont Inputs'!H16,'Standard Inputs'!$D$84:$E$88,MATCH('Standard Inputs'!$E$72,'Standard Inputs'!$D$72:$E$72,0),0),IF('Project Inputs'!$B$19="Medium-low",VLOOKUP('Capital Cont Inputs'!H16,'Standard Inputs'!$D$92:$E$96,MATCH('Standard Inputs'!$E$72,'Standard Inputs'!$D$72:$E$72,0),0),IF('Project Inputs'!$B$19="Low",VLOOKUP('Capital Cont Inputs'!H16,'Standard Inputs'!$D$100:$E$104,MATCH('Standard Inputs'!$E$72,'Standard Inputs'!$D$72:$E$72,0),0),"Error")))) ->  | I14: =IF('Project Inputs'!$B$19="High",VLOOKUP('Capital Cont Inputs'!I16,'Standard Inputs'!$D$74:$E$80,MATCH('Standard Inputs'!$E$72,'Standard Inputs'!$D$72:$E$72,0),0),IF('Project Inputs'!$B$19="Medium-high",VLOOKUP('Capital Cont Inputs'!I16,'Standard Inputs'!$D$84:$E$88,MATCH('Standard Inputs'!$E$72,'Standard Inputs'!$D$72:$E$72,0),0),IF('Project Inputs'!$B$19="Medium-low",VLOOKUP('Capital Cont Inputs'!I16,'Standard Inputs'!$D$92:$E$96,MATCH('Standard Inputs'!$E$72,'Standard Inputs'!$D$72:$E$72,0),0),IF('Project Inputs'!$B$19="Low",VLOOKUP('Capital Cont Inputs'!I16,'Standard Inputs'!$D$100:$E$104,MATCH('Standard Inputs'!$E$72,'Standard Inputs'!$D$72:$E$72,0),0),"Error")))) ->  | J14: =IF('Project Inputs'!$B$19="High",VLOOKUP('Capital Cont Inputs'!J16,'Standard Inputs'!$D$74:$E$80,MATCH('Standard Inputs'!$E$72,'Standard Inputs'!$D$72:$E$72,0),0),IF('Project Inputs'!$B$19="Medium-high",VLOOKUP('Capital Cont Inputs'!J16,'Standard Inputs'!$D$84:$E$88,MATCH('Standard Inputs'!$E$72,'Standard Inputs'!$D$72:$E$72,0),0),IF('Project Inputs'!$B$19="Medium-low",VLOOKUP('Capital Cont Inputs'!J16,'Standard Inputs'!$D$92:$E$96,MATCH('Standard Inputs'!$E$72,'Standard Inputs'!$D$72:$E$72,0),0),IF('Project Inputs'!$B$19="Low",VLOOKUP('Capital Cont Inputs'!J16,'Standard Inputs'!$D$100:$E$104,MATCH('Standard Inputs'!$E$72,'Standard Inputs'!$D$72:$E$72,0),0),"Error")))) ->  | K14: =IF('Project Inputs'!$B$19="High",VLOOKUP('Capital Cont Inputs'!K16,'Standard Inputs'!$D$74:$E$80,MATCH('Standard Inputs'!$E$72,'Standard Inputs'!$D$72:$E$72,0),0),IF('Project Inputs'!$B$19="Medium-high",VLOOKUP('Capital Cont Inputs'!K16,'Standard Inputs'!$D$84:$E$88,MATCH('Standard Inputs'!$E$72,'Standard Inputs'!$D$72:$E$72,0),0),IF('Project Inputs'!$B$19="Medium-low",VLOOKUP('Capital Cont Inputs'!K16,'Standard Inputs'!$D$92:$E$96,MATCH('Standard Inputs'!$E$72,'Standard Inputs'!$D$72:$E$72,0),0),IF('Project Inputs'!$B$19="Low",VLOOKUP('Capital Cont Inputs'!K16,'Standard Inputs'!$D$100:$E$104,MATCH('Standard Inputs'!$E$72,'Standard Inputs'!$D$72:$E$72,0),0),"Error")))) ->  | L14: =IF('Project Inputs'!$B$19="High",VLOOKUP('Capital Cont Inputs'!L16,'Standard Inputs'!$D$74:$E$80,MATCH('Standard Inputs'!$E$72,'Standard Inputs'!$D$72:$E$72,0),0),IF('Project Inputs'!$B$19="Medium-high",VLOOKUP('Capital Cont Inputs'!L16,'Standard Inputs'!$D$84:$E$88,MATCH('Standard Inputs'!$E$72,'Standard Inputs'!$D$72:$E$72,0),0),IF('Project Inputs'!$B$19="Medium-low",VLOOKUP('Capital Cont Inputs'!L16,'Standard Inputs'!$D$92:$E$96,MATCH('Standard Inputs'!$E$72,'Standard Inputs'!$D$72:$E$72,0),0),IF('Project Inputs'!$B$19="Low",VLOOKUP('Capital Cont Inputs'!L16,'Standard Inputs'!$D$100:$E$104,MATCH('Standard Inputs'!$E$72,'Standard Inputs'!$D$72:$E$72,0),0),"Error")))) -> 2nd true-up | M14: =IF('Project Inputs'!$B$19="High",VLOOKUP('Capital Cont Inputs'!M16,'Standard Inputs'!$D$74:$E$80,MATCH('Standard Inputs'!$E$72,'Standard Inputs'!$D$72:$E$72,0),0),IF('Project Inputs'!$B$19="Medium-high",VLOOKUP('Capital Cont Inputs'!M16,'Standard Inputs'!$D$84:$E$88,MATCH('Standard Inputs'!$E$72,'Standard Inputs'!$D$72:$E$72,0),0),IF('Project Inputs'!$B$19="Medium-low",VLOOKUP('Capital Cont Inputs'!M16,'Standard Inputs'!$D$92:$E$96,MATCH('Standard Inputs'!$E$72,'Standard Inputs'!$D$72:$E$72,0),0),IF('Project Inputs'!$B$19="Low",VLOOKUP('Capital Cont Inputs'!M16,'Standard Inputs'!$D$100:$E$104,MATCH('Standard Inputs'!$E$72,'Standard Inputs'!$D$72:$E$72,0),0),"Error")))) ->  | N14: =IF('Project Inputs'!$B$19="High",VLOOKUP('Capital Cont Inputs'!N16,'Standard Inputs'!$D$74:$E$80,MATCH('Standard Inputs'!$E$72,'Standard Inputs'!$D$72:$E$72,0),0),IF('Project Inputs'!$B$19="Medium-high",VLOOKUP('Capital Cont Inputs'!N16,'Standard Inputs'!$D$84:$E$88,MATCH('Standard Inputs'!$E$72,'Standard Inputs'!$D$72:$E$72,0),0),IF('Project Inputs'!$B$19="Medium-low",VLOOKUP('Capital Cont Inputs'!N16,'Standard Inputs'!$D$92:$E$96,MATCH('Standard Inputs'!$E$72,'Standard Inputs'!$D$72:$E$72,0),0),IF('Project Inputs'!$B$19="Low",VLOOKUP('Capital Cont Inputs'!N16,'Standard Inputs'!$D$100:$E$104,MATCH('Standard Inputs'!$E$72,'Standard Inputs'!$D$72:$E$72,0),0),"Error")))) ->  | O14: =IF('Project Inputs'!$B$19="High",VLOOKUP('Capital Cont Inputs'!O16,'Standard Inputs'!$D$74:$E$80,MATCH('Standard Inputs'!$E$72,'Standard Inputs'!$D$72:$E$72,0),0),IF('Project Inputs'!$B$19="Medium-high",VLOOKUP('Capital Cont Inputs'!O16,'Standard Inputs'!$D$84:$E$88,MATCH('Standard Inputs'!$E$72,'Standard Inputs'!$D$72:$E$72,0),0),IF('Project Inputs'!$B$19="Medium-low",VLOOKUP('Capital Cont Inputs'!O16,'Standard Inputs'!$D$92:$E$96,MATCH('Standard Inputs'!$E$72,'Standard Inputs'!$D$72:$E$72,0),0),IF('Project Inputs'!$B$19="Low",VLOOKUP('Capital Cont Inputs'!O16,'Standard Inputs'!$D$100:$E$104,MATCH('Standard Inputs'!$E$72,'Standard Inputs'!$D$72:$E$72,0),0),"Error")))) ->  | P14: =IF('Project Inputs'!$B$19="High",VLOOKUP('Capital Cont Inputs'!P16,'Standard Inputs'!$D$74:$E$80,MATCH('Standard Inputs'!$E$72,'Standard Inputs'!$D$72:$E$72,0),0),IF('Project Inputs'!$B$19="Medium-high",VLOOKUP('Capital Cont Inputs'!P16,'Standard Inputs'!$D$84:$E$88,MATCH('Standard Inputs'!$E$72,'Standard Inputs'!$D$72:$E$72,0),0),IF('Project Inputs'!$B$19="Medium-low",VLOOKUP('Capital Cont Inputs'!P16,'Standard Inputs'!$D$92:$E$96,MATCH('Standard Inputs'!$E$72,'Standard Inputs'!$D$72:$E$72,0),0),IF('Project Inputs'!$B$19="Low",VLOOKUP('Capital Cont Inputs'!P16,'Standard Inputs'!$D$100:$E$104,MATCH('Standard Inputs'!$E$72,'Standard Inputs'!$D$72:$E$72,0),0),"Error")))) ->  | Q14: =IF('Project Inputs'!$B$19="High",VLOOKUP('Capital Cont Inputs'!Q16,'Standard Inputs'!$D$74:$E$80,MATCH('Standard Inputs'!$E$72,'Standard Inputs'!$D$72:$E$72,0),0),IF('Project Inputs'!$B$19="Medium-high",VLOOKUP('Capital Cont Inputs'!Q16,'Standard Inputs'!$D$84:$E$88,MATCH('Standard Inputs'!$E$72,'Standard Inputs'!$D$72:$E$72,0),0),IF('Project Inputs'!$B$19="Medium-low",VLOOKUP('Capital Cont Inputs'!Q16,'Standard Inputs'!$D$92:$E$96,MATCH('Standard Inputs'!$E$72,'Standard Inputs'!$D$72:$E$72,0),0),IF('Project Inputs'!$B$19="Low",VLOOKUP('Capital Cont Inputs'!Q16,'Standard Inputs'!$D$100:$E$104,MATCH('Standard Inputs'!$E$72,'Standard Inputs'!$D$72:$E$72,0),0),"Error")))) -> 3rd true-up | R14: =IF('Project Inputs'!$B$19="High",VLOOKUP('Capital Cont Inputs'!R16,'Standard Inputs'!$D$74:$E$80,MATCH('Standard Inputs'!$E$72,'Standard Inputs'!$D$72:$E$72,0),0),IF('Project Inputs'!$B$19="Medium-high",VLOOKUP('Capital Cont Inputs'!R16,'Standard Inputs'!$D$84:$E$88,MATCH('Standard Inputs'!$E$72,'Standard Inputs'!$D$72:$E$72,0),0),IF('Project Inputs'!$B$19="Medium-low",VLOOKUP('Capital Cont Inputs'!R16,'Standard Inputs'!$D$92:$E$96,MATCH('Standard Inputs'!$E$72,'Standard Inputs'!$D$72:$E$72,0),0),IF('Project Inputs'!$B$19="Low",VLOOKUP('Capital Cont Inputs'!R16,'Standard Inputs'!$D$100:$E$104,MATCH('Standard Inputs'!$E$72,'Standard Inputs'!$D$72:$E$72,0),0),"Error")))) ->  | S14: =IF('Project Inputs'!$B$19="High",VLOOKUP('Capital Cont Inputs'!S16,'Standard Inputs'!$D$74:$E$80,MATCH('Standard Inputs'!$E$72,'Standard Inputs'!$D$72:$E$72,0),0),IF('Project Inputs'!$B$19="Medium-high",VLOOKUP('Capital Cont Inputs'!S16,'Standard Inputs'!$D$84:$E$88,MATCH('Standard Inputs'!$E$72,'Standard Inputs'!$D$72:$E$72,0),0),IF('Project Inputs'!$B$19="Medium-low",VLOOKUP('Capital Cont Inputs'!S16,'Standard Inputs'!$D$92:$E$96,MATCH('Standard Inputs'!$E$72,'Standard Inputs'!$D$72:$E$72,0),0),IF('Project Inputs'!$B$19="Low",VLOOKUP('Capital Cont Inputs'!S16,'Standard Inputs'!$D$100:$E$104,MATCH('Standard Inputs'!$E$72,'Standard Inputs'!$D$72:$E$72,0),0),"Error")))) ->  | T14: =IF('Project Inputs'!$B$19="High",VLOOKUP('Capital Cont Inputs'!T16,'Standard Inputs'!$D$74:$E$80,MATCH('Standard Inputs'!$E$72,'Standard Inputs'!$D$72:$E$72,0),0),IF('Project Inputs'!$B$19="Medium-high",VLOOKUP('Capital Cont Inputs'!T16,'Standard Inputs'!$D$84:$E$88,MATCH('Standard Inputs'!$E$72,'Standard Inputs'!$D$72:$E$72,0),0),IF('Project Inputs'!$B$19="Medium-low",VLOOKUP('Capital Cont Inputs'!T16,'Standard Inputs'!$D$92:$E$96,MATCH('Standard Inputs'!$E$72,'Standard Inputs'!$D$72:$E$72,0),0),IF('Project Inputs'!$B$19="Low",VLOOKUP('Capital Cont Inputs'!T16,'Standard Inputs'!$D$100:$E$104,MATCH('Standard Inputs'!$E$72,'Standard Inputs'!$D$72:$E$72,0),0),"Error")))) ->  | U14: =IF('Project Inputs'!$B$19="High",VLOOKUP('Capital Cont Inputs'!U16,'Standard Inputs'!$D$74:$E$80,MATCH('Standard Inputs'!$E$72,'Standard Inputs'!$D$72:$E$72,0),0),IF('Project Inputs'!$B$19="Medium-high",VLOOKUP('Capital Cont Inputs'!U16,'Standard Inputs'!$D$84:$E$88,MATCH('Standard Inputs'!$E$72,'Standard Inputs'!$D$72:$E$72,0),0),IF('Project Inputs'!$B$19="Medium-low",VLOOKUP('Capital Cont Inputs'!U16,'Standard Inputs'!$D$92:$E$96,MATCH('Standard Inputs'!$E$72,'Standard Inputs'!$D$72:$E$72,0),0),IF('Project Inputs'!$B$19="Low",VLOOKUP('Capital Cont Inputs'!U16,'Standard Inputs'!$D$100:$E$104,MATCH('Standard Inputs'!$E$72,'Standard Inputs'!$D$72:$E$72,0),0),"Error")))) ->  | V14: =IF('Project Inputs'!$B$19="High",VLOOKUP('Capital Cont Inputs'!V16,'Standard Inputs'!$D$74:$E$80,MATCH('Standard Inputs'!$E$72,'Standard Inputs'!$D$72:$E$72,0),0),IF('Project Inputs'!$B$19="Medium-high",VLOOKUP('Capital Cont Inputs'!V16,'Standard Inputs'!$D$84:$E$88,MATCH('Standard Inputs'!$E$72,'Standard Inputs'!$D$72:$E$72,0),0),IF('Project Inputs'!$B$19="Medium-low",VLOOKUP('Capital Cont Inputs'!V16,'Standard Inputs'!$D$92:$E$96,MATCH('Standard Inputs'!$E$72,'Standard Inputs'!$D$72:$E$72,0),0),IF('Project Inputs'!$B$19="Low",VLOOKUP('Capital Cont Inputs'!V16,'Standard Inputs'!$D$100:$E$104,MATCH('Standard Inputs'!$E$72,'Standard Inputs'!$D$72:$E$72,0),0),"Error")))) ->  | W14: =IF('Project Inputs'!$B$19="High",VLOOKUP('Capital Cont Inputs'!W16,'Standard Inputs'!$D$74:$E$80,MATCH('Standard Inputs'!$E$72,'Standard Inputs'!$D$72:$E$72,0),0),IF('Project Inputs'!$B$19="Medium-high",VLOOKUP('Capital Cont Inputs'!W16,'Standard Inputs'!$D$84:$E$88,MATCH('Standard Inputs'!$E$72,'Standard Inputs'!$D$72:$E$72,0),0),IF('Project Inputs'!$B$19="Medium-low",VLOOKUP('Capital Cont Inputs'!W16,'Standard Inputs'!$D$92:$E$96,MATCH('Standard Inputs'!$E$72,'Standard Inputs'!$D$72:$E$72,0),0),IF('Project Inputs'!$B$19="Low",VLOOKUP('Capital Cont Inputs'!W16,'Standard Inputs'!$D$100:$E$104,MATCH('Standard Inputs'!$E$72,'Standard Inputs'!$D$72:$E$72,0),0),"Error")))) ->  | X14: =IF('Project Inputs'!$B$19="High",VLOOKUP('Capital Cont Inputs'!X16,'Standard Inputs'!$D$74:$E$80,MATCH('Standard Inputs'!$E$72,'Standard Inputs'!$D$72:$E$72,0),0),IF('Project Inputs'!$B$19="Medium-high",VLOOKUP('Capital Cont Inputs'!X16,'Standard Inputs'!$D$84:$E$88,MATCH('Standard Inputs'!$E$72,'Standard Inputs'!$D$72:$E$72,0),0),IF('Project Inputs'!$B$19="Medium-low",VLOOKUP('Capital Cont Inputs'!X16,'Standard Inputs'!$D$92:$E$96,MATCH('Standard Inputs'!$E$72,'Standard Inputs'!$D$72:$E$72,0),0),IF('Project Inputs'!$B$19="Low",VLOOKUP('Capital Cont Inputs'!X16,'Standard Inputs'!$D$100:$E$104,MATCH('Standard Inputs'!$E$72,'Standard Inputs'!$D$72:$E$72,0),0),"Error")))) ->  | Y14: =IF('Project Inputs'!$B$19="High",VLOOKUP('Capital Cont Inputs'!Y16,'Standard Inputs'!$D$74:$E$80,MATCH('Standard Inputs'!$E$72,'Standard Inputs'!$D$72:$E$72,0),0),IF('Project Inputs'!$B$19="Medium-high",VLOOKUP('Capital Cont Inputs'!Y16,'Standard Inputs'!$D$84:$E$88,MATCH('Standard Inputs'!$E$72,'Standard Inputs'!$D$72:$E$72,0),0),IF('Project Inputs'!$B$19="Medium-low",VLOOKUP('Capital Cont Inputs'!Y16,'Standard Inputs'!$D$92:$E$96,MATCH('Standard Inputs'!$E$72,'Standard Inputs'!$D$72:$E$72,0),0),IF('Project Inputs'!$B$19="Low",VLOOKUP('Capital Cont Inputs'!Y16,'Standard Inputs'!$D$100:$E$104,MATCH('Standard Inputs'!$E$72,'Standard Inputs'!$D$72:$E$72,0),0),"Error")))) ->  | Z14: =IF('Project Inputs'!$B$19="High",VLOOKUP('Capital Cont Inputs'!Z16,'Standard Inputs'!$D$74:$E$80,MATCH('Standard Inputs'!$E$72,'Standard Inputs'!$D$72:$E$72,0),0),IF('Project Inputs'!$B$19="Medium-high",VLOOKUP('Capital Cont Inputs'!Z16,'Standard Inputs'!$D$84:$E$88,MATCH('Standard Inputs'!$E$72,'Standard Inputs'!$D$72:$E$72,0),0),IF('Project Inputs'!$B$19="Medium-low",VLOOKUP('Capital Cont Inputs'!Z16,'Standard Inputs'!$D$92:$E$96,MATCH('Standard Inputs'!$E$72,'Standard Inputs'!$D$72:$E$72,0),0),IF('Project Inputs'!$B$19="Low",VLOOKUP('Capital Cont Inputs'!Z16,'Standard Inputs'!$D$100:$E$104,MATCH('Standard Inputs'!$E$72,'Standard Inputs'!$D$72:$E$72,0),0),"Error")))) ->  | AA14: =IF('Project Inputs'!$B$19="High",VLOOKUP('Capital Cont Inputs'!AA16,'Standard Inputs'!$D$74:$E$80,MATCH('Standard Inputs'!$E$72,'Standard Inputs'!$D$72:$E$72,0),0),IF('Project Inputs'!$B$19="Medium-high",VLOOKUP('Capital Cont Inputs'!AA16,'Standard Inputs'!$D$84:$E$88,MATCH('Standard Inputs'!$E$72,'Standard Inputs'!$D$72:$E$72,0),0),IF('Project Inputs'!$B$19="Medium-low",VLOOKUP('Capital Cont Inputs'!AA16,'Standard Inputs'!$D$92:$E$96,MATCH('Standard Inputs'!$E$72,'Standard Inputs'!$D$72:$E$72,0),0),IF('Project Inputs'!$B$19="Low",VLOOKUP('Capital Cont Inputs'!AA16,'Standard Inputs'!$D$100:$E$104,MATCH('Standard Inputs'!$E$72,'Standard Inputs'!$D$72:$E$72,0),0),"Error")))) -> 
A15: Years | B15: =B4 -> 2018 | C15: =IF(ISNUMBER(B15),IF(B15+1>$B$10,"",B15+1),"") -> 2019 | D15: 2020 | E15: 2021 | F15: 2022 | G15: 2023 | H15: 2024 | I15: 2025 | J15: 2026 | K15: 2027 | L15: 2028 | M15: 2029 | N15: 2030 | O15: 2031 | P15: 2032 | Q15: 2033 | R15: 2034 | S15: 2035 | T15: 2036 | U15: 2037 | V15: 2038 | W15: 2039 | X15: 2040 | Y15: 2041 | Z15: 2042 | AA15: 2043
A16: Project Year | B16: =IF(ISNUMBER(B15),0,"") -> 0 | C16: =IF(ISNUMBER(C15),B16+1,"") -> 1 | D16: 2 | E16: 3 | F16: 4 | G16: 5 | H16: 6 | I16: 7 | J16: 8 | K16: 9 | L16: 10 | M16: 11 | N16: 12 | O16: 13 | P16: 14 | Q16: 15 | R16: 16 | S16: 17 | T16: 18 | U16: 19 | V16: 20 | W16: 21 | X16: 22 | Y16: 23 | Z16: 24 | AA16: 25 | AC16: Capital Contribution Input Warnings
A17: Actual Contribution Payments made - $k | AC17: =B15 -> 2018 | AD17: 2019 | AE17: 2020 | AF17: 2021 | AG17: 2022 | AH17: 2023 | AI17: 2024 | AJ17: 2025 | AK17: 2026 | AL17: 2027 | AM17: 2028 | AN17: 2029 | AO17: 2030 | AP17: 2031 | AQ17: 2032 | AR17: 2033 | AS17: 2034 | AT17: 2035 | AU17: 2036 | AV17: 2037 | AW17: 2038 | AX17: 2039 | AY17: 2040 | AZ17: 2041 | BA17: 2042 | BB17: 2043
A18: Current Contribution Payment - $k | B18: 8184.380131
A19: =IF(ISNA(HLOOKUP("Warning",$AC19:$BB19,1,0)),"Check: ok","Warning, a cap con't has been improperly input beyond the current stage. Remove all con't inputs beyond "&'Capital Cont Inputs'!B8&".") -> Check: ok | AC19: =IF(AND(B15>$B$8,(B17+B18)<>0),"Warning","Check: Ok") -> Check: Ok | AD19: Check: Ok | AE19: Check: Ok | AF19: Check: Ok | AG19: Check: Ok | AH19: Check: Ok | AI19: Check: Ok | AJ19: Check: Ok | AK19: Check: Ok | AL19: Check: Ok | AM19: Check: Ok | AN19: Check: Ok | AO19: Check: Ok | AP19: Check: Ok | AQ19: Check: Ok | AR19: Check: Ok | AS19: Check: Ok | AT19: Check: Ok | AU19: Check: Ok | AV19: Check: Ok | AW19: Check: Ok | AX19: Check: Ok | AY19: Check: Ok | AZ19: Check: Ok | BA19: Check: Ok | BB19: Check: Ok
A20: =IF(ISNA(HLOOKUP("Warning",$AC20:$BB20,1,0)),"Check: ok","Warning, an actual cap con't has been improperly input in the current stage. Remove the actual con't in "&'Capital Cont Inputs'!B8&".") -> Check: ok | AC20: =IF(AND('Project Inputs'!B28="Estimated cost",B17<>0),"Warning","Check: Ok") -> Check: Ok | AD20: =IF(AND(C15=$B$8,C17<>0),"Warning","Check: Ok") -> Check: Ok | AE20: Check: Ok | AF20: Check: Ok | AG20: Check: Ok | AH20: Check: Ok | AI20: Check: Ok | AJ20: Check: Ok | AK20: Check: Ok | AL20: Check: Ok | AM20: Check: Ok | AN20: Check: Ok | AO20: Check: Ok | AP20: Check: Ok | AQ20: Check: Ok | AR20: Check: Ok | AS20: Check: Ok | AT20: Check: Ok | AU20: Check: Ok | AV20: Check: Ok | AW20: Check: Ok | AX20: Check: Ok | AY20: Check: Ok | AZ20: Check: Ok | BA20: Check: Ok | BB20: Check: Ok
A21: =IF(ISNA(HLOOKUP("Warning",$AC21:$BB21,1,0)),"Check: ok","Warning, a cap con't has been improperly input in a non true-up year. Remove all con't inputs in non true-up years.") -> Check: ok | AC21: Check: Ok | AD21: =IF(AND(ISNA(C14),(C18+C17)<>0),"Warning","Check: Ok") -> Check: Ok | AE21: Check: Ok | AF21: Check: Ok | AG21: Check: Ok | AH21: Check: Ok | AI21: Check: Ok | AJ21: Check: Ok | AK21: Check: Ok | AL21: Check: Ok | AM21: Check: Ok | AN21: Check: Ok | AO21: Check: Ok | AP21: Check: Ok | AQ21: Check: Ok | AR21: Check: Ok | AS21: Check: Ok | AT21: Check: Ok | AU21: Check: Ok | AV21: Check: Ok | AW21: Check: Ok | AX21: Check: Ok | AY21: Check: Ok | AZ21: Check: Ok | BA21: Check: Ok | BB21: Check: Ok
A24: CALCULATIONS:
A26: Calculation of initial economic evaluation (IEE) / true-up:
A27: Is the NPV before contributions less than 0? | B27: =IF(ROUND('NPV Calc'!D50,4)<0,"Yes","No") -> Yes
A28: Or
A29: Have contributions been paid (excluding estimated IEE pre-payments)? | B29: =IF(AND(OR(Stage='Standard Inputs'!E75, Stage='Standard Inputs'!E74),B17>0),"N/A",IF(OR(B17<>0,B18<>0,SUM(C17:AA18)<>0),"Yes","No")) -> Yes
A31: Is the model ready to proceed with the true-up calculation? | B31: =IF(AND(OR(B29="Yes",B27="Yes"),B45="Revenue Guarantee"),"Warning",IF(OR(B29="Yes",B27="Yes"),"Yes","No")) -> Yes
A32: =IF(TrueUpFlag="Warning","The model is currently set to a revenue guarantee, which is resulting in a warning. To correct, please run the IEE / True-up Calculation","Check: ok") -> Check: ok
A37: Calculation of Revenue Guarantee:
A39: Is the model ready to proceed with the Revenue Guarantee calculation? | B39: =IF(B31="No","Yes","No") -> No
A42: Revenue guarantee factor: | B42: 1
A45: Last completed macro calculation: | B45: IEE/True-up
A47: REPORTING:
A48: Please select which report you would like to review: | B48: IEE/True-up | D48: =IF(OR((AND(B39="Yes",B45="IEE/True-up")),(AND(B31="Yes",B48="Revenue Guarantee"))),"Warning - the revenue guarantee has not been calculated, please review detail above.","Check: ok") -> Check: ok
A49: Display capital contributions in the standard report? | B49: =IF(B48="Revenue Guarantee","N/A",IF(AND(B48="IEE/True-up",B39="Yes",B29="No"),"No","Yes")) -> Yes

Sheet Standard Inputs
A4: REVENUE INPUTS:
A5: Pool | B5: Tariffs ($/kW/Month) | C5: Revenue Requirement ($k) | D5: Annual Billing (MW)
A6: Line | B6: 0.86 | C6: 207176.655 | D6: 241939.684 | E6: Updated as per OEB's Uniform Transmission Rate Order (EB-2014-0357) Appendix A
A7: Transformation | B7: 2 | C7: 412602.957 | D7: 206187.042
A9: DISCOUNT RATE INPUTS:
A11: Capital Structure:
A12: Third-Party Long-term Debt Ratio | B12: 0.509 | E12: Updated as per Draft Rate Order (EB-2014-0140) - Exhibit 1.4
A13: Deemed Long-term Debt Ratio | B13: 0.051
A14: Short-term Debt Ratio | B14: 0.04
A15: Common Equity | B15: 0.4
A17: Allowed Return:
A18: Third-Party Long-term Debt Ratio | B18: 0.0498 | E18: Updated as per Draft Rate Order (EB-2014-0140) - Exhibit 1.4
A19: Deemed Long-term Debt Ratio | B19: 0.0498
A20: Short-term Debt Ratio | B20: 0.0216
A21: Return on Equity | B21: 0.093
A23: TAX INPUTS:
A25: Federal Income Tax Rate | B25: 0.15
A26: Ontario Income Tax Rate | B26: 0.115
A27: Income Tax rate | B27: =B25+B26 -> 0.265
A29: Municipal (Property) Tax | B29: =66.3/15665.5 -> 0.00423223006 | E29: Property Taxes, Rights and Indemnity Payments = $66.3 M. Updated as per Prefiled Evidence (EB-2014-0140 Ex C1.2). Mid-Year Gross Asset Balance = $15,665.5 M. Updated as per Draft Rate Order (EB-2014-0140 Ex C1.2)
A31: CCA / Depreciation:
B32: Class Number | C32: CCA Rates | D32: Service Life
A33: Land costs | B33: N/A | C33: N/A | D33: N/A | E33: Land does not depreciate or attract CCA
A34: Class 47 costs | B34: 47 | C34: 0.08 | D34: 50 | E34: Transmission equipment (which may include for this purpose a structure)
A35: Decision Support defined costs (1)
A36: Decision Support defined costs (2)
A37: Decision Support defined costs (3)
A39: OTHER COST INPUTS:
A41: Estimated incremental OM&A:
B42: Years: | C42: 1 | D42: =C42+1 -> 2 | E42: 3 | F42: 4 | G42: 5 | H42: 6 | I42: 7 | J42: 8 | K42: 9 | L42: 10 | M42: 11 | N42: 12 | O42: 13 | P42: 14 | Q42: 15 | R42: 16 | S42: 17 | T42: 18 | U42: 19 | V42: 20 | W42: 21 | X42: 22 | Y42: 23 | Z42: 24 | AA42: 25 | AB42: Report Description
A43: Line - Overhead | B43: $k per KM of line | C43: 1.5 | D43: =C43 -> 1.5 | E43: 1.5 | F43: 1.5 | G43: 1.5 | H43: 1.5 | I43: 1.5 | J43: 1.5 | K43: 1.5 | L43: 1.5 | M43: 1.5 | N43: 1.5 | O43: 1.5 | P43: 1.5 | Q43: 1.5 | R43: 1.5 | S43: 1.5 | T43: 1.5 | U43: 1.5 | V43: 1.5 | W43: 1.5 | X43: 1.5 | Y43: 1.5 | Z43: 1.5 | AA43: 1.5 | AB43: ="$"&C43&" k per new km of line each year." -> $1.5 k per new km of line each year.
A44: N/A | B44: N/A
A45: N/A | B45: N/A
A46: N/A | B46: N/A
A47: N/A | B47: N/A
A48: N/A | B48: N/A
A49: N/A | B49: N/A
A54: WORKING CAPITAL INPUTS:
A56: Revenue Lag | B56: 39.39
A57: OM&A Lead | B57: 26.26
A58: Net Lag | B58: =B56-B57 -> 13.13
A59: Net Lag / 365 | B59: =B58/365 -> 0.03597260274
A62: REPORTING INPUTS:
A64: Income tax rates date | B64: 2015
A66: HST | B66: 0.13
A68: Working capital detail (report description): | B68: As Per Lead Lag study prepared by Navigant for 2015 and 2016 Transmission Rates
A70: ALTERNATE HORIZON INPUTS:
A72: Risk Level | B72: Standard Period | C72: Alternate Period | D72: In-use Period | E72: Stage | F72: Year
A73: High
A74: =$A$73&" - "&E74 -> High - Estimated cost | B74: 0 | D74: =IF(ISNUMBER(C74),C74,B74) -> 0 | E74: Estimated cost | F74: ='Capital Cont Inputs'!B15 -> 2018 | G74: =IF(C74>$D$80,"Warning - you cannot input an alternate horizon that is greater than the standard horizon given the selected risk classification","Check: ok") -> Check: ok
A75: =$A$73&" - "&E75 -> High - Actual cost | B75: 0 | D75: 0 | E75: Actual cost | F75: =$F$74+D75 -> 2018 | G75: =IF(C75>$D$80,"Warning - you cannot input an alternate horizon that is greater than the standard horizon given the selected risk classification","Check: ok") -> Check: ok
A76: =$A$73&" - "&E76 -> High - 1st true-up | B76: =B74+1 -> 1 | D76: 1 | E76: 1st true-up | F76: 2019 | G76: Check: ok
A77: High - 2nd true-up | B77: =B76+1 -> 2 | D77: 2 | E77: 2nd true-up | F77: 2020 | G77: Check: ok
A78: High - 3rd true-up | B78: =B77+1 -> 3 | D78: 3 | E78: 3rd true-up | F78: 2021 | G78: Check: ok
A79: High - 4th true-up | B79: =B78+1 -> 4 | D79: 4 | E79: 4th true-up | F79: 2022 | G79: Check: ok
A80: High - 5th true-up | B80: =B79+1 -> 5 | D80: 5 | E80: 5th true-up | F80: 2023 | G80: Check: ok
A83: Medium-high
A84: =$A$83&" - "&E84 -> Medium-high - Estimated cost | B84: 0 | D84: =IF(ISNUMBER(C84),C84,B84) -> 0 | E84: =E74 -> Estimated cost | F84: ='Capital Cont Inputs'!B15 -> 2018 | G84: =IF(C84>$D$88,"Warning - you cannot input an alternate horizon that is greater than the standard horizon given the selected risk classification","Check: ok") -> Check: ok
A85: =$A$83&" - "&E85 -> Medium-high - Actual cost | B85: 0 | D85: =IF(ISNUMBER(C85),C85,B85) -> 0 | E85: =E75 -> Actual cost | F85: =$F$84+D85 -> 2018 | G85: =IF(C85>$D$88,"Warning - you cannot input an alternate horizon that is greater than the standard horizon given the selected risk classification","Check: ok") -> Check: ok
A86: =$A$83&" - "&E86 -> Medium-high - 1st true-up | B86: =B84+3 -> 3 | D86: =IF(ISNUMBER(C86),C86,B86) -> 3 | E86: =E76 -> 1st true-up | F86: =$F$84+D86 -> 2021 | G86: =IF(C86>$D$88,"Warning - you cannot input an alternate horizon that is greater than the standard horizon given the selected risk classification","Check: ok") -> Check: ok
A87: =$A$83&" - "&E87 -> Medium-high - 2nd true-up | B87: =B86+2 -> 5 | D87: =IF(ISNUMBER(C87),C87,B87) -> 5 | E87: =E77 -> 2nd true-up | F87: =$F$84+D87 -> 2023 | G87: =IF(C87>$D$88,"Warning - you cannot input an alternate horizon that is greater than the standard horizon given the selected risk classification","Check: ok") -> Check: ok
A88: =$A$83&" - "&E88 -> Medium-high - 3rd true-up | B88: =B87+5 -> 10 | D88: =IF(ISNUMBER(C88),C88,B88) -> 10 | E88: =E78 -> 3rd true-up | F88: =$F$84+D88 -> 2028 | G88: =IF(C88>$D$88,"Warning - you cannot input an alternate horizon that is greater than the standard horizon given the selected risk classification","Check: ok") -> Check: ok
A91: Medium-low
A92: =$A$91&" - "&E92 -> Medium-low - Estimated cost | B92: 0 | D92: =IF(ISNUMBER(C92),C92,B92) -> 0 | E92: =E74 -> Estimated cost | F92: ='Capital Cont Inputs'!B15 -> 2018 | G92: =IF(C92>$D$96,"Warning - you cannot input an alternate horizon that is greater than the standard horizon given the selected risk classification","Check: ok") -> Check: ok
A93: =$A$91&" - "&E93 -> Medium-low - Actual cost | B93: 0 | D93: =IF(ISNUMBER(C93),C93,B93) -> 0 | E93: =E75 -> Actual cost | F93: =$F$92+D93 -> 2018 | G93: =IF(C93>$D$96,"Warning - you cannot input an alternate horizon that is greater than the standard horizon given the selected risk classification","Check: ok") -> Check: ok
A94: =$A$91&" - "&E94 -> Medium-low - 1st true-up | B94: =B92+3 -> 3 | D94: =IF(ISNUMBER(C94),C94,B94) -> 3 | E94: =E76 -> 1st true-up | F94: =$F$92+D94 -> 2021 | G94: =IF(C94>$D$96,"Warning - you cannot input an alternate horizon that is greater than the standard horizon given the selected risk classification","Check: ok") -> Check: ok
A95: =$A$91&" - "&E95 -> Medium-low - 2nd true-up | B95: =B94+2 -> 5 | D95: =IF(ISNUMBER(C95),C95,B95) -> 5 | E95: =E77 -> 2nd true-up | F95: =$F$92+D95 -> 2023 | G95: =IF(C95>$D$96,"Warning - you cannot input an alternate horizon that is greater than the standard horizon given the selected risk classification","Check: ok") -> Check: ok
A96: =$A$91&" - "&E96 -> Medium-low - 3rd true-up | B96: =B95+5 -> 10 | D96: =IF(ISNUMBER(C96),C96,B96) -> 10 | E96: =E78 -> 3rd true-up | F96: =$F$92+D96 -> 2028 | G96: =IF(C96>$D$96,"Warning - you cannot input an alternate horizon that is greater than the standard horizon given the selected risk classification","Check: ok") -> Check: ok
A99: Low
A100: =$A$99&" - "&E100 -> Low - Estimated cost | B100: 0 | D100: =IF(ISNUMBER(C100),C100,B100) -> 0 | E100: =E74 -> Estimated cost | F100: ='Capital Cont Inputs'!B15 -> 2018 | G100: =IF(C100>$D$104,"Warning - you cannot input an alternate horizon that is greater than the standard horizon given the selected risk classification","Check: ok") -> Check: ok
A101: =$A$99&" - "&E101 -> Low - Actual cost | B101: 0 | D101: =IF(ISNUMBER(C101),C101,B101) -> 0 | E101: =E75 -> Actual cost | F101: =$F$100+D101 -> 2018 | G101: =IF(C101>$D$104,"Warning - you cannot input an alternate horizon that is greater than the standard horizon given the selected risk classification","Check: ok") -> Check: ok
A102: =$A$99&" - "&E102 -> Low - 1st true-up | B102: =B100+5 -> 5 | D102: =IF(ISNUMBER(C102),C102,B102) -> 5 | E102: =E76 -> 1st true-up | F102: =$F$100+D102 -> 2023 | G102: =IF(C102>$D$104,"Warning - you cannot input an alternate horizon that is greater than the standard horizon given the selected risk classification","Check: ok") -> Check: ok
A103: =$A$99&" - "&E103 -> Low - 2nd true-up | B103: =B102+5 -> 10 | D103: =IF(ISNUMBER(C103),C103,B103) -> 10 | E103: =E77 -> 2nd true-up | F103: =$F$100+D103 -> 2028 | G103: =IF(C103>$D$104,"Warning - you cannot input an alternate horizon that is greater than the standard horizon given the selected risk classification","Check: ok") -> Check: ok
A104: =$A$99&" - "&E104 -> Low - 3rd true-up | B104: =B103+5 -> 15 | D104: =IF(ISNUMBER(C104),C104,B104) -> 15 | E104: =E78 -> 3rd true-up | F104: =$F$100+D104 -> 2033 | G104: =IF(C104>$D$104,"Warning - you cannot input an alternate horizon that is greater than the standard horizon given the selected risk classification","Check: ok") -> Check: ok

Sheet Prelim Calc
C2: Calculation of Discount Rate | D2: Capital | E2: Allowed | F2: Regulated | H2: After-tax
D3: Structure | E3: Return* | F3: Return | G3: Tax Rate | H3: Discount Rate
C4: Debt:
C5: Third-Party Long-term Debt | D5: ='Standard Inputs'!B12 -> 0.509 | E5: ='Standard Inputs'!B18 -> 0.0498 | F5: =D5*E5 -> 0.0253482 | G5: ='Standard Inputs'!B27 -> 0.265 | H5: =D5*E5*(1-G5) -> 0.018630927
C6: Deemed Long-term Debt | D6: ='Standard Inputs'!B13 -> 0.051 | E6: ='Standard Inputs'!B19 -> 0.0498 | F6: =D6*E6 -> 0.0025398 | G6: =G5 -> 0.265 | H6: =D6*E6*(1-G6) -> 0.001866753
C7: Short-term Debt | D7: ='Standard Inputs'!B14 -> 0.04 | E7: ='Standard Inputs'!B20 -> 0.0216 | F7: =D7*E7 -> 0.000864 | G7: =G6 -> 0.265 | H7: =D7*E7*(1-G7) -> 0.00063504
F8: =SUM(F5:F7) -> 0.028752 | H8: =SUM(H5:H7) -> 0.02113272
C10: Equity:
C11: Common Equity | D11: ='Standard Inputs'!B15 -> 0.4 | E11: ='Standard Inputs'!B21 -> 0.093 | F11: =D11*E11 -> 0.0372 | H11: =D11*E11 -> 0.0372
F13: =F8+F11 -> 0.065952 | H13: =H8+H11 -> 0.05833272
C14: * Allowed debt returns are before tax. Allowed equity returns are after tax.
C18: Summary of Up-front Costs Before Contributions
E19: ='Capital Cont Inputs'!B15 -> 2018
C21: Up-front capital excluding AFUDC & Overhead - $k | E21: ='Project Inputs'!B34+'Project Inputs'!B38+'Project Inputs'!B49+'Project Inputs'!B55+'Project Inputs'!B61 -> 17188.1412
C22: Overhead - $k | E22: ='Project Inputs'!B39+'Project Inputs'!B50+'Project Inputs'!B56+'Project Inputs'!B62 -> 2370.739767
C23: AFUDC - $k | E23: ='Project Inputs'!B40+'Project Inputs'!B51+'Project Inputs'!B57+'Project Inputs'!B63 -> 653.835353
C24: Total up-front capital before capital contributions - $k | E24: =SUM(E21:E23) -> 20212.71632
C26: Up-front removal costs - $k | E26: =SUM('Project Inputs'!B44:B45) -> 0
C28: Total up-front capital including removals - $k | E28: =E24+E26 -> 20212.71632
C32: Calculation of Incremental OM&A
C33: Project Year: | F33: ='Capital Cont Inputs'!C16 -> 1 | G33: ='Capital Cont Inputs'!D16 -> 2 | H33: ='Capital Cont Inputs'!E16 -> 3 | I33: ='Capital Cont Inputs'!F16 -> 4 | J33: ='Capital Cont Inputs'!G16 -> 5 | K33: ='Capital Cont Inputs'!H16 -> 6 | L33: ='Capital Cont Inputs'!I16 -> 7 | M33: ='Capital Cont Inputs'!J16 -> 8 | N33: ='Capital Cont Inputs'!K16 -> 9 | O33: ='Capital Cont Inputs'!L16 -> 10 | P33: ='Capital Cont Inputs'!M16 -> 11 | Q33: ='Capital Cont Inputs'!N16 -> 12 | R33: ='Capital Cont Inputs'!O16 -> 13 | S33: ='Capital Cont Inputs'!P16 -> 14 | T33: ='Capital Cont Inputs'!Q16 -> 15 | U33: ='Capital Cont Inputs'!R16 -> 16 | V33: ='Capital Cont Inputs'!S16 -> 17 | W33: ='Capital Cont Inputs'!T16 -> 18 | X33: ='Capital Cont Inputs'!U16 -> 19 | Y33: ='Capital Cont Inputs'!V16 -> 20 | Z33: ='Capital Cont Inputs'!W16 -> 21 | AA33: ='Capital Cont Inputs'!X16 -> 22 | AB33: ='Capital Cont Inputs'!Y16 -> 23 | AC33: ='Capital Cont Inputs'!Z16 -> 24 | AD33: ='Capital Cont Inputs'!AA16 -> 25
C34: Year Ended: | F34: ='Capital Cont Inputs'!C15 -> 2019 | G34: ='Capital Cont Inputs'!D15 -> 2020 | H34: ='Capital Cont Inputs'!E15 -> 2021 | I34: ='Capital Cont Inputs'!F15 -> 2022 | J34: ='Capital Cont Inputs'!G15 -> 2023 | K34: ='Capital Cont Inputs'!H15 -> 2024 | L34: ='Capital Cont Inputs'!I15 -> 2025 | M34: ='Capital Cont Inputs'!J15 -> 2026 | N34: ='Capital Cont Inputs'!K15 -> 2027 | O34: ='Capital Cont Inputs'!L15 -> 2028 | P34: ='Capital Cont Inputs'!M15 -> 2029 | Q34: ='Capital Cont Inputs'!N15 -> 2030 | R34: ='Capital Cont Inputs'!O15 -> 2031 | S34: ='Capital Cont Inputs'!P15 -> 2032 | T34: ='Capital Cont Inputs'!Q15 -> 2033 | U34: ='Capital Cont Inputs'!R15 -> 2034 | V34: ='Capital Cont Inputs'!S15 -> 2035 | W34: ='Capital Cont Inputs'!T15 -> 2036 | X34: ='Capital Cont Inputs'!U15 -> 2037 | Y34: ='Capital Cont Inputs'!V15 -> 2038 | Z34: ='Capital Cont Inputs'!W15 -> 2039 | AA34: ='Capital Cont Inputs'!X15 -> 2040 | AB34: ='Capital Cont Inputs'!Y15 -> 2041 | AC34: ='Capital Cont Inputs'!Z15 -> 2042 | AD34: ='Capital Cont Inputs'!AA15 -> 2043
C35: Standard OM&A Calculation
C37: =CONCATENATE('Project Inputs'!A69," ",'Project Inputs'!B69) -> Asset Type 1: N/A
C38: =VLOOKUP('Project Inputs'!B69,'Standard Inputs'!$43:$44,MATCH('Standard Inputs'!$B$42,'Standard Inputs'!$A$42:$B$42,0),0) -> N/A | F38: =IF(ISNUMBER(F33),VLOOKUP('Project Inputs'!$B69,'Standard Inputs'!$43:$44,MATCH(F$33,'Standard Inputs'!$A$42:$AA$42,0),0),0) -> 0 | G38: =IF(ISNUMBER(G33),VLOOKUP('Project Inputs'!$B69,'Standard Inputs'!$43:$44,MATCH(G$33,'Standard Inputs'!$A$42:$AA$42,0),0),0) -> 0 | H38: =IF(ISNUMBER(H33),VLOOKUP('Project Inputs'!$B69,'Standard Inputs'!$43:$44,MATCH(H$33,'Standard Inputs'!$A$42:$AA$42,0),0),0) -> 0 | I38: =IF(ISNUMBER(I33),VLOOKUP('Project Inputs'!$B69,'Standard Inputs'!$43:$44,MATCH(I$33,'Standard Inputs'!$A$42:$AA$42,0),0),0) -> 0 | J38: =IF(ISNUMBER(J33),VLOOKUP('Project Inputs'!$B69,'Standard Inputs'!$43:$44,MATCH(J$33,'Standard Inputs'!$A$42:$AA$42,0),0),0) -> 0 | K38: =IF(ISNUMBER(K33),VLOOKUP('Project Inputs'!$B69,'Standard Inputs'!$43:$44,MATCH(K$33,'Standard Inputs'!$A$42:$AA$42,0),0),0) -> 0 | L38: =IF(ISNUMBER(L33),VLOOKUP('Project Inputs'!$B69,'Standard Inputs'!$43:$44,MATCH(L$33,'Standard Inputs'!$A$42:$AA$42,0),0),0) -> 0 | M38: =IF(ISNUMBER(M33),VLOOKUP('Project Inputs'!$B69,'Standard Inputs'!$43:$44,MATCH(M$33,'Standard Inputs'!$A$42:$AA$42,0),0),0) -> 0 | N38: =IF(ISNUMBER(N33),VLOOKUP('Project Inputs'!$B69,'Standard Inputs'!$43:$44,MATCH(N$33,'Standard Inputs'!$A$42:$AA$42,0),0),0) -> 0 | O38: =IF(ISNUMBER(O33),VLOOKUP('Project Inputs'!$B69,'Standard Inputs'!$43:$44,MATCH(O$33,'Standard Inputs'!$A$42:$AA$42,0),0),0) -> 0 | P38: =IF(ISNUMBER(P33),VLOOKUP('Project Inputs'!$B69,'Standard Inputs'!$43:$44,MATCH(P$33,'Standard Inputs'!$A$42:$AA$42,0),0),0) -> 0 | Q38: =IF(ISNUMBER(Q33),VLOOKUP('Project Inputs'!$B69,'Standard Inputs'!$43:$44,MATCH(Q$33,'Standard Inputs'!$A$42:$AA$42,0),0),0) -> 0 | R38: =IF(ISNUMBER(R33),VLOOKUP('Project Inputs'!$B69,'Standard Inputs'!$43:$44,MATCH(R$33,'Standard Inputs'!$A$42:$AA$42,0),0),0) -> 0 | S38: =IF(ISNUMBER(S33),VLOOKUP('Project Inputs'!$B69,'Standard Inputs'!$43:$44,MATCH(S$33,'Standard Inputs'!$A$42:$AA$42,0),0),0) -> 0 | T38: =IF(ISNUMBER(T33),VLOOKUP('Project Inputs'!$B69,'Standard Inputs'!$43:$44,MATCH(T$33,'Standard Inputs'!$A$42:$AA$42,0),0),0) -> 0 | U38: =IF(ISNUMBER(U33),VLOOKUP('Project Inputs'!$B69,'Standard Inputs'!$43:$44,MATCH(U$33,'Standard Inputs'!$A$42:$AA$42,0),0),0) -> 0 | V38: =IF(ISNUMBER(V33),VLOOKUP('Project Inputs'!$B69,'Standard Inputs'!$43:$44,MATCH(V$33,'Standard Inputs'!$A$42:$AA$42,0),0),0) -> 0 | W38: =IF(ISNUMBER(W33),VLOOKUP('Project Inputs'!$B69,'Standard Inputs'!$43:$44,MATCH(W$33,'Standard Inputs'!$A$42:$AA$42,0),0),0) -> 0 | X38: =IF(ISNUMBER(X33),VLOOKUP('Project Inputs'!$B69,'Standard Inputs'!$43:$44,MATCH(X$33,'Standard Inputs'!$A$42:$AA$42,0),0),0) -> 0 | Y38: =IF(ISNUMBER(Y33),VLOOKUP('Project Inputs'!$B69,'Standard Inputs'!$43:$44,MATCH(Y$33,'Standard Inputs'!$A$42:$AA$42,0),0),0) -> 0 | Z38: =IF(ISNUMBER(Z33),VLOOKUP('Project Inputs'!$B69,'Standard Inputs'!$43:$44,MATCH(Z$33,'Standard Inputs'!$A$42:$AA$42,0),0),0) -> 0 | AA38: =IF(ISNUMBER(AA33),VLOOKUP('Project Inputs'!$B69,'Standard Inputs'!$43:$44,MATCH(AA$33,'Standard Inputs'!$A$42:$AA$42,0),0),0) -> 0 | AB38: =IF(ISNUMBER(AB33),VLOOKUP('Project Inputs'!$B69,'Standard Inputs'!$43:$44,MATCH(AB$33,'Standard Inputs'!$A$42:$AA$42,0),0),0) -> 0 | AC38: =IF(ISNUMBER(AC33),VLOOKUP('Project Inputs'!$B69,'Standard Inputs'!$43:$44,MATCH(AC$33,'Standard Inputs'!$A$42:$AA$42,0),0),0) -> 0 | AD38: =IF(ISNUMBER(AD33),VLOOKUP('Project Inputs'!$B69,'Standard Inputs'!$43:$44,MATCH(AD$33,'Standard Inputs'!$A$42:$AA$42,0),0),0) -> 0
C39: =IF(C38='Standard Inputs'!$B$43,"KM of Line","N/A") -> N/A | F39: =IF(OR('Project Inputs'!$B69="Line - Overhead",'Project Inputs'!$B69="Line - Underground"),'Project Inputs'!$J69,IF(OR('Project Inputs'!$B69="Network - SS",'Project Inputs'!$B69="Network - TS"),'Project Inputs'!B76,IF(OR('Project Inputs'!$B69="Station - DESN",'Project Inputs'!$B69="Station - single"),1,0))) -> 0 | G39: =IF(ISNUMBER('Capital Cont Inputs'!D16),F39,0) -> 0 | H39: =IF(ISNUMBER('Capital Cont Inputs'!E16),G39,0) -> 0 | I39: =IF(ISNUMBER('Capital Cont Inputs'!F16),H39,0) -> 0 | J39: =IF(ISNUMBER('Capital Cont Inputs'!G16),I39,0) -> 0 | K39: =IF(ISNUMBER('Capital Cont Inputs'!H16),J39,0) -> 0 | L39: =IF(ISNUMBER('Capital Cont Inputs'!I16),K39,0) -> 0 | M39: =IF(ISNUMBER('Capital Cont Inputs'!J16),L39,0) -> 0 | N39: =IF(ISNUMBER('Capital Cont Inputs'!K16),M39,0) -> 0 | O39: =IF(ISNUMBER('Capital Cont Inputs'!L16),N39,0) -> 0 | P39: =IF(ISNUMBER('Capital Cont Inputs'!M16),O39,0) -> 0 | Q39: =IF(ISNUMBER('Capital Cont Inputs'!N16),P39,0) -> 0 | R39: =IF(ISNUMBER('Capital Cont Inputs'!O16),Q39,0) -> 0 | S39: =IF(ISNUMBER('Capital Cont Inputs'!P16),R39,0) -> 0 | T39: =IF(ISNUMBER('Capital Cont Inputs'!Q16),S39,0) -> 0 | U39: =IF(ISNUMBER('Capital Cont Inputs'!R16),T39,0) -> 0 | V39: =IF(ISNUMBER('Capital Cont Inputs'!S16),U39,0) -> 0 | W39: =IF(ISNUMBER('Capital Cont Inputs'!T16),V39,0) -> 0 | X39: =IF(ISNUMBER('Capital Cont Inputs'!U16),W39,0) -> 0 | Y39: =IF(ISNUMBER('Capital Cont Inputs'!V16),X39,0) -> 0 | Z39: =IF(ISNUMBER('Capital Cont Inputs'!W16),Y39,0) -> 0 | AA39: =IF(ISNUMBER('Capital Cont Inputs'!X16),Z39,0) -> 0 | AB39: =IF(ISNUMBER('Capital Cont Inputs'!Y16),AA39,0) -> 0 | AC39: =IF(ISNUMBER('Capital Cont Inputs'!Z16),AB39,0) -> 0 | AD39: =IF(ISNUMBER('Capital Cont Inputs'!AA16),AC39,0) -> 0
C40: % of asset applicable to customer | F40: =IF(ISNUMBER(F33),IF(ISBLANK('Project Inputs'!$G$69),100%,'Project Inputs'!$G$69),0) -> 1 | G40: =IF(ISNUMBER(G33),IF(ISBLANK('Project Inputs'!$G$69),100%,'Project Inputs'!$G$69),0) -> 1 | H40: =IF(ISNUMBER(H33),IF(ISBLANK('Project Inputs'!$G$69),100%,'Project Inputs'!$G$69),0) -> 1 | I40: =IF(ISNUMBER(I33),IF(ISBLANK('Project Inputs'!$G$69),100%,'Project Inputs'!$G$69),0) -> 1 | J40: =IF(ISNUMBER(J33),IF(ISBLANK('Project Inputs'!$G$69),100%,'Project Inputs'!$G$69),0) -> 1 | K40: =IF(ISNUMBER(K33),IF(ISBLANK('Project Inputs'!$G$69),100%,'Project Inputs'!$G$69),0) -> 1 | L40: =IF(ISNUMBER(L33),IF(ISBLANK('Project Inputs'!$G$69),100%,'Project Inputs'!$G$69),0) -> 1 | M40: =IF(ISNUMBER(M33),IF(ISBLANK('Project Inputs'!$G$69),100%,'Project Inputs'!$G$69),0) -> 1 | N40: =IF(ISNUMBER(N33),IF(ISBLANK('Project Inputs'!$G$69),100%,'Project Inputs'!$G$69),0) -> 1 | O40: =IF(ISNUMBER(O33),IF(ISBLANK('Project Inputs'!$G$69),100%,'Project Inputs'!$G$69),0) -> 1 | P40: =IF(ISNUMBER(P33),IF(ISBLANK('Project Inputs'!$G$69),100%,'Project Inputs'!$G$69),0) -> 1 | Q40: =IF(ISNUMBER(Q33),IF(ISBLANK('Project Inputs'!$G$69),100%,'Project Inputs'!$G$69),0) -> 1 | R40: =IF(ISNUMBER(R33),IF(ISBLANK('Project Inputs'!$G$69),100%,'Project Inputs'!$G$69),0) -> 1 | S40: =IF(ISNUMBER(S33),IF(ISBLANK('Project Inputs'!$G$69),100%,'Project Inputs'!$G$69),0) -> 1 | T40: =IF(ISNUMBER(T33),IF(ISBLANK('Project Inputs'!$G$69),100%,'Project Inputs'!$G$69),0) -> 1 | U40: =IF(ISNUMBER(U33),IF(ISBLANK('Project Inputs'!$G$69),100%,'Project Inputs'!$G$69),0) -> 1 | V40: =IF(ISNUMBER(V33),IF(ISBLANK('Project Inputs'!$G$69),100%,'Project Inputs'!$G$69),0) -> 1 | W40: =IF(ISNUMBER(W33),IF(ISBLANK('Project Inputs'!$G$69),100%,'Project Inputs'!$G$69),0) -> 1 | X40: =IF(ISNUMBER(X33),IF(ISBLANK('Project Inputs'!$G$69),100%,'Project Inputs'!$G$69),0) -> 1 | Y40: =IF(ISNUMBER(Y33),IF(ISBLANK('Project Inputs'!$G$69),100%,'Project Inputs'!$G$69),0) -> 1 | Z40: =IF(ISNUMBER(Z33),IF(ISBLANK('Project Inputs'!$G$69),100%,'Project Inputs'!$G$69),0) -> 1 | AA40: =IF(ISNUMBER(AA33),IF(ISBLANK('Project Inputs'!$G$69),100%,'Project Inputs'!$G$69),0) -> 1 | AB40: =IF(ISNUMBER(AB33),IF(ISBLANK('Project Inputs'!$G$69),100%,'Project Inputs'!$G$69),0) -> 1 | AC40: =IF(ISNUMBER(AC33),IF(ISBLANK('Project Inputs'!$G$69),100%,'Project Inputs'!$G$69),0) -> 1 | AD40: =IF(ISNUMBER(AD33),IF(ISBLANK('Project Inputs'!$G$69),100%,'Project Inputs'!$G$69),0) -> 1
C42: Total - $k | F42: =IF(ISNUMBER('Capital Cont Inputs'!C16),F38*F39*F40,0) -> 0 | G42: =IF(ISNUMBER('Capital Cont Inputs'!D16),G38*G39*G40,0) -> 0 | H42: =IF(ISNUMBER('Capital Cont Inputs'!E16),H38*H39*H40,0) -> 0 | I42: =IF(ISNUMBER('Capital Cont Inputs'!F16),I38*I39*I40,0) -> 0 | J42: =IF(ISNUMBER('Capital Cont Inputs'!G16),J38*J39*J40,0) -> 0 | K42: =IF(ISNUMBER('Capital Cont Inputs'!H16),K38*K39*K40,0) -> 0 | L42: =IF(ISNUMBER('Capital Cont Inputs'!I16),L38*L39*L40,0) -> 0 | M42: =IF(ISNUMBER('Capital Cont Inputs'!J16),M38*M39*M40,0) -> 0 | N42: =IF(ISNUMBER('Capital Cont Inputs'!K16),N38*N39*N40,0) -> 0 | O42: =IF(ISNUMBER('Capital Cont Inputs'!L16),O38*O39*O40,0) -> 0 | P42: =IF(ISNUMBER('Capital Cont Inputs'!M16),P38*P39*P40,0) -> 0 | Q42: =IF(ISNUMBER('Capital Cont Inputs'!N16),Q38*Q39*Q40,0) -> 0 | R42: =IF(ISNUMBER('Capital Cont Inputs'!O16),R38*R39*R40,0) -> 0 | S42: =IF(ISNUMBER('Capital Cont Inputs'!P16),S38*S39*S40,0) -> 0 | T42: =IF(ISNUMBER('Capital Cont Inputs'!Q16),T38*T39*T40,0) -> 0 | U42: =IF(ISNUMBER('Capital Cont Inputs'!R16),U38*U39*U40,0) -> 0 | V42: =IF(ISNUMBER('Capital Cont Inputs'!S16),V38*V39*V40,0) -> 0 | W42: =IF(ISNUMBER('Capital Cont Inputs'!T16),W38*W39*W40,0) -> 0 | X42: =IF(ISNUMBER('Capital Cont Inputs'!U16),X38*X39*X40,0) -> 0 | Y42: =IF(ISNUMBER('Capital Cont Inputs'!V16),Y38*Y39*Y40,0) -> 0 | Z42: =IF(ISNUMBER('Capital Cont Inputs'!W16),Z38*Z39*Z40,0) -> 0 | AA42: =IF(ISNUMBER('Capital Cont Inputs'!X16),AA38*AA39*AA40,0) -> 0 | AB42: =IF(ISNUMBER('Capital Cont Inputs'!Y16),AB38*AB39*AB40,0) -> 0 | AC42: =IF(ISNUMBER('Capital Cont Inputs'!Z16),AC38*AC39*AC40,0) -> 0 | AD42: =IF(ISNUMBER('Capital Cont Inputs'!AA16),AD38*AD39*AD40,0) -> 0
C44: =CONCATENATE('Project Inputs'!A70," ",'Project Inputs'!B70) -> Asset Type 2: N/A
C45: =VLOOKUP('Project Inputs'!B70,'Standard Inputs'!43:44,MATCH('Standard Inputs'!$B$42,'Standard Inputs'!$A$42:$B$42,0),0) -> N/A | F45: =IF(ISNUMBER(F33),VLOOKUP('Project Inputs'!$B70,'Standard Inputs'!$43:$44,MATCH(F$33,'Standard Inputs'!$A$42:$AA$42,0),0),0) -> 0 | G45: =IF(ISNUMBER(G33),VLOOKUP('Project Inputs'!$B70,'Standard Inputs'!$43:$44,MATCH(G$33,'Standard Inputs'!$A$42:$AA$42,0),0),0) -> 0 | H45: =IF(ISNUMBER(H33),VLOOKUP('Project Inputs'!$B70,'Standard Inputs'!$43:$44,MATCH(H$33,'Standard Inputs'!$A$42:$AA$42,0),0),0) -> 0 | I45: =IF(ISNUMBER(I33),VLOOKUP('Project Inputs'!$B70,'Standard Inputs'!$43:$44,MATCH(I$33,'Standard Inputs'!$A$42:$AA$42,0),0),0) -> 0 | J45: =IF(ISNUMBER(J33),VLOOKUP('Project Inputs'!$B70,'Standard Inputs'!$43:$44,MATCH(J$33,'Standard Inputs'!$A$42:$AA$42,0),0),0) -> 0 | K45: =IF(ISNUMBER(K33),VLOOKUP('Project Inputs'!$B70,'Standard Inputs'!$43:$44,MATCH(K$33,'Standard Inputs'!$A$42:$AA$42,0),0),0) -> 0 | L45: =IF(ISNUMBER(L33),VLOOKUP('Project Inputs'!$B70,'Standard Inputs'!$43:$44,MATCH(L$33,'Standard Inputs'!$A$42:$AA$42,0),0),0) -> 0 | M45: =IF(ISNUMBER(M33),VLOOKUP('Project Inputs'!$B70,'Standard Inputs'!$43:$44,MATCH(M$33,'Standard Inputs'!$A$42:$AA$42,0),0),0) -> 0 | N45: =IF(ISNUMBER(N33),VLOOKUP('Project Inputs'!$B70,'Standard Inputs'!$43:$44,MATCH(N$33,'Standard Inputs'!$A$42:$AA$42,0),0),0) -> 0 | O45: =IF(ISNUMBER(O33),VLOOKUP('Project Inputs'!$B70,'Standard Inputs'!$43:$44,MATCH(O$33,'Standard Inputs'!$A$42:$AA$42,0),0),0) -> 0 | P45: =IF(ISNUMBER(P33),VLOOKUP('Project Inputs'!$B70,'Standard Inputs'!$43:$44,MATCH(P$33,'Standard Inputs'!$A$42:$AA$42,0),0),0) -> 0 | Q45: =IF(ISNUMBER(Q33),VLOOKUP('Project Inputs'!$B70,'Standard Inputs'!$43:$44,MATCH(Q$33,'Standard Inputs'!$A$42:$AA$42,0),0),0) -> 0 | R45: =IF(ISNUMBER(R33),VLOOKUP('Project Inputs'!$B70,'Standard Inputs'!$43:$44,MATCH(R$33,'Standard Inputs'!$A$42:$AA$42,0),0),0) -> 0 | S45: =IF(ISNUMBER(S33),VLOOKUP('Project Inputs'!$B70,'Standard Inputs'!$43:$44,MATCH(S$33,'Standard Inputs'!$A$42:$AA$42,0),0),0) -> 0 | T45: =IF(ISNUMBER(T33),VLOOKUP('Project Inputs'!$B70,'Standard Inputs'!$43:$44,MATCH(T$33,'Standard Inputs'!$A$42:$AA$42,0),0),0) -> 0 | U45: =IF(ISNUMBER(U33),VLOOKUP('Project Inputs'!$B70,'Standard Inputs'!$43:$44,MATCH(U$33,'Standard Inputs'!$A$42:$AA$42,0),0),0) -> 0 | V45: =IF(ISNUMBER(V33),VLOOKUP('Project Inputs'!$B70,'Standard Inputs'!$43:$44,MATCH(V$33,'Standard Inputs'!$A$42:$AA$42,0),0),0) -> 0 | W45: =IF(ISNUMBER(W33),VLOOKUP('Project Inputs'!$B70,'Standard Inputs'!$43:$44,MATCH(W$33,'Standard Inputs'!$A$42:$AA$42,0),0),0) -> 0 | X45: =IF(ISNUMBER(X33),VLOOKUP('Project Inputs'!$B70,'Standard Inputs'!$43:$44,MATCH(X$33,'Standard Inputs'!$A$42:$AA$42,0),0),0) -> 0 | Y45: =IF(ISNUMBER(Y33),VLOOKUP('Project Inputs'!$B70,'Standard Inputs'!$43:$44,MATCH(Y$33,'Standard Inputs'!$A$42:$AA$42,0),0),0) -> 0 | Z45: =IF(ISNUMBER(Z33),VLOOKUP('Project Inputs'!$B70,'Standard Inputs'!$43:$44,MATCH(Z$33,'Standard Inputs'!$A$42:$AA$42,0),0),0) -> 0 | AA45: =IF(ISNUMBER(AA33),VLOOKUP('Project Inputs'!$B70,'Standard Inputs'!$43:$44,MATCH(AA$33,'Standard Inputs'!$A$42:$AA$42,0),0),0) -> 0 | AB45: =IF(ISNUMBER(AB33),VLOOKUP('Project Inputs'!$B70,'Standard Inputs'!$43:$44,MATCH(AB$33,'Standard Inputs'!$A$42:$AA$42,0),0),0) -> 0 | AC45: =IF(ISNUMBER(AC33),VLOOKUP('Project Inputs'!$B70,'Standard Inputs'!$43:$44,MATCH(AC$33,'Standard Inputs'!$A$42:$AA$42,0),0),0) -> 0 | AD45: =IF(ISNUMBER(AD33),VLOOKUP('Project Inputs'!$B70,'Standard Inputs'!$43:$44,MATCH(AD$33,'Standard Inputs'!$A$42:$AA$42,0),0),0) -> 0
C46: =IF(C45='Standard Inputs'!$B$43,"KM of Line","N/A") -> N/A | F46: =IF(OR('Project Inputs'!$B70="Line - Overhead",'Project Inputs'!$B70="Line - Underground"),'Project Inputs'!$J70,IF(OR('Project Inputs'!$B70="Network - SS",'Project Inputs'!$B70="Network - TS"),'Project Inputs'!C76,IF(OR('Project Inputs'!$B70="Station - DESN",'Project Inputs'!$B70="Station - single"),1,0))) -> 0 | G46: =IF(ISNUMBER('Capital Cont Inputs'!D16),F46,0) -> 0 | H46: =IF(ISNUMBER('Capital Cont Inputs'!E16),G46,0) -> 0 | I46: =IF(ISNUMBER('Capital Cont Inputs'!F16),H46,0) -> 0 | J46: =IF(ISNUMBER('Capital Cont Inputs'!G16),I46,0) -> 0 | K46: =IF(ISNUMBER('Capital Cont Inputs'!H16),J46,0) -> 0 | L46: =IF(ISNUMBER('Capital Cont Inputs'!I16),K46,0) -> 0 | M46: =IF(ISNUMBER('Capital Cont Inputs'!J16),L46,0) -> 0 | N46: =IF(ISNUMBER('Capital Cont Inputs'!K16),M46,0) -> 0 | O46: =IF(ISNUMBER('Capital Cont Inputs'!L16),N46,0) -> 0 | P46: =IF(ISNUMBER('Capital Cont Inputs'!M16),O46,0) -> 0 | Q46: =IF(ISNUMBER('Capital Cont Inputs'!N16),P46,0) -> 0 | R46: =IF(ISNUMBER('Capital Cont Inputs'!O16),Q46,0) -> 0 | S46: =IF(ISNUMBER('Capital Cont Inputs'!P16),R46,0) -> 0 | T46: =IF(ISNUMBER('Capital Cont Inputs'!Q16),S46,0) -> 0 | U46: =IF(ISNUMBER('Capital Cont Inputs'!R16),T46,0) -> 0 | V46: =IF(ISNUMBER('Capital Cont Inputs'!S16),U46,0) -> 0 | W46: =IF(ISNUMBER('Capital Cont Inputs'!T16),V46,0) -> 0 | X46: =IF(ISNUMBER('Capital Cont Inputs'!U16),W46,0) -> 0 | Y46: =IF(ISNUMBER('Capital Cont Inputs'!V16),X46,0) -> 0 | Z46: =IF(ISNUMBER('Capital Cont Inputs'!W16),Y46,0) -> 0 | AA46: =IF(ISNUMBER('Capital Cont Inputs'!X16),Z46,0) -> 0 | AB46: =IF(ISNUMBER('Capital Cont Inputs'!Y16),AA46,0) -> 0 | AC46: =IF(ISNUMBER('Capital Cont Inputs'!Z16),AB46,0) -> 0 | AD46: =IF(ISNUMBER('Capital Cont Inputs'!AA16),AC46,0) -> 0
C47: % of asset applicable to customer | F47: =IF(ISNUMBER(F33),IF(ISBLANK('Project Inputs'!$G$70),100%,'Project Inputs'!$G$70),0) -> 1 | G47: =IF(ISNUMBER(G33),IF(ISBLANK('Project Inputs'!$G$70),100%,'Project Inputs'!$G$70),0) -> 1 | H47: =IF(ISNUMBER(H33),IF(ISBLANK('Project Inputs'!$G$70),100%,'Project Inputs'!$G$70),0) -> 1 | I47: =IF(ISNUMBER(I33),IF(ISBLANK('Project Inputs'!$G$70),100%,'Project Inputs'!$G$70),0) -> 1 | J47: =IF(ISNUMBER(J33),IF(ISBLANK('Project Inputs'!$G$70),100%,'Project Inputs'!$G$70),0) -> 1 | K47: =IF(ISNUMBER(K33),IF(ISBLANK('Project Inputs'!$G$70),100%,'Project Inputs'!$G$70),0) -> 1 | L47: =IF(ISNUMBER(L33),IF(ISBLANK('Project Inputs'!$G$70),100%,'Project Inputs'!$G$70),0) -> 1 | M47: =IF(ISNUMBER(M33),IF(ISBLANK('Project Inputs'!$G$70),100%,'Project Inputs'!$G$70),0) -> 1 | N47: =IF(ISNUMBER(N33),IF(ISBLANK('Project Inputs'!$G$70),100%,'Project Inputs'!$G$70),0) -> 1 | O47: =IF(ISNUMBER(O33),IF(ISBLANK('Project Inputs'!$G$70),100%,'Project Inputs'!$G$70),0) -> 1 | P47: =IF(ISNUMBER(P33),IF(ISBLANK('Project Inputs'!$G$70),100%,'Project Inputs'!$G$70),0) -> 1 | Q47: =IF(ISNUMBER(Q33),IF(ISBLANK('Project Inputs'!$G$70),100%,'Project Inputs'!$G$70),0) -> 1 | R47: =IF(ISNUMBER(R33),IF(ISBLANK('Project Inputs'!$G$70),100%,'Project Inputs'!$G$70),0) -> 1 | S47: =IF(ISNUMBER(S33),IF(ISBLANK('Project Inputs'!$G$70),100%,'Project Inputs'!$G$70),0) -> 1 | T47: =IF(ISNUMBER(T33),IF(ISBLANK('Project Inputs'!$G$70),100%,'Project Inputs'!$G$70),0) -> 1 | U47: =IF(ISNUMBER(U33),IF(ISBLANK('Project Inputs'!$G$70),100%,'Project Inputs'!$G$70),0) -> 1 | V47: =IF(ISNUMBER(V33),IF(ISBLANK('Project Inputs'!$G$70),100%,'Project Inputs'!$G$70),0) -> 1 | W47: =IF(ISNUMBER(W33),IF(ISBLANK('Project Inputs'!$G$70),100%,'Project Inputs'!$G$70),0) -> 1 | X47: =IF(ISNUMBER(X33),IF(ISBLANK('Project Inputs'!$G$70),100%,'Project Inputs'!$G$70),0) -> 1 | Y47: =IF(ISNUMBER(Y33),IF(ISBLANK('Project Inputs'!$G$70),100%,'Project Inputs'!$G$70),0) -> 1 | Z47: =IF(ISNUMBER(Z33),IF(ISBLANK('Project Inputs'!$G$70),100%,'Project Inputs'!$G$70),0) -> 1 | AA47: =IF(ISNUMBER(AA33),IF(ISBLANK('Project Inputs'!$G$70),100%,'Project Inputs'!$G$70),0) -> 1 | AB47: =IF(ISNUMBER(AB33),IF(ISBLANK('Project Inputs'!$G$70),100%,'Project Inputs'!$G$70),0) -> 1 | AC47: =IF(ISNUMBER(AC33),IF(ISBLANK('Project Inputs'!$G$70),100%,'Project Inputs'!$G$70),0) -> 1 | AD47: =IF(ISNUMBER(AD33),IF(ISBLANK('Project Inputs'!$G$70),100%,'Project Inputs'!$G$70),0) -> 1
C49: Total - $k | F49: =IF(ISNUMBER('Capital Cont Inputs'!C16),F45*F46*F47,0) -> 0 | G49: =IF(ISNUMBER('Capital Cont Inputs'!D16),G45*G46*G47,0) -> 0 | H49: =IF(ISNUMBER('Capital Cont Inputs'!E16),H45*H46*H47,0) -> 0 | I49: =IF(ISNUMBER('Capital Cont Inputs'!F16),I45*I46*I47,0) -> 0 | J49: =IF(ISNUMBER('Capital Cont Inputs'!G16),J45*J46*J47,0) -> 0 | K49: =IF(ISNUMBER('Capital Cont Inputs'!H16),K45*K46*K47,0) -> 0 | L49: =IF(ISNUMBER('Capital Cont Inputs'!I16),L45*L46*L47,0) -> 0 | M49: =IF(ISNUMBER('Capital Cont Inputs'!J16),M45*M46*M47,0) -> 0 | N49: =IF(ISNUMBER('Capital Cont Inputs'!K16),N45*N46*N47,0) -> 0 | O49: =IF(ISNUMBER('Capital Cont Inputs'!L16),O45*O46*O47,0) -> 0 | P49: =IF(ISNUMBER('Capital Cont Inputs'!M16),P45*P46*P47,0) -> 0 | Q49: =IF(ISNUMBER('Capital Cont Inputs'!N16),Q45*Q46*Q47,0) -> 0 | R49: =IF(ISNUMBER('Capital Cont Inputs'!O16),R45*R46*R47,0) -> 0 | S49: =IF(ISNUMBER('Capital Cont Inputs'!P16),S45*S46*S47,0) -> 0 | T49: =IF(ISNUMBER('Capital Cont Inputs'!Q16),T45*T46*T47,0) -> 0 | U49: =IF(ISNUMBER('Capital Cont Inputs'!R16),U45*U46*U47,0) -> 0 | V49: =IF(ISNUMBER('Capital Cont Inputs'!S16),V45*V46*V47,0) -> 0 | W49: =IF(ISNUMBER('Capital Cont Inputs'!T16),W45*W46*W47,0) -> 0 | X49: =IF(ISNUMBER('Capital Cont Inputs'!U16),X45*X46*X47,0) -> 0 | Y49: =IF(ISNUMBER('Capital Cont Inputs'!V16),Y45*Y46*Y47,0) -> 0 | Z49: =IF(ISNUMBER('Capital Cont Inputs'!W16),Z45*Z46*Z47,0) -> 0 | AA49: =IF(ISNUMBER('Capital Cont Inputs'!X16),AA45*AA46*AA47,0) -> 0 | AB49: =IF(ISNUMBER('Capital Cont Inputs'!Y16),AB45*AB46*AB47,0) -> 0 | AC49: =IF(ISNUMBER('Capital Cont Inputs'!Z16),AC45*AC46*AC47,0) -> 0 | AD49: =IF(ISNUMBER('Capital Cont Inputs'!AA16),AD45*AD46*AD47,0) -> 0
C51: =CONCATENATE('Project Inputs'!A71," ",'Project Inputs'!B71) -> Asset Type 3: N/A
C52: =VLOOKUP('Project Inputs'!B71,'Standard Inputs'!43:44,MATCH('Standard Inputs'!$B$42,'Standard Inputs'!$A$42:$B$42,0),0) -> N/A | F52: =IF(ISNUMBER(F33),VLOOKUP('Project Inputs'!$B71,'Standard Inputs'!$43:$44,MATCH(F$33,'Standard Inputs'!$A$42:$AA$42,0),0),0) -> 0 | G52: =IF(ISNUMBER(G33),VLOOKUP('Project Inputs'!$B71,'Standard Inputs'!$43:$44,MATCH(G$33,'Standard Inputs'!$A$42:$AA$42,0),0),0) -> 0 | H52: =IF(ISNUMBER(H33),VLOOKUP('Project Inputs'!$B71,'Standard Inputs'!$43:$44,MATCH(H$33,'Standard Inputs'!$A$42:$AA$42,0),0),0) -> 0 | I52: =IF(ISNUMBER(I33),VLOOKUP('Project Inputs'!$B71,'Standard Inputs'!$43:$44,MATCH(I$33,'Standard Inputs'!$A$42:$AA$42,0),0),0) -> 0 | J52: =IF(ISNUMBER(J33),VLOOKUP('Project Inputs'!$B71,'Standard Inputs'!$43:$44,MATCH(J$33,'Standard Inputs'!$A$42:$AA$42,0),0),0) -> 0 | K52: =IF(ISNUMBER(K33),VLOOKUP('Project Inputs'!$B71,'Standard Inputs'!$43:$44,MATCH(K$33,'Standard Inputs'!$A$42:$AA$42,0),0),0) -> 0 | L52: =IF(ISNUMBER(L33),VLOOKUP('Project Inputs'!$B71,'Standard Inputs'!$43:$44,MATCH(L$33,'Standard Inputs'!$A$42:$AA$42,0),0),0) -> 0 | M52: =IF(ISNUMBER(M33),VLOOKUP('Project Inputs'!$B71,'Standard Inputs'!$43:$44,MATCH(M$33,'Standard Inputs'!$A$42:$AA$42,0),0),0) -> 0 | N52: =IF(ISNUMBER(N33),VLOOKUP('Project Inputs'!$B71,'Standard Inputs'!$43:$44,MATCH(N$33,'Standard Inputs'!$A$42:$AA$42,0),0),0) -> 0 | O52: =IF(ISNUMBER(O33),VLOOKUP('Project Inputs'!$B71,'Standard Inputs'!$43:$44,MATCH(O$33,'Standard Inputs'!$A$42:$AA$42,0),0),0) -> 0 | P52: =IF(ISNUMBER(P33),VLOOKUP('Project Inputs'!$B71,'Standard Inputs'!$43:$44,MATCH(P$33,'Standard Inputs'!$A$42:$AA$42,0),0),0) -> 0 | Q52: =IF(ISNUMBER(Q33),VLOOKUP('Project Inputs'!$B71,'Standard Inputs'!$43:$44,MATCH(Q$33,'Standard Inputs'!$A$42:$AA$42,0),0),0) -> 0 | R52: =IF(ISNUMBER(R33),VLOOKUP('Project Inputs'!$B71,'Standard Inputs'!$43:$44,MATCH(R$33,'Standard Inputs'!$A$42:$AA$42,0),0),0) -> 0 | S52: =IF(ISNUMBER(S33),VLOOKUP('Project Inputs'!$B71,'Standard Inputs'!$43:$44,MATCH(S$33,'Standard Inputs'!$A$42:$AA$42,0),0),0) -> 0 | T52: =IF(ISNUMBER(T33),VLOOKUP('Project Inputs'!$B71,'Standard Inputs'!$43:$44,MATCH(T$33,'Standard Inputs'!$A$42:$AA$42,0),0),0) -> 0 | U52: =IF(ISNUMBER(U33),VLOOKUP('Project Inputs'!$B71,'Standard Inputs'!$43:$44,MATCH(U$33,'Standard Inputs'!$A$42:$AA$42,0),0),0) -> 0 | V52: =IF(ISNUMBER(V33),VLOOKUP('Project Inputs'!$B71,'Standard Inputs'!$43:$44,MATCH(V$33,'Standard Inputs'!$A$42:$AA$42,0),0),0) -> 0 | W52: =IF(ISNUMBER(W33),VLOOKUP('Project Inputs'!$B71,'Standard Inputs'!$43:$44,MATCH(W$33,'Standard Inputs'!$A$42:$AA$42,0),0),0) -> 0 | X52: =IF(ISNUMBER(X33),VLOOKUP('Project Inputs'!$B71,'Standard Inputs'!$43:$44,MATCH(X$33,'Standard Inputs'!$A$42:$AA$42,0),0),0) -> 0 | Y52: =IF(ISNUMBER(Y33),VLOOKUP('Project Inputs'!$B71,'Standard Inputs'!$43:$44,MATCH(Y$33,'Standard Inputs'!$A$42:$AA$42,0),0),0) -> 0 | Z52: =IF(ISNUMBER(Z33),VLOOKUP('Project Inputs'!$B71,'Standard Inputs'!$43:$44,MATCH(Z$33,'Standard Inputs'!$A$42:$AA$42,0),0),0) -> 0 | AA52: =IF(ISNUMBER(AA33),VLOOKUP('Project Inputs'!$B71,'Standard Inputs'!$43:$44,MATCH(AA$33,'Standard Inputs'!$A$42:$AA$42,0),0),0) -> 0 | AB52: =IF(ISNUMBER(AB33),VLOOKUP('Project Inputs'!$B71,'Standard Inputs'!$43:$44,MATCH(AB$33,'Standard Inputs'!$A$42:$AA$42,0),0),0) -> 0 | AC52: =IF(ISNUMBER(AC33),VLOOKUP('Project Inputs'!$B71,'Standard Inputs'!$43:$44,MATCH(AC$33,'Standard Inputs'!$A$42:$AA$42,0),0),0) -> 0 | AD52: =IF(ISNUMBER(AD33),VLOOKUP('Project Inputs'!$B71,'Standard Inputs'!$43:$44,MATCH(AD$33,'Standard Inputs'!$A$42:$AA$42,0),0),0) -> 0
C53: =IF(C52='Standard Inputs'!$B$43,"KM of Line","N/A") -> N/A | F53: =IF(OR('Project Inputs'!$B71="Line - Overhead",'Project Inputs'!$B71="Line - Underground"),'Project Inputs'!$J71,IF(OR('Project Inputs'!$B71="Network - SS",'Project Inputs'!$B71="Network - TS"),'Project Inputs'!D76,IF(OR('Project Inputs'!$B71="Station - DESN",'Project Inputs'!$B71="Station - single"),1,0))) -> 0 | G53: =IF(ISNUMBER('Capital Cont Inputs'!D16),F53,0) -> 0 | H53: =IF(ISNUMBER('Capital Cont Inputs'!E16),G53,0) -> 0 | I53: =IF(ISNUMBER('Capital Cont Inputs'!F16),H53,0) -> 0 | J53: =IF(ISNUMBER('Capital Cont Inputs'!G16),I53,0) -> 0 | K53: =IF(ISNUMBER('Capital Cont Inputs'!H16),J53,0) -> 0 | L53: =IF(ISNUMBER('Capital Cont Inputs'!I16),K53,0) -> 0 | M53: =IF(ISNUMBER('Capital Cont Inputs'!J16),L53,0) -> 0 | N53: =IF(ISNUMBER('Capital Cont Inputs'!K16),M53,0) -> 0 | O53: =IF(ISNUMBER('Capital Cont Inputs'!L16),N53,0) -> 0 | P53: =IF(ISNUMBER('Capital Cont Inputs'!M16),O53,0) -> 0 | Q53: =IF(ISNUMBER('Capital Cont Inputs'!N16),P53,0) -> 0 | R53: =IF(ISNUMBER('Capital Cont Inputs'!O16),Q53,0) -> 0 | S53: =IF(ISNUMBER('Capital Cont Inputs'!P16),R53,0) -> 0 | T53: =IF(ISNUMBER('Capital Cont Inputs'!Q16),S53,0) -> 0 | U53: =IF(ISNUMBER('Capital Cont Inputs'!R16),T53,0) -> 0 | V53: =IF(ISNUMBER('Capital Cont Inputs'!S16),U53,0) -> 0 | W53: =IF(ISNUMBER('Capital Cont Inputs'!T16),V53,0) -> 0 | X53: =IF(ISNUMBER('Capital Cont Inputs'!U16),W53,0) -> 0 | Y53: =IF(ISNUMBER('Capital Cont Inputs'!V16),X53,0) -> 0 | Z53: =IF(ISNUMBER('Capital Cont Inputs'!W16),Y53,0) -> 0 | AA53: =IF(ISNUMBER('Capital Cont Inputs'!X16),Z53,0) -> 0 | AB53: =IF(ISNUMBER('Capital Cont Inputs'!Y16),AA53,0) -> 0 | AC53: =IF(ISNUMBER('Capital Cont Inputs'!Z16),AB53,0) -> 0 | AD53: =IF(ISNUMBER('Capital Cont Inputs'!AA16),AC53,0) -> 0
C54: % of asset applicable to customer | F54: =IF(ISNUMBER(F33),IF(ISBLANK('Project Inputs'!$G$71),100%,'Project Inputs'!$G$71),0) -> 1 | G54: =IF(ISNUMBER(G33),IF(ISBLANK('Project Inputs'!$G$71),100%,'Project Inputs'!$G$71),0) -> 1 | H54: =IF(ISNUMBER(H33),IF(ISBLANK('Project Inputs'!$G$71),100%,'Project Inputs'!$G$71),0) -> 1 | I54: =IF(ISNUMBER(I33),IF(ISBLANK('Project Inputs'!$G$71),100%,'Project Inputs'!$G$71),0) -> 1 | J54: =IF(ISNUMBER(J33),IF(ISBLANK('Project Inputs'!$G$71),100%,'Project Inputs'!$G$71),0) -> 1 | K54: =IF(ISNUMBER(K33),IF(ISBLANK('Project Inputs'!$G$71),100%,'Project Inputs'!$G$71),0) -> 1 | L54: =IF(ISNUMBER(L33),IF(ISBLANK('Project Inputs'!$G$71),100%,'Project Inputs'!$G$71),0) -> 1 | M54: =IF(ISNUMBER(M33),IF(ISBLANK('Project Inputs'!$G$71),100%,'Project Inputs'!$G$71),0) -> 1 | N54: =IF(ISNUMBER(N33),IF(ISBLANK('Project Inputs'!$G$71),100%,'Project Inputs'!$G$71),0) -> 1 | O54: =IF(ISNUMBER(O33),IF(ISBLANK('Project Inputs'!$G$71),100%,'Project Inputs'!$G$71),0) -> 1 | P54: =IF(ISNUMBER(P33),IF(ISBLANK('Project Inputs'!$G$71),100%,'Project Inputs'!$G$71),0) -> 1 | Q54: =IF(ISNUMBER(Q33),IF(ISBLANK('Project Inputs'!$G$71),100%,'Project Inputs'!$G$71),0) -> 1 | R54: =IF(ISNUMBER(R33),IF(ISBLANK('Project Inputs'!$G$71),100%,'Project Inputs'!$G$71),0) -> 1 | S54: =IF(ISNUMBER(S33),IF(ISBLANK('Project Inputs'!$G$71),100%,'Project Inputs'!$G$71),0) -> 1 | T54: =IF(ISNUMBER(T33),IF(ISBLANK('Project Inputs'!$G$71),100%,'Project Inputs'!$G$71),0) -> 1 | U54: =IF(ISNUMBER(U33),IF(ISBLANK('Project Inputs'!$G$71),100%,'Project Inputs'!$G$71),0) -> 1 | V54: =IF(ISNUMBER(V33),IF(ISBLANK('Project Inputs'!$G$71),100%,'Project Inputs'!$G$71),0) -> 1 | W54: =IF(ISNUMBER(W33),IF(ISBLANK('Project Inputs'!$G$71),100%,'Project Inputs'!$G$71),0) -> 1 | X54: =IF(ISNUMBER(X33),IF(ISBLANK('Project Inputs'!$G$71),100%,'Project Inputs'!$G$71),0) -> 1 | Y54: =IF(ISNUMBER(Y33),IF(ISBLANK('Project Inputs'!$G$71),100%,'Project Inputs'!$G$71),0) -> 1 | Z54: =IF(ISNUMBER(Z33),IF(ISBLANK('Project Inputs'!$G$71),100%,'Project Inputs'!$G$71),0) -> 1 | AA54: =IF(ISNUMBER(AA33),IF(ISBLANK('Project Inputs'!$G$71),100%,'Project Inputs'!$G$71),0) -> 1 | AB54: =IF(ISNUMBER(AB33),IF(ISBLANK('Project Inputs'!$G$71),100%,'Project Inputs'!$G$71),0) -> 1 | AC54: =IF(ISNUMBER(AC33),IF(ISBLANK('Project Inputs'!$G$71),100%,'Project Inputs'!$G$71),0) -> 1 | AD54: =IF(ISNUMBER(AD33),IF(ISBLANK('Project Inputs'!$G$71),100%,'Project Inputs'!$G$71),0) -> 1
C56: Total - $k | F56: =IF(ISNUMBER('Capital Cont Inputs'!C16),F52*F53*F54,0) -> 0 | G56: =IF(ISNUMBER('Capital Cont Inputs'!D16),G52*G53*G54,0) -> 0 | H56: =IF(ISNUMBER('Capital Cont Inputs'!E16),H52*H53*H54,0) -> 0 | I56: =IF(ISNUMBER('Capital Cont Inputs'!F16),I52*I53*I54,0) -> 0 | J56: =IF(ISNUMBER('Capital Cont Inputs'!G16),J52*J53*J54,0) -> 0 | K56: =IF(ISNUMBER('Capital Cont Inputs'!H16),K52*K53*K54,0) -> 0 | L56: =IF(ISNUMBER('Capital Cont Inputs'!I16),L52*L53*L54,0) -> 0 | M56: =IF(ISNUMBER('Capital Cont Inputs'!J16),M52*M53*M54,0) -> 0 | N56: =IF(ISNUMBER('Capital Cont Inputs'!K16),N52*N53*N54,0) -> 0 | O56: =IF(ISNUMBER('Capital Cont Inputs'!L16),O52*O53*O54,0) -> 0 | P56: =IF(ISNUMBER('Capital Cont Inputs'!M16),P52*P53*P54,0) -> 0 | Q56: =IF(ISNUMBER('Capital Cont Inputs'!N16),Q52*Q53*Q54,0) -> 0 | R56: =IF(ISNUMBER('Capital Cont Inputs'!O16),R52*R53*R54,0) -> 0 | S56: =IF(ISNUMBER('Capital Cont Inputs'!P16),S52*S53*S54,0) -> 0 | T56: =IF(ISNUMBER('Capital Cont Inputs'!Q16),T52*T53*T54,0) -> 0 | U56: =IF(ISNUMBER('Capital Cont Inputs'!R16),U52*U53*U54,0) -> 0 | V56: =IF(ISNUMBER('Capital Cont Inputs'!S16),V52*V53*V54,0) -> 0 | W56: =IF(ISNUMBER('Capital Cont Inputs'!T16),W52*W53*W54,0) -> 0 | X56: =IF(ISNUMBER('Capital Cont Inputs'!U16),X52*X53*X54,0) -> 0 | Y56: =IF(ISNUMBER('Capital Cont Inputs'!V16),Y52*Y53*Y54,0) -> 0 | Z56: =IF(ISNUMBER('Capital Cont Inputs'!W16),Z52*Z53*Z54,0) -> 0 | AA56: =IF(ISNUMBER('Capital Cont Inputs'!X16),AA52*AA53*AA54,0) -> 0 | AB56: =IF(ISNUMBER('Capital Cont Inputs'!Y16),AB52*AB53*AB54,0) -> 0 | AC56: =IF(ISNUMBER('Capital Cont Inputs'!Z16),AC52*AC53*AC54,0) -> 0 | AD56: =IF(ISNUMBER('Capital Cont Inputs'!AA16),AD52*AD53*AD54,0) -> 0
C58: Total Standard OM&A - $k | F58: =F56+F49+F42 -> 0 | G58: =G56+G49+G42 -> 0 | H58: 0 | I58: 0 | J58: 0 | K58: 0 | L58: 0 | M58: 0 | N58: 0 | O58: 0 | P58: 0 | Q58: 0 | R58: 0 | S58: 0 | T58: 0 | U58: 0 | V58: 0 | W58: 0 | X58: 0 | Y58: 0 | Z58: 0 | AA58: 0 | AB58: 0 | AC58: 0 | AD58: 0
C61: Total Alternate OM&A - $k | F61: =IF(ISNUMBER(F34),'Project Inputs'!C83,) -> 0 | G61: =IF(ISNUMBER(G34),'Project Inputs'!D83,) -> 0 | H61: =IF(ISNUMBER(H34),'Project Inputs'!E83,) -> 0 | I61: =IF(ISNUMBER(I34),'Project Inputs'!F83,) -> 0 | J61: =IF(ISNUMBER(J34),'Project Inputs'!G83,) -> 0 | K61: =IF(ISNUMBER(K34),'Project Inputs'!H83,) -> 0 | L61: =IF(ISNUMBER(L34),'Project Inputs'!I83,) -> 0 | M61: =IF(ISNUMBER(M34),'Project Inputs'!J83,) -> 0 | N61: =IF(ISNUMBER(N34),'Project Inputs'!K83,) -> 0 | O61: =IF(ISNUMBER(O34),'Project Inputs'!L83,) -> 0 | P61: =IF(ISNUMBER(P34),'Project Inputs'!M83,) -> 0 | Q61: =IF(ISNUMBER(Q34),'Project Inputs'!N83,) -> 0 | R61: =IF(ISNUMBER(R34),'Project Inputs'!O83,) -> 0 | S61: =IF(ISNUMBER(S34),'Project Inputs'!P83,) -> 0 | T61: =IF(ISNUMBER(T34),'Project Inputs'!Q83,) -> 0 | U61: =IF(ISNUMBER(U34),'Project Inputs'!R83,) -> 0 | V61: =IF(ISNUMBER(V34),'Project Inputs'!S83,) -> 0 | W61: =IF(ISNUMBER(W34),'Project Inputs'!T83,) -> 0 | X61: =IF(ISNUMBER(X34),'Project Inputs'!U83,) -> 0 | Y61: =IF(ISNUMBER(Y34),'Project Inputs'!V83,) -> 0 | Z61: =IF(ISNUMBER(Z34),'Project Inputs'!W83,) -> 0 | AA61: =IF(ISNUMBER(AA34),'Project Inputs'!X83,) -> 0 | AB61: =IF(ISNUMBER(AB34),'Project Inputs'!Y83,) -> 0 | AC61: =IF(ISNUMBER(AC34),'Project Inputs'!Z83,) -> 0 | AD61: =IF(ISNUMBER(AD34),'Project Inputs'!AA83,) -> 0
C63: Apply Standard or Alternate OM&A? | D63: =IF('Project Inputs'!B80="No","Alternate","Standard") -> Standard
C65: Total incremental OM&A - $k | F65: =IF(ISNUMBER('Capital Cont Inputs'!C16),IF($D$63="Alternate",F61,F58),0) -> 0 | G65: =IF(ISNUMBER('Capital Cont Inputs'!D16),IF($D$63="Alternate",G61,G58),0) -> 0 | H65: =IF(ISNUMBER('Capital Cont Inputs'!E16),IF($D$63="Alternate",H61,H58),0) -> 0 | I65: =IF(ISNUMBER('Capital Cont Inputs'!F16),IF($D$63="Alternate",I61,I58),0) -> 0 | J65: =IF(ISNUMBER('Capital Cont Inputs'!G16),IF($D$63="Alternate",J61,J58),0) -> 0 | K65: =IF(ISNUMBER('Capital Cont Inputs'!H16),IF($D$63="Alternate",K61,K58),0) -> 0 | L65: =IF(ISNUMBER('Capital Cont Inputs'!I16),IF($D$63="Alternate",L61,L58),0) -> 0 | M65: =IF(ISNUMBER('Capital Cont Inputs'!J16),IF($D$63="Alternate",M61,M58),0) -> 0 | N65: =IF(ISNUMBER('Capital Cont Inputs'!K16),IF($D$63="Alternate",N61,N58),0) -> 0 | O65: =IF(ISNUMBER('Capital Cont Inputs'!L16),IF($D$63="Alternate",O61,O58),0) -> 0 | P65: =IF(ISNUMBER('Capital Cont Inputs'!M16),IF($D$63="Alternate",P61,P58),0) -> 0 | Q65: =IF(ISNUMBER('Capital Cont Inputs'!N16),IF($D$63="Alternate",Q61,Q58),0) -> 0 | R65: =IF(ISNUMBER('Capital Cont Inputs'!O16),IF($D$63="Alternate",R61,R58),0) -> 0 | S65: =IF(ISNUMBER('Capital Cont Inputs'!P16),IF($D$63="Alternate",S61,S58),0) -> 0 | T65: =IF(ISNUMBER('Capital Cont Inputs'!Q16),IF($D$63="Alternate",T61,T58),0) -> 0 | U65: =IF(ISNUMBER('Capital Cont Inputs'!R16),IF($D$63="Alternate",U61,U58),0) -> 0 | V65: =IF(ISNUMBER('Capital Cont Inputs'!S16),IF($D$63="Alternate",V61,V58),0) -> 0 | W65: =IF(ISNUMBER('Capital Cont Inputs'!T16),IF($D$63="Alternate",W61,W58),0) -> 0 | X65: =IF(ISNUMBER('Capital Cont Inputs'!U16),IF($D$63="Alternate",X61,X58),0) -> 0 | Y65: =IF(ISNUMBER('Capital Cont Inputs'!V16),IF($D$63="Alternate",Y61,Y58),0) -> 0 | Z65: =IF(ISNUMBER('Capital Cont Inputs'!W16),IF($D$63="Alternate",Z61,Z58),0) -> 0 | AA65: =IF(ISNUMBER('Capital Cont Inputs'!X16),IF($D$63="Alternate",AA61,AA58),0) -> 0 | AB65: =IF(ISNUMBER('Capital Cont Inputs'!Y16),IF($D$63="Alternate",AB61,AB58),0) -> 0 | AC65: =IF(ISNUMBER('Capital Cont Inputs'!Z16),IF($D$63="Alternate",AC61,AC58),0) -> 0 | AD65: =IF(ISNUMBER('Capital Cont Inputs'!AA16),IF($D$63="Alternate",AD61,AD58),0) -> 0
C69: Calculation of Municipal Tax
C70: =C33 -> Project Year: | F70: ='Capital Cont Inputs'!C16 -> 1 | G70: ='Capital Cont Inputs'!D16 -> 2 | H70: ='Capital Cont Inputs'!E16 -> 3 | I70: ='Capital Cont Inputs'!F16 -> 4 | J70: ='Capital Cont Inputs'!G16 -> 5 | K70: ='Capital Cont Inputs'!H16 -> 6 | L70: ='Capital Cont Inputs'!I16 -> 7 | M70: ='Capital Cont Inputs'!J16 -> 8 | N70: ='Capital Cont Inputs'!K16 -> 9 | O70: ='Capital Cont Inputs'!L16 -> 10 | P70: ='Capital Cont Inputs'!M16 -> 11 | Q70: ='Capital Cont Inputs'!N16 -> 12 | R70: ='Capital Cont Inputs'!O16 -> 13 | S70: ='Capital Cont Inputs'!P16 -> 14 | T70: ='Capital Cont Inputs'!Q16 -> 15 | U70: ='Capital Cont Inputs'!R16 -> 16 | V70: ='Capital Cont Inputs'!S16 -> 17 | W70: ='Capital Cont Inputs'!T16 -> 18 | X70: ='Capital Cont Inputs'!U16 -> 19 | Y70: ='Capital Cont Inputs'!V16 -> 20 | Z70: ='Capital Cont Inputs'!W16 -> 21 | AA70: ='Capital Cont Inputs'!X16 -> 22 | AB70: ='Capital Cont Inputs'!Y16 -> 23 | AC70: ='Capital Cont Inputs'!Z16 -> 24 | AD70: ='Capital Cont Inputs'!AA16 -> 25
C71: =C34 -> Year Ended: | F71: ='Capital Cont Inputs'!C15 -> 2019 | G71: ='Capital Cont Inputs'!D15 -> 2020 | H71: ='Capital Cont Inputs'!E15 -> 2021 | I71: ='Capital Cont Inputs'!F15 -> 2022 | J71: ='Capital Cont Inputs'!G15 -> 2023 | K71: ='Capital Cont Inputs'!H15 -> 2024 | L71: ='Capital Cont Inputs'!I15 -> 2025 | M71: ='Capital Cont Inputs'!J15 -> 2026 | N71: ='Capital Cont Inputs'!K15 -> 2027 | O71: ='Capital Cont Inputs'!L15 -> 2028 | P71: ='Capital Cont Inputs'!M15 -> 2029 | Q71: ='Capital Cont Inputs'!N15 -> 2030 | R71: ='Capital Cont Inputs'!O15 -> 2031 | S71: ='Capital Cont Inputs'!P15 -> 2032 | T71: ='Capital Cont Inputs'!Q15 -> 2033 | U71: ='Capital Cont Inputs'!R15 -> 2034 | V71: ='Capital Cont Inputs'!S15 -> 2035 | W71: ='Capital Cont Inputs'!T15 -> 2036 | X71: ='Capital Cont Inputs'!U15 -> 2037 | Y71: ='Capital Cont Inputs'!V15 -> 2038 | Z71: ='Capital Cont Inputs'!W15 -> 2039 | AA71: ='Capital Cont Inputs'!X15 -> 2040 | AB71: ='Capital Cont Inputs'!Y15 -> 2041 | AC71: ='Capital Cont Inputs'!Z15 -> 2042 | AD71: ='Capital Cont Inputs'!AA15 -> 2043
C73: ="Up-front capital - $k" -> Up-front capital - $k | F73: =E24 -> 20212.71632 | G73: =IF(ISNUMBER(G$70),F73,0) -> 20212.71632 | H73: =IF(ISNUMBER(H$70),G73,0) -> 20212.71632 | I73: 20212.71632 | J73: 20212.71632 | K73: 20212.71632 | L73: 20212.71632 | M73: 20212.71632 | N73: 20212.71632 | O73: 20212.71632 | P73: 20212.71632 | Q73: 20212.71632 | R73: 20212.71632 | S73: 20212.71632 | T73: 20212.71632 | U73: 20212.71632 | V73: 20212.71632 | W73: 20212.71632 | X73: 20212.71632 | Y73: 20212.71632 | Z73: 20212.71632 | AA73: 20212.71632 | AB73: 20212.71632 | AC73: 20212.71632 | AD73: 20212.71632
C75: Municipal tax rate | F75: ='Standard Inputs'!B29 -> 0.00423223006 | G75: =IF(ISNUMBER(G$70),F75,0) -> 0.00423223006 | H75: =IF(ISNUMBER(H$70),G75,0) -> 0.00423223006 | I75: 0.00423223006 | J75: 0.00423223006 | K75: 0.00423223006 | L75: 0.00423223006 | M75: 0.00423223006 | N75: 0.00423223006 | O75: 0.00423223006 | P75: 0.00423223006 | Q75: 0.00423223006 | R75: 0.00423223006 | S75: 0.00423223006 | T75: 0.00423223006 | U75: 0.00423223006 | V75: 0.00423223006 | W75: 0.00423223006 | X75: 0.00423223006 | Y75: 0.00423223006 | Z75: 0.00423223006 | AA75: 0.00423223006 | AB75: 0.00423223006 | AC75: 0.00423223006 | AD75: 0.00423223006
C77: Municipal tax - $k | F77: =IF(ISNUMBER(F70),F73*F75,0) -> 85.54486559 | G77: 85.54486559 | H77: 85.54486559 | I77: 85.54486559 | J77: 85.54486559 | K77: 85.54486559 | L77: 85.54486559 | M77: 85.54486559 | N77: 85.54486559 | O77: 85.54486559 | P77: 85.54486559 | Q77: 85.54486559 | R77: 85.54486559 | S77: 85.54486559 | T77: 85.54486559 | U77: 85.54486559 | V77: 85.54486559 | W77: 85.54486559 | X77: 85.54486559 | Y77: 85.54486559 | Z77: 85.54486559 | AA77: 85.54486559 | AB77: 85.54486559 | AC77: 85.54486559 | AD77: 85.54486559
C81: Calculation of Working Capital
C82: =C70 -> Project Year: | F82: ='Capital Cont Inputs'!C16 -> 1 | G82: ='Capital Cont Inputs'!D16 -> 2 | H82: ='Capital Cont Inputs'!E16 -> 3 | I82: ='Capital Cont Inputs'!F16 -> 4 | J82: ='Capital Cont Inputs'!G16 -> 5 | K82: ='Capital Cont Inputs'!H16 -> 6 | L82: ='Capital Cont Inputs'!I16 -> 7 | M82: ='Capital Cont Inputs'!J16 -> 8 | N82: ='Capital Cont Inputs'!K16 -> 9 | O82: ='Capital Cont Inputs'!L16 -> 10 | P82: ='Capital Cont Inputs'!M16 -> 11 | Q82: ='Capital Cont Inputs'!N16 -> 12 | R82: ='Capital Cont Inputs'!O16 -> 13 | S82: ='Capital Cont Inputs'!P16 -> 14 | T82: ='Capital Cont Inputs'!Q16 -> 15 | U82: ='Capital Cont Inputs'!R16 -> 16 | V82: ='Capital Cont Inputs'!S16 -> 17 | W82: ='Capital Cont Inputs'!T16 -> 18 | X82: ='Capital Cont Inputs'!U16 -> 19 | Y82: ='Capital Cont Inputs'!V16 -> 20 | Z82: ='Capital Cont Inputs'!W16 -> 21 | AA82: ='Capital Cont Inputs'!X16 -> 22 | AB82: ='Capital Cont Inputs'!Y16 -> 23 | AC82: ='Capital Cont Inputs'!Z16 -> 24 | AD82: ='Capital Cont Inputs'!AA16 -> 25
C83: =C71 -> Year Ended: | F83: ='Capital Cont Inputs'!C15 -> 2019 | G83: ='Capital Cont Inputs'!D15 -> 2020 | H83: ='Capital Cont Inputs'!E15 -> 2021 | I83: ='Capital Cont Inputs'!F15 -> 2022 | J83: ='Capital Cont Inputs'!G15 -> 2023 | K83: ='Capital Cont Inputs'!H15 -> 2024 | L83: ='Capital Cont Inputs'!I15 -> 2025 | M83: ='Capital Cont Inputs'!J15 -> 2026 | N83: ='Capital Cont Inputs'!K15 -> 2027 | O83: ='Capital Cont Inputs'!L15 -> 2028 | P83: ='Capital Cont Inputs'!M15 -> 2029 | Q83: ='Capital Cont Inputs'!N15 -> 2030 | R83: ='Capital Cont Inputs'!O15 -> 2031 | S83: ='Capital Cont Inputs'!P15 -> 2032 | T83: ='Capital Cont Inputs'!Q15 -> 2033 | U83: ='Capital Cont Inputs'!R15 -> 2034 | V83: ='Capital Cont Inputs'!S15 -> 2035 | W83: ='Capital Cont Inputs'!T15 -> 2036 | X83: ='Capital Cont Inputs'!U15 -> 2037 | Y83: ='Capital Cont Inputs'!V15 -> 2038 | Z83: ='Capital Cont Inputs'!W15 -> 2039 | AA83: ='Capital Cont Inputs'!X15 -> 2040 | AB83: ='Capital Cont Inputs'!Y15 -> 2041 | AC83: ='Capital Cont Inputs'!Z15 -> 2042 | AD83: ='Capital Cont Inputs'!AA15 -> 2043
C85: Annual OM&A cost - $k | F85: =F65 -> 0 | G85: 0 | H85: 0 | I85: 0 | J85: 0 | K85: 0 | L85: 0 | M85: 0 | N85: 0 | O85: 0 | P85: 0 | Q85: 0 | R85: 0 | S85: 0 | T85: 0 | U85: 0 | V85: 0 | W85: 0 | X85: 0 | Y85: 0 | Z85: 0 | AA85: 0 | AB85: 0 | AC85: 0 | AD85: 0
C86: Incremental OM&A cost compared with prior year - $k | F86: =F85 -> 0 | G86: =G85-F85 -> 0 | H86: 0 | I86: 0 | J86: 0 | K86: 0 | L86: 0 | M86: 0 | N86: 0 | O86: 0 | P86: 0 | Q86: 0 | R86: 0 | S86: 0 | T86: 0 | U86: 0 | V86: 0 | W86: 0 | X86: 0 | Y86: 0 | Z86: 0 | AA86: 0 | AB86: 0 | AC86: 0 | AD86: 0
C88: Net Lag / 365 | F88: ='Standard Inputs'!$B$59 -> 0.03597260274 | G88: =IF(ISNUMBER(F82),'Standard Inputs'!$B$59,0) -> 0.03597260274 | H88: =IF(ISNUMBER(G82),'Standard Inputs'!$B$59,0) -> 0.03597260274 | I88: =IF(ISNUMBER(H82),'Standard Inputs'!$B$59,0) -> 0.03597260274 | J88: =IF(ISNUMBER(I82),'Standard Inputs'!$B$59,0) -> 0.03597260274 | K88: =IF(ISNUMBER(J82),'Standard Inputs'!$B$59,0) -> 0.03597260274 | L88: =IF(ISNUMBER(K82),'Standard Inputs'!$B$59,0) -> 0.03597260274 | M88: =IF(ISNUMBER(L82),'Standard Inputs'!$B$59,0) -> 0.03597260274 | N88: =IF(ISNUMBER(M82),'Standard Inputs'!$B$59,0) -> 0.03597260274 | O88: =IF(ISNUMBER(N82),'Standard Inputs'!$B$59,0) -> 0.03597260274 | P88: =IF(ISNUMBER(O82),'Standard Inputs'!$B$59,0) -> 0.03597260274 | Q88: =IF(ISNUMBER(P82),'Standard Inputs'!$B$59,0) -> 0.03597260274 | R88: =IF(ISNUMBER(Q82),'Standard Inputs'!$B$59,0) -> 0.03597260274 | S88: =IF(ISNUMBER(R82),'Standard Inputs'!$B$59,0) -> 0.03597260274 | T88: =IF(ISNUMBER(S82),'Standard Inputs'!$B$59,0) -> 0.03597260274 | U88: =IF(ISNUMBER(T82),'Standard Inputs'!$B$59,0) -> 0.03597260274 | V88: =IF(ISNUMBER(U82),'Standard Inputs'!$B$59,0) -> 0.03597260274 | W88: =IF(ISNUMBER(V82),'Standard Inputs'!$B$59,0) -> 0.03597260274 | X88: =IF(ISNUMBER(W82),'Standard Inputs'!$B$59,0) -> 0.03597260274 | Y88: =IF(ISNUMBER(X82),'Standard Inputs'!$B$59,0) -> 0.03597260274 | Z88: =IF(ISNUMBER(Y82),'Standard Inputs'!$B$59,0) -> 0.03597260274 | AA88: =IF(ISNUMBER(Z82),'Standard Inputs'!$B$59,0) -> 0.03597260274 | AB88: =IF(ISNUMBER(AA82),'Standard Inputs'!$B$59,0) -> 0.03597260274 | AC88: =IF(ISNUMBER(AB82),'Standard Inputs'!$B$59,0) -> 0.03597260274 | AD88: =IF(ISNUMBER(AC82),'Standard Inputs'!$B$59,0) -> 0.03597260274
C90: Annual working cash impact - $k | F90: =F86*F88 -> 0 | G90: =G86*G88 -> 0 | H90: 0 | I90: 0 | J90: 0 | K90: 0 | L90: 0 | M90: 0 | N90: 0 | O90: 0 | P90: 0 | Q90: 0 | R90: 0 | S90: 0 | T90: 0 | U90: 0 | V90: 0 | W90: 0 | X90: 0 | Y90: 0 | Z90: 0 | AA90: 0 | AB90: 0 | AC90: 0 | AD90: 0
C92: Cumulative working cash impact - $k | F92: =IF(ISNUMBER(F82),F90+D92,0) -> 0 | G92: =IF(ISNUMBER(G82),G90+F92,0) -> 0 | H92: 0 | I92: 0 | J92: 0 | K92: 0 | L92: 0 | M92: 0 | N92: 0 | O92: 0 | P92: 0 | Q92: 0 | R92: 0 | S92: 0 | T92: 0 | U92: 0 | V92: 0 | W92: 0 | X92: 0 | Y92: 0 | Z92: 0 | AA92: 0 | AB92: 0 | AC92: 0 | AD92: 0
C94: Reversal of cumulative working cash impact - $k | F94: =IF(ISNUMBER(G82),0,-F92) -> 0 | G94: 0 | H94: 0 | I94: 0 | J94: 0 | K94: 0 | L94: 0 | M94: 0 | N94: 0 | O94: 0 | P94: 0 | Q94: 0 | R94: 0 | S94: 0 | T94: 0 | U94: 0 | V94: 0 | W94: 0 | X94: 0 | Y94: 0 | Z94: 0 | AA94: 0 | AB94: 0 | AC94: 0 | AD94: =IF(ISNUMBER(#REF!),0,-AD92) -> 0
C96: Net annual working cash impact - $k | F96: =IF(ISNUMBER(F83),F90+F94,0) -> 0 | G96: 0 | H96: 0 | I96: 0 | J96: 0 | K96: 0 | L96: 0 | M96: 0 | N96: 0 | O96: 0 | P96: 0 | Q96: 0 | R96: 0 | S96: 0 | T96: 0 | U96: 0 | V96: 0 | W96: 0 | X96: 0 | Y96: 0 | Z96: 0 | AA96: 0 | AB96: 0 | AC96: 0 | AD96: 0
C100: Summary of Load Forecast
C103: Calendar Year Load Forecast Summary | E103: ='Capital Cont Inputs'!B15 -> 2018 | F103: ='Capital Cont Inputs'!C15 -> 2019 | G103: ='Capital Cont Inputs'!D15 -> 2020 | H103: ='Capital Cont Inputs'!E15 -> 2021 | I103: ='Capital Cont Inputs'!F15 -> 2022 | J103: ='Capital Cont Inputs'!G15 -> 2023 | K103: ='Capital Cont Inputs'!H15 -> 2024 | L103: ='Capital Cont Inputs'!I15 -> 2025 | M103: ='Capital Cont Inputs'!J15 -> 2026 | N103: ='Capital Cont Inputs'!K15 -> 2027 | O103: ='Capital Cont Inputs'!L15 -> 2028 | P103: ='Capital Cont Inputs'!M15 -> 2029 | Q103: ='Capital Cont Inputs'!N15 -> 2030 | R103: ='Capital Cont Inputs'!O15 -> 2031 | S103: ='Capital Cont Inputs'!P15 -> 2032 | T103: ='Capital Cont Inputs'!Q15 -> 2033 | U103: ='Capital Cont Inputs'!R15 -> 2034 | V103: ='Capital Cont Inputs'!S15 -> 2035 | W103: ='Capital Cont Inputs'!T15 -> 2036 | X103: ='Capital Cont Inputs'!U15 -> 2037 | Y103: ='Capital Cont Inputs'!V15 -> 2038 | Z103: ='Capital Cont Inputs'!W15 -> 2039 | AA103: ='Capital Cont Inputs'!X15 -> 2040 | AB103: ='Capital Cont Inputs'!Y15 -> 2041 | AC103: ='Capital Cont Inputs'!Z15 -> 2042 | AD103: ='Capital Cont Inputs'!AA15 -> 2043
C104: Load (MW / month) | E104: =IF(ISNUMBER(E103),IF('Project Inputs'!$B$88="Calendar Year",'Project Inputs'!B94,"N/A"),0) -> N/A | F104: =IF(E104="N/A","N/A",IF(ISNUMBER(F103),IF('Project Inputs'!$B$88="Calendar Year",'Project Inputs'!C94,"N/A"),0)) -> N/A | G104: =IF(F104="N/A","N/A",IF(ISNUMBER(G103),IF('Project Inputs'!$B$88="Calendar Year",'Project Inputs'!D94,"N/A"),0)) -> N/A | H104: =IF(G104="N/A","N/A",IF(ISNUMBER(H103),IF('Project Inputs'!$B$88="Calendar Year",'Project Inputs'!E94,"N/A"),0)) -> N/A | I104: =IF(H104="N/A","N/A",IF(ISNUMBER(I103),IF('Project Inputs'!$B$88="Calendar Year",'Project Inputs'!F94,"N/A"),0)) -> N/A | J104: =IF(I104="N/A","N/A",IF(ISNUMBER(J103),IF('Project Inputs'!$B$88="Calendar Year",'Project Inputs'!G94,"N/A"),0)) -> N/A | K104: =IF(J104="N/A","N/A",IF(ISNUMBER(K103),IF('Project Inputs'!$B$88="Calendar Year",'Project Inputs'!H94,"N/A"),0)) -> N/A | L104: =IF(K104="N/A","N/A",IF(ISNUMBER(L103),IF('Project Inputs'!$B$88="Calendar Year",'Project Inputs'!I94,"N/A"),0)) -> N/A | M104: =IF(L104="N/A","N/A",IF(ISNUMBER(M103),IF('Project Inputs'!$B$88="Calendar Year",'Project Inputs'!J94,"N/A"),0)) -> N/A | N104: =IF(M104="N/A","N/A",IF(ISNUMBER(N103),IF('Project Inputs'!$B$88="Calendar Year",'Project Inputs'!K94,"N/A"),0)) -> N/A | O104: =IF(N104="N/A","N/A",IF(ISNUMBER(O103),IF('Project Inputs'!$B$88="Calendar Year",'Project Inputs'!L94,"N/A"),0)) -> N/A | P104: =IF(O104="N/A","N/A",IF(ISNUMBER(P103),IF('Project Inputs'!$B$88="Calendar Year",'Project Inputs'!M94,"N/A"),0)) -> N/A | Q104: =IF(P104="N/A","N/A",IF(ISNUMBER(Q103),IF('Project Inputs'!$B$88="Calendar Year",'Project Inputs'!N94,"N/A"),0)) -> N/A | R104: =IF(Q104="N/A","N/A",IF(ISNUMBER(R103),IF('Project Inputs'!$B$88="Calendar Year",'Project Inputs'!O94,"N/A"),0)) -> N/A | S104: =IF(R104="N/A","N/A",IF(ISNUMBER(S103),IF('Project Inputs'!$B$88="Calendar Year",'Project Inputs'!P94,"N/A"),0)) -> N/A | T104: =IF(S104="N/A","N/A",IF(ISNUMBER(T103),IF('Project Inputs'!$B$88="Calendar Year",'Project Inputs'!Q94,"N/A"),0)) -> N/A | U104: =IF(T104="N/A","N/A",IF(ISNUMBER(U103),IF('Project Inputs'!$B$88="Calendar Year",'Project Inputs'!R94,"N/A"),0)) -> N/A | V104: =IF(U104="N/A","N/A",IF(ISNUMBER(V103),IF('Project Inputs'!$B$88="Calendar Year",'Project Inputs'!S94,"N/A"),0)) -> N/A | W104: =IF(V104="N/A","N/A",IF(ISNUMBER(W103),IF('Project Inputs'!$B$88="Calendar Year",'Project Inputs'!T94,"N/A"),0)) -> N/A | X104: =IF(W104="N/A","N/A",IF(ISNUMBER(X103),IF('Project Inputs'!$B$88="Calendar Year",'Project Inputs'!U94,"N/A"),0)) -> N/A | Y104: =IF(X104="N/A","N/A",IF(ISNUMBER(Y103),IF('Project Inputs'!$B$88="Calendar Year",'Project Inputs'!V94,"N/A"),0)) -> N/A | Z104: =IF(Y104="N/A","N/A",IF(ISNUMBER(Z103),IF('Project Inputs'!$B$88="Calendar Year",'Project Inputs'!W94,"N/A"),0)) -> N/A | AA104: =IF(Z104="N/A","N/A",IF(ISNUMBER(AA103),IF('Project Inputs'!$B$88="Calendar Year",'Project Inputs'!X94,"N/A"),0)) -> N/A | AB104: =IF(AA104="N/A","N/A",IF(ISNUMBER(AB103),IF('Project Inputs'!$B$88="Calendar Year",'Project Inputs'!Y94,"N/A"),0)) -> N/A | AC104: =IF(AB104="N/A","N/A",IF(ISNUMBER(AC103),IF('Project Inputs'!$B$88="Calendar Year",'Project Inputs'!Z94,"N/A"),0)) -> N/A | AD104: =IF(AC104="N/A","N/A",IF(ISNUMBER(AD103),IF('Project Inputs'!$B$88="Calendar Year",'Project Inputs'!AA94,"N/A"),0)) -> N/A
C105: Load adjustments (MW / month) | E105: =IF(ISNUMBER(E103),IF('Project Inputs'!$B$88="Calendar Year",'Project Inputs'!B95,"N/A"),0) -> N/A | F105: =IF(E105="N/A","N/A",IF(ISNUMBER(F103),IF('Project Inputs'!$B$88="Calendar Year",'Project Inputs'!C95,"N/A"),0)) -> N/A | G105: =IF(F105="N/A","N/A",IF(ISNUMBER(G103),IF('Project Inputs'!$B$88="Calendar Year",'Project Inputs'!D95,"N/A"),0)) -> N/A | H105: =IF(G105="N/A","N/A",IF(ISNUMBER(H103),IF('Project Inputs'!$B$88="Calendar Year",'Project Inputs'!E95,"N/A"),0)) -> N/A | I105: =IF(H105="N/A","N/A",IF(ISNUMBER(I103),IF('Project Inputs'!$B$88="Calendar Year",'Project Inputs'!F95,"N/A"),0)) -> N/A | J105: =IF(I105="N/A","N/A",IF(ISNUMBER(J103),IF('Project Inputs'!$B$88="Calendar Year",'Project Inputs'!G95,"N/A"),0)) -> N/A | K105: =IF(J105="N/A","N/A",IF(ISNUMBER(K103),IF('Project Inputs'!$B$88="Calendar Year",'Project Inputs'!H95,"N/A"),0)) -> N/A | L105: =IF(K105="N/A","N/A",IF(ISNUMBER(L103),IF('Project Inputs'!$B$88="Calendar Year",'Project Inputs'!I95,"N/A"),0)) -> N/A | M105: =IF(L105="N/A","N/A",IF(ISNUMBER(M103),IF('Project Inputs'!$B$88="Calendar Year",'Project Inputs'!J95,"N/A"),0)) -> N/A | N105: =IF(M105="N/A","N/A",IF(ISNUMBER(N103),IF('Project Inputs'!$B$88="Calendar Year",'Project Inputs'!K95,"N/A"),0)) -> N/A | O105: =IF(N105="N/A","N/A",IF(ISNUMBER(O103),IF('Project Inputs'!$B$88="Calendar Year",'Project Inputs'!L95,"N/A"),0)) -> N/A | P105: =IF(O105="N/A","N/A",IF(ISNUMBER(P103),IF('Project Inputs'!$B$88="Calendar Year",'Project Inputs'!M95,"N/A"),0)) -> N/A | Q105: =IF(P105="N/A","N/A",IF(ISNUMBER(Q103),IF('Project Inputs'!$B$88="Calendar Year",'Project Inputs'!N95,"N/A"),0)) -> N/A | R105: =IF(Q105="N/A","N/A",IF(ISNUMBER(R103),IF('Project Inputs'!$B$88="Calendar Year",'Project Inputs'!O95,"N/A"),0)) -> N/A | S105: =IF(R105="N/A","N/A",IF(ISNUMBER(S103),IF('Project Inputs'!$B$88="Calendar Year",'Project Inputs'!P95,"N/A"),0)) -> N/A | T105: =IF(S105="N/A","N/A",IF(ISNUMBER(T103),IF('Project Inputs'!$B$88="Calendar Year",'Project Inputs'!Q95,"N/A"),0)) -> N/A | U105: =IF(T105="N/A","N/A",IF(ISNUMBER(U103),IF('Project Inputs'!$B$88="Calendar Year",'Project Inputs'!R95,"N/A"),0)) -> N/A | V105: =IF(U105="N/A","N/A",IF(ISNUMBER(V103),IF('Project Inputs'!$B$88="Calendar Year",'Project Inputs'!S95,"N/A"),0)) -> N/A | W105: =IF(V105="N/A","N/A",IF(ISNUMBER(W103),IF('Project Inputs'!$B$88="Calendar Year",'Project Inputs'!T95,"N/A"),0)) -> N/A | X105: =IF(W105="N/A","N/A",IF(ISNUMBER(X103),IF('Project Inputs'!$B$88="Calendar Year",'Project Inputs'!U95,"N/A"),0)) -> N/A | Y105: =IF(X105="N/A","N/A",IF(ISNUMBER(Y103),IF('Project Inputs'!$B$88="Calendar Year",'Project Inputs'!V95,"N/A"),0)) -> N/A | Z105: =IF(Y105="N/A","N/A",IF(ISNUMBER(Z103),IF('Project Inputs'!$B$88="Calendar Year",'Project Inputs'!W95,"N/A"),0)) -> N/A | AA105: =IF(Z105="N/A","N/A",IF(ISNUMBER(AA103),IF('Project Inputs'!$B$88="Calendar Year",'Project Inputs'!X95,"N/A"),0)) -> N/A | AB105: =IF(AA105="N/A","N/A",IF(ISNUMBER(AB103),IF('Project Inputs'!$B$88="Calendar Year",'Project Inputs'!Y95,"N/A"),0)) -> N/A | AC105: =IF(AB105="N/A","N/A",IF(ISNUMBER(AC103),IF('Project Inputs'!$B$88="Calendar Year",'Project Inputs'!Z95,"N/A"),0)) -> N/A | AD105: =IF(AC105="N/A","N/A",IF(ISNUMBER(AD103),IF('Project Inputs'!$B$88="Calendar Year",'Project Inputs'!AA95,"N/A"),0)) -> N/A
C106: Forecasted load (MW / calendar year) | E106: =SUM(E104:E105) -> 0 | F106: =IF(F105="N/A","N/A",SUM(F104:F105)) -> N/A | G106: =IF(G105="N/A","N/A",SUM(G104:G105)) -> N/A | H106: N/A | I106: N/A | J106: N/A | K106: N/A | L106: N/A | M106: N/A | N106: N/A | O106: N/A | P106: N/A | Q106: N/A | R106: N/A | S106: N/A | T106: N/A | U106: N/A | V106: N/A | W106: N/A | X106: N/A | Y106: N/A | Z106: N/A | AA106: N/A | AB106: N/A | AC106: N/A | AD106: N/A
C108: * In-Service Month | F108: =IF(ISNUMBER(F103),IF('Project Inputs'!$B$88="Calendar Year",IF(DAY('Project Inputs'!B15)<15,MONTH('Project Inputs'!B15)-1,MONTH('Project Inputs'!B15)),"N/A"),0) -> N/A | G108: =IF(F108="N/A","N/A",IF(ISNUMBER(G103),F108,0)) -> N/A | H108: =IF(G108="N/A","N/A",IF(ISNUMBER(H103),G108,0)) -> N/A | I108: N/A | J108: N/A | K108: N/A | L108: N/A | M108: N/A | N108: N/A | O108: N/A | P108: N/A | Q108: N/A | R108: N/A | S108: N/A | T108: N/A | U108: N/A | V108: N/A | W108: N/A | X108: N/A | Y108: N/A | Z108: N/A | AA108: N/A | AB108: N/A | AC108: N/A | AD108: N/A
C109: *if = 0, means In-Service falls between Jan 1- 15
C110: =C82 -> Project Year: | F110: ='Capital Cont Inputs'!C16 -> 1 | G110: ='Capital Cont Inputs'!D16 -> 2 | H110: ='Capital Cont Inputs'!E16 -> 3 | I110: ='Capital Cont Inputs'!F16 -> 4 | J110: ='Capital Cont Inputs'!G16 -> 5 | K110: ='Capital Cont Inputs'!H16 -> 6 | L110: ='Capital Cont Inputs'!I16 -> 7 | M110: ='Capital Cont Inputs'!J16 -> 8 | N110: ='Capital Cont Inputs'!K16 -> 9 | O110: ='Capital Cont Inputs'!L16 -> 10 | P110: ='Capital Cont Inputs'!M16 -> 11 | Q110: ='Capital Cont Inputs'!N16 -> 12 | R110: ='Capital Cont Inputs'!O16 -> 13 | S110: ='Capital Cont Inputs'!P16 -> 14 | T110: ='Capital Cont Inputs'!Q16 -> 15 | U110: ='Capital Cont Inputs'!R16 -> 16 | V110: ='Capital Cont Inputs'!S16 -> 17 | W110: ='Capital Cont Inputs'!T16 -> 18 | X110: ='Capital Cont Inputs'!U16 -> 19 | Y110: ='Capital Cont Inputs'!V16 -> 20 | Z110: ='Capital Cont Inputs'!W16 -> 21 | AA110: ='Capital Cont Inputs'!X16 -> 22 | AB110: ='Capital Cont Inputs'!Y16 -> 23 | AC110: ='Capital Cont Inputs'!Z16 -> 24 | AD110: ='Capital Cont Inputs'!AA16 -> 25
C111: =C83 -> Year Ended: | F111: ='Capital Cont Inputs'!C15 -> 2019 | G111: ='Capital Cont Inputs'!D15 -> 2020 | H111: ='Capital Cont Inputs'!E15 -> 2021 | I111: ='Capital Cont Inputs'!F15 -> 2022 | J111: ='Capital Cont Inputs'!G15 -> 2023 | K111: ='Capital Cont Inputs'!H15 -> 2024 | L111: ='Capital Cont Inputs'!I15 -> 2025 | M111: ='Capital Cont Inputs'!J15 -> 2026 | N111: ='Capital Cont Inputs'!K15 -> 2027 | O111: ='Capital Cont Inputs'!L15 -> 2028 | P111: ='Capital Cont Inputs'!M15 -> 2029 | Q111: ='Capital Cont Inputs'!N15 -> 2030 | R111: ='Capital Cont Inputs'!O15 -> 2031 | S111: ='Capital Cont Inputs'!P15 -> 2032 | T111: ='Capital Cont Inputs'!Q15 -> 2033 | U111: ='Capital Cont Inputs'!R15 -> 2034 | V111: ='Capital Cont Inputs'!S15 -> 2035 | W111: ='Capital Cont Inputs'!T15 -> 2036 | X111: ='Capital Cont Inputs'!U15 -> 2037 | Y111: ='Capital Cont Inputs'!V15 -> 2038 | Z111: ='Capital Cont Inputs'!W15 -> 2039 | AA111: ='Capital Cont Inputs'!X15 -> 2040 | AB111: ='Capital Cont Inputs'!Y15 -> 2041 | AC111: ='Capital Cont Inputs'!Z15 -> 2042 | AD111: ='Capital Cont Inputs'!AA15 -> 2043
C112: Project Year Load Forecast Summary
C113: =C104 -> Load (MW / month) | F113: =IF(ISNUMBER(F103),IF('Project Inputs'!$B$88="Calendar Year",(E104*(12-F$108)+F104*F$108)/12,'Project Inputs'!C94),0) -> 38.24252201 | G113: =IF(ISNUMBER(G103),IF('Project Inputs'!$B$88="Calendar Year",(F104*(12-G$108)+G104*G$108)/12,'Project Inputs'!D94),0) -> 39.16288127 | H113: =IF(ISNUMBER(H103),IF('Project Inputs'!$B$88="Calendar Year",(G104*(12-H$108)+H104*H$108)/12,'Project Inputs'!E94),0) -> 40.08982752 | I113: =IF(ISNUMBER(I103),IF('Project Inputs'!$B$88="Calendar Year",(H104*(12-I$108)+I104*I$108)/12,'Project Inputs'!F94),0) -> 41.02340788 | J113: =IF(ISNUMBER(J103),IF('Project Inputs'!$B$88="Calendar Year",(I104*(12-J$108)+J104*J$108)/12,'Project Inputs'!G94),0) -> 41.96366986 | K113: =IF(ISNUMBER(K103),IF('Project Inputs'!$B$88="Calendar Year",(J104*(12-K$108)+K104*K$108)/12,'Project Inputs'!H94),0) -> 42.91066125 | L113: =IF(ISNUMBER(L103),IF('Project Inputs'!$B$88="Calendar Year",(K104*(12-L$108)+L104*L$108)/12,'Project Inputs'!I94),0) -> 43.86443023 | M113: =IF(ISNUMBER(M103),IF('Project Inputs'!$B$88="Calendar Year",(L104*(12-M$108)+M104*M$108)/12,'Project Inputs'!J94),0) -> 44.82224671 | N113: =IF(ISNUMBER(N103),IF('Project Inputs'!$B$88="Calendar Year",(M104*(12-N$108)+N104*N$108)/12,'Project Inputs'!K94),0) -> 45.78105015 | O113: =IF(ISNUMBER(O103),IF('Project Inputs'!$B$88="Calendar Year",(N104*(12-O$108)+O104*O$108)/12,'Project Inputs'!L94),0) -> 46.75411647 | P113: =IF(ISNUMBER(P103),IF('Project Inputs'!$B$88="Calendar Year",(O104*(12-P$108)+P104*P$108)/12,'Project Inputs'!M94),0) -> 47.73413809 | Q113: =IF(ISNUMBER(Q103),IF('Project Inputs'!$B$88="Calendar Year",(P104*(12-Q$108)+Q104*Q$108)/12,'Project Inputs'!N94),0) -> 48.72116472 | R113: =IF(ISNUMBER(R103),IF('Project Inputs'!$B$88="Calendar Year",(Q104*(12-R$108)+R104*R$108)/12,'Project Inputs'!O94),0) -> 49.69544008 | S113: =IF(ISNUMBER(S103),IF('Project Inputs'!$B$88="Calendar Year",(R104*(12-S$108)+S104*S$108)/12,'Project Inputs'!P94),0) -> 50.63564221 | T113: =IF(ISNUMBER(T103),IF('Project Inputs'!$B$88="Calendar Year",(S104*(12-T$108)+T104*T$108)/12,'Project Inputs'!Q94),0) -> 51.63770044 | U113: =IF(ISNUMBER(U103),IF('Project Inputs'!$B$88="Calendar Year",(T104*(12-U$108)+U104*U$108)/12,'Project Inputs'!R94),0) -> 52.64688063 | V113: =IF(ISNUMBER(V103),IF('Project Inputs'!$B$88="Calendar Year",(U104*(12-V$108)+V104*V$108)/12,'Project Inputs'!S94),0) -> 53.6632334 | W113: =IF(ISNUMBER(W103),IF('Project Inputs'!$B$88="Calendar Year",(V104*(12-W$108)+W104*W$108)/12,'Project Inputs'!T94),0) -> 54.63175584 | X113: =IF(ISNUMBER(X103),IF('Project Inputs'!$B$88="Calendar Year",(W104*(12-X$108)+X104*X$108)/12,'Project Inputs'!U94),0) -> 55.4941383 | Y113: =IF(ISNUMBER(Y103),IF('Project Inputs'!$B$88="Calendar Year",(X104*(12-Y$108)+Y104*Y$108)/12,'Project Inputs'!V94),0) -> 56.51904359 | Z113: =IF(ISNUMBER(Z103),IF('Project Inputs'!$B$88="Calendar Year",(Y104*(12-Z$108)+Z104*Z$108)/12,'Project Inputs'!W94),0) -> 57.55115112 | AA113: =IF(ISNUMBER(AA103),IF('Project Inputs'!$B$88="Calendar Year",(Z104*(12-AA$108)+AA104*AA$108)/12,'Project Inputs'!X94),0) -> 58.59051149 | AB113: =IF(ISNUMBER(AB103),IF('Project Inputs'!$B$88="Calendar Year",(AA104*(12-AB$108)+AB104*AB$108)/12,'Project Inputs'!Y94),0) -> 59.63717568 | AC113: =IF(ISNUMBER(AC103),IF('Project Inputs'!$B$88="Calendar Year",(AB104*(12-AC$108)+AC104*AC$108)/12,'Project Inputs'!Z94),0) -> 60.70160601 | AD113: =IF(ISNUMBER(AD103),IF('Project Inputs'!$B$88="Calendar Year",(AC104*(12-AD$108)+AD104*AD$108)/12,'Project Inputs'!AA94),0) -> 61.80556775
C114: =C105 -> Load adjustments (MW / month) | F114: =IF(ISNUMBER(F103),IF('Project Inputs'!$B$88="Calendar Year",((E105*(12-F$108)+F105*F$108)/12),'Project Inputs'!C95),0) -> 0 | G114: =IF(ISNUMBER(G103),IF('Project Inputs'!$B$88="Calendar Year",((F105*(12-G$108)+G105*G$108)/12),'Project Inputs'!D95),0) -> 0 | H114: =IF(ISNUMBER(H103),IF('Project Inputs'!$B$88="Calendar Year",((G105*(12-H$108)+H105*H$108)/12),'Project Inputs'!E95),0) -> 0 | I114: =IF(ISNUMBER(I103),IF('Project Inputs'!$B$88="Calendar Year",((H105*(12-I$108)+I105*I$108)/12),'Project Inputs'!F95),0) -> 0 | J114: =IF(ISNUMBER(J103),IF('Project Inputs'!$B$88="Calendar Year",((I105*(12-J$108)+J105*J$108)/12),'Project Inputs'!G95),0) -> 0 | K114: =IF(ISNUMBER(K103),IF('Project Inputs'!$B$88="Calendar Year",((J105*(12-K$108)+K105*K$108)/12),'Project Inputs'!H95),0) -> 0 | L114: =IF(ISNUMBER(L103),IF('Project Inputs'!$B$88="Calendar Year",((K105*(12-L$108)+L105*L$108)/12),'Project Inputs'!I95),0) -> 0 | M114: =IF(ISNUMBER(M103),IF('Project Inputs'!$B$88="Calendar Year",((L105*(12-M$108)+M105*M$108)/12),'Project Inputs'!J95),0) -> 0 | N114: =IF(ISNUMBER(N103),IF('Project Inputs'!$B$88="Calendar Year",((M105*(12-N$108)+N105*N$108)/12),'Project Inputs'!K95),0) -> 0 | O114: =IF(ISNUMBER(O103),IF('Project Inputs'!$B$88="Calendar Year",((N105*(12-O$108)+O105*O$108)/12),'Project Inputs'!L95),0) -> 0 | P114: =IF(ISNUMBER(P103),IF('Project Inputs'!$B$88="Calendar Year",((O105*(12-P$108)+P105*P$108)/12),'Project Inputs'!M95),0) -> 0 | Q114: =IF(ISNUMBER(Q103),IF('Project Inputs'!$B$88="Calendar Year",((P105*(12-Q$108)+Q105*Q$108)/12),'Project Inputs'!N95),0) -> 0 | R114: =IF(ISNUMBER(R103),IF('Project Inputs'!$B$88="Calendar Year",((Q105*(12-R$108)+R105*R$108)/12),'Project Inputs'!O95),0) -> 0 | S114: =IF(ISNUMBER(S103),IF('Project Inputs'!$B$88="Calendar Year",((R105*(12-S$108)+S105*S$108)/12),'Project Inputs'!P95),0) -> 0 | T114: =IF(ISNUMBER(T103),IF('Project Inputs'!$B$88="Calendar Year",((S105*(12-T$108)+T105*T$108)/12),'Project Inputs'!Q95),0) -> 0 | U114: =IF(ISNUMBER(U103),IF('Project Inputs'!$B$88="Calendar Year",((T105*(12-U$108)+U105*U$108)/12),'Project Inputs'!R95),0) -> 0 | V114: =IF(ISNUMBER(V103),IF('Project Inputs'!$B$88="Calendar Year",((U105*(12-V$108)+V105*V$108)/12),'Project Inputs'!S95),0) -> 0 | W114: =IF(ISNUMBER(W103),IF('Project Inputs'!$B$88="Calendar Year",((V105*(12-W$108)+W105*W$108)/12),'Project Inputs'!T95),0) -> 0 | X114: =IF(ISNUMBER(X103),IF('Project Inputs'!$B$88="Calendar Year",((W105*(12-X$108)+X105*X$108)/12),'Project Inputs'!U95),0) -> 0 | Y114: =IF(ISNUMBER(Y103),IF('Project Inputs'!$B$88="Calendar Year",((X105*(12-Y$108)+Y105*Y$108)/12),'Project Inputs'!V95),0) -> 0 | Z114: =IF(ISNUMBER(Z103),IF('Project Inputs'!$B$88="Calendar Year",((Y105*(12-Z$108)+Z105*Z$108)/12),'Project Inputs'!W95),0) -> 0 | AA114: =IF(ISNUMBER(AA103),IF('Project Inputs'!$B$88="Calendar Year",((Z105*(12-AA$108)+AA105*AA$108)/12),'Project Inputs'!X95),0) -> 0 | AB114: =IF(ISNUMBER(AB103),IF('Project Inputs'!$B$88="Calendar Year",((AA105*(12-AB$108)+AB105*AB$108)/12),'Project Inputs'!Y95),0) -> 0 | AC114: =IF(ISNUMBER(AC103),IF('Project Inputs'!$B$88="Calendar Year",((AB105*(12-AC$108)+AC105*AC$108)/12),'Project Inputs'!Z95),0) -> 0 | AD114: =IF(ISNUMBER(AD103),IF('Project Inputs'!$B$88="Calendar Year",((AC105*(12-AD$108)+AD105*AD$108)/12),'Project Inputs'!AA95),0) -> 0
C115: Forecasted load (MW / project year) | F115: =SUM(F113:F114) -> 38.24252201 | G115: =SUM(G113:G114) -> 39.16288127 | H115: 40.08982752 | I115: 41.02340788 | J115: 41.96366986 | K115: 42.91066125 | L115: 43.86443023 | M115: 44.82224671 | N115: 45.78105015 | O115: 46.75411647 | P115: 47.73413809 | Q115: 48.72116472 | R115: 49.69544008 | S115: 50.63564221 | T115: 51.63770044 | U115: 52.64688063 | V115: 53.6632334 | W115: 54.63175584 | X115: 55.4941383 | Y115: 56.51904359 | Z115: 57.55115112 | AA115: 58.59051149 | AB115: 59.63717568 | AC115: 60.70160601 | AD115: 61.80556775
C118: Load Factor Adjustments
C119: PLI adjustment | D119: =IF('Project Inputs'!$B$89="Yes","N/A",IF(ISBLANK('Project Inputs'!$D$89),1,'Project Inputs'!$D$89)) -> N/A
C120: =C113 -> Load (MW / month) | F120: =IF('Project Inputs'!$B$89="No",F113*$D$119,'Prelim Calc'!F113) -> 38.24252201 | G120: =IF('Project Inputs'!$B$89="No",G113*$D$119,'Prelim Calc'!G113) -> 39.16288127 | H120: =IF('Project Inputs'!$B$89="No",H113*$D$119,'Prelim Calc'!H113) -> 40.08982752 | I120: =IF('Project Inputs'!$B$89="No",I113*$D$119,'Prelim Calc'!I113) -> 41.02340788 | J120: =IF('Project Inputs'!$B$89="No",J113*$D$119,'Prelim Calc'!J113) -> 41.96366986 | K120: =IF('Project Inputs'!$B$89="No",K113*$D$119,'Prelim Calc'!K113) -> 42.91066125 | L120: =IF('Project Inputs'!$B$89="No",L113*$D$119,'Prelim Calc'!L113) -> 43.86443023 | M120: =IF('Project Inputs'!$B$89="No",M113*$D$119,'Prelim Calc'!M113) -> 44.82224671 | N120: =IF('Project Inputs'!$B$89="No",N113*$D$119,'Prelim Calc'!N113) -> 45.78105015 | O120: =IF('Project Inputs'!$B$89="No",O113*$D$119,'Prelim Calc'!O113) -> 46.75411647 | P120: =IF('Project Inputs'!$B$89="No",P113*$D$119,'Prelim Calc'!P113) -> 47.73413809 | Q120: =IF('Project Inputs'!$B$89="No",Q113*$D$119,'Prelim Calc'!Q113) -> 48.72116472 | R120: =IF('Project Inputs'!$B$89="No",R113*$D$119,'Prelim Calc'!R113) -> 49.69544008 | S120: =IF('Project Inputs'!$B$89="No",S113*$D$119,'Prelim Calc'!S113) -> 50.63564221 | T120: =IF('Project Inputs'!$B$89="No",T113*$D$119,'Prelim Calc'!T113) -> 51.63770044 | U120: =IF('Project Inputs'!$B$89="No",U113*$D$119,'Prelim Calc'!U113) -> 52.64688063 | V120: =IF('Project Inputs'!$B$89="No",V113*$D$119,'Prelim Calc'!V113) -> 53.6632334 | W120: =IF('Project Inputs'!$B$89="No",W113*$D$119,'Prelim Calc'!W113) -> 54.63175584 | X120: =IF('Project Inputs'!$B$89="No",X113*$D$119,'Prelim Calc'!X113) -> 55.4941383 | Y120: =IF('Project Inputs'!$B$89="No",Y113*$D$119,'Prelim Calc'!Y113) -> 56.51904359 | Z120: =IF('Project Inputs'!$B$89="No",Z113*$D$119,'Prelim Calc'!Z113) -> 57.55115112 | AA120: =IF('Project Inputs'!$B$89="No",AA113*$D$119,'Prelim Calc'!AA113) -> 58.59051149 | AB120: =IF('Project Inputs'!$B$89="No",AB113*$D$119,'Prelim Calc'!AB113) -> 59.63717568 | AC120: =IF('Project Inputs'!$B$89="No",AC113*$D$119,'Prelim Calc'!AC113) -> 60.70160601 | AD120: =IF('Project Inputs'!$B$89="No",AD113*$D$119,'Prelim Calc'!AD113) -> 61.80556775
C121: =C114 -> Load adjustments (MW / month) | F121: =IF('Project Inputs'!$B$89="No",F114*$D$119,'Prelim Calc'!F114) -> 0 | G121: =IF('Project Inputs'!$B$89="No",G114*$D$119,'Prelim Calc'!G114) -> 0 | H121: =IF('Project Inputs'!$B$89="No",H114*$D$119,'Prelim Calc'!H114) -> 0 | I121: =IF('Project Inputs'!$B$89="No",I114*$D$119,'Prelim Calc'!I114) -> 0 | J121: =IF('Project Inputs'!$B$89="No",J114*$D$119,'Prelim Calc'!J114) -> 0 | K121: =IF('Project Inputs'!$B$89="No",K114*$D$119,'Prelim Calc'!K114) -> 0 | L121: =IF('Project Inputs'!$B$89="No",L114*$D$119,'Prelim Calc'!L114) -> 0 | M121: =IF('Project Inputs'!$B$89="No",M114*$D$119,'Prelim Calc'!M114) -> 0 | N121: =IF('Project Inputs'!$B$89="No",N114*$D$119,'Prelim Calc'!N114) -> 0 | O121: =IF('Project Inputs'!$B$89="No",O114*$D$119,'Prelim Calc'!O114) -> 0 | P121: =IF('Project Inputs'!$B$89="No",P114*$D$119,'Prelim Calc'!P114) -> 0 | Q121: =IF('Project Inputs'!$B$89="No",Q114*$D$119,'Prelim Calc'!Q114) -> 0 | R121: =IF('Project Inputs'!$B$89="No",R114*$D$119,'Prelim Calc'!R114) -> 0 | S121: =IF('Project Inputs'!$B$89="No",S114*$D$119,'Prelim Calc'!S114) -> 0 | T121: =IF('Project Inputs'!$B$89="No",T114*$D$119,'Prelim Calc'!T114) -> 0 | U121: =IF('Project Inputs'!$B$89="No",U114*$D$119,'Prelim Calc'!U114) -> 0 | V121: =IF('Project Inputs'!$B$89="No",V114*$D$119,'Prelim Calc'!V114) -> 0 | W121: =IF('Project Inputs'!$B$89="No",W114*$D$119,'Prelim Calc'!W114) -> 0 | X121: =IF('Project Inputs'!$B$89="No",X114*$D$119,'Prelim Calc'!X114) -> 0 | Y121: =IF('Project Inputs'!$B$89="No",Y114*$D$119,'Prelim Calc'!Y114) -> 0 | Z121: =IF('Project Inputs'!$B$89="No",Z114*$D$119,'Prelim Calc'!Z114) -> 0 | AA121: =IF('Project Inputs'!$B$89="No",AA114*$D$119,'Prelim Calc'!AA114) -> 0 | AB121: =IF('Project Inputs'!$B$89="No",AB114*$D$119,'Prelim Calc'!AB114) -> 0 | AC121: =IF('Project Inputs'!$B$89="No",AC114*$D$119,'Prelim Calc'!AC114) -> 0 | AD121: =IF('Project Inputs'!$B$89="No",AD114*$D$119,'Prelim Calc'!AD114) -> 0
C122: Load factor adjusted forecasted load (MW / project year) | F122: =F120+F121 -> 38.24252201 | G122: 39.16288127 | H122: 40.08982752 | I122: 41.02340788 | J122: 41.96366986 | K122: 42.91066125 | L122: 43.86443023 | M122: 44.82224671 | N122: 45.78105015 | O122: 46.75411647 | P122: 47.73413809 | Q122: 48.72116472 | R122: 49.69544008 | S122: 50.63564221 | T122: 51.63770044 | U122: 52.64688063 | V122: 53.6632334 | W122: 54.63175584 | X122: 55.4941383 | Y122: 56.51904359 | Z122: 57.55115112 | AA122: 58.59051149 | AB122: 59.63717568 | AC122: 60.70160601 | AD122: 61.80556775
C125: Load Used in Model
C126: Forecast or revenue guarantee load to be used in model? | D126: =IF(RevenueGuaranteeCalc="IEE/True-up","Forecast",RevenueGuaranteeCalc) -> Forecast
C128: Revenue guarantee factor | D128: =IF(D126="Forecast","N/A",RevenueGuarantee) -> N/A
C129: Load (MW / month) | F129: =IF(OR('Project Inputs'!C$93="Actual",'Capital Cont Inputs'!$B$48="IEE/True-up"),F120,$D$128*F120) -> 38.24252201 | G129: =IF(OR('Project Inputs'!D$93="Actual",'Capital Cont Inputs'!$B$48="IEE/True-up"),G120,$D$128*G120) -> 39.16288127 | H129: =IF(OR('Project Inputs'!E$93="Actual",'Capital Cont Inputs'!$B$48="IEE/True-up"),H120,$D$128*H120) -> 40.08982752 | I129: =IF(OR('Project Inputs'!F$93="Actual",'Capital Cont Inputs'!$B$48="IEE/True-up"),I120,$D$128*I120) -> 41.02340788 | J129: =IF(OR('Project Inputs'!G$93="Actual",'Capital Cont Inputs'!$B$48="IEE/True-up"),J120,$D$128*J120) -> 41.96366986 | K129: =IF(OR('Project Inputs'!H$93="Actual",'Capital Cont Inputs'!$B$48="IEE/True-up"),K120,$D$128*K120) -> 42.91066125 | L129: =IF(OR('Project Inputs'!I$93="Actual",'Capital Cont Inputs'!$B$48="IEE/True-up"),L120,$D$128*L120) -> 43.86443023 | M129: =IF(OR('Project Inputs'!J$93="Actual",'Capital Cont Inputs'!$B$48="IEE/True-up"),M120,$D$128*M120) -> 44.82224671 | N129: =IF(OR('Project Inputs'!K$93="Actual",'Capital Cont Inputs'!$B$48="IEE/True-up"),N120,$D$128*N120) -> 45.78105015 | O129: =IF(OR('Project Inputs'!L$93="Actual",'Capital Cont Inputs'!$B$48="IEE/True-up"),O120,$D$128*O120) -> 46.75411647 | P129: =IF(OR('Project Inputs'!M$93="Actual",'Capital Cont Inputs'!$B$48="IEE/True-up"),P120,$D$128*P120) -> 47.73413809 | Q129: =IF(OR('Project Inputs'!N$93="Actual",'Capital Cont Inputs'!$B$48="IEE/True-up"),Q120,$D$128*Q120) -> 48.72116472 | R129: =IF(OR('Project Inputs'!O$93="Actual",'Capital Cont Inputs'!$B$48="IEE/True-up"),R120,$D$128*R120) -> 49.69544008 | S129: =IF(OR('Project Inputs'!P$93="Actual",'Capital Cont Inputs'!$B$48="IEE/True-up"),S120,$D$128*S120) -> 50.63564221 | T129: =IF(OR('Project Inputs'!Q$93="Actual",'Capital Cont Inputs'!$B$48="IEE/True-up"),T120,$D$128*T120) -> 51.63770044 | U129: =IF(OR('Project Inputs'!R$93="Actual",'Capital Cont Inputs'!$B$48="IEE/True-up"),U120,$D$128*U120) -> 52.64688063 | V129: =IF(OR('Project Inputs'!S$93="Actual",'Capital Cont Inputs'!$B$48="IEE/True-up"),V120,$D$128*V120) -> 53.6632334 | W129: =IF(OR('Project Inputs'!T$93="Actual",'Capital Cont Inputs'!$B$48="IEE/True-up"),W120,$D$128*W120) -> 54.63175584 | X129: =IF(OR('Project Inputs'!U$93="Actual",'Capital Cont Inputs'!$B$48="IEE/True-up"),X120,$D$128*X120) -> 55.4941383 | Y129: =IF(OR('Project Inputs'!V$93="Actual",'Capital Cont Inputs'!$B$48="IEE/True-up"),Y120,$D$128*Y120) -> 56.51904359 | Z129: =IF(OR('Project Inputs'!W$93="Actual",'Capital Cont Inputs'!$B$48="IEE/True-up"),Z120,$D$128*Z120) -> 57.55115112 | AA129: =IF(OR('Project Inputs'!X$93="Actual",'Capital Cont Inputs'!$B$48="IEE/True-up"),AA120,$D$128*AA120) -> 58.59051149 | AB129: =IF(OR('Project Inputs'!Y$93="Actual",'Capital Cont Inputs'!$B$48="IEE/True-up"),AB120,$D$128*AB120) -> 59.63717568 | AC129: =IF(OR('Project Inputs'!Z$93="Actual",'Capital Cont Inputs'!$B$48="IEE/True-up"),AC120,$D$128*AC120) -> 60.70160601 | AD129: =IF(OR('Project Inputs'!AA$93="Actual",'Capital Cont Inputs'!$B$48="IEE/True-up"),AD120,$D$128*AD120) -> 61.80556775
C130: Load adjustments (MW / month) | F130: =F121 -> 0 | G130: =G121 -> 0 | H130: 0 | I130: 0 | J130: 0 | K130: 0 | L130: 0 | M130: 0 | N130: 0 | O130: 0 | P130: 0 | Q130: 0 | R130: 0 | S130: 0 | T130: 0 | U130: 0 | V130: 0 | W130: 0 | X130: 0 | Y130: 0 | Z130: 0 | AA130: 0 | AB130: 0 | AC130: 0 | AD130: 0
C131: Total load (MW / project year) | F131: =SUM(F129:F130) -> 38.24252201 | G131: =SUM(G129:G130) -> 39.16288127 | H131: 40.08982752 | I131: 41.02340788 | J131: 41.96366986 | K131: 42.91066125 | L131: 43.86443023 | M131: 44.82224671 | N131: 45.78105015 | O131: 46.75411647 | P131: 47.73413809 | Q131: 48.72116472 | R131: 49.69544008 | S131: 50.63564221 | T131: 51.63770044 | U131: 52.64688063 | V131: 53.6632334 | W131: 54.63175584 | X131: 55.4941383 | Y131: 56.51904359 | Z131: 57.55115112 | AA131: 58.59051149 | AB131: 59.63717568 | AC131: 60.70160601 | AD131: 61.80556775

Sheet NPV Calc
B2: Capital Contribution flag (select Yes to include in calculation of NPV): | C2: No
D4: Project Year: | E4: ='Capital Cont Inputs'!B16 -> 0 | F4: ='Capital Cont Inputs'!C16 -> 1 | G4: ='Capital Cont Inputs'!D16 -> 2 | H4: ='Capital Cont Inputs'!E16 -> 3 | I4: ='Capital Cont Inputs'!F16 -> 4 | J4: ='Capital Cont Inputs'!G16 -> 5 | K4: ='Capital Cont Inputs'!H16 -> 6 | L4: ='Capital Cont Inputs'!I16 -> 7 | M4: ='Capital Cont Inputs'!J16 -> 8 | N4: ='Capital Cont Inputs'!K16 -> 9 | O4: ='Capital Cont Inputs'!L16 -> 10 | P4: ='Capital Cont Inputs'!M16 -> 11 | Q4: ='Capital Cont Inputs'!N16 -> 12 | R4: ='Capital Cont Inputs'!O16 -> 13 | S4: ='Capital Cont Inputs'!P16 -> 14 | T4: ='Capital Cont Inputs'!Q16 -> 15 | U4: ='Capital Cont Inputs'!R16 -> 16 | V4: ='Capital Cont Inputs'!S16 -> 17 | W4: ='Capital Cont Inputs'!T16 -> 18 | X4: ='Capital Cont Inputs'!U16 -> 19 | Y4: ='Capital Cont Inputs'!V16 -> 20 | Z4: ='Capital Cont Inputs'!W16 -> 21 | AA4: ='Capital Cont Inputs'!X16 -> 22 | AB4: ='Capital Cont Inputs'!Y16 -> 23 | AC4: ='Capital Cont Inputs'!Z16 -> 24 | AD4: ='Capital Cont Inputs'!AA16 -> 25
D5: Year Ended: | E5: ='Capital Cont Inputs'!B15 -> 2018 | F5: ='Capital Cont Inputs'!C15 -> 2019 | G5: ='Capital Cont Inputs'!D15 -> 2020 | H5: ='Capital Cont Inputs'!E15 -> 2021 | I5: ='Capital Cont Inputs'!F15 -> 2022 | J5: ='Capital Cont Inputs'!G15 -> 2023 | K5: ='Capital Cont Inputs'!H15 -> 2024 | L5: ='Capital Cont Inputs'!I15 -> 2025 | M5: ='Capital Cont Inputs'!J15 -> 2026 | N5: ='Capital Cont Inputs'!K15 -> 2027 | O5: ='Capital Cont Inputs'!L15 -> 2028 | P5: ='Capital Cont Inputs'!M15 -> 2029 | Q5: ='Capital Cont Inputs'!N15 -> 2030 | R5: ='Capital Cont Inputs'!O15 -> 2031 | S5: ='Capital Cont Inputs'!P15 -> 2032 | T5: ='Capital Cont Inputs'!Q15 -> 2033 | U5: ='Capital Cont Inputs'!R15 -> 2034 | V5: ='Capital Cont Inputs'!S15 -> 2035 | W5: ='Capital Cont Inputs'!T15 -> 2036 | X5: ='Capital Cont Inputs'!U15 -> 2037 | Y5: ='Capital Cont Inputs'!V15 -> 2038 | Z5: ='Capital Cont Inputs'!W15 -> 2039 | AA5: ='Capital Cont Inputs'!X15 -> 2040 | AB5: ='Capital Cont Inputs'!Y15 -> 2041 | AC5: ='Capital Cont Inputs'!Z15 -> 2042 | AD5: ='Capital Cont Inputs'!AA15 -> 2043
A7: Discount | B7: Calculation of Net Present Value: | C7: Undiscounted | D7: Cum. NPV at
A8: Method | C8: Cash Flow | D8: IS Date
B9: Incremental revenues:
B10: =CONCATENATE('Project Inputs'!B28," - ","Load Forecast (MW)") -> Estimated cost - Load Forecast (MW) | F10: ='Prelim Calc'!F129 -> 38.24252201 | G10: ='Prelim Calc'!G129 -> 39.16288127 | H10: ='Prelim Calc'!H129 -> 40.08982752 | I10: ='Prelim Calc'!I129 -> 41.02340788 | J10: ='Prelim Calc'!J129 -> 41.96366986 | K10: ='Prelim Calc'!K129 -> 42.91066125 | L10: ='Prelim Calc'!L129 -> 43.86443023 | M10: ='Prelim Calc'!M129 -> 44.82224671 | N10: ='Prelim Calc'!N129 -> 45.78105015 | O10: ='Prelim Calc'!O129 -> 46.75411647 | P10: ='Prelim Calc'!P129 -> 47.73413809 | Q10: ='Prelim Calc'!Q129 -> 48.72116472 | R10: ='Prelim Calc'!R129 -> 49.69544008 | S10: ='Prelim Calc'!S129 -> 50.63564221 | T10: ='Prelim Calc'!T129 -> 51.63770044 | U10: ='Prelim Calc'!U129 -> 52.64688063 | V10: ='Prelim Calc'!V129 -> 53.6632334 | W10: ='Prelim Calc'!W129 -> 54.63175584 | X10: ='Prelim Calc'!X129 -> 55.4941383 | Y10: ='Prelim Calc'!Y129 -> 56.51904359 | Z10: ='Prelim Calc'!Z129 -> 57.55115112 | AA10: ='Prelim Calc'!AA129 -> 58.59051149 | AB10: ='Prelim Calc'!AB129 -> 59.63717568 | AC10: ='Prelim Calc'!AC129 -> 60.70160601 | AD10: ='Prelim Calc'!AD129 -> 61.80556775
B11: Load adjustments (MW) | F11: ='Prelim Calc'!F130 -> 0 | G11: ='Prelim Calc'!G130 -> 0 | H11: ='Prelim Calc'!H130 -> 0 | I11: ='Prelim Calc'!I130 -> 0 | J11: ='Prelim Calc'!J130 -> 0 | K11: ='Prelim Calc'!K130 -> 0 | L11: ='Prelim Calc'!L130 -> 0 | M11: ='Prelim Calc'!M130 -> 0 | N11: ='Prelim Calc'!N130 -> 0 | O11: ='Prelim Calc'!O130 -> 0 | P11: ='Prelim Calc'!P130 -> 0 | Q11: ='Prelim Calc'!Q130 -> 0 | R11: ='Prelim Calc'!R130 -> 0 | S11: ='Prelim Calc'!S130 -> 0 | T11: ='Prelim Calc'!T130 -> 0 | U11: ='Prelim Calc'!U130 -> 0 | V11: ='Prelim Calc'!V130 -> 0 | W11: ='Prelim Calc'!W130 -> 0 | X11: ='Prelim Calc'!X130 -> 0 | Y11: ='Prelim Calc'!Y130 -> 0 | Z11: ='Prelim Calc'!Z130 -> 0 | AA11: ='Prelim Calc'!AA130 -> 0 | AB11: ='Prelim Calc'!AB130 -> 0 | AC11: ='Prelim Calc'!AC130 -> 0 | AD11: ='Prelim Calc'!AD130 -> 0
B12: Total load (MW) | F12: =SUM(F10:F11) -> 38.24252201 | G12: =SUM(G10:G11) -> 39.16288127 | H12: 40.08982752 | I12: 41.02340788 | J12: 41.96366986 | K12: 42.91066125 | L12: 43.86443023 | M12: 44.82224671 | N12: 45.78105015 | O12: 46.75411647 | P12: 47.73413809 | Q12: 48.72116472 | R12: 49.69544008 | S12: 50.63564221 | T12: 51.63770044 | U12: 52.64688063 | V12: 53.6632334 | W12: 54.63175584 | X12: 55.4941383 | Y12: 56.51904359 | Z12: 57.55115112 | AA12: 58.59051149 | AB12: 59.63717568 | AC12: 60.70160601 | AD12: 61.80556775
B14: =CONCATENATE("Tariff Applied"," - ",'Project Inputs'!B17, " $/kW/Month") -> Tariff Applied - Transformation $/kW/Month | F14: =IF('Project Inputs'!B17="Line",'Standard Inputs'!B6,IF('Project Inputs'!B17="Network",'Standard Inputs'!#REF!,'Standard Inputs'!B7)) -> 2 | G14: =IF(ISNUMBER(G5),F14,0) -> 2 | H14: 2 | I14: 2 | J14: 2 | K14: 2 | L14: 2 | M14: 2 | N14: 2 | O14: 2 | P14: 2 | Q14: 2 | R14: 2 | S14: 2 | T14: 2 | U14: 2 | V14: 2 | W14: 2 | X14: 2 | Y14: 2 | Z14: 2 | AA14: 2 | AB14: 2 | AC14: 2 | AD14: 2
B15: Total incremental revenue (monthly) | F15: =(F12)*F14 -> 76.48504401 | G15: =(G12)*G14 -> 78.32576254 | H15: 80.17965503 | I15: 82.04681577 | J15: 83.92733971 | K15: 85.8213225 | L15: 87.72886046 | M15: 89.64449343 | N15: 91.56210029 | O15: 93.50823294 | P15: 95.46827618 | Q15: 97.44232945 | R15: 99.39088015 | S15: 101.2712844 | T15: 103.2754009 | U15: 105.2937613 | V15: 107.3264668 | W15: 109.2635117 | X15: 110.9882766 | Y15: 113.0380872 | Z15: 115.1023022 | AA15: 117.181023 | AB15: 119.2743514 | AC15: 121.403212 | AD15: 123.6111355
A17: M | B17: Total incremental revenue - $k | C17: =SUM(E17:AD17) -> 29862.7191 | D17: =SUMPRODUCT(E17:AD17,$E$47:$AD$47) -> 15068.39183 | F17: =F15*12 -> 917.8205281 | G17: 939.9091505 | H17: 962.1558604 | I17: 984.5617892 | J17: 1007.128077 | K17: 1029.85587 | L17: 1052.746326 | M17: 1075.733921 | N17: 1098.745204 | O17: 1122.098795 | P17: 1145.619314 | Q17: 1169.307953 | R17: 1192.690562 | S17: 1215.255413 | T17: 1239.304811 | U17: 1263.525135 | V17: 1287.917602 | W17: 1311.16214 | X17: 1331.859319 | Y17: 1356.457046 | Z17: 1381.227627 | AA17: 1406.172276 | AB17: 1431.292216 | AC17: 1456.838544 | AD17: 1483.333626
B19: Incremental costs:
A20: M | B20: Removal costs | C20: =SUM(E20:AD20) -> 0 | D20: =SUMPRODUCT(E20:AD20,$E$47:$AD$47) -> 0 | E20: =-'Prelim Calc'!E26 -> 0
A21: M | B21: OM&A costs | C21: =SUM(E21:AD21) -> 0 | D21: =SUMPRODUCT(E21:AD21,$E$47:$AD$47) -> 0 | F21: =-'Prelim Calc'!F65 -> 0 | G21: =-'Prelim Calc'!G65 -> 0 | H21: =-'Prelim Calc'!H65 -> 0 | I21: =-'Prelim Calc'!I65 -> 0 | J21: =-'Prelim Calc'!J65 -> 0 | K21: =-'Prelim Calc'!K65 -> 0 | L21: =-'Prelim Calc'!L65 -> 0 | M21: =-'Prelim Calc'!M65 -> 0 | N21: =-'Prelim Calc'!N65 -> 0 | O21: =-'Prelim Calc'!O65 -> 0 | P21: =-'Prelim Calc'!P65 -> 0 | Q21: =-'Prelim Calc'!Q65 -> 0 | R21: =-'Prelim Calc'!R65 -> 0 | S21: =-'Prelim Calc'!S65 -> 0 | T21: =-'Prelim Calc'!T65 -> 0 | U21: =-'Prelim Calc'!U65 -> 0 | V21: =-'Prelim Calc'!V65 -> 0 | W21: =-'Prelim Calc'!W65 -> 0 | X21: =-'Prelim Calc'!X65 -> 0 | Y21: =-'Prelim Calc'!Y65 -> 0 | Z21: =-'Prelim Calc'!Z65 -> 0 | AA21: =-'Prelim Calc'!AA65 -> 0 | AB21: =-'Prelim Calc'!AB65 -> 0 | AC21: =-'Prelim Calc'!AC65 -> 0 | AD21: =-'Prelim Calc'!AD65 -> 0
A22: M | B22: Municipal tax | C22: =SUM(E22:AD22) -> -2138.62164 | D22: =SUMPRODUCT(E22:AD22,$E$47:$AD$47) -> -1143.038908 | F22: =-'Prelim Calc'!F77 -> -85.54486559 | G22: =-'Prelim Calc'!G77 -> -85.54486559 | H22: =-'Prelim Calc'!H77 -> -85.54486559 | I22: =-'Prelim Calc'!I77 -> -85.54486559 | J22: =-'Prelim Calc'!J77 -> -85.54486559 | K22: =-'Prelim Calc'!K77 -> -85.54486559 | L22: =-'Prelim Calc'!L77 -> -85.54486559 | M22: =-'Prelim Calc'!M77 -> -85.54486559 | N22: =-'Prelim Calc'!N77 -> -85.54486559 | O22: =-'Prelim Calc'!O77 -> -85.54486559 | P22: =-'Prelim Calc'!P77 -> -85.54486559 | Q22: =-'Prelim Calc'!Q77 -> -85.54486559 | R22: =-'Prelim Calc'!R77 -> -85.54486559 | S22: =-'Prelim Calc'!S77 -> -85.54486559 | T22: =-'Prelim Calc'!T77 -> -85.54486559 | U22: =-'Prelim Calc'!U77 -> -85.54486559 | V22: =-'Prelim Calc'!V77 -> -85.54486559 | W22: =-'Prelim Calc'!W77 -> -85.54486559 | X22: =-'Prelim Calc'!X77 -> -85.54486559 | Y22: =-'Prelim Calc'!Y77 -> -85.54486559 | Z22: =-'Prelim Calc'!Z77 -> -85.54486559 | AA22: =-'Prelim Calc'!AA77 -> -85.54486559 | AB22: =-'Prelim Calc'!AB77 -> -85.54486559 | AC22: =-'Prelim Calc'!AC77 -> -85.54486559 | AD22: =-'Prelim Calc'!AD77 -> -85.54486559
B23: Total incremental removal costs, OM&A costs, and municpal taxes - $k | C23: =SUM(E23:AD23) -> -2138.62164 | D23: =SUM(D20:D22) -> -1143.038908 | E23: 0 | F23: -85.54486559 | G23: -85.54486559 | H23: -85.54486559 | I23: -85.54486559 | J23: -85.54486559 | K23: -85.54486559 | L23: -85.54486559 | M23: -85.54486559 | N23: -85.54486559 | O23: -85.54486559 | P23: -85.54486559 | Q23: -85.54486559 | R23: -85.54486559 | S23: -85.54486559 | T23: -85.54486559 | U23: -85.54486559 | V23: -85.54486559 | W23: -85.54486559 | X23: -85.54486559 | Y23: -85.54486559 | Z23: -85.54486559 | AA23: -85.54486559 | AB23: -85.54486559 | AC23: -85.54486559 | AD23: -85.54486559
B25: Taxes:
A26: M | B26: Income tax provision | C26: =SUM(E26:AD26) -> -2810.240472 | D26: =SUMPRODUCT(E26:AD26,$E$47:$AD$47) -> -771.6953215 | E26: =-E78 -> 0 | F26: =-F78 -> -12.02643991 | G26: 173.964557 | H26: 136.0394914 | I26: 100.6346079 | J26: 67.54461435 | K26: 36.58061586 | L26: 7.568802578 | M26: -19.63308541 | N26: -45.15243639 | O26: -69.20879046 | P26: -91.87996804 | Q26: -113.2806383 | R26: -133.3903559 | S26: -152.1703018 | T26: -170.3196316 | U26: -187.5721579 | V26: -204.0035706 | W26: -219.3333897 | X26: -233.2545572 | Y26: -247.5344567 | Z26: -261.2392422 | AA26: -274.4189094 | AB26: -287.1194819 | AC26: -299.4495441 | AD26: -311.5862033
A27: F | B27: CCA tax shield adjustment | C27: =SUM(E27:AD27) -> 391.2421645 | D27: =SUMPRODUCT(E27:AD27,$E$48:$AD$48) -> 94.81784321 | E27: =E93 -> 0 | F27: 0 | G27: 0 | H27: 0 | I27: 0 | J27: 0 | K27: 0 | L27: 0 | M27: 0 | N27: 0 | O27: 0 | P27: 0 | Q27: 0 | R27: 0 | S27: 0 | T27: 0 | U27: 0 | V27: 0 | W27: 0 | X27: 0 | Y27: 0 | Z27: 0 | AA27: 0 | AB27: 0 | AC27: 0 | AD27: 391.2421645
B28: Total incremental taxes - $k | C28: =SUM(E28:AD28) -> -2418.998307 | D28: =SUM(D26:D27) -> -676.8774783 | E28: 0 | F28: -12.02643991 | G28: 173.964557 | H28: 136.0394914 | I28: 100.6346079 | J28: 67.54461435 | K28: 36.58061586 | L28: 7.568802578 | M28: -19.63308541 | N28: -45.15243639 | O28: -69.20879046 | P28: -91.87996804 | Q28: -113.2806383 | R28: -133.3903559 | S28: -152.1703018 | T28: -170.3196316 | U28: -187.5721579 | V28: -204.0035706 | W28: -219.3333897 | X28: -233.2545572 | Y28: -247.5344567 | Z28: -261.2392422 | AA28: -274.4189094 | AB28: -287.1194819 | AC28: -299.4495441 | AD28: 79.65596124
B30: Capital expenditures:
A31: F | B31: Capital before overheads & AFUDC | C31: =SUM(E31:AD31) -> -17188.1412 | D31: =SUMPRODUCT(E31:AD31,$E$48:$AD$48) -> -17188.1412 | E31: =-('Project Inputs'!B34+'Project Inputs'!B38+'Project Inputs'!B49+'Project Inputs'!B55+'Project Inputs'!B61) -> -17188.1412
A32: F | B32: Up-front overheads | C32: =SUM(E32:AD32) -> -2370.739767 | D32: =SUMPRODUCT(E32:AD32,$E$48:$AD$48) -> -2370.739767 | E32: =-('Project Inputs'!B39+'Project Inputs'!B50+'Project Inputs'!B56+'Project Inputs'!B62) -> -2370.739767
A33: F | B33: Up-front AFUDC | C33: =SUM(E33:AD33) -> -653.835353 | D33: =SUMPRODUCT(E33:AD33,$E$48:$AD$48) -> -653.835353 | E33: =-('Project Inputs'!B40+'Project Inputs'!B51+'Project Inputs'!B57+'Project Inputs'!B63) -> -653.835353
B34: Total up-front capital expenditures - $k | C34: =SUM(E34:AD34) -> -20212.71632 | D34: =SUM(D31:D33) -> -20212.71632 | E34: =SUM(E31:E33) -> -20212.71632 | F34: 0 | G34: 0 | H34: 0 | I34: 0 | J34: 0 | K34: 0 | L34: 0 | M34: 0 | N34: 0 | O34: 0 | P34: 0 | Q34: 0 | R34: 0 | S34: 0 | T34: 0 | U34: 0 | V34: 0 | W34: 0 | X34: 0 | Y34: 0 | Z34: 0 | AA34: 0 | AB34: 0 | AC34: 0 | AD34: 0
A36: M | B36: Ongoing capital expenditures | C36: =SUM(E36:AD36) -> 0 | D36: =SUMPRODUCT(E36:AD36,$E$47:$AD$47) -> 0
B37: Total ongoing capital expenditures - $k | C37: =SUM(E37:AD37) -> 0 | D37: =SUM(D36:D36) -> 0 | E37: =SUM(E36:E36) -> 0 | F37: =SUM(F36:F36) -> 0 | G37: 0 | H37: 0 | I37: 0 | J37: 0 | K37: 0 | L37: 0 | M37: 0 | N37: 0 | O37: 0 | P37: 0 | Q37: 0 | R37: 0 | S37: 0 | T37: 0 | U37: 0 | V37: 0 | W37: 0 | X37: 0 | Y37: 0 | Z37: 0 | AA37: 0 | AB37: 0 | AC37: 0 | AD37: 0
A40: F | B40: Previous capital contribution/(credit) | C40: =SUM(E40:AD40) -> 0 | D40: =SUMPRODUCT(E40:AD40,$E$48:$AD$48) -> 0 | E40: =IF($C$2="Yes",IF(Stage='Standard Inputs'!E74,"",'Capital Cont Inputs'!B17),0) -> 0 | F40: =IF($C$2="Yes",'Capital Cont Inputs'!C17,0) -> 0 | G40: =IF($C$2="Yes",'Capital Cont Inputs'!D17,0) -> 0 | H40: =IF($C$2="Yes",'Capital Cont Inputs'!E17,0) -> 0 | I40: =IF($C$2="Yes",'Capital Cont Inputs'!F17,0) -> 0 | J40: =IF($C$2="Yes",'Capital Cont Inputs'!G17,0) -> 0 | K40: =IF($C$2="Yes",'Capital Cont Inputs'!H17,0) -> 0 | L40: =IF($C$2="Yes",'Capital Cont Inputs'!I17,0) -> 0 | M40: =IF($C$2="Yes",'Capital Cont Inputs'!J17,0) -> 0 | N40: =IF($C$2="Yes",'Capital Cont Inputs'!K17,0) -> 0 | O40: =IF($C$2="Yes",'Capital Cont Inputs'!L17,0) -> 0 | P40: =IF($C$2="Yes",'Capital Cont Inputs'!M17,0) -> 0 | Q40: =IF($C$2="Yes",'Capital Cont Inputs'!N17,0) -> 0 | R40: =IF($C$2="Yes",'Capital Cont Inputs'!O17,0) -> 0 | S40: =IF($C$2="Yes",'Capital Cont Inputs'!P17,0) -> 0 | T40: =IF($C$2="Yes",'Capital Cont Inputs'!Q17,0) -> 0 | U40: =IF($C$2="Yes",'Capital Cont Inputs'!R17,0) -> 0 | V40: =IF($C$2="Yes",'Capital Cont Inputs'!S17,0) -> 0 | W40: =IF($C$2="Yes",'Capital Cont Inputs'!T17,0) -> 0 | X40: =IF($C$2="Yes",'Capital Cont Inputs'!U17,0) -> 0 | Y40: =IF($C$2="Yes",'Capital Cont Inputs'!V17,0) -> 0 | Z40: =IF($C$2="Yes",'Capital Cont Inputs'!W17,0) -> 0 | AA40: =IF($C$2="Yes",'Capital Cont Inputs'!X17,0) -> 0 | AB40: =IF($C$2="Yes",'Capital Cont Inputs'!Y17,0) -> 0 | AC40: =IF($C$2="Yes",'Capital Cont Inputs'!Z17,0) -> 0 | AD40: =IF($C$2="Yes",'Capital Cont Inputs'!AA17,0) -> 0
A41: F | B41: Current capital contribution/(credit) | C41: =SUM(E41:AD41) -> 0 | D41: =SUMPRODUCT(E41:AD41,$E$48:$AD$48) -> 0 | E41: =IF($C$2="Yes",'Capital Cont Inputs'!B18,0) -> 0 | F41: =IF($C$2="Yes",'Capital Cont Inputs'!C18,0) -> 0 | G41: =IF($C$2="Yes",'Capital Cont Inputs'!D18,0) -> 0 | H41: =IF($C$2="Yes",'Capital Cont Inputs'!E18,0) -> 0 | I41: =IF($C$2="Yes",'Capital Cont Inputs'!F18,0) -> 0 | J41: =IF($C$2="Yes",'Capital Cont Inputs'!G18,0) -> 0 | K41: =IF($C$2="Yes",'Capital Cont Inputs'!H18,0) -> 0 | L41: =IF($C$2="Yes",'Capital Cont Inputs'!I18,0) -> 0 | M41: =IF($C$2="Yes",'Capital Cont Inputs'!J18,0) -> 0 | N41: =IF($C$2="Yes",'Capital Cont Inputs'!K18,0) -> 0 | O41: =IF($C$2="Yes",'Capital Cont Inputs'!L18,0) -> 0 | P41: =IF($C$2="Yes",'Capital Cont Inputs'!M18,0) -> 0 | Q41: =IF($C$2="Yes",'Capital Cont Inputs'!N18,0) -> 0 | R41: =IF($C$2="Yes",'Capital Cont Inputs'!O18,0) -> 0 | S41: =IF($C$2="Yes",'Capital Cont Inputs'!P18,0) -> 0 | T41: =IF($C$2="Yes",'Capital Cont Inputs'!Q18,0) -> 0 | U41: =IF($C$2="Yes",'Capital Cont Inputs'!R18,0) -> 0 | V41: =IF($C$2="Yes",'Capital Cont Inputs'!S18,0) -> 0 | W41: =IF($C$2="Yes",'Capital Cont Inputs'!T18,0) -> 0 | X41: =IF($C$2="Yes",'Capital Cont Inputs'!U18,0) -> 0 | Y41: =IF($C$2="Yes",'Capital Cont Inputs'!V18,0) -> 0 | Z41: =IF($C$2="Yes",'Capital Cont Inputs'!W18,0) -> 0 | AA41: =IF($C$2="Yes",'Capital Cont Inputs'!X18,0) -> 0 | AB41: =IF($C$2="Yes",'Capital Cont Inputs'!Y18,0) -> 0 | AC41: =IF($C$2="Yes",'Capital Cont Inputs'!Z18,0) -> 0 | AD41: =IF($C$2="Yes",'Capital Cont Inputs'!AA18,0) -> 0
B42: Total capital contributions - $k | C42: =SUM(E42:AD42) -> 0 | D42: =SUM(D40:D41) -> 0 | E42: =SUM(E40:E41) -> 0 | F42: =SUM(F40:F41) -> 0 | G42: 0 | H42: 0 | I42: 0 | J42: 0 | K42: 0 | L42: 0 | M42: 0 | N42: 0 | O42: 0 | P42: 0 | Q42: 0 | R42: 0 | S42: 0 | T42: 0 | U42: 0 | V42: 0 | W42: 0 | X42: 0 | Y42: 0 | Z42: 0 | AA42: 0 | AB42: 0 | AC42: 0 | AD42: 0
A44: F | B44: Change in working capital- $k | C44: =SUM(E44:AD44) -> 0 | D44: =SUMPRODUCT(E44:AD44,$E$48:$AD$48) -> 0 | E44: =-'Prelim Calc'!D96 -> 0 | F44: =-'Prelim Calc'!F96 -> 0 | G44: =-'Prelim Calc'!G96 -> 0 | H44: =-'Prelim Calc'!H96 -> 0 | I44: =-'Prelim Calc'!I96 -> 0 | J44: =-'Prelim Calc'!J96 -> 0 | K44: =-'Prelim Calc'!K96 -> 0 | L44: =-'Prelim Calc'!L96 -> 0 | M44: =-'Prelim Calc'!M96 -> 0 | N44: =-'Prelim Calc'!N96 -> 0 | O44: =-'Prelim Calc'!O96 -> 0 | P44: =-'Prelim Calc'!P96 -> 0 | Q44: =-'Prelim Calc'!Q96 -> 0 | R44: =-'Prelim Calc'!R96 -> 0 | S44: =-'Prelim Calc'!S96 -> 0 | T44: =-'Prelim Calc'!T96 -> 0 | U44: =-'Prelim Calc'!U96 -> 0 | V44: =-'Prelim Calc'!V96 -> 0 | W44: =-'Prelim Calc'!W96 -> 0 | X44: =-'Prelim Calc'!X96 -> 0 | Y44: =-'Prelim Calc'!Y96 -> 0 | Z44: =-'Prelim Calc'!Z96 -> 0 | AA44: =-'Prelim Calc'!AA96 -> 0 | AB44: =-'Prelim Calc'!AB96 -> 0 | AC44: =-'Prelim Calc'!AC96 -> 0 | AD44: =-'Prelim Calc'!AD96 -> 0
B46: ="Present value factor for discounting: "&ROUND('Prelim Calc'!H13*100,2)&"%" -> Present value factor for discounting: 5.83%
B47: Present value factor - mid-year | E47: =IF(E4=0,1,IF(E4=1,B47/(1+'Prelim Calc'!$H$13)^0.5,B47/(1+'Prelim Calc'!$H$13))) -> 1 | F47: =IF(F4=0,1,IF(F4=1,E47/(1+'Prelim Calc'!$H$13)^0.5,E47/(1+'Prelim Calc'!$H$13))) -> 0.9720506352 | G47: =IF(G4=0,1,IF(G4=1,F47/(1+'Prelim Calc'!$H$13)^0.5,F47/(1+'Prelim Calc'!$H$13))) -> 0.9184735734 | H47: =IF(H4=0,1,IF(H4=1,G47/(1+'Prelim Calc'!$H$13)^0.5,G47/(1+'Prelim Calc'!$H$13))) -> 0.8678495487 | I47: =IF(I4=0,1,IF(I4=1,H47/(1+'Prelim Calc'!$H$13)^0.5,H47/(1+'Prelim Calc'!$H$13))) -> 0.8200157968 | J47: =IF(J4=0,1,IF(J4=1,I47/(1+'Prelim Calc'!$H$13)^0.5,I47/(1+'Prelim Calc'!$H$13))) -> 0.7748185247 | K47: =IF(K4=0,1,IF(K4=1,J47/(1+'Prelim Calc'!$H$13)^0.5,J47/(1+'Prelim Calc'!$H$13))) -> 0.7321124162 | L47: =IF(L4=0,1,IF(L4=1,K47/(1+'Prelim Calc'!$H$13)^0.5,K47/(1+'Prelim Calc'!$H$13))) -> 0.6917601642 | M47: =IF(M4=0,1,IF(M4=1,L47/(1+'Prelim Calc'!$H$13)^0.5,L47/(1+'Prelim Calc'!$H$13))) -> 0.65363203 | N47: =IF(N4=0,1,IF(N4=1,M47/(1+'Prelim Calc'!$H$13)^0.5,M47/(1+'Prelim Calc'!$H$13))) -> 0.6176054256 | O47: =IF(O4=0,1,IF(O4=1,N47/(1+'Prelim Calc'!$H$13)^0.5,N47/(1+'Prelim Calc'!$H$13))) -> 0.5835645199 | P47: =IF(P4=0,1,IF(P4=1,O47/(1+'Prelim Calc'!$H$13)^0.5,O47/(1+'Prelim Calc'!$H$13))) -> 0.5513998659 | Q47: =IF(Q4=0,1,IF(Q4=1,P47/(1+'Prelim Calc'!$H$13)^0.5,P47/(1+'Prelim Calc'!$H$13))) -> 0.5210080493 | R47: =IF(R4=0,1,IF(R4=1,Q47/(1+'Prelim Calc'!$H$13)^0.5,Q47/(1+'Prelim Calc'!$H$13))) -> 0.4922913555 | S47: =IF(S4=0,1,IF(S4=1,R47/(1+'Prelim Calc'!$H$13)^0.5,R47/(1+'Prelim Calc'!$H$13))) -> 0.4651574558 | T47: =IF(T4=0,1,IF(T4=1,S47/(1+'Prelim Calc'!$H$13)^0.5,S47/(1+'Prelim Calc'!$H$13))) -> 0.4395191106 | U47: =IF(U4=0,1,IF(U4=1,T47/(1+'Prelim Calc'!$H$13)^0.5,T47/(1+'Prelim Calc'!$H$13))) -> 0.4152938885 | V47: =IF(V4=0,1,IF(V4=1,U47/(1+'Prelim Calc'!$H$13)^0.5,U47/(1+'Prelim Calc'!$H$13))) -> 0.3924039016 | W47: =IF(W4=0,1,IF(W4=1,V47/(1+'Prelim Calc'!$H$13)^0.5,V47/(1+'Prelim Calc'!$H$13))) -> 0.370775555 | X47: =IF(X4=0,1,IF(X4=1,W47/(1+'Prelim Calc'!$H$13)^0.5,W47/(1+'Prelim Calc'!$H$13))) -> 0.3503393101 | Y47: =IF(Y4=0,1,IF(Y4=1,X47/(1+'Prelim Calc'!$H$13)^0.5,X47/(1+'Prelim Calc'!$H$13))) -> 0.3310294612 | Z47: =IF(Z4=0,1,IF(Z4=1,Y47/(1+'Prelim Calc'!$H$13)^0.5,Y47/(1+'Prelim Calc'!$H$13))) -> 0.3127839241 | AA47: =IF(AA4=0,1,IF(AA4=1,Z47/(1+'Prelim Calc'!$H$13)^0.5,Z47/(1+'Prelim Calc'!$H$13))) -> 0.2955440366 | AB47: =IF(AB4=0,1,IF(AB4=1,AA47/(1+'Prelim Calc'!$H$13)^0.5,AA47/(1+'Prelim Calc'!$H$13))) -> 0.2792543697 | AC47: =IF(AC4=0,1,IF(AC4=1,AB47/(1+'Prelim Calc'!$H$13)^0.5,AB47/(1+'Prelim Calc'!$H$13))) -> 0.2638625494 | AD47: =IF(AD4=0,1,IF(AD4=1,AC47/(1+'Prelim Calc'!$H$13)^0.5,AC47/(1+'Prelim Calc'!$H$13))) -> 0.2493190888
B48: Present value factor - full-year | E48: =IF(E4=0,1,B48/(1+'Prelim Calc'!$H$13)) -> 1 | F48: =IF(F4=0,1,E48/(1+'Prelim Calc'!$H$13)) -> 0.9448824373 | G48: =IF(G4=0,1,F48/(1+'Prelim Calc'!$H$13)) -> 0.8928028204 | H48: =IF(H4=0,1,G48/(1+'Prelim Calc'!$H$13)) -> 0.843593705 | I48: =IF(I4=0,1,H48/(1+'Prelim Calc'!$H$13)) -> 0.7970968761 | J48: =IF(J4=0,1,I48/(1+'Prelim Calc'!$H$13)) -> 0.7531628391 | K48: =IF(K4=0,1,J48/(1+'Prelim Calc'!$H$13)) -> 0.7116503392 | L48: =IF(L4=0,1,K48/(1+'Prelim Calc'!$H$13)) -> 0.672425907 | M48: =IF(M4=0,1,L48/(1+'Prelim Calc'!$H$13)) -> 0.6353634299 | N48: =IF(N4=0,1,M48/(1+'Prelim Calc'!$H$13)) -> 0.6003437463 | O48: =IF(O4=0,1,N48/(1+'Prelim Calc'!$H$13)) -> 0.5672542622 | P48: =IF(P4=0,1,O48/(1+'Prelim Calc'!$H$13)) -> 0.5359885899 | Q48: =IF(Q4=0,1,P48/(1+'Prelim Calc'!$H$13)) -> 0.5064462052 | R48: =IF(R4=0,1,Q48/(1+'Prelim Calc'!$H$13)) -> 0.4785321248 | S48: =IF(S4=0,1,R48/(1+'Prelim Calc'!$H$13)) -> 0.4521566004 | T48: =IF(T4=0,1,S48/(1+'Prelim Calc'!$H$13)) -> 0.4272348307 | U48: =IF(U4=0,1,T48/(1+'Prelim Calc'!$H$13)) -> 0.4036866881 | V48: =IF(V4=0,1,U48/(1+'Prelim Calc'!$H$13)) -> 0.3814364618 | W48: =IF(W4=0,1,V48/(1+'Prelim Calc'!$H$13)) -> 0.3604126137 | X48: =IF(X4=0,1,W48/(1+'Prelim Calc'!$H$13)) -> 0.3405475489 | Y48: =IF(Y4=0,1,X48/(1+'Prelim Calc'!$H$13)) -> 0.321777398 | Z48: =IF(Z4=0,1,Y48/(1+'Prelim Calc'!$H$13)) -> 0.3040418121 | AA48: =IF(AA4=0,1,Z48/(1+'Prelim Calc'!$H$13)) -> 0.2872837685 | AB48: =IF(AB4=0,1,AA48/(1+'Prelim Calc'!$H$13)) -> 0.2714493874 | AC48: =IF(AC4=0,1,AB48/(1+'Prelim Calc'!$H$13)) -> 0.2564877588 | AD48: =IF(AD4=0,1,AC48/(1+'Prelim Calc'!$H$13)) -> 0.2423507787
B50: Accumulated Net Present Value - $k | D50: =D17+D23+D28+D34+D37+D44+D42 -> -6964.240878
B52: Present value of capital contributions (for reporting) - $k | E52: =E42*E48 -> 0 | F52: 0 | G52: 0 | H52: 0 | I52: 0 | J52: 0 | K52: 0 | L52: 0 | M52: 0 | N52: 0 | O52: 0 | P52: 0 | Q52: 0 | R52: 0 | S52: 0 | T52: 0 | U52: 0 | V52: 0 | W52: 0 | X52: 0 | Y52: 0 | Z52: 0 | AA52: 0 | AB52: 0 | AC52: 0 | AD52: 0
B54: Calculatuon of Income Taxes | D54: ='Prelim Calc'!C33 -> Project Year: | E54: ='Capital Cont Inputs'!B16 -> 0 | F54: ='Capital Cont Inputs'!C16 -> 1 | G54: ='Capital Cont Inputs'!D16 -> 2 | H54: ='Capital Cont Inputs'!E16 -> 3 | I54: ='Capital Cont Inputs'!F16 -> 4 | J54: ='Capital Cont Inputs'!G16 -> 5 | K54: ='Capital Cont Inputs'!H16 -> 6 | L54: ='Capital Cont Inputs'!I16 -> 7 | M54: ='Capital Cont Inputs'!J16 -> 8 | N54: ='Capital Cont Inputs'!K16 -> 9 | O54: ='Capital Cont Inputs'!L16 -> 10 | P54: ='Capital Cont Inputs'!M16 -> 11 | Q54: ='Capital Cont Inputs'!N16 -> 12 | R54: ='Capital Cont Inputs'!O16 -> 13 | S54: ='Capital Cont Inputs'!P16 -> 14 | T54: ='Capital Cont Inputs'!Q16 -> 15 | U54: ='Capital Cont Inputs'!R16 -> 16 | V54: ='Capital Cont Inputs'!S16 -> 17 | W54: ='Capital Cont Inputs'!T16 -> 18 | X54: ='Capital Cont Inputs'!U16 -> 19 | Y54: ='Capital Cont Inputs'!V16 -> 20 | Z54: ='Capital Cont Inputs'!W16 -> 21 | AA54: ='Capital Cont Inputs'!X16 -> 22 | AB54: ='Capital Cont Inputs'!Y16 -> 23 | AC54: ='Capital Cont Inputs'!Z16 -> 24 | AD54: ='Capital Cont Inputs'!AA16 -> 25
D55: ='Prelim Calc'!C34 -> Year Ended: | E55: ='Capital Cont Inputs'!B15 -> 2018 | F55: ='Capital Cont Inputs'!C15 -> 2019 | G55: ='Capital Cont Inputs'!D15 -> 2020 | H55: ='Capital Cont Inputs'!E15 -> 2021 | I55: ='Capital Cont Inputs'!F15 -> 2022 | J55: ='Capital Cont Inputs'!G15 -> 2023 | K55: ='Capital Cont Inputs'!H15 -> 2024 | L55: ='Capital Cont Inputs'!I15 -> 2025 | M55: ='Capital Cont Inputs'!J15 -> 2026 | N55: ='Capital Cont Inputs'!K15 -> 2027 | O55: ='Capital Cont Inputs'!L15 -> 2028 | P55: ='Capital Cont Inputs'!M15 -> 2029 | Q55: ='Capital Cont Inputs'!N15 -> 2030 | R55: ='Capital Cont Inputs'!O15 -> 2031 | S55: ='Capital Cont Inputs'!P15 -> 2032 | T55: ='Capital Cont Inputs'!Q15 -> 2033 | U55: ='Capital Cont Inputs'!R15 -> 2034 | V55: ='Capital Cont Inputs'!S15 -> 2035 | W55: ='Capital Cont Inputs'!T15 -> 2036 | X55: ='Capital Cont Inputs'!U15 -> 2037 | Y55: ='Capital Cont Inputs'!V15 -> 2038 | Z55: ='Capital Cont Inputs'!W15 -> 2039 | AA55: ='Capital Cont Inputs'!X15 -> 2040 | AB55: ='Capital Cont Inputs'!Y15 -> 2041 | AC55: ='Capital Cont Inputs'!Z15 -> 2042 | AD55: ='Capital Cont Inputs'!AA15 -> 2043
C58: Up-front costs
B59: Allocation of Capital Contributions: | C59: $k | D59: % Split
B60: ='Project Inputs'!A33 -> Land costs | C60: ='Project Inputs'!B34 -> 540.3945586 | D60: =C60/$C$65 -> 0.0267353754
B61: ='Project Inputs'!A37 -> Class 47 costs | C61: =SUM('Project Inputs'!B38:B40) -> 19672.32176 | D61: =C61/$C$65 -> 0.9732646246
B62: ='Project Inputs'!A48 -> Decision Support defined costs (1) | C62: =SUM('Project Inputs'!B49:B51) -> 0 | D62: =C62/$C$65 -> 0
B63: ='Project Inputs'!A54 -> Decision Support defined costs (2) | C63: =SUM('Project Inputs'!B55:B57) -> 0 | D63: =C63/$C$65 -> 0
B64: ='Project Inputs'!A60 -> Decision Support defined costs (3) | C64: =SUM('Project Inputs'!B61:B63) -> 0 | D64: =C64/$C$65 -> 0
B65: Total up-front capital before capital contributions | C65: =SUM(C60:C64) -> 20212.71632 | D65: =SUM(D60:D64) -> 1
B67: Calculation income tax provision - $k:
B68: Total incremental revenue | E68: =E17 -> 0 | F68: 917.8205281 | G68: 939.9091505 | H68: 962.1558604 | I68: 984.5617892 | J68: 1007.128077 | K68: 1029.85587 | L68: 1052.746326 | M68: 1075.733921 | N68: 1098.745204 | O68: 1122.098795 | P68: 1145.619314 | Q68: 1169.307953 | R68: 1192.690562 | S68: 1215.255413 | T68: 1239.304811 | U68: 1263.525135 | V68: 1287.917602 | W68: 1311.16214 | X68: 1331.859319 | Y68: 1356.457046 | Z68: 1381.227627 | AA68: 1406.172276 | AB68: 1431.292216 | AC68: 1456.838544 | AD68: 1483.333626
B69: Total incremental costs | E69: =E23 -> 0 | F69: -85.54486559 | G69: -85.54486559 | H69: -85.54486559 | I69: -85.54486559 | J69: -85.54486559 | K69: -85.54486559 | L69: -85.54486559 | M69: -85.54486559 | N69: -85.54486559 | O69: -85.54486559 | P69: -85.54486559 | Q69: -85.54486559 | R69: -85.54486559 | S69: -85.54486559 | T69: -85.54486559 | U69: -85.54486559 | V69: -85.54486559 | W69: -85.54486559 | X69: -85.54486559 | Y69: -85.54486559 | Z69: -85.54486559 | AA69: -85.54486559 | AB69: -85.54486559 | AC69: -85.54486559 | AD69: -85.54486559
B70: Net income before CCA | E70: =E68+E69 -> 0 | F70: =F68+F69 -> 832.2756625 | G70: 854.3642849 | H70: 876.6109948 | I70: 899.0169236 | J70: 921.5832109 | K70: 944.3110044 | L70: 967.20146 | M70: 990.1890555 | N70: 1013.200338 | O70: 1036.55393 | P70: 1060.074449 | Q70: 1083.763088 | R70: 1107.145696 | S70: 1129.710548 | T70: 1153.759945 | U70: 1177.98027 | V70: 1202.372736 | W70: 1225.617275 | X70: 1246.314454 | Y70: 1270.912181 | Z70: 1295.682761 | AA70: 1320.62741 | AB70: 1345.747351 | AC70: 1371.293679 | AD70: 1397.78876
B72: CCA claim | E72: =E90 -> 0 | F72: =F90 -> 786.8928704 | G72: 1510.834311 | H72: 1389.967566 | I72: 1278.770161 | J72: 1176.468548 | K72: 1082.351064 | L72: 995.7629791 | M72: 916.1019408 | N72: 842.8137855 | O72: 775.3886827 | P72: 713.3575881 | Q72: 656.288981 | R72: 603.7858625 | S72: 555.4829935 | T72: 511.0443541 | U72: 470.1608057 | V72: 432.5479413 | W72: 397.944106 | X72: 366.1085775 | Y72: 336.8198913 | Z72: 309.8743 | AA72: 285.084356 | AB72: 262.2776075 | AC72: 241.2953989 | AD72: 221.991767
B74: Taxable income / (loss) before income tax | E74: =E70-E72 -> 0 | F74: =F70-F72 -> 45.38279213 | G74: -656.4700263 | H74: -513.3565715 | I74: -379.7532374 | J74: -254.8853372 | K74: -138.0400598 | L74: -28.56151916 | M74: 74.08711474 | N74: 170.3865524 | O74: 261.165247 | P74: 346.7168605 | Q74: 427.4741068 | R74: 503.3598337 | S74: 574.227554 | T74: 642.715591 | U74: 707.8194638 | V74: 769.8247947 | W74: 827.6731686 | X74: 880.2058761 | Y74: 934.0922893 | Z74: 985.8084612 | AA74: 1035.543054 | AB74: 1083.469743 | AC74: 1129.99828 | AD74: 1175.796993
B76: Income tax rate | E76: ='Standard Inputs'!B27 -> 0.265 | F76: =E76 -> 0.265 | G76: 0.265 | H76: 0.265 | I76: 0.265 | J76: 0.265 | K76: 0.265 | L76: 0.265 | M76: 0.265 | N76: 0.265 | O76: 0.265 | P76: 0.265 | Q76: 0.265 | R76: 0.265 | S76: 0.265 | T76: 0.265 | U76: 0.265 | V76: 0.265 | W76: 0.265 | X76: 0.265 | Y76: 0.265 | Z76: 0.265 | AA76: 0.265 | AB76: 0.265 | AC76: 0.265 | AD76: 0.265
B78: Income tax provision | E78: =IF(ISNUMBER(E54),E74*E76,0) -> 0 | F78: 12.02643991 | G78: -173.964557 | H78: -136.0394914 | I78: -100.6346079 | J78: -67.54461435 | K78: -36.58061586 | L78: -7.568802578 | M78: 19.63308541 | N78: 45.15243639 | O78: 69.20879046 | P78: 91.87996804 | Q78: 113.2806383 | R78: 133.3903559 | S78: 152.1703018 | T78: 170.3196316 | U78: 187.5721579 | V78: 204.0035706 | W78: 219.3333897 | X78: 233.2545572 | Y78: 247.5344567 | Z78: 261.2392422 | AA78: 274.4189094 | AB78: 287.1194819 | AC78: 299.4495441 | AD78: 311.5862033
B80: PV of CCA claim | E80: =E72*E47 -> 0 | F80: 764.8997145 | G80: 1387.661389 | H80: 1206.282725 | I80: 1048.611732 | J80: 911.5496248 | K80: 792.4026528 | L80: 688.8291619 | M80: 598.7935712 | N80: 520.5263667 | O80: 452.4893243 | P80: 393.3452784 | Q80: 341.9318418 | R80: 297.2385607 | S80: 258.387056 | T80: 224.61376 | U80: 195.2549092 | V80: 169.7334998 | W80: 147.5479467 | X80: 128.2622265 | Y80: 111.4973071 | Z80: 96.92369954 | AA80: 84.25498134 | AB80: 73.24216796 | AC80: 63.66881912 | AD80: 55.34678508
B82: UCC Continuity - $k:
B84: Total:
B85: Opening UCC | E85: =E97+E105+E118+E131+E144 -> 0 | F85: 0 | G85: 19425.82345 | H85: 17914.98914 | I85: 16525.02157 | J85: 15246.25141 | K85: 14069.78286 | L85: 12987.4318 | M85: 11991.66882 | N85: 11075.56688 | O85: 10232.75309 | P85: 9457.364409 | Q85: 8744.006821 | R85: 8087.71784 | S85: 7483.931978 | T85: 6928.448984 | U85: 6417.40463 | V85: 5947.243824 | W85: 5514.695883 | X85: 5116.751777 | Y85: 4750.6432 | Z85: 4413.823308 | AA85: 4103.949008 | AB85: 3818.864652 | AC85: 3556.587045 | AD85: 3315.291646
B86: Additions | E86: =E98+E106+E119+E132+E145 -> 0 | F86: 20212.71632 | G86: 0 | H86: 0 | I86: 0 | J86: 0 | K86: 0 | L86: 0 | M86: 0 | N86: 0 | O86: 0 | P86: 0 | Q86: 0 | R86: 0 | S86: 0 | T86: 0 | U86: 0 | V86: 0 | W86: 0 | X86: 0 | Y86: 0 | Z86: 0 | AA86: 0 | AB86: 0 | AC86: 0 | AD86: 0
B88: UCC for CCA | E88: =E100+E108+E121+E134+E147 -> 0 | F88: 10376.55544 | G88: 19425.82345 | H88: 17914.98914 | I88: 16525.02157 | J88: 15246.25141 | K88: 14069.78286 | L88: 12987.4318 | M88: 11991.66882 | N88: 11075.56688 | O88: 10232.75309 | P88: 9457.364409 | Q88: 8744.006821 | R88: 8087.71784 | S88: 7483.931978 | T88: 6928.448984 | U88: 6417.40463 | V88: 5947.243824 | W88: 5514.695883 | X88: 5116.751777 | Y88: 4750.6432 | Z88: 4413.823308 | AA88: 4103.949008 | AB88: 3818.864652 | AC88: 3556.587045 | AD88: 3315.291646
B90: CCA claim | E90: =E110+E123+E136+E149 -> 0 | F90: 786.8928704 | G90: 1510.834311 | H90: 1389.967566 | I90: 1278.770161 | J90: 1176.468548 | K90: 1082.351064 | L90: 995.7629791 | M90: 916.1019408 | N90: 842.8137855 | O90: 775.3886827 | P90: 713.3575881 | Q90: 656.288981 | R90: 603.7858625 | S90: 555.4829935 | T90: 511.0443541 | U90: 470.1608057 | V90: 432.5479413 | W90: 397.944106 | X90: 366.1085775 | Y90: 336.8198913 | Z90: 309.8743 | AA90: 285.084356 | AB90: 262.2776075 | AC90: 241.2953989 | AD90: 221.991767
B91: Ending UCC | E91: =E100+E111+E124+E137+E150 -> 0 | F91: 19425.82345 | G91: 17914.98914 | H91: 16525.02157 | I91: 15246.25141 | J91: 14069.78286 | K91: 12987.4318 | L91: 11991.66882 | M91: 11075.56688 | N91: 10232.75309 | O91: 9457.364409 | P91: 8744.006821 | Q91: 8087.71784 | R91: 7483.931978 | S91: 6928.448984 | T91: 6417.40463 | U91: 5947.243824 | V91: 5514.695883 | W91: 5116.751777 | X91: 4750.6432 | Y91: 4413.823308 | Z91: 4103.949008 | AA91: 3818.864652 | AB91: 3556.587045 | AC91: 3315.291646 | AD91: 3093.299879
B93: CCA tax shield adjustment | E93: =E113+E126+E139+E152 -> 0 | F93: 0 | G93: 0 | H93: 0 | I93: 0 | J93: 0 | K93: 0 | L93: 0 | M93: 0 | N93: 0 | O93: 0 | P93: 0 | Q93: 0 | R93: 0 | S93: 0 | T93: 0 | U93: 0 | V93: 0 | W93: 0 | X93: 0 | Y93: 0 | Z93: 0 | AA93: 0 | AB93: 0 | AC93: 0 | AD93: 391.2421645
B95: Detail by Class of Asset:
B96: ='Project Inputs'!A33&" - $k:" -> Land costs - $k:
B97: Opening UCC | E97: 0 | F97: =IF(ISNUMBER(F$54),E100,0) -> 0 | G97: 540.3945586 | H97: 540.3945586 | I97: 540.3945586 | J97: 540.3945586 | K97: 540.3945586 | L97: 540.3945586 | M97: 540.3945586 | N97: 540.3945586 | O97: 540.3945586 | P97: 540.3945586 | Q97: 540.3945586 | R97: 540.3945586 | S97: 540.3945586 | T97: 540.3945586 | U97: 540.3945586 | V97: 540.3945586 | W97: 540.3945586 | X97: 540.3945586 | Y97: 540.3945586 | Z97: 540.3945586 | AA97: 540.3945586 | AB97: 540.3945586 | AC97: 540.3945586 | AD97: 540.3945586
B98: Additions | F98: =-(F$42*$D$60)-((E42)*$D$60)+'Project Inputs'!$B$34 -> 540.3945586 | G98: =IF(ISNUMBER(G5),-(G$42*$D$60),0) -> 0 | H98: =IF(ISNUMBER(H5),-(H$42*$D$60),0) -> 0 | I98: 0 | J98: 0 | K98: 0 | L98: 0 | M98: 0 | N98: 0 | O98: 0 | P98: 0 | Q98: 0 | R98: 0 | S98: 0 | T98: 0 | U98: 0 | V98: 0 | W98: 0 | X98: 0 | Y98: 0 | Z98: 0 | AA98: 0 | AB98: 0 | AC98: 0 | AD98: 0
B100: Ending UCC | E100: =E97+E98 -> 0 | F100: =F97+F98 -> 540.3945586 | G100: =G97+G98 -> 540.3945586 | H100: 540.3945586 | I100: 540.3945586 | J100: 540.3945586 | K100: 540.3945586 | L100: 540.3945586 | M100: 540.3945586 | N100: 540.3945586 | O100: 540.3945586 | P100: 540.3945586 | Q100: 540.3945586 | R100: 540.3945586 | S100: 540.3945586 | T100: 540.3945586 | U100: 540.3945586 | V100: 540.3945586 | W100: 540.3945586 | X100: 540.3945586 | Y100: 540.3945586 | Z100: 540.3945586 | AA100: 540.3945586 | AB100: 540.3945586 | AC100: 540.3945586 | AD100: 540.3945586
B102: ='Project Inputs'!A37&" - $k:" -> Class 47 costs - $k:
B103: CCA rate | E103: ='Standard Inputs'!$C$34 -> 0.08 | F103: =E103 -> 0.08 | G103: 0.08 | H103: 0.08 | I103: 0.08 | J103: 0.08 | K103: 0.08 | L103: 0.08 | M103: 0.08 | N103: 0.08 | O103: 0.08 | P103: 0.08 | Q103: 0.08 | R103: 0.08 | S103: 0.08 | T103: 0.08 | U103: 0.08 | V103: 0.08 | W103: 0.08 | X103: 0.08 | Y103: 0.08 | Z103: 0.08 | AA103: 0.08 | AB103: 0.08 | AC103: 0.08 | AD103: 0.08
B105: Opening UCC | E105: 0 | F105: =IF(ISNUMBER(F$54),E111,0) -> 0 | G105: 18885.42889 | H105: 17374.59458 | I105: 15984.62701 | J105: 14705.85685 | K105: 13529.3883 | L105: 12447.03724 | M105: 11451.27426 | N105: 10535.17232 | O105: 9692.358533 | P105: 8916.969851 | Q105: 8203.612263 | R105: 7547.323282 | S105: 6943.537419 | T105: 6388.054426 | U105: 5877.010072 | V105: 5406.849266 | W105: 4974.301325 | X105: 4576.357219 | Y105: 4210.248641 | Z105: 3873.42875 | AA105: 3563.55445 | AB105: 3278.470094 | AC105: 3016.192486 | AD105: 2774.897087
B106: Additions | F106: ='Project Inputs'!$B$38+'Project Inputs'!$B$39+'Project Inputs'!$B$40-((E42)*$D$61)-(F$42*$D$61)+F37 -> 19672.32176 | G106: =IF(ISNUMBER(G5),-(G$42*$D$61)+G37,0) -> 0 | H106: =IF(ISNUMBER(H5),-(H$42*$D$61)+H37,0) -> 0 | I106: 0 | J106: 0 | K106: 0 | L106: 0 | M106: 0 | N106: 0 | O106: 0 | P106: 0 | Q106: 0 | R106: 0 | S106: 0 | T106: 0 | U106: 0 | V106: 0 | W106: 0 | X106: 0 | Y106: 0 | Z106: 0 | AA106: 0 | AB106: 0 | AC106: 0 | AD106: 0
B108: UCC for CCA | E108: =E105+(E106)*0.5 -> 0 | F108: 9836.16088 | G108: 18885.42889 | H108: 17374.59458 | I108: 15984.62701 | J108: 14705.85685 | K108: 13529.3883 | L108: 12447.03724 | M108: 11451.27426 | N108: 10535.17232 | O108: 9692.358533 | P108: 8916.969851 | Q108: 8203.612263 | R108: 7547.323282 | S108: 6943.537419 | T108: 6388.054426 | U108: 5877.010072 | V108: 5406.849266 | W108: 4974.301325 | X108: 4576.357219 | Y108: 4210.248641 | Z108: 3873.42875 | AA108: 3563.55445 | AB108: 3278.470094 | AC108: 3016.192486 | AD108: 2774.897087
B110: CCA claim | E110: =E108*E103 -> 0 | F110: 786.8928704 | G110: 1510.834311 | H110: 1389.967566 | I110: 1278.770161 | J110: 1176.468548 | K110: 1082.351064 | L110: 995.7629791 | M110: 916.1019408 | N110: 842.8137855 | O110: 775.3886827 | P110: 713.3575881 | Q110: 656.288981 | R110: 603.7858625 | S110: 555.4829935 | T110: 511.0443541 | U110: 470.1608057 | V110: 432.5479413 | W110: 397.944106 | X110: 366.1085775 | Y110: 336.8198913 | Z110: 309.8743 | AA110: 285.084356 | AB110: 262.2776075 | AC110: 241.2953989 | AD110: 221.991767
B111: Ending UCC | E111: =E105+E106-E110 -> 0 | F111: =F105+F106-F110 -> 18885.42889 | G111: =G105+G106-G110 -> 17374.59458 | H111: 15984.62701 | I111: 14705.85685 | J111: 13529.3883 | K111: 12447.03724 | L111: 11451.27426 | M111: 10535.17232 | N111: 9692.358533 | O111: 8916.969851 | P111: 8203.612263 | Q111: 7547.323282 | R111: 6943.537419 | S111: 6388.054426 | T111: 5877.010072 | U111: 5406.849266 | V111: 4974.301325 | W111: 4576.357219 | X111: 4210.248641 | Y111: 3873.42875 | Z111: 3563.55445 | AA111: 3278.470094 | AB111: 3016.192486 | AC111: 2774.897087 | AD111: 2552.90532
B113: CCA tax shield adjustment | E113: =IF(E$55='Capital Cont Inputs'!$B$10,E111*E$76*E103/('Prelim Calc'!$H$13+E103),0) -> 0 | F113: =IF(F$55='Capital Cont Inputs'!$B$10,F111*F$76*F103/('Prelim Calc'!$H$13+F103),0) -> 0 | G113: =IF(G$55='Capital Cont Inputs'!$B$10,G111*G$76*G103/('Prelim Calc'!$H$13+G103),0) -> 0 | H113: =IF(H$55='Capital Cont Inputs'!$B$10,H111*H$76*H103/('Prelim Calc'!$H$13+H103),0) -> 0 | I113: =IF(I$55='Capital Cont Inputs'!$B$10,I111*I$76*I103/('Prelim Calc'!$H$13+I103),0) -> 0 | J113: =IF(J$55='Capital Cont Inputs'!$B$10,J111*J$76*J103/('Prelim Calc'!$H$13+J103),0) -> 0 | K113: =IF(K$55='Capital Cont Inputs'!$B$10,K111*K$76*K103/('Prelim Calc'!$H$13+K103),0) -> 0 | L113: =IF(L$55='Capital Cont Inputs'!$B$10,L111*L$76*L103/('Prelim Calc'!$H$13+L103),0) -> 0 | M113: =IF(M$55='Capital Cont Inputs'!$B$10,M111*M$76*M103/('Prelim Calc'!$H$13+M103),0) -> 0 | N113: =IF(N$55='Capital Cont Inputs'!$B$10,N111*N$76*N103/('Prelim Calc'!$H$13+N103),0) -> 0 | O113: =IF(O$55='Capital Cont Inputs'!$B$10,O111*O$76*O103/('Prelim Calc'!$H$13+O103),0) -> 0 | P113: =IF(P$55='Capital Cont Inputs'!$B$10,P111*P$76*P103/('Prelim Calc'!$H$13+P103),0) -> 0 | Q113: =IF(Q$55='Capital Cont Inputs'!$B$10,Q111*Q$76*Q103/('Prelim Calc'!$H$13+Q103),0) -> 0 | R113: =IF(R$55='Capital Cont Inputs'!$B$10,R111*R$76*R103/('Prelim Calc'!$H$13+R103),0) -> 0 | S113: =IF(S$55='Capital Cont Inputs'!$B$10,S111*S$76*S103/('Prelim Calc'!$H$13+S103),0) -> 0 | T113: =IF(T$55='Capital Cont Inputs'!$B$10,T111*T$76*T103/('Prelim Calc'!$H$13+T103),0) -> 0 | U113: =IF(U$55='Capital Cont Inputs'!$B$10,U111*U$76*U103/('Prelim Calc'!$H$13+U103),0) -> 0 | V113: =IF(V$55='Capital Cont Inputs'!$B$10,V111*V$76*V103/('Prelim Calc'!$H$13+V103),0) -> 0 | W113: =IF(W$55='Capital Cont Inputs'!$B$10,W111*W$76*W103/('Prelim Calc'!$H$13+W103),0) -> 0 | X113: =IF(X$55='Capital Cont Inputs'!$B$10,X111*X$76*X103/('Prelim Calc'!$H$13+X103),0) -> 0 | Y113: =IF(Y$55='Capital Cont Inputs'!$B$10,Y111*Y$76*Y103/('Prelim Calc'!$H$13+Y103),0) -> 0 | Z113: =IF(Z$55='Capital Cont Inputs'!$B$10,Z111*Z$76*Z103/('Prelim Calc'!$H$13+Z103),0) -> 0 | AA113: =IF(AA$55='Capital Cont Inputs'!$B$10,AA111*AA$76*AA103/('Prelim Calc'!$H$13+AA103),0) -> 0 | AB113: =IF(AB$55='Capital Cont Inputs'!$B$10,AB111*AB$76*AB103/('Prelim Calc'!$H$13+AB103),0) -> 0 | AC113: =IF(AC$55='Capital Cont Inputs'!$B$10,AC111*AC$76*AC103/('Prelim Calc'!$H$13+AC103),0) -> 0 | AD113: =IF(AD$55='Capital Cont Inputs'!$B$10,AD111*AD$76*AD103/('Prelim Calc'!$H$13+AD103),0) -> 391.2421645
B115: ='Project Inputs'!A48&" - $k:" -> Decision Support defined costs (1) - $k:
B116: CCA rate | E116: ='Standard Inputs'!C35 -> 0 | F116: =E116 -> 0 | G116: 0 | H116: 0 | I116: 0 | J116: 0 | K116: 0 | L116: 0 | M116: 0 | N116: 0 | O116: 0 | P116: 0 | Q116: 0 | R116: 0 | S116: 0 | T116: 0 | U116: 0 | V116: 0 | W116: 0 | X116: 0 | Y116: 0 | Z116: 0 | AA116: 0 | AB116: 0 | AC116: 0 | AD116: 0
B118: Opening UCC | E118: 0 | F118: =IF(ISNUMBER(F$54),E124,0) -> 0 | G118: 0 | H118: 0 | I118: 0 | J118: 0 | K118: 0 | L118: 0 | M118: 0 | N118: 0 | O118: 0 | P118: 0 | Q118: 0 | R118: 0 | S118: 0 | T118: 0 | U118: 0 | V118: 0 | W118: 0 | X118: 0 | Y118: 0 | Z118: 0 | AA118: 0 | AB118: 0 | AC118: 0 | AD118: 0
B119: Additions | F119: =SUM('Project Inputs'!$B$49:$B$51)-((E42)*$D$62)-(F$42*$D$62) -> 0 | G119: =IF(ISNUMBER(G5),-(G$42*$D$62),0) -> 0 | H119: =IF(ISNUMBER(H5),-(H$42*$D$62),0) -> 0 | I119: 0 | J119: 0 | K119: 0 | L119: 0 | M119: 0 | N119: 0 | O119: 0 | P119: 0 | Q119: 0 | R119: 0 | S119: 0 | T119: 0 | U119: 0 | V119: 0 | W119: 0 | X119: 0 | Y119: 0 | Z119: 0 | AA119: 0 | AB119: 0 | AC119: 0 | AD119: 0
B121: UCC for CCA | E121: =E118+(E119)*0.5 -> 0 | F121: 0 | G121: 0 | H121: 0 | I121: 0 | J121: 0 | K121: 0 | L121: 0 | M121: 0 | N121: 0 | O121: 0 | P121: 0 | Q121: 0 | R121: 0 | S121: 0 | T121: 0 | U121: 0 | V121: 0 | W121: 0 | X121: 0 | Y121: 0 | Z121: 0 | AA121: 0 | AB121: 0 | AC121: 0 | AD121: 0
B123: CCA claim | E123: =E121*E116 -> 0 | F123: 0 | G123: 0 | H123: 0 | I123: 0 | J123: 0 | K123: 0 | L123: 0 | M123: 0 | N123: 0 | O123: 0 | P123: 0 | Q123: 0 | R123: 0 | S123: 0 | T123: 0 | U123: 0 | V123: 0 | W123: 0 | X123: 0 | Y123: 0 | Z123: 0 | AA123: 0 | AB123: 0 | AC123: 0 | AD123: 0
B124: Ending UCC | E124: =E118+E119-E123 -> 0 | F124: =F118+F119-F123 -> 0 | G124: =G118+G119-G123 -> 0 | H124: 0 | I124: 0 | J124: 0 | K124: 0 | L124: 0 | M124: 0 | N124: 0 | O124: 0 | P124: 0 | Q124: 0 | R124: 0 | S124: 0 | T124: 0 | U124: 0 | V124: 0 | W124: 0 | X124: 0 | Y124: 0 | Z124: 0 | AA124: 0 | AB124: 0 | AC124: 0 | AD124: 0
B126: CCA tax shield adjustment | E126: =IF(E$55='Capital Cont Inputs'!$B$10,E124*E$76*E116/('Prelim Calc'!$H$13+E116),0) -> 0 | F126: =IF(F$55='Capital Cont Inputs'!$B$10,F124*F$76*F116/('Prelim Calc'!$H$13+F116),0) -> 0 | G126: =IF(G$55='Capital Cont Inputs'!$B$10,G124*G$76*G116/('Prelim Calc'!$H$13+G116),0) -> 0 | H126: =IF(H$55='Capital Cont Inputs'!$B$10,H124*H$76*H116/('Prelim Calc'!$H$13+H116),0) -> 0 | I126: =IF(I$55='Capital Cont Inputs'!$B$10,I124*I$76*I116/('Prelim Calc'!$H$13+I116),0) -> 0 | J126: =IF(J$55='Capital Cont Inputs'!$B$10,J124*J$76*J116/('Prelim Calc'!$H$13+J116),0) -> 0 | K126: =IF(K$55='Capital Cont Inputs'!$B$10,K124*K$76*K116/('Prelim Calc'!$H$13+K116),0) -> 0 | L126: =IF(L$55='Capital Cont Inputs'!$B$10,L124*L$76*L116/('Prelim Calc'!$H$13+L116),0) -> 0 | M126: =IF(M$55='Capital Cont Inputs'!$B$10,M124*M$76*M116/('Prelim Calc'!$H$13+M116),0) -> 0 | N126: =IF(N$55='Capital Cont Inputs'!$B$10,N124*N$76*N116/('Prelim Calc'!$H$13+N116),0) -> 0 | O126: =IF(O$55='Capital Cont Inputs'!$B$10,O124*O$76*O116/('Prelim Calc'!$H$13+O116),0) -> 0 | P126: =IF(P$55='Capital Cont Inputs'!$B$10,P124*P$76*P116/('Prelim Calc'!$H$13+P116),0) -> 0 | Q126: =IF(Q$55='Capital Cont Inputs'!$B$10,Q124*Q$76*Q116/('Prelim Calc'!$H$13+Q116),0) -> 0 | R126: =IF(R$55='Capital Cont Inputs'!$B$10,R124*R$76*R116/('Prelim Calc'!$H$13+R116),0) -> 0 | S126: =IF(S$55='Capital Cont Inputs'!$B$10,S124*S$76*S116/('Prelim Calc'!$H$13+S116),0) -> 0 | T126: =IF(T$55='Capital Cont Inputs'!$B$10,T124*T$76*T116/('Prelim Calc'!$H$13+T116),0) -> 0 | U126: =IF(U$55='Capital Cont Inputs'!$B$10,U124*U$76*U116/('Prelim Calc'!$H$13+U116),0) -> 0 | V126: =IF(V$55='Capital Cont Inputs'!$B$10,V124*V$76*V116/('Prelim Calc'!$H$13+V116),0) -> 0 | W126: =IF(W$55='Capital Cont Inputs'!$B$10,W124*W$76*W116/('Prelim Calc'!$H$13+W116),0) -> 0 | X126: =IF(X$55='Capital Cont Inputs'!$B$10,X124*X$76*X116/('Prelim Calc'!$H$13+X116),0) -> 0 | Y126: =IF(Y$55='Capital Cont Inputs'!$B$10,Y124*Y$76*Y116/('Prelim Calc'!$H$13+Y116),0) -> 0 | Z126: =IF(Z$55='Capital Cont Inputs'!$B$10,Z124*Z$76*Z116/('Prelim Calc'!$H$13+Z116),0) -> 0 | AA126: =IF(AA$55='Capital Cont Inputs'!$B$10,AA124*AA$76*AA116/('Prelim Calc'!$H$13+AA116),0) -> 0 | AB126: =IF(AB$55='Capital Cont Inputs'!$B$10,AB124*AB$76*AB116/('Prelim Calc'!$H$13+AB116),0) -> 0 | AC126: =IF(AC$55='Capital Cont Inputs'!$B$10,AC124*AC$76*AC116/('Prelim Calc'!$H$13+AC116),0) -> 0 | AD126: =IF(AD$55='Capital Cont Inputs'!$B$10,AD124*AD$76*AD116/('Prelim Calc'!$H$13+AD116),0) -> 0
B128: ='Project Inputs'!A54&" - $k:" -> Decision Support defined costs (2) - $k:
B129: CCA rate | E129: ='Standard Inputs'!C36 -> 0 | F129: =E129 -> 0 | G129: 0 | H129: 0 | I129: 0 | J129: 0 | K129: 0 | L129: 0 | M129: 0 | N129: 0 | O129: 0 | P129: 0 | Q129: 0 | R129: 0 | S129: 0 | T129: 0 | U129: 0 | V129: 0 | W129: 0 | X129: 0 | Y129: 0 | Z129: 0 | AA129: 0 | AB129: 0 | AC129: 0 | AD129: 0
B131: Opening UCC | E131: 0 | F131: =IF(ISNUMBER(F$54),E137,0) -> 0 | G131: 0 | H131: 0 | I131: 0 | J131: 0 | K131: 0 | L131: 0 | M131: 0 | N131: 0 | O131: 0 | P131: 0 | Q131: 0 | R131: 0 | S131: 0 | T131: 0 | U131: 0 | V131: 0 | W131: 0 | X131: 0 | Y131: 0 | Z131: 0 | AA131: 0 | AB131: 0 | AC131: 0 | AD131: 0
B132: Additions | F132: =SUM('Project Inputs'!$B$55:$B$57)-((E42)*'NPV Calc'!$D$63)-(F$42*'NPV Calc'!$D$63) -> 0 | G132: =IF(ISNUMBER(G5),-(G$42*'NPV Calc'!$D$63),0) -> 0 | H132: =IF(ISNUMBER(H5),-(H$42*'NPV Calc'!$D$63),0) -> 0 | I132: =IF(ISNUMBER(I5),-(I$42*'NPV Calc'!$D$63),0) -> 0 | J132: =IF(ISNUMBER(J5),-(J$42*'NPV Calc'!$D$63),0) -> 0 | K132: =IF(ISNUMBER(K5),-(K$42*'NPV Calc'!$D$63),0) -> 0 | L132: =IF(ISNUMBER(L5),-(L$42*'NPV Calc'!$D$63),0) -> 0 | M132: =IF(ISNUMBER(M5),-(M$42*'NPV Calc'!$D$63),0) -> 0 | N132: =IF(ISNUMBER(N5),-(N$42*'NPV Calc'!$D$63),0) -> 0 | O132: =IF(ISNUMBER(O5),-(O$42*'NPV Calc'!$D$63),0) -> 0 | P132: =IF(ISNUMBER(P5),-(P$42*'NPV Calc'!$D$63),0) -> 0 | Q132: =IF(ISNUMBER(Q5),-(Q$42*'NPV Calc'!$D$63),0) -> 0 | R132: =IF(ISNUMBER(R5),-(R$42*'NPV Calc'!$D$63),0) -> 0 | S132: =IF(ISNUMBER(S5),-(S$42*'NPV Calc'!$D$63),0) -> 0 | T132: =IF(ISNUMBER(T5),-(T$42*'NPV Calc'!$D$63),0) -> 0 | U132: =IF(ISNUMBER(U5),-(U$42*'NPV Calc'!$D$63),0) -> 0 | V132: =IF(ISNUMBER(V5),-(V$42*'NPV Calc'!$D$63),0) -> 0 | W132: =IF(ISNUMBER(W5),-(W$42*'NPV Calc'!$D$63),0) -> 0 | X132: =IF(ISNUMBER(X5),-(X$42*'NPV Calc'!$D$63),0) -> 0 | Y132: =IF(ISNUMBER(Y5),-(Y$42*'NPV Calc'!$D$63),0) -> 0 | Z132: =IF(ISNUMBER(Z5),-(Z$42*'NPV Calc'!$D$63),0) -> 0 | AA132: =IF(ISNUMBER(AA5),-(AA$42*'NPV Calc'!$D$63),0) -> 0 | AB132: =IF(ISNUMBER(AB5),-(AB$42*'NPV Calc'!$D$63),0) -> 0 | AC132: =IF(ISNUMBER(AC5),-(AC$42*'NPV Calc'!$D$63),0) -> 0 | AD132: =IF(ISNUMBER(AD5),-(AD$42*'NPV Calc'!$D$63),0) -> 0
B134: UCC for CCA | E134: =E131+(E132)*0.5 -> 0 | F134: 0 | G134: 0 | H134: 0 | I134: 0 | J134: 0 | K134: 0 | L134: 0 | M134: 0 | N134: 0 | O134: 0 | P134: 0 | Q134: 0 | R134: 0 | S134: 0 | T134: 0 | U134: 0 | V134: 0 | W134: 0 | X134: 0 | Y134: 0 | Z134: 0 | AA134: 0 | AB134: 0 | AC134: 0 | AD134: 0
B136: CCA claim | E136: =E134*E129 -> 0 | F136: 0 | G136: 0 | H136: 0 | I136: 0 | J136: 0 | K136: 0 | L136: 0 | M136: 0 | N136: 0 | O136: 0 | P136: 0 | Q136: 0 | R136: 0 | S136: 0 | T136: 0 | U136: 0 | V136: 0 | W136: 0 | X136: 0 | Y136: 0 | Z136: 0 | AA136: 0 | AB136: 0 | AC136: 0 | AD136: 0
B137: Ending UCC | E137: =E131+E132-E136 -> 0 | F137: =F131+F132-F136 -> 0 | G137: =G131+G132-G136 -> 0 | H137: 0 | I137: 0 | J137: 0 | K137: 0 | L137: 0 | M137: 0 | N137: 0 | O137: 0 | P137: 0 | Q137: 0 | R137: 0 | S137: 0 | T137: 0 | U137: 0 | V137: 0 | W137: 0 | X137: 0 | Y137: 0 | Z137: 0 | AA137: 0 | AB137: 0 | AC137: 0 | AD137: 0
B139: CCA tax shield adjustment | E139: =IF(E$55='Capital Cont Inputs'!$B$10,E137*E$76*E129/('Prelim Calc'!$H$13+E129),0) -> 0 | F139: =IF(F$55='Capital Cont Inputs'!$B$10,F137*F$76*F129/('Prelim Calc'!$H$13+F129),0) -> 0 | G139: =IF(G$55='Capital Cont Inputs'!$B$10,G137*G$76*G129/('Prelim Calc'!$H$13+G129),0) -> 0 | H139: =IF(H$55='Capital Cont Inputs'!$B$10,H137*H$76*H129/('Prelim Calc'!$H$13+H129),0) -> 0 | I139: =IF(I$55='Capital Cont Inputs'!$B$10,I137*I$76*I129/('Prelim Calc'!$H$13+I129),0) -> 0 | J139: =IF(J$55='Capital Cont Inputs'!$B$10,J137*J$76*J129/('Prelim Calc'!$H$13+J129),0) -> 0 | K139: =IF(K$55='Capital Cont Inputs'!$B$10,K137*K$76*K129/('Prelim Calc'!$H$13+K129),0) -> 0 | L139: =IF(L$55='Capital Cont Inputs'!$B$10,L137*L$76*L129/('Prelim Calc'!$H$13+L129),0) -> 0 | M139: =IF(M$55='Capital Cont Inputs'!$B$10,M137*M$76*M129/('Prelim Calc'!$H$13+M129),0) -> 0 | N139: =IF(N$55='Capital Cont Inputs'!$B$10,N137*N$76*N129/('Prelim Calc'!$H$13+N129),0) -> 0 | O139: =IF(O$55='Capital Cont Inputs'!$B$10,O137*O$76*O129/('Prelim Calc'!$H$13+O129),0) -> 0 | P139: =IF(P$55='Capital Cont Inputs'!$B$10,P137*P$76*P129/('Prelim Calc'!$H$13+P129),0) -> 0 | Q139: =IF(Q$55='Capital Cont Inputs'!$B$10,Q137*Q$76*Q129/('Prelim Calc'!$H$13+Q129),0) -> 0 | R139: =IF(R$55='Capital Cont Inputs'!$B$10,R137*R$76*R129/('Prelim Calc'!$H$13+R129),0) -> 0 | S139: =IF(S$55='Capital Cont Inputs'!$B$10,S137*S$76*S129/('Prelim Calc'!$H$13+S129),0) -> 0 | T139: =IF(T$55='Capital Cont Inputs'!$B$10,T137*T$76*T129/('Prelim Calc'!$H$13+T129),0) -> 0 | U139: =IF(U$55='Capital Cont Inputs'!$B$10,U137*U$76*U129/('Prelim Calc'!$H$13+U129),0) -> 0 | V139: =IF(V$55='Capital Cont Inputs'!$B$10,V137*V$76*V129/('Prelim Calc'!$H$13+V129),0) -> 0 | W139: =IF(W$55='Capital Cont Inputs'!$B$10,W137*W$76*W129/('Prelim Calc'!$H$13+W129),0) -> 0 | X139: =IF(X$55='Capital Cont Inputs'!$B$10,X137*X$76*X129/('Prelim Calc'!$H$13+X129),0) -> 0 | Y139: =IF(Y$55='Capital Cont Inputs'!$B$10,Y137*Y$76*Y129/('Prelim Calc'!$H$13+Y129),0) -> 0 | Z139: =IF(Z$55='Capital Cont Inputs'!$B$10,Z137*Z$76*Z129/('Prelim Calc'!$H$13+Z129),0) -> 0 | AA139: =IF(AA$55='Capital Cont Inputs'!$B$10,AA137*AA$76*AA129/('Prelim Calc'!$H$13+AA129),0) -> 0 | AB139: =IF(AB$55='Capital Cont Inputs'!$B$10,AB137*AB$76*AB129/('Prelim Calc'!$H$13+AB129),0) -> 0 | AC139: =IF(AC$55='Capital Cont Inputs'!$B$10,AC137*AC$76*AC129/('Prelim Calc'!$H$13+AC129),0) -> 0 | AD139: =IF(AD$55='Capital Cont Inputs'!$B$10,AD137*AD$76*AD129/('Prelim Calc'!$H$13+AD129),0) -> 0
B141: ='Project Inputs'!A60&" - $k:" -> Decision Support defined costs (3) - $k:
B142: CCA rate | E142: ='Standard Inputs'!C37 -> 0 | F142: =E142 -> 0 | G142: 0 | H142: 0 | I142: 0 | J142: 0 | K142: 0 | L142: 0 | M142: 0 | N142: 0 | O142: 0 | P142: 0 | Q142: 0 | R142: 0 | S142: 0 | T142: 0 | U142: 0 | V142: 0 | W142: 0 | X142: 0 | Y142: 0 | Z142: 0 | AA142: 0 | AB142: 0 | AC142: 0 | AD142: 0
B144: Opening UCC | E144: 0 | F144: =IF(ISNUMBER(F$54),E150,0) -> 0 | G144: 0 | H144: 0 | I144: 0 | J144: 0 | K144: 0 | L144: 0 | M144: 0 | N144: 0 | O144: 0 | P144: 0 | Q144: 0 | R144: 0 | S144: 0 | T144: 0 | U144: 0 | V144: 0 | W144: 0 | X144: 0 | Y144: 0 | Z144: 0 | AA144: 0 | AB144: 0 | AC144: 0 | AD144: 0
B145: Additions | F145: =SUM('Project Inputs'!$B$61:$B$63)-((E42)*$D$64)-(F$42*$D$64) -> 0 | G145: =IF(ISNUMBER(G5),-(G$42*$D$64),0) -> 0 | H145: =IF(ISNUMBER(H5),-(H$42*$D$64),0) -> 0 | I145: 0 | J145: 0 | K145: 0 | L145: 0 | M145: 0 | N145: 0 | O145: 0 | P145: 0 | Q145: 0 | R145: 0 | S145: 0 | T145: 0 | U145: 0 | V145: 0 | W145: 0 | X145: 0 | Y145: 0 | Z145: 0 | AA145: 0 | AB145: 0 | AC145: 0 | AD145: 0
B147: UCC for CCA | E147: =E144+(E145)*0.5 -> 0 | F147: 0 | G147: 0 | H147: 0 | I147: 0 | J147: 0 | K147: 0 | L147: 0 | M147: 0 | N147: 0 | O147: 0 | P147: 0 | Q147: 0 | R147: 0 | S147: 0 | T147: 0 | U147: 0 | V147: 0 | W147: 0 | X147: 0 | Y147: 0 | Z147: 0 | AA147: 0 | AB147: 0 | AC147: 0 | AD147: 0
B149: CCA claim | E149: =E147*E142 -> 0 | F149: 0 | G149: 0 | H149: 0 | I149: 0 | J149: 0 | K149: 0 | L149: 0 | M149: 0 | N149: 0 | O149: 0 | P149: 0 | Q149: 0 | R149: 0 | S149: 0 | T149: 0 | U149: 0 | V149: 0 | W149: 0 | X149: 0 | Y149: 0 | Z149: 0 | AA149: 0 | AB149: 0 | AC149: 0 | AD149: 0
B150: Ending UCC | E150: =E144+E145-E149 -> 0 | F150: =F144+F145-F149 -> 0 | G150: =G144+G145-G149 -> 0 | H150: 0 | I150: 0 | J150: 0 | K150: 0 | L150: 0 | M150: 0 | N150: 0 | O150: 0 | P150: 0 | Q150: 0 | R150: 0 | S150: 0 | T150: 0 | U150: 0 | V150: 0 | W150: 0 | X150: 0 | Y150: 0 | Z150: 0 | AA150: 0 | AB150: 0 | AC150: 0 | AD150: 0
B152: CCA tax shield adjustment | E152: =IF(E$55='Capital Cont Inputs'!$B$10,E150*E$76*E142/('Prelim Calc'!$H$13+E142),0) -> 0 | F152: =IF(F$55='Capital Cont Inputs'!$B$10,F150*F$76*F142/('Prelim Calc'!$H$13+F142),0) -> 0 | G152: =IF(G$55='Capital Cont Inputs'!$B$10,G150*G$76*G142/('Prelim Calc'!$H$13+G142),0) -> 0 | H152: =IF(H$55='Capital Cont Inputs'!$B$10,H150*H$76*H142/('Prelim Calc'!$H$13+H142),0) -> 0 | I152: =IF(I$55='Capital Cont Inputs'!$B$10,I150*I$76*I142/('Prelim Calc'!$H$13+I142),0) -> 0 | J152: =IF(J$55='Capital Cont Inputs'!$B$10,J150*J$76*J142/('Prelim Calc'!$H$13+J142),0) -> 0 | K152: =IF(K$55='Capital Cont Inputs'!$B$10,K150*K$76*K142/('Prelim Calc'!$H$13+K142),0) -> 0 | L152: =IF(L$55='Capital Cont Inputs'!$B$10,L150*L$76*L142/('Prelim Calc'!$H$13+L142),0) -> 0 | M152: =IF(M$55='Capital Cont Inputs'!$B$10,M150*M$76*M142/('Prelim Calc'!$H$13+M142),0) -> 0 | N152: =IF(N$55='Capital Cont Inputs'!$B$10,N150*N$76*N142/('Prelim Calc'!$H$13+N142),0) -> 0 | O152: =IF(O$55='Capital Cont Inputs'!$B$10,O150*O$76*O142/('Prelim Calc'!$H$13+O142),0) -> 0 | P152: =IF(P$55='Capital Cont Inputs'!$B$10,P150*P$76*P142/('Prelim Calc'!$H$13+P142),0) -> 0 | Q152: =IF(Q$55='Capital Cont Inputs'!$B$10,Q150*Q$76*Q142/('Prelim Calc'!$H$13+Q142),0) -> 0 | R152: =IF(R$55='Capital Cont Inputs'!$B$10,R150*R$76*R142/('Prelim Calc'!$H$13+R142),0) -> 0 | S152: =IF(S$55='Capital Cont Inputs'!$B$10,S150*S$76*S142/('Prelim Calc'!$H$13+S142),0) -> 0 | T152: =IF(T$55='Capital Cont Inputs'!$B$10,T150*T$76*T142/('Prelim Calc'!$H$13+T142),0) -> 0 | U152: =IF(U$55='Capital Cont Inputs'!$B$10,U150*U$76*U142/('Prelim Calc'!$H$13+U142),0) -> 0 | V152: =IF(V$55='Capital Cont Inputs'!$B$10,V150*V$76*V142/('Prelim Calc'!$H$13+V142),0) -> 0 | W152: =IF(W$55='Capital Cont Inputs'!$B$10,W150*W$76*W142/('Prelim Calc'!$H$13+W142),0) -> 0 | X152: =IF(X$55='Capital Cont Inputs'!$B$10,X150*X$76*X142/('Prelim Calc'!$H$13+X142),0) -> 0 | Y152: =IF(Y$55='Capital Cont Inputs'!$B$10,Y150*Y$76*Y142/('Prelim Calc'!$H$13+Y142),0) -> 0 | Z152: =IF(Z$55='Capital Cont Inputs'!$B$10,Z150*Z$76*Z142/('Prelim Calc'!$H$13+Z142),0) -> 0 | AA152: =IF(AA$55='Capital Cont Inputs'!$B$10,AA150*AA$76*AA142/('Prelim Calc'!$H$13+AA142),0) -> 0 | AB152: =IF(AB$55='Capital Cont Inputs'!$B$10,AB150*AB$76*AB142/('Prelim Calc'!$H$13+AB142),0) -> 0 | AC152: =IF(AC$55='Capital Cont Inputs'!$B$10,AC150*AC$76*AC142/('Prelim Calc'!$H$13+AC142),0) -> 0 | AD152: =IF(AD$55='Capital Cont Inputs'!$B$10,AD150*AD$76*AD142/('Prelim Calc'!$H$13+AD142),0) -> 0

Sheet S92 RevReq Calc
C2: Calculation of Revenue Requirement
D3: Project Year: | E3: ='Capital Cont Inputs'!B16 -> 0 | F3: ='Capital Cont Inputs'!C16 -> 1 | G3: ='Capital Cont Inputs'!D16 -> 2 | H3: ='Capital Cont Inputs'!E16 -> 3 | I3: ='Capital Cont Inputs'!F16 -> 4 | J3: ='Capital Cont Inputs'!G16 -> 5 | K3: ='Capital Cont Inputs'!H16 -> 6 | L3: ='Capital Cont Inputs'!I16 -> 7 | M3: ='Capital Cont Inputs'!J16 -> 8 | N3: ='Capital Cont Inputs'!K16 -> 9 | O3: ='Capital Cont Inputs'!L16 -> 10 | P3: ='Capital Cont Inputs'!M16 -> 11 | Q3: ='Capital Cont Inputs'!N16 -> 12 | R3: ='Capital Cont Inputs'!O16 -> 13 | S3: ='Capital Cont Inputs'!P16 -> 14 | T3: ='Capital Cont Inputs'!Q16 -> 15 | U3: ='Capital Cont Inputs'!R16 -> 16 | V3: ='Capital Cont Inputs'!S16 -> 17 | W3: ='Capital Cont Inputs'!T16 -> 18 | X3: ='Capital Cont Inputs'!U16 -> 19 | Y3: ='Capital Cont Inputs'!V16 -> 20 | Z3: ='Capital Cont Inputs'!W16 -> 21 | AA3: ='Capital Cont Inputs'!X16 -> 22 | AB3: ='Capital Cont Inputs'!Y16 -> 23 | AC3: ='Capital Cont Inputs'!Z16 -> 24 | AD3: ='Capital Cont Inputs'!AA16 -> 25
D4: Year Ended: | E4: ='Capital Cont Inputs'!B15 -> 2018 | F4: ='Capital Cont Inputs'!C15 -> 2019 | G4: ='Capital Cont Inputs'!D15 -> 2020 | H4: ='Capital Cont Inputs'!E15 -> 2021 | I4: ='Capital Cont Inputs'!F15 -> 2022 | J4: ='Capital Cont Inputs'!G15 -> 2023 | K4: ='Capital Cont Inputs'!H15 -> 2024 | L4: ='Capital Cont Inputs'!I15 -> 2025 | M4: ='Capital Cont Inputs'!J15 -> 2026 | N4: ='Capital Cont Inputs'!K15 -> 2027 | O4: ='Capital Cont Inputs'!L15 -> 2028 | P4: ='Capital Cont Inputs'!M15 -> 2029 | Q4: ='Capital Cont Inputs'!N15 -> 2030 | R4: ='Capital Cont Inputs'!O15 -> 2031 | S4: ='Capital Cont Inputs'!P15 -> 2032 | T4: ='Capital Cont Inputs'!Q15 -> 2033 | U4: ='Capital Cont Inputs'!R15 -> 2034 | V4: ='Capital Cont Inputs'!S15 -> 2035 | W4: ='Capital Cont Inputs'!T15 -> 2036 | X4: ='Capital Cont Inputs'!U15 -> 2037 | Y4: ='Capital Cont Inputs'!V15 -> 2038 | Z4: ='Capital Cont Inputs'!W15 -> 2039 | AA4: ='Capital Cont Inputs'!X15 -> 2040 | AB4: ='Capital Cont Inputs'!Y15 -> 2041 | AC4: ='Capital Cont Inputs'!Z15 -> 2042 | AD4: ='Capital Cont Inputs'!AA15 -> 2043
C5: ='NPV Calc'!B96 -> Land costs - $k:
C6: Net Book Value, beginning of year | E6: 0 | F6: =IF(ISNUMBER(F$3),E8,0) -> 0 | G6: 540.3945586 | H6: 540.3945586 | I6: 540.3945586 | J6: 540.3945586 | K6: 540.3945586 | L6: 540.3945586 | M6: 540.3945586 | N6: 540.3945586 | O6: 540.3945586 | P6: 540.3945586 | Q6: 540.3945586 | R6: 540.3945586 | S6: 540.3945586 | T6: 540.3945586 | U6: 540.3945586 | V6: 540.3945586 | W6: 540.3945586 | X6: 540.3945586 | Y6: 540.3945586 | Z6: 540.3945586 | AA6: 540.3945586 | AB6: 540.3945586 | AC6: 540.3945586 | AD6: 540.3945586
C7: Additions during year | E7: =IF(E$3=1,SUM('NPV Calc'!$E$98:$AD$98),0) -> 0 | F7: =IF(F$3=1,SUM('NPV Calc'!$E$98:$AD$98),0) -> 540.3945586 | G7: =IF(G$3=1,SUM('NPV Calc'!$E$98:$AD$98),0) -> 0 | H7: =IF(H$3=1,SUM('NPV Calc'!$E$98:$AD$98),0) -> 0 | I7: =IF(I$3=1,SUM('NPV Calc'!$E$98:$AD$98),0) -> 0 | J7: =IF(J$3=1,SUM('NPV Calc'!$E$98:$AD$98),0) -> 0 | K7: =IF(K$3=1,SUM('NPV Calc'!$E$98:$AD$98),0) -> 0 | L7: =IF(L$3=1,SUM('NPV Calc'!$E$98:$AD$98),0) -> 0 | M7: =IF(M$3=1,SUM('NPV Calc'!$E$98:$AD$98),0) -> 0 | N7: =IF(N$3=1,SUM('NPV Calc'!$E$98:$AD$98),0) -> 0 | O7: =IF(O$3=1,SUM('NPV Calc'!$E$98:$AD$98),0) -> 0 | P7: =IF(P$3=1,SUM('NPV Calc'!$E$98:$AD$98),0) -> 0 | Q7: =IF(Q$3=1,SUM('NPV Calc'!$E$98:$AD$98),0) -> 0 | R7: =IF(R$3=1,SUM('NPV Calc'!$E$98:$AD$98),0) -> 0 | S7: =IF(S$3=1,SUM('NPV Calc'!$E$98:$AD$98),0) -> 0 | T7: =IF(T$3=1,SUM('NPV Calc'!$E$98:$AD$98),0) -> 0 | U7: =IF(U$3=1,SUM('NPV Calc'!$E$98:$AD$98),0) -> 0 | V7: =IF(V$3=1,SUM('NPV Calc'!$E$98:$AD$98),0) -> 0 | W7: =IF(W$3=1,SUM('NPV Calc'!$E$98:$AD$98),0) -> 0 | X7: =IF(X$3=1,SUM('NPV Calc'!$E$98:$AD$98),0) -> 0 | Y7: =IF(Y$3=1,SUM('NPV Calc'!$E$98:$AD$98),0) -> 0 | Z7: =IF(Z$3=1,SUM('NPV Calc'!$E$98:$AD$98),0) -> 0 | AA7: =IF(AA$3=1,SUM('NPV Calc'!$E$98:$AD$98),0) -> 0 | AB7: =IF(AB$3=1,SUM('NPV Calc'!$E$98:$AD$98),0) -> 0 | AC7: =IF(AC$3=1,SUM('NPV Calc'!$E$98:$AD$98),0) -> 0 | AD7: =IF(AD$3=1,SUM('NPV Calc'!$E$98:$AD$98),0) -> 0
C8: Net Book Value, end of year | E8: =E6+E7 -> 0 | F8: 540.3945586 | G8: 540.3945586 | H8: 540.3945586 | I8: 540.3945586 | J8: 540.3945586 | K8: 540.3945586 | L8: 540.3945586 | M8: 540.3945586 | N8: 540.3945586 | O8: 540.3945586 | P8: 540.3945586 | Q8: 540.3945586 | R8: 540.3945586 | S8: 540.3945586 | T8: 540.3945586 | U8: 540.3945586 | V8: 540.3945586 | W8: 540.3945586 | X8: 540.3945586 | Y8: 540.3945586 | Z8: 540.3945586 | AA8: 540.3945586 | AB8: 540.3945586 | AC8: 540.3945586 | AD8: 540.3945586
C9: Average Net Book Value for the year | F9: =IF(ISNUMBER(F$3),AVERAGE(E8:F8),0) -> 270.1972793 | G9: 540.3945586 | H9: 540.3945586 | I9: 540.3945586 | J9: 540.3945586 | K9: 540.3945586 | L9: 540.3945586 | M9: 540.3945586 | N9: 540.3945586 | O9: 540.3945586 | P9: 540.3945586 | Q9: 540.3945586 | R9: 540.3945586 | S9: 540.3945586 | T9: 540.3945586 | U9: 540.3945586 | V9: 540.3945586 | W9: 540.3945586 | X9: 540.3945586 | Y9: 540.3945586 | Z9: 540.3945586 | AA9: 540.3945586 | AB9: 540.3945586 | AC9: 540.3945586 | AD9: 540.3945586
C11: ='NPV Calc'!B102 -> Class 47 costs - $k:
C12: Net book value, beginning of year | E12: 0 | F12: =IF(ISNUMBER(F$3),E15,0) -> 0 | G12: 19278.87532 | H12: 18885.42889 | I12: 18491.98245 | J12: 18098.53602 | K12: 17705.08958 | L12: 17311.64315 | M12: 16918.19671 | N12: 16524.75028 | O12: 16131.30384 | P12: 15737.85741 | Q12: 15344.41097 | R12: 14950.96454 | S12: 14557.5181 | T12: 14164.07167 | U12: 13770.62523 | V12: 13377.1788 | W12: 12983.73236 | X12: 12590.28593 | Y12: 12196.83949 | Z12: 11803.39306 | AA12: 11409.94662 | AB12: 11016.50019 | AC12: 10623.05375 | AD12: 10229.60732
C13: Additions during year | E13: =IF(E$3=1,SUM('NPV Calc'!$E$106:$AD$106),0) -> 0 | F13: =IF(F$3=1,SUM('NPV Calc'!$E$106:$AD$106),0) -> 19672.32176 | G13: =IF(G$3=1,SUM('NPV Calc'!$E$106:$AD$106),0) -> 0 | H13: =IF(H$3=1,SUM('NPV Calc'!$E$106:$AD$106),0) -> 0 | I13: =IF(I$3=1,SUM('NPV Calc'!$E$106:$AD$106),0) -> 0 | J13: =IF(J$3=1,SUM('NPV Calc'!$E$106:$AD$106),0) -> 0 | K13: =IF(K$3=1,SUM('NPV Calc'!$E$106:$AD$106),0) -> 0 | L13: =IF(L$3=1,SUM('NPV Calc'!$E$106:$AD$106),0) -> 0 | M13: =IF(M$3=1,SUM('NPV Calc'!$E$106:$AD$106),0) -> 0 | N13: =IF(N$3=1,SUM('NPV Calc'!$E$106:$AD$106),0) -> 0 | O13: =IF(O$3=1,SUM('NPV Calc'!$E$106:$AD$106),0) -> 0 | P13: =IF(P$3=1,SUM('NPV Calc'!$E$106:$AD$106),0) -> 0 | Q13: =IF(Q$3=1,SUM('NPV Calc'!$E$106:$AD$106),0) -> 0 | R13: =IF(R$3=1,SUM('NPV Calc'!$E$106:$AD$106),0) -> 0 | S13: =IF(S$3=1,SUM('NPV Calc'!$E$106:$AD$106),0) -> 0 | T13: =IF(T$3=1,SUM('NPV Calc'!$E$106:$AD$106),0) -> 0 | U13: =IF(U$3=1,SUM('NPV Calc'!$E$106:$AD$106),0) -> 0 | V13: =IF(V$3=1,SUM('NPV Calc'!$E$106:$AD$106),0) -> 0 | W13: =IF(W$3=1,SUM('NPV Calc'!$E$106:$AD$106),0) -> 0 | X13: =IF(X$3=1,SUM('NPV Calc'!$E$106:$AD$106),0) -> 0 | Y13: =IF(Y$3=1,SUM('NPV Calc'!$E$106:$AD$106),0) -> 0 | Z13: =IF(Z$3=1,SUM('NPV Calc'!$E$106:$AD$106),0) -> 0 | AA13: =IF(AA$3=1,SUM('NPV Calc'!$E$106:$AD$106),0) -> 0 | AB13: =IF(AB$3=1,SUM('NPV Calc'!$E$106:$AD$106),0) -> 0 | AC13: =IF(AC$3=1,SUM('NPV Calc'!$E$106:$AD$106),0) -> 0 | AD13: =IF(AD$3=1,SUM('NPV Calc'!$E$106:$AD$106),0) -> 0
C14: Depreciaton - annual basis | F14: =IF(ISNUMBER('Standard Inputs'!$D$34),IF(ISNUMBER(F$3),SUM($E13:F13)/'Standard Inputs'!$D$34,0),0) -> 393.4464352 | G14: =IF(ISNUMBER('Standard Inputs'!$D$34),IF(ISNUMBER(G$3),SUM($E13:G13)/'Standard Inputs'!$D$34,0),0) -> 393.4464352 | H14: =IF(ISNUMBER('Standard Inputs'!$D$34),IF(ISNUMBER(H$3),SUM($E13:H13)/'Standard Inputs'!$D$34,0),0) -> 393.4464352 | I14: =IF(ISNUMBER('Standard Inputs'!$D$34),IF(ISNUMBER(I$3),SUM($E13:I13)/'Standard Inputs'!$D$34,0),0) -> 393.4464352 | J14: =IF(ISNUMBER('Standard Inputs'!$D$34),IF(ISNUMBER(J$3),SUM($E13:J13)/'Standard Inputs'!$D$34,0),0) -> 393.4464352 | K14: =IF(ISNUMBER('Standard Inputs'!$D$34),IF(ISNUMBER(K$3),SUM($E13:K13)/'Standard Inputs'!$D$34,0),0) -> 393.4464352 | L14: =IF(ISNUMBER('Standard Inputs'!$D$34),IF(ISNUMBER(L$3),SUM($E13:L13)/'Standard Inputs'!$D$34,0),0) -> 393.4464352 | M14: =IF(ISNUMBER('Standard Inputs'!$D$34),IF(ISNUMBER(M$3),SUM($E13:M13)/'Standard Inputs'!$D$34,0),0) -> 393.4464352 | N14: =IF(ISNUMBER('Standard Inputs'!$D$34),IF(ISNUMBER(N$3),SUM($E13:N13)/'Standard Inputs'!$D$34,0),0) -> 393.4464352 | O14: =IF(ISNUMBER('Standard Inputs'!$D$34),IF(ISNUMBER(O$3),SUM($E13:O13)/'Standard Inputs'!$D$34,0),0) -> 393.4464352 | P14: =IF(ISNUMBER('Standard Inputs'!$D$34),IF(ISNUMBER(P$3),SUM($E13:P13)/'Standard Inputs'!$D$34,0),0) -> 393.4464352 | Q14: =IF(ISNUMBER('Standard Inputs'!$D$34),IF(ISNUMBER(Q$3),SUM($E13:Q13)/'Standard Inputs'!$D$34,0),0) -> 393.4464352 | R14: =IF(ISNUMBER('Standard Inputs'!$D$34),IF(ISNUMBER(R$3),SUM($E13:R13)/'Standard Inputs'!$D$34,0),0) -> 393.4464352 | S14: =IF(ISNUMBER('Standard Inputs'!$D$34),IF(ISNUMBER(S$3),SUM($E13:S13)/'Standard Inputs'!$D$34,0),0) -> 393.4464352 | T14: =IF(ISNUMBER('Standard Inputs'!$D$34),IF(ISNUMBER(T$3),SUM($E13:T13)/'Standard Inputs'!$D$34,0),0) -> 393.4464352 | U14: =IF(ISNUMBER('Standard Inputs'!$D$34),IF(ISNUMBER(U$3),SUM($E13:U13)/'Standard Inputs'!$D$34,0),0) -> 393.4464352 | V14: =IF(ISNUMBER('Standard Inputs'!$D$34),IF(ISNUMBER(V$3),SUM($E13:V13)/'Standard Inputs'!$D$34,0),0) -> 393.4464352 | W14: =IF(ISNUMBER('Standard Inputs'!$D$34),IF(ISNUMBER(W$3),SUM($E13:W13)/'Standard Inputs'!$D$34,0),0) -> 393.4464352 | X14: =IF(ISNUMBER('Standard Inputs'!$D$34),IF(ISNUMBER(X$3),SUM($E13:X13)/'Standard Inputs'!$D$34,0),0) -> 393.4464352 | Y14: =IF(ISNUMBER('Standard Inputs'!$D$34),IF(ISNUMBER(Y$3),SUM($E13:Y13)/'Standard Inputs'!$D$34,0),0) -> 393.4464352 | Z14: =IF(ISNUMBER('Standard Inputs'!$D$34),IF(ISNUMBER(Z$3),SUM($E13:Z13)/'Standard Inputs'!$D$34,0),0) -> 393.4464352 | AA14: =IF(ISNUMBER('Standard Inputs'!$D$34),IF(ISNUMBER(AA$3),SUM($E13:AA13)/'Standard Inputs'!$D$34,0),0) -> 393.4464352 | AB14: =IF(ISNUMBER('Standard Inputs'!$D$34),IF(ISNUMBER(AB$3),SUM($E13:AB13)/'Standard Inputs'!$D$34,0),0) -> 393.4464352 | AC14: =IF(ISNUMBER('Standard Inputs'!$D$34),IF(ISNUMBER(AC$3),SUM($E13:AC13)/'Standard Inputs'!$D$34,0),0) -> 393.4464352 | AD14: =IF(ISNUMBER('Standard Inputs'!$D$34),IF(ISNUMBER(AD$3),SUM($E13:AD13)/'Standard Inputs'!$D$34,0),0) -> 393.4464352
C15: Net book value, end of year | E15: =E12+E13-E14 -> 0 | F15: 19278.87532 | G15: 18885.42889 | H15: 18491.98245 | I15: 18098.53602 | J15: 17705.08958 | K15: 17311.64315 | L15: 16918.19671 | M15: 16524.75028 | N15: 16131.30384 | O15: 15737.85741 | P15: 15344.41097 | Q15: 14950.96454 | R15: 14557.5181 | S15: 14164.07167 | T15: 13770.62523 | U15: 13377.1788 | V15: 12983.73236 | W15: 12590.28593 | X15: 12196.83949 | Y15: 11803.39306 | Z15: 11409.94662 | AA15: 11016.50019 | AB15: 10623.05375 | AC15: 10229.60732 | AD15: 9836.16088
C16: Average net book value for the year | F16: =IF(ISNUMBER(F$3),AVERAGE(E15:F15),0) -> 9639.437662 | G16: 19082.15211 | H16: 18688.70567 | I16: 18295.25924 | J16: 17901.8128 | K16: 17508.36637 | L16: 17114.91993 | M16: 16721.4735 | N16: 16328.02706 | O16: 15934.58063 | P16: 15541.13419 | Q16: 15147.68776 | R16: 14754.24132 | S16: 14360.79488 | T16: 13967.34845 | U16: 13573.90201 | V16: 13180.45558 | W16: 12787.00914 | X16: 12393.56271 | Y16: 12000.11627 | Z16: 11606.66984 | AA16: 11213.2234 | AB16: 10819.77697 | AC16: 10426.33053 | AD16: 10032.8841
C18: ='NPV Calc'!B115 -> Decision Support defined costs (1) - $k:
C19: Net book value, beginning of year | E19: 0 | F19: =IF(ISNUMBER(F$3),E22,0) -> 0 | G19: 0 | H19: 0 | I19: 0 | J19: 0 | K19: 0 | L19: 0 | M19: 0 | N19: 0 | O19: 0 | P19: 0 | Q19: 0 | R19: 0 | S19: 0 | T19: 0 | U19: 0 | V19: 0 | W19: 0 | X19: 0 | Y19: 0 | Z19: 0 | AA19: 0 | AB19: 0 | AC19: 0 | AD19: 0
C20: Additions during year | E20: =IF(E$3=1,SUM('NPV Calc'!$E$119:$AD$119),0) -> 0 | F20: =IF(F$3=1,SUM('NPV Calc'!$E$119:$AD$119),0) -> 0 | G20: =IF(G$3=1,SUM('NPV Calc'!$E$119:$AD$119),0) -> 0 | H20: =IF(H$3=1,SUM('NPV Calc'!$E$119:$AD$119),0) -> 0 | I20: =IF(I$3=1,SUM('NPV Calc'!$E$119:$AD$119),0) -> 0 | J20: =IF(J$3=1,SUM('NPV Calc'!$E$119:$AD$119),0) -> 0 | K20: =IF(K$3=1,SUM('NPV Calc'!$E$119:$AD$119),0) -> 0 | L20: =IF(L$3=1,SUM('NPV Calc'!$E$119:$AD$119),0) -> 0 | M20: =IF(M$3=1,SUM('NPV Calc'!$E$119:$AD$119),0) -> 0 | N20: =IF(N$3=1,SUM('NPV Calc'!$E$119:$AD$119),0) -> 0 | O20: =IF(O$3=1,SUM('NPV Calc'!$E$119:$AD$119),0) -> 0 | P20: =IF(P$3=1,SUM('NPV Calc'!$E$119:$AD$119),0) -> 0 | Q20: =IF(Q$3=1,SUM('NPV Calc'!$E$119:$AD$119),0) -> 0 | R20: =IF(R$3=1,SUM('NPV Calc'!$E$119:$AD$119),0) -> 0 | S20: =IF(S$3=1,SUM('NPV Calc'!$E$119:$AD$119),0) -> 0 | T20: =IF(T$3=1,SUM('NPV Calc'!$E$119:$AD$119),0) -> 0 | U20: =IF(U$3=1,SUM('NPV Calc'!$E$119:$AD$119),0) -> 0 | V20: =IF(V$3=1,SUM('NPV Calc'!$E$119:$AD$119),0) -> 0 | W20: =IF(W$3=1,SUM('NPV Calc'!$E$119:$AD$119),0) -> 0 | X20: =IF(X$3=1,SUM('NPV Calc'!$E$119:$AD$119),0) -> 0 | Y20: =IF(Y$3=1,SUM('NPV Calc'!$E$119:$AD$119),0) -> 0 | Z20: =IF(Z$3=1,SUM('NPV Calc'!$E$119:$AD$119),0) -> 0 | AA20: =IF(AA$3=1,SUM('NPV Calc'!$E$119:$AD$119),0) -> 0 | AB20: =IF(AB$3=1,SUM('NPV Calc'!$E$119:$AD$119),0) -> 0 | AC20: =IF(AC$3=1,SUM('NPV Calc'!$E$119:$AD$119),0) -> 0 | AD20: =IF(AD$3=1,SUM('NPV Calc'!$E$119:$AD$119),0) -> 0
C21: Depreciaton - annual basis | F21: =IF(ISNUMBER('Standard Inputs'!$D$35),IF(ISNUMBER(F$3),SUM($E20:F20)/'Standard Inputs'!$D$35,0),0) -> 0 | G21: =IF(ISNUMBER('Standard Inputs'!$D$35),IF(ISNUMBER(G$3),SUM($E20:G20)/'Standard Inputs'!$D$35,0),0) -> 0 | H21: =IF(ISNUMBER('Standard Inputs'!$D$35),IF(ISNUMBER(H$3),SUM($E20:H20)/'Standard Inputs'!$D$35,0),0) -> 0 | I21: =IF(ISNUMBER('Standard Inputs'!$D$35),IF(ISNUMBER(I$3),SUM($E20:I20)/'Standard Inputs'!$D$35,0),0) -> 0 | J21: =IF(ISNUMBER('Standard Inputs'!$D$35),IF(ISNUMBER(J$3),SUM($E20:J20)/'Standard Inputs'!$D$35,0),0) -> 0 | K21: =IF(ISNUMBER('Standard Inputs'!$D$35),IF(ISNUMBER(K$3),SUM($E20:K20)/'Standard Inputs'!$D$35,0),0) -> 0 | L21: =IF(ISNUMBER('Standard Inputs'!$D$35),IF(ISNUMBER(L$3),SUM($E20:L20)/'Standard Inputs'!$D$35,0),0) -> 0 | M21: =IF(ISNUMBER('Standard Inputs'!$D$35),IF(ISNUMBER(M$3),SUM($E20:M20)/'Standard Inputs'!$D$35,0),0) -> 0 | N21: =IF(ISNUMBER('Standard Inputs'!$D$35),IF(ISNUMBER(N$3),SUM($E20:N20)/'Standard Inputs'!$D$35,0),0) -> 0 | O21: =IF(ISNUMBER('Standard Inputs'!$D$35),IF(ISNUMBER(O$3),SUM($E20:O20)/'Standard Inputs'!$D$35,0),0) -> 0 | P21: =IF(ISNUMBER('Standard Inputs'!$D$35),IF(ISNUMBER(P$3),SUM($E20:P20)/'Standard Inputs'!$D$35,0),0) -> 0 | Q21: =IF(ISNUMBER('Standard Inputs'!$D$35),IF(ISNUMBER(Q$3),SUM($E20:Q20)/'Standard Inputs'!$D$35,0),0) -> 0 | R21: =IF(ISNUMBER('Standard Inputs'!$D$35),IF(ISNUMBER(R$3),SUM($E20:R20)/'Standard Inputs'!$D$35,0),0) -> 0 | S21: =IF(ISNUMBER('Standard Inputs'!$D$35),IF(ISNUMBER(S$3),SUM($E20:S20)/'Standard Inputs'!$D$35,0),0) -> 0 | T21: =IF(ISNUMBER('Standard Inputs'!$D$35),IF(ISNUMBER(T$3),SUM($E20:T20)/'Standard Inputs'!$D$35,0),0) -> 0 | U21: =IF(ISNUMBER('Standard Inputs'!$D$35),IF(ISNUMBER(U$3),SUM($E20:U20)/'Standard Inputs'!$D$35,0),0) -> 0 | V21: =IF(ISNUMBER('Standard Inputs'!$D$35),IF(ISNUMBER(V$3),SUM($E20:V20)/'Standard Inputs'!$D$35,0),0) -> 0 | W21: =IF(ISNUMBER('Standard Inputs'!$D$35),IF(ISNUMBER(W$3),SUM($E20:W20)/'Standard Inputs'!$D$35,0),0) -> 0 | X21: =IF(ISNUMBER('Standard Inputs'!$D$35),IF(ISNUMBER(X$3),SUM($E20:X20)/'Standard Inputs'!$D$35,0),0) -> 0 | Y21: =IF(ISNUMBER('Standard Inputs'!$D$35),IF(ISNUMBER(Y$3),SUM($E20:Y20)/'Standard Inputs'!$D$35,0),0) -> 0 | Z21: =IF(ISNUMBER('Standard Inputs'!$D$35),IF(ISNUMBER(Z$3),SUM($E20:Z20)/'Standard Inputs'!$D$35,0),0) -> 0 | AA21: =IF(ISNUMBER('Standard Inputs'!$D$35),IF(ISNUMBER(AA$3),SUM($E20:AA20)/'Standard Inputs'!$D$35,0),0) -> 0 | AB21: =IF(ISNUMBER('Standard Inputs'!$D$35),IF(ISNUMBER(AB$3),SUM($E20:AB20)/'Standard Inputs'!$D$35,0),0) -> 0 | AC21: =IF(ISNUMBER('Standard Inputs'!$D$35),IF(ISNUMBER(AC$3),SUM($E20:AC20)/'Standard Inputs'!$D$35,0),0) -> 0 | AD21: =IF(ISNUMBER('Standard Inputs'!$D$35),IF(ISNUMBER(AD$3),SUM($E20:AD20)/'Standard Inputs'!$D$35,0),0) -> 0
C22: Net book value, end of year | E22: =E19+E20-E21 -> 0 | F22: 0 | G22: 0 | H22: 0 | I22: 0 | J22: 0 | K22: 0 | L22: 0 | M22: 0 | N22: 0 | O22: 0 | P22: 0 | Q22: 0 | R22: 0 | S22: 0 | T22: 0 | U22: 0 | V22: 0 | W22: 0 | X22: 0 | Y22: 0 | Z22: 0 | AA22: 0 | AB22: 0 | AC22: 0 | AD22: 0
C23: Average net book value for the year | F23: =IF(ISNUMBER(F$3),AVERAGE(E22:F22),0) -> 0 | G23: 0 | H23: 0 | I23: 0 | J23: 0 | K23: 0 | L23: 0 | M23: 0 | N23: 0 | O23: 0 | P23: 0 | Q23: 0 | R23: 0 | S23: 0 | T23: 0 | U23: 0 | V23: 0 | W23: 0 | X23: 0 | Y23: 0 | Z23: 0 | AA23: 0 | AB23: 0 | AC23: 0 | AD23: 0
C25: ='NPV Calc'!B128 -> Decision Support defined costs (2) - $k:
C26: Net book value, beginning of year | E26: 0 | F26: =IF(ISNUMBER(F$3),E29,0) -> 0 | G26: 0 | H26: 0 | I26: 0 | J26: 0 | K26: 0 | L26: 0 | M26: 0 | N26: 0 | O26: 0 | P26: 0 | Q26: 0 | R26: 0 | S26: 0 | T26: 0 | U26: 0 | V26: 0 | W26: 0 | X26: 0 | Y26: 0 | Z26: 0 | AA26: 0 | AB26: 0 | AC26: 0 | AD26: 0
C27: Additions during year | E27: =IF(E$3=1,SUM('NPV Calc'!$E$132:$AD$132),0) -> 0 | F27: =IF(F$3=1,SUM('NPV Calc'!$E$132:$AD$132),0) -> 0 | G27: =IF(G$3=1,SUM('NPV Calc'!$E$132:$AD$132),0) -> 0 | H27: =IF(H$3=1,SUM('NPV Calc'!$E$132:$AD$132),0) -> 0 | I27: =IF(I$3=1,SUM('NPV Calc'!$E$132:$AD$132),0) -> 0 | J27: =IF(J$3=1,SUM('NPV Calc'!$E$132:$AD$132),0) -> 0 | K27: =IF(K$3=1,SUM('NPV Calc'!$E$132:$AD$132),0) -> 0 | L27: =IF(L$3=1,SUM('NPV Calc'!$E$132:$AD$132),0) -> 0 | M27: =IF(M$3=1,SUM('NPV Calc'!$E$132:$AD$132),0) -> 0 | N27: =IF(N$3=1,SUM('NPV Calc'!$E$132:$AD$132),0) -> 0 | O27: =IF(O$3=1,SUM('NPV Calc'!$E$132:$AD$132),0) -> 0 | P27: =IF(P$3=1,SUM('NPV Calc'!$E$132:$AD$132),0) -> 0 | Q27: =IF(Q$3=1,SUM('NPV Calc'!$E$132:$AD$132),0) -> 0 | R27: =IF(R$3=1,SUM('NPV Calc'!$E$132:$AD$132),0) -> 0 | S27: =IF(S$3=1,SUM('NPV Calc'!$E$132:$AD$132),0) -> 0 | T27: =IF(T$3=1,SUM('NPV Calc'!$E$132:$AD$132),0) -> 0 | U27: =IF(U$3=1,SUM('NPV Calc'!$E$132:$AD$132),0) -> 0 | V27: =IF(V$3=1,SUM('NPV Calc'!$E$132:$AD$132),0) -> 0 | W27: =IF(W$3=1,SUM('NPV Calc'!$E$132:$AD$132),0) -> 0 | X27: =IF(X$3=1,SUM('NPV Calc'!$E$132:$AD$132),0) -> 0 | Y27: =IF(Y$3=1,SUM('NPV Calc'!$E$132:$AD$132),0) -> 0 | Z27: =IF(Z$3=1,SUM('NPV Calc'!$E$132:$AD$132),0) -> 0 | AA27: =IF(AA$3=1,SUM('NPV Calc'!$E$132:$AD$132),0) -> 0 | AB27: =IF(AB$3=1,SUM('NPV Calc'!$E$132:$AD$132),0) -> 0 | AC27: =IF(AC$3=1,SUM('NPV Calc'!$E$132:$AD$132),0) -> 0 | AD27: =IF(AD$3=1,SUM('NPV Calc'!$E$132:$AD$132),0) -> 0
C28: Depreciaton - annual basis | F28: =IF(ISNUMBER('Standard Inputs'!$D$36),IF(ISNUMBER(F$3),SUM($E27:F27)/'Standard Inputs'!$D$36,0),0) -> 0 | G28: =IF(ISNUMBER('Standard Inputs'!$D$36),IF(ISNUMBER(G$3),SUM($E27:G27)/'Standard Inputs'!$D$36,0),0) -> 0 | H28: =IF(ISNUMBER('Standard Inputs'!$D$36),IF(ISNUMBER(H$3),SUM($E27:H27)/'Standard Inputs'!$D$36,0),0) -> 0 | I28: =IF(ISNUMBER('Standard Inputs'!$D$36),IF(ISNUMBER(I$3),SUM($E27:I27)/'Standard Inputs'!$D$36,0),0) -> 0 | J28: =IF(ISNUMBER('Standard Inputs'!$D$36),IF(ISNUMBER(J$3),SUM($E27:J27)/'Standard Inputs'!$D$36,0),0) -> 0 | K28: =IF(ISNUMBER('Standard Inputs'!$D$36),IF(ISNUMBER(K$3),SUM($E27:K27)/'Standard Inputs'!$D$36,0),0) -> 0 | L28: =IF(ISNUMBER('Standard Inputs'!$D$36),IF(ISNUMBER(L$3),SUM($E27:L27)/'Standard Inputs'!$D$36,0),0) -> 0 | M28: =IF(ISNUMBER('Standard Inputs'!$D$36),IF(ISNUMBER(M$3),SUM($E27:M27)/'Standard Inputs'!$D$36,0),0) -> 0 | N28: =IF(ISNUMBER('Standard Inputs'!$D$36),IF(ISNUMBER(N$3),SUM($E27:N27)/'Standard Inputs'!$D$36,0),0) -> 0 | O28: =IF(ISNUMBER('Standard Inputs'!$D$36),IF(ISNUMBER(O$3),SUM($E27:O27)/'Standard Inputs'!$D$36,0),0) -> 0 | P28: =IF(ISNUMBER('Standard Inputs'!$D$36),IF(ISNUMBER(P$3),SUM($E27:P27)/'Standard Inputs'!$D$36,0),0) -> 0 | Q28: =IF(ISNUMBER('Standard Inputs'!$D$36),IF(ISNUMBER(Q$3),SUM($E27:Q27)/'Standard Inputs'!$D$36,0),0) -> 0 | R28: =IF(ISNUMBER('Standard Inputs'!$D$36),IF(ISNUMBER(R$3),SUM($E27:R27)/'Standard Inputs'!$D$36,0),0) -> 0 | S28: =IF(ISNUMBER('Standard Inputs'!$D$36),IF(ISNUMBER(S$3),SUM($E27:S27)/'Standard Inputs'!$D$36,0),0) -> 0 | T28: =IF(ISNUMBER('Standard Inputs'!$D$36),IF(ISNUMBER(T$3),SUM($E27:T27)/'Standard Inputs'!$D$36,0),0) -> 0 | U28: =IF(ISNUMBER('Standard Inputs'!$D$36),IF(ISNUMBER(U$3),SUM($E27:U27)/'Standard Inputs'!$D$36,0),0) -> 0 | V28: =IF(ISNUMBER('Standard Inputs'!$D$36),IF(ISNUMBER(V$3),SUM($E27:V27)/'Standard Inputs'!$D$36,0),0) -> 0 | W28: =IF(ISNUMBER('Standard Inputs'!$D$36),IF(ISNUMBER(W$3),SUM($E27:W27)/'Standard Inputs'!$D$36,0),0) -> 0 | X28: =IF(ISNUMBER('Standard Inputs'!$D$36),IF(ISNUMBER(X$3),SUM($E27:X27)/'Standard Inputs'!$D$36,0),0) -> 0 | Y28: =IF(ISNUMBER('Standard Inputs'!$D$36),IF(ISNUMBER(Y$3),SUM($E27:Y27)/'Standard Inputs'!$D$36,0),0) -> 0 | Z28: =IF(ISNUMBER('Standard Inputs'!$D$36),IF(ISNUMBER(Z$3),SUM($E27:Z27)/'Standard Inputs'!$D$36,0),0) -> 0 | AA28: =IF(ISNUMBER('Standard Inputs'!$D$36),IF(ISNUMBER(AA$3),SUM($E27:AA27)/'Standard Inputs'!$D$36,0),0) -> 0 | AB28: =IF(ISNUMBER('Standard Inputs'!$D$36),IF(ISNUMBER(AB$3),SUM($E27:AB27)/'Standard Inputs'!$D$36,0),0) -> 0 | AC28: =IF(ISNUMBER('Standard Inputs'!$D$36),IF(ISNUMBER(AC$3),SUM($E27:AC27)/'Standard Inputs'!$D$36,0),0) -> 0 | AD28: =IF(ISNUMBER('Standard Inputs'!$D$36),IF(ISNUMBER(AD$3),SUM($E27:AD27)/'Standard Inputs'!$D$36,0),0) -> 0
C29: Net book value, end of year | E29: =E26+E27-E28 -> 0 | F29: 0 | G29: 0 | H29: 0 | I29: 0 | J29: 0 | K29: 0 | L29: 0 | M29: 0 | N29: 0 | O29: 0 | P29: 0 | Q29: 0 | R29: 0 | S29: 0 | T29: 0 | U29: 0 | V29: 0 | W29: 0 | X29: 0 | Y29: 0 | Z29: 0 | AA29: 0 | AB29: 0 | AC29: 0 | AD29: 0
C30: Average net book value for the year | F30: =IF(ISNUMBER(F$3),AVERAGE(E29:F29),0) -> 0 | G30: 0 | H30: 0 | I30: 0 | J30: 0 | K30: 0 | L30: 0 | M30: 0 | N30: 0 | O30: 0 | P30: 0 | Q30: 0 | R30: 0 | S30: 0 | T30: 0 | U30: 0 | V30: 0 | W30: 0 | X30: 0 | Y30: 0 | Z30: 0 | AA30: 0 | AB30: 0 | AC30: 0 | AD30: 0
C32: ='NPV Calc'!B141 -> Decision Support defined costs (3) - $k:
C33: Net book value, beginning of year | E33: 0 | F33: =IF(ISNUMBER(F$3),E36,0) -> 0 | G33: 0 | H33: 0 | I33: 0 | J33: 0 | K33: 0 | L33: 0 | M33: 0 | N33: 0 | O33: 0 | P33: 0 | Q33: 0 | R33: 0 | S33: 0 | T33: 0 | U33: 0 | V33: 0 | W33: 0 | X33: 0 | Y33: 0 | Z33: 0 | AA33: 0 | AB33: 0 | AC33: 0 | AD33: 0
C34: Additions during year | E34: =IF(E$3=1,SUM('NPV Calc'!$E$145:$AD$145),0) -> 0 | F34: =IF(F$3=1,SUM('NPV Calc'!$E$145:$AD$145),0) -> 0 | G34: =IF(G$3=1,SUM('NPV Calc'!$E$145:$AD$145),0) -> 0 | H34: =IF(H$3=1,SUM('NPV Calc'!$E$145:$AD$145),0) -> 0 | I34: =IF(I$3=1,SUM('NPV Calc'!$E$145:$AD$145),0) -> 0 | J34: =IF(J$3=1,SUM('NPV Calc'!$E$145:$AD$145),0) -> 0 | K34: =IF(K$3=1,SUM('NPV Calc'!$E$145:$AD$145),0) -> 0 | L34: =IF(L$3=1,SUM('NPV Calc'!$E$145:$AD$145),0) -> 0 | M34: =IF(M$3=1,SUM('NPV Calc'!$E$145:$AD$145),0) -> 0 | N34: =IF(N$3=1,SUM('NPV Calc'!$E$145:$AD$145),0) -> 0 | O34: =IF(O$3=1,SUM('NPV Calc'!$E$145:$AD$145),0) -> 0 | P34: =IF(P$3=1,SUM('NPV Calc'!$E$145:$AD$145),0) -> 0 | Q34: =IF(Q$3=1,SUM('NPV Calc'!$E$145:$AD$145),0) -> 0 | R34: =IF(R$3=1,SUM('NPV Calc'!$E$145:$AD$145),0) -> 0 | S34: =IF(S$3=1,SUM('NPV Calc'!$E$145:$AD$145),0) -> 0 | T34: =IF(T$3=1,SUM('NPV Calc'!$E$145:$AD$145),0) -> 0 | U34: =IF(U$3=1,SUM('NPV Calc'!$E$145:$AD$145),0) -> 0 | V34: =IF(V$3=1,SUM('NPV Calc'!$E$145:$AD$145),0) -> 0 | W34: =IF(W$3=1,SUM('NPV Calc'!$E$145:$AD$145),0) -> 0 | X34: =IF(X$3=1,SUM('NPV Calc'!$E$145:$AD$145),0) -> 0 | Y34: =IF(Y$3=1,SUM('NPV Calc'!$E$145:$AD$145),0) -> 0 | Z34: =IF(Z$3=1,SUM('NPV Calc'!$E$145:$AD$145),0) -> 0 | AA34: =IF(AA$3=1,SUM('NPV Calc'!$E$145:$AD$145),0) -> 0 | AB34: =IF(AB$3=1,SUM('NPV Calc'!$E$145:$AD$145),0) -> 0 | AC34: =IF(AC$3=1,SUM('NPV Calc'!$E$145:$AD$145),0) -> 0 | AD34: =IF(AD$3=1,SUM('NPV Calc'!$E$145:$AD$145),0) -> 0
C35: Depreciaton - annual basis | F35: =IF(ISNUMBER('Standard Inputs'!$D$37),IF(ISNUMBER(F$3),SUM($E34:F34)/'Standard Inputs'!$D$37,0),0) -> 0 | G35: =IF(ISNUMBER('Standard Inputs'!$D$37),IF(ISNUMBER(G$3),SUM($E34:G34)/'Standard Inputs'!$D$37,0),0) -> 0 | H35: =IF(ISNUMBER('Standard Inputs'!$D$37),IF(ISNUMBER(H$3),SUM($E34:H34)/'Standard Inputs'!$D$37,0),0) -> 0 | I35: =IF(ISNUMBER('Standard Inputs'!$D$37),IF(ISNUMBER(I$3),SUM($E34:I34)/'Standard Inputs'!$D$37,0),0) -> 0 | J35: =IF(ISNUMBER('Standard Inputs'!$D$37),IF(ISNUMBER(J$3),SUM($E34:J34)/'Standard Inputs'!$D$37,0),0) -> 0 | K35: =IF(ISNUMBER('Standard Inputs'!$D$37),IF(ISNUMBER(K$3),SUM($E34:K34)/'Standard Inputs'!$D$37,0),0) -> 0 | L35: =IF(ISNUMBER('Standard Inputs'!$D$37),IF(ISNUMBER(L$3),SUM($E34:L34)/'Standard Inputs'!$D$37,0),0) -> 0 | M35: =IF(ISNUMBER('Standard Inputs'!$D$37),IF(ISNUMBER(M$3),SUM($E34:M34)/'Standard Inputs'!$D$37,0),0) -> 0 | N35: =IF(ISNUMBER('Standard Inputs'!$D$37),IF(ISNUMBER(N$3),SUM($E34:N34)/'Standard Inputs'!$D$37,0),0) -> 0 | O35: =IF(ISNUMBER('Standard Inputs'!$D$37),IF(ISNUMBER(O$3),SUM($E34:O34)/'Standard Inputs'!$D$37,0),0) -> 0 | P35: =IF(ISNUMBER('Standard Inputs'!$D$37),IF(ISNUMBER(P$3),SUM($E34:P34)/'Standard Inputs'!$D$37,0),0) -> 0 | Q35: =IF(ISNUMBER('Standard Inputs'!$D$37),IF(ISNUMBER(Q$3),SUM($E34:Q34)/'Standard Inputs'!$D$37,0),0) -> 0 | R35: =IF(ISNUMBER('Standard Inputs'!$D$37),IF(ISNUMBER(R$3),SUM($E34:R34)/'Standard Inputs'!$D$37,0),0) -> 0 | S35: =IF(ISNUMBER('Standard Inputs'!$D$37),IF(ISNUMBER(S$3),SUM($E34:S34)/'Standard Inputs'!$D$37,0),0) -> 0 | T35: =IF(ISNUMBER('Standard Inputs'!$D$37),IF(ISNUMBER(T$3),SUM($E34:T34)/'Standard Inputs'!$D$37,0),0) -> 0 | U35: =IF(ISNUMBER('Standard Inputs'!$D$37),IF(ISNUMBER(U$3),SUM($E34:U34)/'Standard Inputs'!$D$37,0),0) -> 0 | V35: =IF(ISNUMBER('Standard Inputs'!$D$37),IF(ISNUMBER(V$3),SUM($E34:V34)/'Standard Inputs'!$D$37,0),0) -> 0 | W35: =IF(ISNUMBER('Standard Inputs'!$D$37),IF(ISNUMBER(W$3),SUM($E34:W34)/'Standard Inputs'!$D$37,0),0) -> 0 | X35: =IF(ISNUMBER('Standard Inputs'!$D$37),IF(ISNUMBER(X$3),SUM($E34:X34)/'Standard Inputs'!$D$37,0),0) -> 0 | Y35: =IF(ISNUMBER('Standard Inputs'!$D$37),IF(ISNUMBER(Y$3),SUM($E34:Y34)/'Standard Inputs'!$D$37,0),0) -> 0 | Z35: =IF(ISNUMBER('Standard Inputs'!$D$37),IF(ISNUMBER(Z$3),SUM($E34:Z34)/'Standard Inputs'!$D$37,0),0) -> 0 | AA35: =IF(ISNUMBER('Standard Inputs'!$D$37),IF(ISNUMBER(AA$3),SUM($E34:AA34)/'Standard Inputs'!$D$37,0),0) -> 0 | AB35: =IF(ISNUMBER('Standard Inputs'!$D$37),IF(ISNUMBER(AB$3),SUM($E34:AB34)/'Standard Inputs'!$D$37,0),0) -> 0 | AC35: =IF(ISNUMBER('Standard Inputs'!$D$37),IF(ISNUMBER(AC$3),SUM($E34:AC34)/'Standard Inputs'!$D$37,0),0) -> 0 | AD35: =IF(ISNUMBER('Standard Inputs'!$D$37),IF(ISNUMBER(AD$3),SUM($E34:AD34)/'Standard Inputs'!$D$37,0),0) -> 0
C36: Net book value, end of year | E36: =E33+E34-E35 -> 0 | F36: 0 | G36: 0 | H36: 0 | I36: 0 | J36: 0 | K36: 0 | L36: 0 | M36: 0 | N36: 0 | O36: 0 | P36: 0 | Q36: 0 | R36: 0 | S36: 0 | T36: 0 | U36: 0 | V36: 0 | W36: 0 | X36: 0 | Y36: 0 | Z36: 0 | AA36: 0 | AB36: 0 | AC36: 0 | AD36: 0
C37: Average net book value for the year | F37: =IF(ISNUMBER(F$3),AVERAGE(E36:F36),0) -> 0 | G37: 0 | H37: 0 | I37: 0 | J37: 0 | K37: 0 | L37: 0 | M37: 0 | N37: 0 | O37: 0 | P37: 0 | Q37: 0 | R37: 0 | S37: 0 | T37: 0 | U37: 0 | V37: 0 | W37: 0 | X37: 0 | Y37: 0 | Z37: 0 | AA37: 0 | AB37: 0 | AC37: 0 | AD37: 0
C40: Average rate base, based on Avg NBV of assets - $k - A | F40: =F37+F30+F23+F16+F9 -> 9909.634942 | G40: =G37+G30+G23+G16+G9 -> 19622.54667 | H40: 19229.10023 | I40: 18835.6538 | J40: 18442.20736 | K40: 18048.76093 | L40: 17655.31449 | M40: 17261.86805 | N40: 16868.42162 | O40: 16474.97518 | P40: 16081.52875 | Q40: 15688.08231 | R40: 15294.63588 | S40: 14901.18944 | T40: 14507.74301 | U40: 14114.29657 | V40: 13720.85014 | W40: 13327.4037 | X40: 12933.95727 | Y40: 12540.51083 | Z40: 12147.0644 | AA40: 11753.61796 | AB40: 11360.17153 | AC40: 10966.72509 | AD40: 10573.27866
C42: Regulated return | F42: ='Prelim Calc'!F13 -> 0.065952 | G42: =F42 -> 0.065952 | H42: 0.065952 | I42: 0.065952 | J42: 0.065952 | K42: 0.065952 | L42: 0.065952 | M42: 0.065952 | N42: 0.065952 | O42: 0.065952 | P42: 0.065952 | Q42: 0.065952 | R42: 0.065952 | S42: 0.065952 | T42: 0.065952 | U42: 0.065952 | V42: 0.065952 | W42: 0.065952 | X42: 0.065952 | Y42: 0.065952 | Z42: 0.065952 | AA42: 0.065952 | AB42: 0.065952 | AC42: 0.065952 | AD42: 0.065952
C44: Return on rate base - $k - B | F44: =F40*F42 -> 653.5602437 | G44: 1294.146198 | H44: 1268.197618 | I44: 1242.249039 | J44: 1216.30046 | K44: 1190.351881 | L44: 1164.403301 | M44: 1138.454722 | N44: 1112.506143 | O44: 1086.557563 | P44: 1060.608984 | Q44: 1034.660405 | R44: 1008.711825 | S44: 982.7632462 | T44: 956.8146669 | U44: 930.8660876 | V44: 904.9175083 | W44: 878.968929 | X44: 853.0203497 | Y44: 827.0717704 | Z44: 801.1231911 | AA44: 775.1746118 | AB44: 749.2260325 | AC44: 723.2774532 | AD44: 697.3288739
C46: Interest component of regulated return | F46: ='Prelim Calc'!F8 -> 0.028752 | G46: =F46 -> 0.028752 | H46: 0.028752 | I46: 0.028752 | J46: 0.028752 | K46: 0.028752 | L46: 0.028752 | M46: 0.028752 | N46: 0.028752 | O46: 0.028752 | P46: 0.028752 | Q46: 0.028752 | R46: 0.028752 | S46: 0.028752 | T46: 0.028752 | U46: 0.028752 | V46: 0.028752 | W46: 0.028752 | X46: 0.028752 | Y46: 0.028752 | Z46: 0.028752 | AA46: 0.028752 | AB46: 0.028752 | AC46: 0.028752 | AD46: 0.028752
C48: Interest charge to finance part of rate base - $k - C | F48: =F40*F46 -> 284.9218238 | G48: 564.1874617 | H48: 552.8750898 | I48: 541.5627179 | J48: 530.250346 | K48: 518.9379741 | L48: 507.6256022 | M48: 496.3132303 | N48: 485.0008584 | O48: 473.6884865 | P48: 462.3761146 | Q48: 451.0637427 | R48: 439.7513708 | S48: 428.4389989 | T48: 417.126627 | U48: 405.8142551 | V48: 394.5018832 | W48: 383.1895113 | X48: 371.8771394 | Y48: 360.5647674 | Z48: 349.2523955 | AA48: 337.9400236 | AB48: 326.6276517 | AC48: 315.3152798 | AD48: 304.0029079
C50: Depreciation & Amortization - $k | F50: =F35+F28+F21+F14 -> 393.4464352 | G50: 393.4464352 | H50: 393.4464352 | I50: 393.4464352 | J50: 393.4464352 | K50: 393.4464352 | L50: 393.4464352 | M50: 393.4464352 | N50: 393.4464352 | O50: 393.4464352 | P50: 393.4464352 | Q50: 393.4464352 | R50: 393.4464352 | S50: 393.4464352 | T50: 393.4464352 | U50: 393.4464352 | V50: 393.4464352 | W50: 393.4464352 | X50: 393.4464352 | Y50: 393.4464352 | Z50: 393.4464352 | AA50: 393.4464352 | AB50: 393.4464352 | AC50: 393.4464352 | AD50: 393.4464352
C52: Calculations of income taxes for revenue requirement:
C54: Incremental revenue - $k | F54: ='NPV Calc'!F17 -> 917.8205281 | G54: ='NPV Calc'!G17 -> 939.9091505 | H54: ='NPV Calc'!H17 -> 962.1558604 | I54: ='NPV Calc'!I17 -> 984.5617892 | J54: ='NPV Calc'!J17 -> 1007.128077 | K54: ='NPV Calc'!K17 -> 1029.85587 | L54: ='NPV Calc'!L17 -> 1052.746326 | M54: ='NPV Calc'!M17 -> 1075.733921 | N54: ='NPV Calc'!N17 -> 1098.745204 | O54: ='NPV Calc'!O17 -> 1122.098795 | P54: ='NPV Calc'!P17 -> 1145.619314 | Q54: ='NPV Calc'!Q17 -> 1169.307953 | R54: ='NPV Calc'!R17 -> 1192.690562 | S54: ='NPV Calc'!S17 -> 1215.255413 | T54: ='NPV Calc'!T17 -> 1239.304811 | U54: ='NPV Calc'!U17 -> 1263.525135 | V54: ='NPV Calc'!V17 -> 1287.917602 | W54: ='NPV Calc'!W17 -> 1311.16214 | X54: ='NPV Calc'!X17 -> 1331.859319 | Y54: ='NPV Calc'!Y17 -> 1356.457046 | Z54: ='NPV Calc'!Z17 -> 1381.227627 | AA54: ='NPV Calc'!AA17 -> 1406.172276 | AB54: ='NPV Calc'!AB17 -> 1431.292216 | AC54: ='NPV Calc'!AC17 -> 1456.838544 | AD54: ='NPV Calc'!AD17 -> 1483.333626
C56: Incremental OM&A costs (includes removals) - $k | E56: ='NPV Calc'!E20+'NPV Calc'!E21 -> 0 | F56: ='NPV Calc'!F20+'NPV Calc'!F21 -> 0 | G56: ='NPV Calc'!G20+'NPV Calc'!G21 -> 0 | H56: ='NPV Calc'!H20+'NPV Calc'!H21 -> 0 | I56: ='NPV Calc'!I20+'NPV Calc'!I21 -> 0 | J56: ='NPV Calc'!J20+'NPV Calc'!J21 -> 0 | K56: ='NPV Calc'!K20+'NPV Calc'!K21 -> 0 | L56: ='NPV Calc'!L20+'NPV Calc'!L21 -> 0 | M56: ='NPV Calc'!M20+'NPV Calc'!M21 -> 0 | N56: ='NPV Calc'!N20+'NPV Calc'!N21 -> 0 | O56: ='NPV Calc'!O20+'NPV Calc'!O21 -> 0 | P56: ='NPV Calc'!P20+'NPV Calc'!P21 -> 0 | Q56: ='NPV Calc'!Q20+'NPV Calc'!Q21 -> 0 | R56: ='NPV Calc'!R20+'NPV Calc'!R21 -> 0 | S56: ='NPV Calc'!S20+'NPV Calc'!S21 -> 0 | T56: ='NPV Calc'!T20+'NPV Calc'!T21 -> 0 | U56: ='NPV Calc'!U20+'NPV Calc'!U21 -> 0 | V56: ='NPV Calc'!V20+'NPV Calc'!V21 -> 0 | W56: ='NPV Calc'!W20+'NPV Calc'!W21 -> 0 | X56: ='NPV Calc'!X20+'NPV Calc'!X21 -> 0 | Y56: ='NPV Calc'!Y20+'NPV Calc'!Y21 -> 0 | Z56: ='NPV Calc'!Z20+'NPV Calc'!Z21 -> 0 | AA56: ='NPV Calc'!AA20+'NPV Calc'!AA21 -> 0 | AB56: ='NPV Calc'!AB20+'NPV Calc'!AB21 -> 0 | AC56: ='NPV Calc'!AC20+'NPV Calc'!AC21 -> 0 | AD56: ='NPV Calc'!AD20+'NPV Calc'!AD21 -> 0
C57: Other expenses - $k:
C58: Municipal tax | E58: ='NPV Calc'!E22 -> 0 | F58: ='NPV Calc'!F22 -> -85.54486559 | G58: ='NPV Calc'!G22 -> -85.54486559 | H58: ='NPV Calc'!H22 -> -85.54486559 | I58: ='NPV Calc'!I22 -> -85.54486559 | J58: ='NPV Calc'!J22 -> -85.54486559 | K58: ='NPV Calc'!K22 -> -85.54486559 | L58: ='NPV Calc'!L22 -> -85.54486559 | M58: ='NPV Calc'!M22 -> -85.54486559 | N58: ='NPV Calc'!N22 -> -85.54486559 | O58: ='NPV Calc'!O22 -> -85.54486559 | P58: ='NPV Calc'!P22 -> -85.54486559 | Q58: ='NPV Calc'!Q22 -> -85.54486559 | R58: ='NPV Calc'!R22 -> -85.54486559 | S58: ='NPV Calc'!S22 -> -85.54486559 | T58: ='NPV Calc'!T22 -> -85.54486559 | U58: ='NPV Calc'!U22 -> -85.54486559 | V58: ='NPV Calc'!V22 -> -85.54486559 | W58: ='NPV Calc'!W22 -> -85.54486559 | X58: ='NPV Calc'!X22 -> -85.54486559 | Y58: ='NPV Calc'!Y22 -> -85.54486559 | Z58: ='NPV Calc'!Z22 -> -85.54486559 | AA58: ='NPV Calc'!AA22 -> -85.54486559 | AB58: ='NPV Calc'!AB22 -> -85.54486559 | AC58: ='NPV Calc'!AC22 -> -85.54486559 | AD58: ='NPV Calc'!AD22 -> -85.54486559
C59: CCA | E59: =-'NPV Calc'!E90 -> 0 | F59: =-'NPV Calc'!F90 -> -786.8928704 | G59: =-'NPV Calc'!G90 -> -1510.834311 | H59: =-'NPV Calc'!H90 -> -1389.967566 | I59: =-'NPV Calc'!I90 -> -1278.770161 | J59: =-'NPV Calc'!J90 -> -1176.468548 | K59: =-'NPV Calc'!K90 -> -1082.351064 | L59: =-'NPV Calc'!L90 -> -995.7629791 | M59: =-'NPV Calc'!M90 -> -916.1019408 | N59: =-'NPV Calc'!N90 -> -842.8137855 | O59: =-'NPV Calc'!O90 -> -775.3886827 | P59: =-'NPV Calc'!P90 -> -713.3575881 | Q59: =-'NPV Calc'!Q90 -> -656.288981 | R59: =-'NPV Calc'!R90 -> -603.7858625 | S59: =-'NPV Calc'!S90 -> -555.4829935 | T59: =-'NPV Calc'!T90 -> -511.0443541 | U59: =-'NPV Calc'!U90 -> -470.1608057 | V59: =-'NPV Calc'!V90 -> -432.5479413 | W59: =-'NPV Calc'!W90 -> -397.944106 | X59: =-'NPV Calc'!X90 -> -366.1085775 | Y59: =-'NPV Calc'!Y90 -> -336.8198913 | Z59: =-'NPV Calc'!Z90 -> -309.8743 | AA59: =-'NPV Calc'!AA90 -> -285.084356 | AB59: =-'NPV Calc'!AB90 -> -262.2776075 | AC59: =-'NPV Calc'!AC90 -> -241.2953989 | AD59: =-'NPV Calc'!AD90 -> -221.991767
C60: Interest (see C above) | E60: =-E48 -> 0 | F60: -284.9218238 | G60: -564.1874617 | H60: -552.8750898 | I60: -541.5627179 | J60: -530.250346 | K60: -518.9379741 | L60: -507.6256022 | M60: -496.3132303 | N60: -485.0008584 | O60: -473.6884865 | P60: -462.3761146 | Q60: -451.0637427 | R60: -439.7513708 | S60: -428.4389989 | T60: -417.126627 | U60: -405.8142551 | V60: -394.5018832 | W60: -383.1895113 | X60: -371.8771394 | Y60: -360.5647674 | Z60: -349.2523955 | AA60: -337.9400236 | AB60: -326.6276517 | AC60: -315.3152798 | AD60: -304.0029079
C61: Total costs / expenses - $k | E61: =SUM(E56:E60) -> 0 | F61: -1157.35956 | G61: -2160.566639 | H61: -2028.387522 | I61: -1905.877744 | J61: -1792.26376 | K61: -1686.833904 | L61: -1588.933447 | M61: -1497.960037 | N61: -1413.35951 | O61: -1334.622035 | P61: -1261.278568 | Q61: -1192.897589 | R61: -1129.082099 | S61: -1069.466858 | T61: -1013.715847 | U61: -961.5199264 | V61: -912.59469 | W61: -866.6784828 | X61: -823.5305824 | Y61: -782.9295243 | Z61: -744.6715611 | AA61: -708.5692452 | AB61: -674.4501248 | AC61: -642.1555443 | AD61: -611.5395405
C63: Taxable income for revenue requirement purposes - $k: | E63: =E54+E61 -> 0 | F63: -239.5390317 | G63: -1220.657488 | H63: -1066.231661 | I63: -921.3159553 | J63: -785.1356832 | K63: -656.978034 | L63: -536.1871214 | M63: -422.2261156 | N63: -314.614306 | O63: -212.5232395 | P63: -115.6592541 | Q63: -23.58963591 | R63: 63.60846291 | S63: 145.7885551 | T63: 225.588964 | U63: 302.0052088 | V63: 375.3229115 | W63: 444.4836574 | X63: 508.3287367 | Y63: 573.5275218 | Z63: 636.5560657 | AA63: 697.6030306 | AB63: 756.8420915 | AC63: 814.6829999 | AD63: 871.7940855
C65: Total tax provisions required - $k | E65: =-E63*'Standard Inputs'!$B$27 -> 0 | F65: =-F63*'Standard Inputs'!$B$27 -> 63.4778434 | G65: =-G63*'Standard Inputs'!$B$27 -> 323.4742343 | H65: =-H63*'Standard Inputs'!$B$27 -> 282.5513903 | I65: =-I63*'Standard Inputs'!$B$27 -> 244.1487282 | J65: =-J63*'Standard Inputs'!$B$27 -> 208.060956 | K65: =-K63*'Standard Inputs'!$B$27 -> 174.099179 | L65: =-L63*'Standard Inputs'!$B$27 -> 142.0895872 | M65: =-M63*'Standard Inputs'!$B$27 -> 111.8899206 | N65: =-N63*'Standard Inputs'!$B$27 -> 83.37279109 | O65: =-O63*'Standard Inputs'!$B$27 -> 56.31865846 | P65: =-P63*'Standard Inputs'!$B$27 -> 30.64970233 | Q65: =-Q63*'Standard Inputs'!$B$27 -> 6.251253516 | R65: =-R63*'Standard Inputs'!$B$27 -> -16.85624267 | S65: =-S63*'Standard Inputs'!$B$27 -> -38.63396711 | T65: =-T63*'Standard Inputs'!$B$27 -> -59.78107547 | U65: =-U63*'Standard Inputs'!$B$27 -> -80.03138032 | V65: =-V63*'Standard Inputs'!$B$27 -> -99.46057154 | W65: =-W63*'Standard Inputs'!$B$27 -> -117.7881692 | X65: =-X63*'Standard Inputs'!$B$27 -> -134.7071152 | Y65: =-Y63*'Standard Inputs'!$B$27 -> -151.9847933 | Z65: =-Z63*'Standard Inputs'!$B$27 -> -168.6873574 | AA65: =-AA63*'Standard Inputs'!$B$27 -> -184.8648031 | AB65: =-AB63*'Standard Inputs'!$B$27 -> -200.5631542 | AC65: =-AC63*'Standard Inputs'!$B$27 -> -215.890995 | AD65: =-AD63*'Standard Inputs'!$B$27 -> -231.0254327
C67: Calculations of revenue required
C68: Incremental revenue - $k | E68: =E54 -> 0 | F68: 917.8205281 | G68: 939.9091505 | H68: 962.1558604 | I68: 984.5617892 | J68: 1007.128077 | K68: 1029.85587 | L68: 1052.746326 | M68: 1075.733921 | N68: 1098.745204 | O68: 1122.098795 | P68: 1145.619314 | Q68: 1169.307953 | R68: 1192.690562 | S68: 1215.255413 | T68: 1239.304811 | U68: 1263.525135 | V68: 1287.917602 | W68: 1311.16214 | X68: 1331.859319 | Y68: 1356.457046 | Z68: 1381.227627 | AA68: 1406.172276 | AB68: 1431.292216 | AC68: 1456.838544 | AD68: 1483.333626
C69: Incremental OM&A costs - $k | E69: =E56 -> 0 | F69: 0 | G69: 0 | H69: 0 | I69: 0 | J69: 0 | K69: 0 | L69: 0 | M69: 0 | N69: 0 | O69: 0 | P69: 0 | Q69: 0 | R69: 0 | S69: 0 | T69: 0 | U69: 0 | V69: 0 | W69: 0 | X69: 0 | Y69: 0 | Z69: 0 | AA69: 0 | AB69: 0 | AC69: 0 | AD69: 0
C70: Other expenses, excluding financing charges - $k:
C71: Municipal tax | E71: =E58 -> 0 | F71: -85.54486559 | G71: -85.54486559 | H71: -85.54486559 | I71: -85.54486559 | J71: -85.54486559 | K71: -85.54486559 | L71: -85.54486559 | M71: -85.54486559 | N71: -85.54486559 | O71: -85.54486559 | P71: -85.54486559 | Q71: -85.54486559 | R71: -85.54486559 | S71: -85.54486559 | T71: -85.54486559 | U71: -85.54486559 | V71: -85.54486559 | W71: -85.54486559 | X71: -85.54486559 | Y71: -85.54486559 | Z71: -85.54486559 | AA71: -85.54486559 | AB71: -85.54486559 | AC71: -85.54486559 | AD71: -85.54486559
C72: Depreciation & Amortization | E72: =-E50 -> 0 | F72: -393.4464352 | G72: -393.4464352 | H72: -393.4464352 | I72: -393.4464352 | J72: -393.4464352 | K72: -393.4464352 | L72: -393.4464352 | M72: -393.4464352 | N72: -393.4464352 | O72: -393.4464352 | P72: -393.4464352 | Q72: -393.4464352 | R72: -393.4464352 | S72: -393.4464352 | T72: -393.4464352 | U72: -393.4464352 | V72: -393.4464352 | W72: -393.4464352 | X72: -393.4464352 | Y72: -393.4464352 | Z72: -393.4464352 | AA72: -393.4464352 | AB72: -393.4464352 | AC72: -393.4464352 | AD72: -393.4464352
C73: Total expenses, excluding financing charges - $k | E73: =E71+E72 -> 0 | F73: -478.9913008 | G73: -478.9913008 | H73: -478.9913008 | I73: -478.9913008 | J73: -478.9913008 | K73: -478.9913008 | L73: -478.9913008 | M73: -478.9913008 | N73: -478.9913008 | O73: -478.9913008 | P73: -478.9913008 | Q73: -478.9913008 | R73: -478.9913008 | S73: -478.9913008 | T73: -478.9913008 | U73: -478.9913008 | V73: -478.9913008 | W73: -478.9913008 | X73: -478.9913008 | Y73: -478.9913008 | Z73: -478.9913008 | AA73: -478.9913008 | AB73: -478.9913008 | AC73: -478.9913008 | AD73: -478.9913008
C74: Total tax provisions required - $k | E74: =E65 -> 0 | F74: 63.4778434 | G74: 323.4742343 | H74: 282.5513903 | I74: 244.1487282 | J74: 208.060956 | K74: 174.099179 | L74: 142.0895872 | M74: 111.8899206 | N74: 83.37279109 | O74: 56.31865846 | P74: 30.64970233 | Q74: 6.251253516 | R74: -16.85624267 | S74: -38.63396711 | T74: -59.78107547 | U74: -80.03138032 | V74: -99.46057154 | W74: -117.7881692 | X74: -134.7071152 | Y74: -151.9847933 | Z74: -168.6873574 | AA74: -184.8648031 | AB74: -200.5631542 | AC74: -215.890995 | AD74: -231.0254327
C75: Achieved return - $k | E75: =E68+E69+E73+E74 -> 0 | F75: 502.3070707 | G75: 784.392084 | H75: 765.7159498 | I75: 749.7192166 | J75: 736.1977318 | K75: 724.9637482 | L75: 715.8446119 | M75: 708.6325409 | N75: 703.1266938 | O75: 699.426153 | P75: 697.2777157 | Q75: 696.5679061 | R75: 696.8430184 | S75: 697.6301452 | T75: 700.5324344 | U75: 704.502454 | V75: 709.4657292 | W75: 714.3826702 | X75: 718.1609031 | Y75: 725.4809521 | Z75: 733.5489686 | AA75: 742.3161719 | AB75: 751.7377613 | AC75: 761.9562485 | AD75: 773.3168926
C77: Required return on rate base - $k - see B above | E77: =E44 -> 0 | F77: 653.5602437 | G77: 1294.146198 | H77: 1268.197618 | I77: 1242.249039 | J77: 1216.30046 | K77: 1190.351881 | L77: 1164.403301 | M77: 1138.454722 | N77: 1112.506143 | O77: 1086.557563 | P77: 1060.608984 | Q77: 1034.660405 | R77: 1008.711825 | S77: 982.7632462 | T77: 956.8146669 | U77: 930.8660876 | V77: 904.9175083 | W77: 878.968929 | X77: 853.0203497 | Y77: 827.0717704 | Z77: 801.1231911 | AA77: 775.1746118 | AB77: 749.2260325 | AC77: 723.2774532 | AD77: 697.3288739
C78: Sufficiency/(deficiency) after-tax - $k | E78: =E75-E77 -> 0 | F78: -151.2531729 | G78: -509.7541137 | H78: -502.4816686 | I78: -492.5298225 | J78: -480.102728 | K78: -465.3881323 | L78: -448.5586893 | M78: -429.822181 | N78: -409.3794488 | O78: -387.1314104 | P78: -363.3312683 | Q78: -338.0924987 | R78: -311.8688071 | S78: -285.1331009 | T78: -256.2822325 | U78: -226.3636335 | V78: -195.4517791 | W78: -164.5862588 | X78: -134.8594466 | Y78: -101.5908183 | Z78: -67.5742225 | AA78: -32.85843992 | AB78: 2.511728751 | AC78: 38.67879525 | AD78: 75.98801863
C79: Sufficiency/(deficiency) before-tax - $k - above / (1 - Income tax rate) | E79: =E78/(1-'Standard Inputs'!$B$27) -> 0 | F79: =F78/(1-'Standard Inputs'!$B$27) -> -205.7866299 | G79: =G78/(1-'Standard Inputs'!$B$27) -> -693.5430118 | H79: =H78/(1-'Standard Inputs'!$B$27) -> -683.6485287 | I79: =I78/(1-'Standard Inputs'!$B$27) -> -670.1086021 | J79: =J78/(1-'Standard Inputs'!$B$27) -> -653.2009905 | K79: =K78/(1-'Standard Inputs'!$B$27) -> -633.1811324 | L79: =L78/(1-'Standard Inputs'!$B$27) -> -610.2839311 | M79: =M78/(1-'Standard Inputs'!$B$27) -> -584.792083 | N79: =N78/(1-'Standard Inputs'!$B$27) -> -556.978842 | O79: =O78/(1-'Standard Inputs'!$B$27) -> -526.7094019 | P79: =P78/(1-'Standard Inputs'!$B$27) -> -494.3282562 | Q79: =Q78/(1-'Standard Inputs'!$B$27) -> -459.9897941 | R79: =R78/(1-'Standard Inputs'!$B$27) -> -424.3113022 | S79: =S78/(1-'Standard Inputs'!$B$27) -> -387.9361918 | T79: =T78/(1-'Standard Inputs'!$B$27) -> -348.6833095 | U79: =U78/(1-'Standard Inputs'!$B$27) -> -307.9777327 | V79: =V78/(1-'Standard Inputs'!$B$27) -> -265.9207879 | W79: =W78/(1-'Standard Inputs'!$B$27) -> -223.9268827 | X79: =X78/(1-'Standard Inputs'!$B$27) -> -183.4822402 | Y79: =Y78/(1-'Standard Inputs'!$B$27) -> -138.2188004 | Z79: =Z78/(1-'Standard Inputs'!$B$27) -> -91.93771769 | AA79: =AA78/(1-'Standard Inputs'!$B$27) -> -44.70536044 | AB79: =AB78/(1-'Standard Inputs'!$B$27) -> 3.417318028 | AC79: =AC78/(1-'Standard Inputs'!$B$27) -> 52.62421123 | AD79: =AD78/(1-'Standard Inputs'!$B$27) -> 103.3850594
C80: Revenue requirement - $k - Revenue + suff./(def.) above | E80: =E68-E79 -> 0 | F80: 1123.607158 | G80: 1633.452162 | H80: 1645.804389 | I80: 1654.670391 | J80: 1660.329067 | K80: 1663.037002 | L80: 1663.030257 | M80: 1660.526004 | N80: 1655.724045 | O80: 1648.808197 | P80: 1639.94757 | Q80: 1629.297747 | R80: 1617.001864 | S80: 1603.191605 | T80: 1587.98812 | U80: 1571.502868 | V80: 1553.838389 | W80: 1535.089023 | X80: 1515.341559 | Y80: 1494.675847 | Z80: 1473.165345 | AA80: 1450.877636 | AB80: 1427.874898 | AC80: 1404.214333 | AD80: 1379.948567
C82: Check:
C83: Revenue requirement - $k | E83: =E80 -> 0 | F83: 1123.607158 | G83: 1633.452162 | H83: 1645.804389 | I83: 1654.670391 | J83: 1660.329067 | K83: 1663.037002 | L83: 1663.030257 | M83: 1660.526004 | N83: 1655.724045 | O83: 1648.808197 | P83: 1639.94757 | Q83: 1629.297747 | R83: 1617.001864 | S83: 1603.191605 | T83: 1587.98812 | U83: 1571.502868 | V83: 1553.838389 | W83: 1535.089023 | X83: 1515.341559 | Y83: 1494.675847 | Z83: 1473.165345 | AA83: 1450.877636 | AB83: 1427.874898 | AC83: 1404.214333 | AD83: 1379.948567
C84: Total OM&A and expenses, excluding financing charges - $k | E84: =E69+E73 -> 0 | F84: -478.9913008 | G84: -478.9913008 | H84: -478.9913008 | I84: -478.9913008 | J84: -478.9913008 | K84: -478.9913008 | L84: -478.9913008 | M84: -478.9913008 | N84: -478.9913008 | O84: -478.9913008 | P84: -478.9913008 | Q84: -478.9913008 | R84: -478.9913008 | S84: -478.9913008 | T84: -478.9913008 | U84: -478.9913008 | V84: -478.9913008 | W84: -478.9913008 | X84: -478.9913008 | Y84: -478.9913008 | Z84: -478.9913008 | AA84: -478.9913008 | AB84: -478.9913008 | AC84: -478.9913008 | AD84: -478.9913008
C85: Income taxes - $k - see D below | E85: =E101 -> 0 | F85: =F101 -> 8.944386494 | G85: 139.6853362 | H85: 101.3845302 | I85: 66.56994859 | J85: 34.96269355 | K85: 6.306178911 | L85: -19.63565456 | M85: -43.07998137 | N85: -64.22660203 | O85: -83.25933304 | P85: -100.3472856 | Q85: -115.6460419 | R85: -129.2987378 | S85: -141.4370579 | T85: -152.1821525 | U85: -161.6454795 | V85: -169.9295803 | W85: -177.1287931 | X85: -183.3299089 | Y85: -188.6127754 | Z85: -193.0508526 | AA85: -196.7117236 | AB85: -199.657565 | AC85: -201.945579 | AD85: -203.6283919
C86: Achieved return - $k | E86: =SUM(E83:E85) -> 0 | F86: 653.5602437 | G86: 1294.146198 | H86: 1268.197618 | I86: 1242.249039 | J86: 1216.30046 | K86: 1190.351881 | L86: 1164.403301 | M86: 1138.454722 | N86: 1112.506143 | O86: 1086.557563 | P86: 1060.608984 | Q86: 1034.660405 | R86: 1008.711825 | S86: 982.7632462 | T86: 956.8146669 | U86: 930.8660876 | V86: 904.9175083 | W86: 878.968929 | X86: 853.0203497 | Y86: 827.0717704 | Z86: 801.1231911 | AA86: 775.1746118 | AB86: 749.2260325 | AC86: 723.2774532 | AD86: 697.3288739
C87: Required return - $k - see B above | E87: =E77 -> 0 | F87: 653.5602437 | G87: 1294.146198 | H87: 1268.197618 | I87: 1242.249039 | J87: 1216.30046 | K87: 1190.351881 | L87: 1164.403301 | M87: 1138.454722 | N87: 1112.506143 | O87: 1086.557563 | P87: 1060.608984 | Q87: 1034.660405 | R87: 1008.711825 | S87: 982.7632462 | T87: 956.8146669 | U87: 930.8660876 | V87: 904.9175083 | W87: 878.968929 | X87: 853.0203497 | Y87: 827.0717704 | Z87: 801.1231911 | AA87: 775.1746118 | AB87: 749.2260325 | AC87: 723.2774532 | AD87: 697.3288739
C88: Difference (should be zero) | E88: =E86-E87 -> 0 | F88: 0 | G88: 0 | H88: 0 | I88: 0 | J88: 0 | K88: 0 | L88: 0 | M88: 0 | N88: 0 | O88: 0 | P88: 0 | Q88: 0 | R88: 0 | S88: 0 | T88: 0 | U88: 0 | V88: 0 | W88: 0 | X88: 0 | Y88: 0 | Z88: 0 | AA88: 0 | AB88: 0 | AC88: 0 | AD88: 0
C89: Achieved return % | E89: =IF(E40<0.1,0,E86/E40) -> 0 | F89: 0.065952 | G89: 0.065952 | H89: 0.065952 | I89: 0.065952 | J89: 0.065952 | K89: 0.065952 | L89: 0.065952 | M89: 0.065952 | N89: 0.065952 | O89: 0.065952 | P89: 0.065952 | Q89: 0.065952 | R89: 0.065952 | S89: 0.065952 | T89: 0.065952 | U89: 0.065952 | V89: 0.065952 | W89: 0.065952 | X89: 0.065952 | Y89: 0.065952 | Z89: 0.065952 | AA89: 0.065952 | AB89: 0.065952 | AC89: 0.065952 | AD89: 0.065952
C90: Required return % | E90: =IF(E40<0.1,0,E87/E40) -> 0 | F90: 0.065952 | G90: 0.065952 | H90: 0.065952 | I90: 0.065952 | J90: 0.065952 | K90: 0.065952 | L90: 0.065952 | M90: 0.065952 | N90: 0.065952 | O90: 0.065952 | P90: 0.065952 | Q90: 0.065952 | R90: 0.065952 | S90: 0.065952 | T90: 0.065952 | U90: 0.065952 | V90: 0.065952 | W90: 0.065952 | X90: 0.065952 | Y90: 0.065952 | Z90: 0.065952 | AA90: 0.065952 | AB90: 0.065952 | AC90: 0.065952 | AD90: 0.065952
C92: Calculations of income taxes for revenue requirement
C93: Incremental revenue - $k | E93: =E80 -> 0 | F93: =F80 -> 1123.607158 | G93: 1633.452162 | H93: 1645.804389 | I93: 1654.670391 | J93: 1660.329067 | K93: 1663.037002 | L93: 1663.030257 | M93: 1660.526004 | N93: 1655.724045 | O93: 1648.808197 | P93: 1639.94757 | Q93: 1629.297747 | R93: 1617.001864 | S93: 1603.191605 | T93: 1587.98812 | U93: 1571.502868 | V93: 1553.838389 | W93: 1535.089023 | X93: 1515.341559 | Y93: 1494.675847 | Z93: 1473.165345 | AA93: 1450.877636 | AB93: 1427.874898 | AC93: 1404.214333 | AD93: 1379.948567
C94: Incremental OM&A costs - $k | E94: =E69 -> 0 | F94: =F69 -> 0 | G94: 0 | H94: 0 | I94: 0 | J94: 0 | K94: 0 | L94: 0 | M94: 0 | N94: 0 | O94: 0 | P94: 0 | Q94: 0 | R94: 0 | S94: 0 | T94: 0 | U94: 0 | V94: 0 | W94: 0 | X94: 0 | Y94: 0 | Z94: 0 | AA94: 0 | AB94: 0 | AC94: 0 | AD94: 0
C95: Other expenses $k:
C96: Municipal tax | E96: =E58 -> 0 | F96: =F58 -> -85.54486559 | G96: -85.54486559 | H96: -85.54486559 | I96: -85.54486559 | J96: -85.54486559 | K96: -85.54486559 | L96: -85.54486559 | M96: -85.54486559 | N96: -85.54486559 | O96: -85.54486559 | P96: -85.54486559 | Q96: -85.54486559 | R96: -85.54486559 | S96: -85.54486559 | T96: -85.54486559 | U96: -85.54486559 | V96: -85.54486559 | W96: -85.54486559 | X96: -85.54486559 | Y96: -85.54486559 | Z96: -85.54486559 | AA96: -85.54486559 | AB96: -85.54486559 | AC96: -85.54486559 | AD96: -85.54486559
C97: CCA | E97: =E59 -> 0 | F97: =F59 -> -786.8928704 | G97: -1510.834311 | H97: -1389.967566 | I97: -1278.770161 | J97: -1176.468548 | K97: -1082.351064 | L97: -995.7629791 | M97: -916.1019408 | N97: -842.8137855 | O97: -775.3886827 | P97: -713.3575881 | Q97: -656.288981 | R97: -603.7858625 | S97: -555.4829935 | T97: -511.0443541 | U97: -470.1608057 | V97: -432.5479413 | W97: -397.944106 | X97: -366.1085775 | Y97: -336.8198913 | Z97: -309.8743 | AA97: -285.084356 | AB97: -262.2776075 | AC97: -241.2953989 | AD97: -221.991767
C98: Interest (see C above) | E98: =E60 -> 0 | F98: =F60 -> -284.9218238 | G98: -564.1874617 | H98: -552.8750898 | I98: -541.5627179 | J98: -530.250346 | K98: -518.9379741 | L98: -507.6256022 | M98: -496.3132303 | N98: -485.0008584 | O98: -473.6884865 | P98: -462.3761146 | Q98: -451.0637427 | R98: -439.7513708 | S98: -428.4389989 | T98: -417.126627 | U98: -405.8142551 | V98: -394.5018832 | W98: -383.1895113 | X98: -371.8771394 | Y98: -360.5647674 | Z98: -349.2523955 | AA98: -337.9400236 | AB98: -326.6276517 | AC98: -315.3152798 | AD98: -304.0029079
C99: Total costs / expenses - $k | E99: =SUM(E96:E98) -> 0 | F99: =SUM(F96:F98) -> -1157.35956 | G99: -2160.566639 | H99: -2028.387522 | I99: -1905.877744 | J99: -1792.26376 | K99: -1686.833904 | L99: -1588.933447 | M99: -1497.960037 | N99: -1413.35951 | O99: -1334.622035 | P99: -1261.278568 | Q99: -1192.897589 | R99: -1129.082099 | S99: -1069.466858 | T99: -1013.715847 | U99: -961.5199264 | V99: -912.59469 | W99: -866.6784828 | X99: -823.5305824 | Y99: -782.9295243 | Z99: -744.6715611 | AA99: -708.5692452 | AB99: -674.4501248 | AC99: -642.1555443 | AD99: -611.5395405
C100: Taxable income for revenue requirement purposes - $k: | E100: =E93+E94+E99 -> 0 | F100: =F93+F94+F99 -> -33.75240186 | G100: -527.1144762 | H100: -382.5831327 | I100: -251.2073532 | J100: -131.9346926 | K100: -23.79690155 | L100: 74.09680968 | M100: 162.5659674 | N100: 242.364536 | O100: 314.1861624 | P100: 378.6690022 | Q100: 436.4001582 | R100: 487.9197651 | S100: 533.7247469 | T100: 574.2722735 | U100: 609.9829415 | V100: 641.2436994 | W100: 668.4105401 | X100: 691.810977 | Y100: 711.7463223 | Z100: 728.4937834 | AA100: 742.308391 | AB100: 753.4247734 | AC100: 762.0587887 | AD100: 768.4090261
C101: Income taxes @ Fed. & Ont. Taxminus Surtax - $k - D | E101: =-E100*'Standard Inputs'!$B$27 -> 0 | F101: =-F100*'Standard Inputs'!$B$27 -> 8.944386494 | G101: =-G100*'Standard Inputs'!$B$27 -> 139.6853362 | H101: =-H100*'Standard Inputs'!$B$27 -> 101.3845302 | I101: =-I100*'Standard Inputs'!$B$27 -> 66.56994859 | J101: =-J100*'Standard Inputs'!$B$27 -> 34.96269355 | K101: =-K100*'Standard Inputs'!$B$27 -> 6.306178911 | L101: =-L100*'Standard Inputs'!$B$27 -> -19.63565456 | M101: =-M100*'Standard Inputs'!$B$27 -> -43.07998137 | N101: =-N100*'Standard Inputs'!$B$27 -> -64.22660203 | O101: =-O100*'Standard Inputs'!$B$27 -> -83.25933304 | P101: =-P100*'Standard Inputs'!$B$27 -> -100.3472856 | Q101: =-Q100*'Standard Inputs'!$B$27 -> -115.6460419 | R101: =-R100*'Standard Inputs'!$B$27 -> -129.2987378 | S101: =-S100*'Standard Inputs'!$B$27 -> -141.4370579 | T101: =-T100*'Standard Inputs'!$B$27 -> -152.1821525 | U101: =-U100*'Standard Inputs'!$B$27 -> -161.6454795 | V101: =-V100*'Standard Inputs'!$B$27 -> -169.9295803 | W101: =-W100*'Standard Inputs'!$B$27 -> -177.1287931 | X101: =-X100*'Standard Inputs'!$B$27 -> -183.3299089 | Y101: =-Y100*'Standard Inputs'!$B$27 -> -188.6127754 | Z101: =-Z100*'Standard Inputs'!$B$27 -> -193.0508526 | AA101: =-AA100*'Standard Inputs'!$B$27 -> -196.7117236 | AB101: =-AB100*'Standard Inputs'!$B$27 -> -199.657565 | AC101: =-AC100*'Standard Inputs'!$B$27 -> -201.945579 | AD101: =-AD100*'Standard Inputs'!$B$27 -> -203.6283919
C104: Transformation revenue requirement | D104: =IF('Project Inputs'!$B$17="Transformation",'Standard Inputs'!C7,IF('Project Inputs'!$B$17="Network",'Standard Inputs'!#REF!,IF('Project Inputs'!$B$17="Line",'Standard Inputs'!C6,0))) -> 412602.957 | E104: =IF(ISNUMBER(E4),$D$104+E80,0) -> 412602.957 | F104: =IF(ISNUMBER(F4),$D$104+F80,0) -> 413726.5642 | G104: 414236.4092 | H104: 414248.7614 | I104: 414257.6274 | J104: 414263.2861 | K104: 414265.994 | L104: 414265.9873 | M104: 414263.483 | N104: 414258.681 | O104: 414251.7652 | P104: 414242.9046 | Q104: 414232.2547 | R104: 414219.9589 | S104: 414206.1486 | T104: 414190.9451 | U104: 414174.4599 | V104: 414156.7954 | W104: 414138.046 | X104: 414118.2986 | Y104: 414097.6328 | Z104: 414076.1223 | AA104: 414053.8346 | AB104: 414030.8319 | AC104: 414007.1713 | AD104: 413982.9056
C105: Transformation MW | D105: =IF('Project Inputs'!$B$17="Transformation",'Standard Inputs'!D7,IF('Project Inputs'!$B$17="Network",'Standard Inputs'!#REF!,IF('Project Inputs'!$B$17="Line",'Standard Inputs'!D6,""))) -> 206187.042 | E105: =IF(ISNUMBER(E4),$D$105+'NPV Calc'!E12*12,0) -> 206187.042 | F105: =IF(ISNUMBER(F4),$D$105+'NPV Calc'!F12*12,0) -> 206645.9523 | G105: =IF(ISNUMBER(G4),$D$105+'NPV Calc'!G12*12,0) -> 206656.9966 | H105: =IF(ISNUMBER(H4),$D$105+'NPV Calc'!H12*12,0) -> 206668.1199 | I105: =IF(ISNUMBER(I4),$D$105+'NPV Calc'!I12*12,0) -> 206679.3229 | J105: =IF(ISNUMBER(J4),$D$105+'NPV Calc'!J12*12,0) -> 206690.606 | K105: =IF(ISNUMBER(K4),$D$105+'NPV Calc'!K12*12,0) -> 206701.9699 | L105: =IF(ISNUMBER(L4),$D$105+'NPV Calc'!L12*12,0) -> 206713.4152 | M105: =IF(ISNUMBER(M4),$D$105+'NPV Calc'!M12*12,0) -> 206724.909 | N105: =IF(ISNUMBER(N4),$D$105+'NPV Calc'!N12*12,0) -> 206736.4146 | O105: =IF(ISNUMBER(O4),$D$105+'NPV Calc'!O12*12,0) -> 206748.0914 | P105: =IF(ISNUMBER(P4),$D$105+'NPV Calc'!P12*12,0) -> 206759.8517 | Q105: =IF(ISNUMBER(Q4),$D$105+'NPV Calc'!Q12*12,0) -> 206771.696 | R105: =IF(ISNUMBER(R4),$D$105+'NPV Calc'!R12*12,0) -> 206783.3873 | S105: =IF(ISNUMBER(S4),$D$105+'NPV Calc'!S12*12,0) -> 206794.6697 | T105: =IF(ISNUMBER(T4),$D$105+'NPV Calc'!T12*12,0) -> 206806.6944 | U105: =IF(ISNUMBER(U4),$D$105+'NPV Calc'!U12*12,0) -> 206818.8046 | V105: =IF(ISNUMBER(V4),$D$105+'NPV Calc'!V12*12,0) -> 206831.0008 | W105: =IF(ISNUMBER(W4),$D$105+'NPV Calc'!W12*12,0) -> 206842.6231 | X105: =IF(ISNUMBER(X4),$D$105+'NPV Calc'!X12*12,0) -> 206852.9717 | Y105: =IF(ISNUMBER(Y4),$D$105+'NPV Calc'!Y12*12,0) -> 206865.2705 | Z105: =IF(ISNUMBER(Z4),$D$105+'NPV Calc'!Z12*12,0) -> 206877.6558 | AA105: =IF(ISNUMBER(AA4),$D$105+'NPV Calc'!AA12*12,0) -> 206890.1281 | AB105: =IF(ISNUMBER(AB4),$D$105+'NPV Calc'!AB12*12,0) -> 206902.6881 | AC105: =IF(ISNUMBER(AC4),$D$105+'NPV Calc'!AC12*12,0) -> 206915.4613 | AD105: =IF(ISNUMBER(AD4),$D$105+'NPV Calc'!AD12*12,0) -> 206928.7088
C106: Transformation Rate ($/kW/month) | D106: =ROUND(D104/D105,2) -> 2 | E106: =IF(ISNUMBER(E4),ROUND(E104/E105,2),0) -> 2 | F106: =IF(ISNUMBER(F4),ROUND(F104/F105,2),0) -> 2 | G106: 2 | H106: 2 | I106: 2 | J106: 2 | K106: 2 | L106: 2 | M106: 2 | N106: 2 | O106: 2 | P106: 2 | Q106: 2 | R106: 2 | S106: 2 | T106: 2 | U106: 2 | V106: 2 | W106: 2 | X106: 2 | Y106: 2 | Z106: 2 | AA106: 2 | AB106: 2 | AC106: 2 | AD106: 2
C107: Rate Impact | E107: =IF(ISNUMBER(E4),E106/$D106-1,0) -> 0 | F107: =IF(ISNUMBER(F4),F106/$D106-1,0) -> 0 | G107: 0 | H107: 0 | I107: 0 | J107: 0 | K107: 0 | L107: 0 | M107: 0 | N107: 0 | O107: 0 | P107: 0 | Q107: 0 | R107: 0 | S107: 0 | T107: 0 | U107: 0 | V107: 0 | W107: 0 | X107: 0 | Y107: 0 | Z107: 0 | AA107: 0 | AB107: 0 | AC107: 0 | AD107: 0

Sheet Standard Report
A1: `
E2: Date: | F2: 2015-04-22 | I2: =IF('Capital Cont Inputs'!B48="Revenue Guarantee","SUMMARY OF REVENUE GUARANTEE","SUMMARY OF CONTRIBUTION CALCULATIONS") -> SUMMARY OF CONTRIBUTION CALCULATIONS
E3: Project # | F3: ='Project Inputs'!B7 -> 17503 | I3: ='Project Inputs'!B17&" Pool"&" - "&'Project Inputs'!B28 -> Transformation Pool - Estimated cost
J5: =IF(AND('Capital Cont Inputs'!B31="Yes",'Capital Cont Inputs'!B48="Revenue Guarantee"),"Warning - the revenue guarantee has not been calculated, therefore the revenue guarantee report is not available for review.",IF(AND('Capital Cont Inputs'!B45="Revenue Guarantee",'Capital Cont Inputs'!B48="Revenue Guarantee",ROUND(NPVStandardReport,6)<>0),"WARNING - the NPV has changed since the last run of the Revenue Guarantee. Please re-run before reporting.",IF(AND('Capital Cont Inputs'!B45="Revenue Guarantee",'Capital Cont Inputs'!B48="IEE/True-up",NPVStandardReport<>NPVBeforeCC),"Warning - the NPV has changed since the last run of the Revenue Guarantee. Please re-run before reporting.",IF(AND((ROUND('NPV Calc'!D50,6)<>ROUND('Standard Report'!F96,6)),'Capital Cont Inputs'!B31="Yes"),"WARNING - the NPV has changed since the last run of the IEE calculation. Please re-run before reporting.","")))) -> 
J6: =IF('NPV Calc'!C2="Yes","WARNING - The detailed report is set to include capital contributions. Therefore, the report is not correct.","") -> 
E8: Facility Name: | G8: ='Project Inputs'!B9 -> Supply to Essex County Transmission Reinforcement
E9: Description: | G9: ='Project Inputs'!B11 -> Transformation Capital Contribution Analysis
E10: Customer: | G10: =Customer -> Hydro One Distribution
I12: In-Service
I13: Date | J13: <------- | K13: Project year ended - annualized from In-Service Date -------->
G14: Month | I14: =IF(ISNUMBER(I15),'Project Inputs'!$B$15,"") -> 2018-03-31 | J14: =IF(ISNUMBER(J15),'Project Inputs'!$B$15,"") -> 2018-03-31 | K14: =IF(ISNUMBER(K15),'Project Inputs'!$B$15,"") -> 2018-03-31 | L14: =IF(ISNUMBER(L15),'Project Inputs'!$B$15,"") -> 2018-03-31 | M14: =IF(ISNUMBER(M15),'Project Inputs'!$B$15,"") -> 2018-03-31 | N14: =IF(ISNUMBER(N15),'Project Inputs'!$B$15,"") -> 2018-03-31 | O14: =IF(ISNUMBER(O15),'Project Inputs'!$B$15,"") -> 2018-03-31 | P14: =IF(ISNUMBER(P15),'Project Inputs'!$B$15,"") -> 2018-03-31 | Q14: =IF(ISNUMBER(Q15),'Project Inputs'!$B$15,"") -> 2018-03-31 | R14: =IF(ISNUMBER(R15),'Project Inputs'!$B$15,"") -> 2018-03-31 | S14: =IF(ISNUMBER(S15),'Project Inputs'!$B$15,"") -> 2018-03-31 | T14: =IF(ISNUMBER(T15),'Project Inputs'!$B$15,"") -> 2018-03-31 | U14: =IF(ISNUMBER(U15),'Project Inputs'!$B$15,"") -> 2018-03-31 | V14: =IF(ISNUMBER(V15),'Project Inputs'!$B$15,"") -> 2018-03-31 | W14: =IF(ISNUMBER(W15),'Project Inputs'!$B$15,"") -> 2018-03-31 | X14: =IF(ISNUMBER(X15),'Project Inputs'!$B$15,"") -> 2018-03-31 | Y14: =IF(ISNUMBER(Y15),'Project Inputs'!$B$15,"") -> 2018-03-31 | Z14: =IF(ISNUMBER(Z15),'Project Inputs'!$B$15,"") -> 2018-03-31 | AA14: =IF(ISNUMBER(AA15),'Project Inputs'!$B$15,"") -> 2018-03-31 | AB14: =IF(ISNUMBER(AB15),'Project Inputs'!$B$15,"") -> 2018-03-31 | AC14: =IF(ISNUMBER(AC15),'Project Inputs'!$B$15,"") -> 2018-03-31 | AD14: =IF(ISNUMBER(AD15),'Project Inputs'!$B$15,"") -> 2018-03-31 | AE14: =IF(ISNUMBER(AE15),'Project Inputs'!$B$15,"") -> 2018-03-31 | AF14: =IF(ISNUMBER(AF15),'Project Inputs'!$B$15,"") -> 2018-03-31 | AG14: =IF(ISNUMBER(AG15),'Project Inputs'!$B$15,"") -> 2018-03-31 | AH14: =IF(ISNUMBER(AH15),'Project Inputs'!$B$15,"") -> 2018-03-31
G15: Year | I15: ='Capital Cont Inputs'!B15 -> 2018 | J15: ='Capital Cont Inputs'!C15 -> 2019 | K15: ='Capital Cont Inputs'!D15 -> 2020 | L15: ='Capital Cont Inputs'!E15 -> 2021 | M15: ='Capital Cont Inputs'!F15 -> 2022 | N15: ='Capital Cont Inputs'!G15 -> 2023 | O15: ='Capital Cont Inputs'!H15 -> 2024 | P15: ='Capital Cont Inputs'!I15 -> 2025 | Q15: ='Capital Cont Inputs'!J15 -> 2026 | R15: ='Capital Cont Inputs'!K15 -> 2027 | S15: ='Capital Cont Inputs'!L15 -> 2028 | T15: ='Capital Cont Inputs'!M15 -> 2029 | U15: ='Capital Cont Inputs'!N15 -> 2030 | V15: ='Capital Cont Inputs'!O15 -> 2031 | W15: ='Capital Cont Inputs'!P15 -> 2032 | X15: ='Capital Cont Inputs'!Q15 -> 2033 | Y15: ='Capital Cont Inputs'!R15 -> 2034 | Z15: ='Capital Cont Inputs'!S15 -> 2035 | AA15: ='Capital Cont Inputs'!T15 -> 2036 | AB15: ='Capital Cont Inputs'!U15 -> 2037 | AC15: ='Capital Cont Inputs'!V15 -> 2038 | AD15: ='Capital Cont Inputs'!W15 -> 2039 | AE15: ='Capital Cont Inputs'!X15 -> 2040 | AF15: ='Capital Cont Inputs'!Y15 -> 2041 | AG15: ='Capital Cont Inputs'!Z15 -> 2042 | AH15: ='Capital Cont Inputs'!AA15 -> 2043
J16: =IF(ISNA('Capital Cont Inputs'!C14),"",'Capital Cont Inputs'!C14) ->  | K16: =IF(ISNA('Capital Cont Inputs'!D14),"",'Capital Cont Inputs'!D14) ->  | L16: =IF(ISNA('Capital Cont Inputs'!E14),"",'Capital Cont Inputs'!E14) ->  | M16: =IF(ISNA('Capital Cont Inputs'!F14),"",'Capital Cont Inputs'!F14) ->  | N16: =IF(ISNA('Capital Cont Inputs'!G14),"",'Capital Cont Inputs'!G14) -> 1st true-up | O16: =IF(ISNA('Capital Cont Inputs'!H14),"",'Capital Cont Inputs'!H14) ->  | P16: =IF(ISNA('Capital Cont Inputs'!I14),"",'Capital Cont Inputs'!I14) ->  | Q16: =IF(ISNA('Capital Cont Inputs'!J14),"",'Capital Cont Inputs'!J14) ->  | R16: =IF(ISNA('Capital Cont Inputs'!K14),"",'Capital Cont Inputs'!K14) ->  | S16: =IF(ISNA('Capital Cont Inputs'!L14),"",'Capital Cont Inputs'!L14) -> 2nd true-up | T16: =IF(ISNA('Capital Cont Inputs'!M14),"",'Capital Cont Inputs'!M14) ->  | U16: =IF(ISNA('Capital Cont Inputs'!N14),"",'Capital Cont Inputs'!N14) ->  | V16: =IF(ISNA('Capital Cont Inputs'!O14),"",'Capital Cont Inputs'!O14) ->  | W16: =IF(ISNA('Capital Cont Inputs'!P14),"",'Capital Cont Inputs'!P14) ->  | X16: =IF(ISNA('Capital Cont Inputs'!Q14),"",'Capital Cont Inputs'!Q14) -> 3rd true-up | Y16: =IF(ISNA('Capital Cont Inputs'!R14),"",'Capital Cont Inputs'!R14) ->  | Z16: =IF(ISNA('Capital Cont Inputs'!S14),"",'Capital Cont Inputs'!S14) ->  | AA16: =IF(ISNA('Capital Cont Inputs'!T14),"",'Capital Cont Inputs'!T14) ->  | AB16: =IF(ISNA('Capital Cont Inputs'!U14),"",'Capital Cont Inputs'!U14) ->  | AC16: =IF(ISNA('Capital Cont Inputs'!V14),"",'Capital Cont Inputs'!V14) ->  | AD16: =IF(ISNA('Capital Cont Inputs'!W14),"",'Capital Cont Inputs'!W14) ->  | AE16: =IF(ISNA('Capital Cont Inputs'!X14),"",'Capital Cont Inputs'!X14) ->  | AF16: =IF(ISNA('Capital Cont Inputs'!Y14),"",'Capital Cont Inputs'!Y14) ->  | AG16: =IF(ISNA('Capital Cont Inputs'!Z14),"",'Capital Cont Inputs'!Z14) ->  | AH16: =IF(ISNA('Capital Cont Inputs'!AA14),"",'Capital Cont Inputs'!AA14) -> 
I17: ='Capital Cont Inputs'!B16 -> 0 | J17: ='Capital Cont Inputs'!C16 -> 1 | K17: ='Capital Cont Inputs'!D16 -> 2 | L17: ='Capital Cont Inputs'!E16 -> 3 | M17: ='Capital Cont Inputs'!F16 -> 4 | N17: ='Capital Cont Inputs'!G16 -> 5 | O17: ='Capital Cont Inputs'!H16 -> 6 | P17: ='Capital Cont Inputs'!I16 -> 7 | Q17: ='Capital Cont Inputs'!J16 -> 8 | R17: ='Capital Cont Inputs'!K16 -> 9 | S17: ='Capital Cont Inputs'!L16 -> 10 | T17: ='Capital Cont Inputs'!M16 -> 11 | U17: ='Capital Cont Inputs'!N16 -> 12 | V17: ='Capital Cont Inputs'!O16 -> 13 | W17: ='Capital Cont Inputs'!P16 -> 14 | X17: ='Capital Cont Inputs'!Q16 -> 15 | Y17: ='Capital Cont Inputs'!R16 -> 16 | Z17: ='Capital Cont Inputs'!S16 -> 17 | AA17: ='Capital Cont Inputs'!T16 -> 18 | AB17: ='Capital Cont Inputs'!U16 -> 19 | AC17: ='Capital Cont Inputs'!V16 -> 20 | AD17: ='Capital Cont Inputs'!W16 -> 21 | AE17: ='Capital Cont Inputs'!X16 -> 22 | AF17: ='Capital Cont Inputs'!Y16 -> 23 | AG17: ='Capital Cont Inputs'!Z16 -> 24 | AH17: ='Capital Cont Inputs'!AA16 -> 25
C18: Revenue & Expense Forecast
E19: Load Forecast (MW) | J19: ='NPV Calc'!F10 -> 38.24252201 | K19: ='NPV Calc'!G10 -> 39.16288127 | L19: ='NPV Calc'!H10 -> 40.08982752 | M19: ='NPV Calc'!I10 -> 41.02340788 | N19: ='NPV Calc'!J10 -> 41.96366986 | O19: ='NPV Calc'!K10 -> 42.91066125 | P19: ='NPV Calc'!L10 -> 43.86443023 | Q19: ='NPV Calc'!M10 -> 44.82224671 | R19: ='NPV Calc'!N10 -> 45.78105015 | S19: ='NPV Calc'!O10 -> 46.75411647 | T19: ='NPV Calc'!P10 -> 47.73413809 | U19: ='NPV Calc'!Q10 -> 48.72116472 | V19: ='NPV Calc'!R10 -> 49.69544008 | W19: ='NPV Calc'!S10 -> 50.63564221 | X19: ='NPV Calc'!T10 -> 51.63770044 | Y19: ='NPV Calc'!U10 -> 52.64688063 | Z19: ='NPV Calc'!V10 -> 53.6632334 | AA19: ='NPV Calc'!W10 -> 54.63175584 | AB19: ='NPV Calc'!X10 -> 55.4941383 | AC19: ='NPV Calc'!Y10 -> 56.51904359 | AD19: ='NPV Calc'!Z10 -> 57.55115112 | AE19: ='NPV Calc'!AA10 -> 58.59051149 | AF19: ='NPV Calc'!AB10 -> 59.63717568 | AG19: ='NPV Calc'!AC10 -> 60.70160601 | AH19: ='NPV Calc'!AD10 -> 61.80556775
E20: Load adjustments (MW) | J20: ='NPV Calc'!F11 -> 0 | K20: ='NPV Calc'!G11 -> 0 | L20: ='NPV Calc'!H11 -> 0 | M20: ='NPV Calc'!I11 -> 0 | N20: ='NPV Calc'!J11 -> 0 | O20: ='NPV Calc'!K11 -> 0 | P20: ='NPV Calc'!L11 -> 0 | Q20: ='NPV Calc'!M11 -> 0 | R20: ='NPV Calc'!N11 -> 0 | S20: ='NPV Calc'!O11 -> 0 | T20: ='NPV Calc'!P11 -> 0 | U20: ='NPV Calc'!Q11 -> 0 | V20: ='NPV Calc'!R11 -> 0 | W20: ='NPV Calc'!S11 -> 0 | X20: ='NPV Calc'!T11 -> 0 | Y20: ='NPV Calc'!U11 -> 0 | Z20: ='NPV Calc'!V11 -> 0 | AA20: ='NPV Calc'!W11 -> 0 | AB20: ='NPV Calc'!X11 -> 0 | AC20: ='NPV Calc'!Y11 -> 0 | AD20: ='NPV Calc'!Z11 -> 0 | AE20: ='NPV Calc'!AA11 -> 0 | AF20: ='NPV Calc'!AB11 -> 0 | AG20: ='NPV Calc'!AC11 -> 0 | AH20: ='NPV Calc'!AD11 -> 0
J21: =J19+J20 -> 38.24252201 | K21: =K19+K20 -> 39.16288127 | L21: 40.08982752 | M21: 41.02340788 | N21: 41.96366986 | O21: 42.91066125 | P21: 43.86443023 | Q21: 44.82224671 | R21: 45.78105015 | S21: 46.75411647 | T21: 47.73413809 | U21: 48.72116472 | V21: 49.69544008 | W21: 50.63564221 | X21: 51.63770044 | Y21: 52.64688063 | Z21: 53.6632334 | AA21: 54.63175584 | AB21: 55.4941383 | AC21: 56.51904359 | AD21: 57.55115112 | AE21: 58.59051149 | AF21: 59.63717568 | AG21: 60.70160601 | AH21: 61.80556775
E22: Tariff Applied ($/kW/Month) | J22: ='NPV Calc'!F14 -> 2 | K22: ='NPV Calc'!G14 -> 2 | L22: ='NPV Calc'!H14 -> 2 | M22: ='NPV Calc'!I14 -> 2 | N22: ='NPV Calc'!J14 -> 2 | O22: ='NPV Calc'!K14 -> 2 | P22: ='NPV Calc'!L14 -> 2 | Q22: ='NPV Calc'!M14 -> 2 | R22: ='NPV Calc'!N14 -> 2 | S22: ='NPV Calc'!O14 -> 2 | T22: ='NPV Calc'!P14 -> 2 | U22: ='NPV Calc'!Q14 -> 2 | V22: ='NPV Calc'!R14 -> 2 | W22: ='NPV Calc'!S14 -> 2 | X22: ='NPV Calc'!T14 -> 2 | Y22: ='NPV Calc'!U14 -> 2 | Z22: ='NPV Calc'!V14 -> 2 | AA22: ='NPV Calc'!W14 -> 2 | AB22: ='NPV Calc'!X14 -> 2 | AC22: ='NPV Calc'!Y14 -> 2 | AD22: ='NPV Calc'!Z14 -> 2 | AE22: ='NPV Calc'!AA14 -> 2 | AF22: ='NPV Calc'!AB14 -> 2 | AG22: ='NPV Calc'!AC14 -> 2 | AH22: ='NPV Calc'!AD14 -> 2
C23: Incremental Revenue - $k | J23: =J21*J22*12 -> 917.8205281 | K23: =K21*K22*12 -> 939.9091505 | L23: 962.1558604 | M23: 984.5617892 | N23: 1007.128077 | O23: 1029.85587 | P23: 1052.746326 | Q23: 1075.733921 | R23: 1098.745204 | S23: 1122.098795 | T23: 1145.619314 | U23: 1169.307953 | V23: 1192.690562 | W23: 1215.255413 | X23: 1239.304811 | Y23: 1263.525135 | Z23: 1287.917602 | AA23: 1311.16214 | AB23: 1331.859319 | AC23: 1356.457046 | AD23: 1381.227627 | AE23: 1406.172276 | AF23: 1431.292216 | AG23: 1456.838544 | AH23: 1483.333626
E24: Removal Costs - $k | I24: ='NPV Calc'!E20 -> 0
E25: On-going OM&A Costs - $k | I25: ='NPV Calc'!E21 -> 0 | J25: ='NPV Calc'!F21 -> 0 | K25: ='NPV Calc'!G21 -> 0 | L25: ='NPV Calc'!H21 -> 0 | M25: ='NPV Calc'!I21 -> 0 | N25: ='NPV Calc'!J21 -> 0 | O25: ='NPV Calc'!K21 -> 0 | P25: ='NPV Calc'!L21 -> 0 | Q25: ='NPV Calc'!M21 -> 0 | R25: ='NPV Calc'!N21 -> 0 | S25: ='NPV Calc'!O21 -> 0 | T25: ='NPV Calc'!P21 -> 0 | U25: ='NPV Calc'!Q21 -> 0 | V25: ='NPV Calc'!R21 -> 0 | W25: ='NPV Calc'!S21 -> 0 | X25: ='NPV Calc'!T21 -> 0 | Y25: ='NPV Calc'!U21 -> 0 | Z25: ='NPV Calc'!V21 -> 0 | AA25: ='NPV Calc'!W21 -> 0 | AB25: ='NPV Calc'!X21 -> 0 | AC25: ='NPV Calc'!Y21 -> 0 | AD25: ='NPV Calc'!Z21 -> 0 | AE25: ='NPV Calc'!AA21 -> 0 | AF25: ='NPV Calc'!AB21 -> 0 | AG25: ='NPV Calc'!AC21 -> 0 | AH25: ='NPV Calc'!AD21 -> 0
E26: Municipal Tax - $k | J26: ='NPV Calc'!F22 -> -85.54486559 | K26: ='NPV Calc'!G22 -> -85.54486559 | L26: ='NPV Calc'!H22 -> -85.54486559 | M26: ='NPV Calc'!I22 -> -85.54486559 | N26: ='NPV Calc'!J22 -> -85.54486559 | O26: ='NPV Calc'!K22 -> -85.54486559 | P26: ='NPV Calc'!L22 -> -85.54486559 | Q26: ='NPV Calc'!M22 -> -85.54486559 | R26: ='NPV Calc'!N22 -> -85.54486559 | S26: ='NPV Calc'!O22 -> -85.54486559 | T26: ='NPV Calc'!P22 -> -85.54486559 | U26: ='NPV Calc'!Q22 -> -85.54486559 | V26: ='NPV Calc'!R22 -> -85.54486559 | W26: ='NPV Calc'!S22 -> -85.54486559 | X26: ='NPV Calc'!T22 -> -85.54486559 | Y26: ='NPV Calc'!U22 -> -85.54486559 | Z26: ='NPV Calc'!V22 -> -85.54486559 | AA26: ='NPV Calc'!W22 -> -85.54486559 | AB26: ='NPV Calc'!X22 -> -85.54486559 | AC26: ='NPV Calc'!Y22 -> -85.54486559 | AD26: ='NPV Calc'!Z22 -> -85.54486559 | AE26: ='NPV Calc'!AA22 -> -85.54486559 | AF26: ='NPV Calc'!AB22 -> -85.54486559 | AG26: ='NPV Calc'!AC22 -> -85.54486559 | AH26: ='NPV Calc'!AD22 -> -85.54486559
C27: Net Revenue/(Costs) before taxes - $k | I27: =SUM(I23:I26) -> 0 | J27: 832.2756625 | K27: 854.3642849 | L27: 876.6109948 | M27: 899.0169236 | N27: 921.5832109 | O27: 944.3110044 | P27: 967.20146 | Q27: 990.1890555 | R27: 1013.200338 | S27: 1036.55393 | T27: 1060.074449 | U27: 1083.763088 | V27: 1107.145696 | W27: 1129.710548 | X27: 1153.759945 | Y27: 1177.98027 | Z27: 1202.372736 | AA27: 1225.617275 | AB27: 1246.314454 | AC27: 1270.912181 | AD27: 1295.682761 | AE27: 1320.62741 | AF27: 1345.747351 | AG27: 1371.293679 | AH27: 1397.78876
E28: Income Taxes - $k | I28: ='NPV Calc'!E26 -> 0 | J28: ='NPV Calc'!F26 -> -12.02643991 | K28: ='NPV Calc'!G26 -> 173.964557 | L28: ='NPV Calc'!H26 -> 136.0394914 | M28: ='NPV Calc'!I26 -> 100.6346079 | N28: ='NPV Calc'!J26 -> 67.54461435 | O28: ='NPV Calc'!K26 -> 36.58061586 | P28: ='NPV Calc'!L26 -> 7.568802578 | Q28: ='NPV Calc'!M26 -> -19.63308541 | R28: ='NPV Calc'!N26 -> -45.15243639 | S28: ='NPV Calc'!O26 -> -69.20879046 | T28: ='NPV Calc'!P26 -> -91.87996804 | U28: ='NPV Calc'!Q26 -> -113.2806383 | V28: ='NPV Calc'!R26 -> -133.3903559 | W28: ='NPV Calc'!S26 -> -152.1703018 | X28: ='NPV Calc'!T26 -> -170.3196316 | Y28: ='NPV Calc'!U26 -> -187.5721579 | Z28: ='NPV Calc'!V26 -> -204.0035706 | AA28: ='NPV Calc'!W26 -> -219.3333897 | AB28: ='NPV Calc'!X26 -> -233.2545572 | AC28: ='NPV Calc'!Y26 -> -247.5344567 | AD28: ='NPV Calc'!Z26 -> -261.2392422 | AE28: ='NPV Calc'!AA26 -> -274.4189094 | AF28: ='NPV Calc'!AB26 -> -287.1194819 | AG28: ='NPV Calc'!AC26 -> -299.4495441 | AH28: ='NPV Calc'!AD26 -> -311.5862033
C29: Operating Cash Flow (after taxes) - $k | I29: =SUM(I27:I28) -> 0 | J29: =SUM(J27:J28) -> 820.2492226 | K29: 1028.328842 | L29: 1012.650486 | M29: 999.6515315 | N29: 989.1278253 | O29: 980.8916203 | P29: 974.7702625 | Q29: 970.5559701 | R29: 968.0479015 | S29: 967.3451392 | T29: 968.1944806 | U29: 970.4824495 | V29: 973.7553403 | W29: 977.5402457 | X29: 983.4403134 | Y29: 990.4081116 | Z29: 998.3691653 | AA29: 1006.283885 | AB29: 1013.059896 | AC29: 1023.377724 | AD29: 1034.443519 | AE29: 1046.208501 | AF29: 1058.627869 | AG29: 1071.844135 | AH29: 1086.202557
G30: Cumulative PV @
G31: ='Prelim Calc'!H13 -> 0.05833272
C32: PV Operating Cash Flow (after taxes) - $k (A) | G32: =SUM(I32:AH32) -> 13153.6576 | I32: =I29*'NPV Calc'!E47 -> 0 | J32: =J29*'NPV Calc'!F47 -> 797.3237779 | K32: =K29*'NPV Calc'!G47 -> 944.492866 | L32: =L29*'NPV Calc'!H47 -> 878.8282674 | M32: =M29*'NPV Calc'!I47 -> 819.7300471 | N32: =N29*'NPV Calc'!J47 -> 766.3945624 | O32: =O29*'NPV Calc'!K47 -> 718.1229341 | P32: =P29*'NPV Calc'!L47 -> 674.3072369 | Q32: =Q29*'NPV Calc'!M47 -> 634.386469 | R32: =R29*'NPV Calc'!N47 -> 597.8716363 | S32: =S29*'NPV Calc'!O47 -> 564.5083018 | T32: =T29*'NPV Calc'!P47 -> 533.8623068 | U32: =U29*'NPV Calc'!Q47 -> 505.6291679 | V32: =V29*'NPV Calc'!R47 -> 479.3713364 | W32: =W29*'NPV Calc'!S47 -> 454.7101337 | X32: =X29*'NPV Calc'!T47 -> 432.2408119 | Y32: =Y29*'NPV Calc'!U47 -> 411.3104359 | Z32: =Z29*'NPV Calc'!V47 -> 391.7639557 | AA32: =AA29*'NPV Calc'!W47 -> 373.1054659 | AB32: =AB29*'NPV Calc'!X47 -> 354.9147052 | AC32: =AC29*'NPV Calc'!Y47 -> 338.7681766 | AD32: =AD29*'NPV Calc'!Z47 -> 323.5573032 | AE32: =AE29*'NPV Calc'!AA47 -> 309.2006835 | AF32: =AF29*'NPV Calc'!AB47 -> 295.6264582 | AG32: =AG29*'NPV Calc'!AC47 -> 282.8195259 | AH32: =AH29*'NPV Calc'!AD47 -> 270.8110318
C34: Capital Expenditures - $k
E35: Capital cost before overheads & AFUDC - $k | I35: ='NPV Calc'!D31 -> -17188.1412
E36: - Overheads - $k | I36: ='NPV Calc'!E32 -> -2370.739767
E37: - AFUDC - $k | I37: ='NPV Calc'!E33 -> -653.835353
E38: Total upfront capital expenditures - $k | I38: =SUM(I35:I37) -> -20212.71632
E39: On-going capital expenditures - $k | J39: ='NPV Calc'!F37 -> 0 | K39: ='NPV Calc'!G37 -> 0 | L39: ='NPV Calc'!H37 -> 0 | M39: ='NPV Calc'!I37 -> 0 | N39: ='NPV Calc'!J37 -> 0 | O39: ='NPV Calc'!K37 -> 0 | P39: ='NPV Calc'!L37 -> 0 | Q39: ='NPV Calc'!M37 -> 0 | R39: ='NPV Calc'!N37 -> 0 | S39: ='NPV Calc'!O37 -> 0 | T39: ='NPV Calc'!P37 -> 0 | U39: ='NPV Calc'!Q37 -> 0 | V39: ='NPV Calc'!R37 -> 0 | W39: ='NPV Calc'!S37 -> 0 | X39: ='NPV Calc'!T37 -> 0 | Y39: ='NPV Calc'!U37 -> 0 | Z39: ='NPV Calc'!V37 -> 0 | AA39: ='NPV Calc'!W37 -> 0 | AB39: ='NPV Calc'!X37 -> 0 | AC39: ='NPV Calc'!Y37 -> 0 | AD39: ='NPV Calc'!Z37 -> 0 | AE39: ='NPV Calc'!AA37 -> 0 | AF39: ='NPV Calc'!AB37 -> 0 | AG39: ='NPV Calc'!AC37 -> 0 | AH39: ='NPV Calc'!AD37 -> 0
E40: PV On-going capital expenditures - $k | I40: ='NPV Calc'!D37 -> 0
E41: Total capital expenditures - $k | I41: =I38+I40 -> -20212.71632
C43: Capital Contributions - $k
E44: Previous capital contribution/(credit) | I44: ='NPV Calc'!E40 -> 0 | J44: =IF(J15>=True_up_year,"",'NPV Calc'!F40) ->  | K44: =IF(K15>=True_up_year,"",'NPV Calc'!G40) ->  | L44: =IF(L15>=True_up_year,"",'NPV Calc'!H40) ->  | M44: =IF(M15>=True_up_year,"",'NPV Calc'!I40) ->  | N44: =IF(N15>=True_up_year,"",'NPV Calc'!J40) ->  | O44: =IF(O15>=True_up_year,"",'NPV Calc'!K40) ->  | P44: =IF(P15>=True_up_year,"",'NPV Calc'!L40) ->  | Q44: =IF(Q15>=True_up_year,"",'NPV Calc'!M40) ->  | R44: =IF(R15>=True_up_year,"",'NPV Calc'!N40) ->  | S44: =IF(S15>=True_up_year,"",'NPV Calc'!O40) ->  | T44: =IF(T15>=True_up_year,"",'NPV Calc'!P40) ->  | U44: =IF(U15>=True_up_year,"",'NPV Calc'!Q40) ->  | V44: =IF(V15>=True_up_year,"",'NPV Calc'!R40) ->  | W44: =IF(W15>=True_up_year,"",'NPV Calc'!S40) ->  | X44: =IF(X15>=True_up_year,"",'NPV Calc'!T40) ->  | Y44: =IF(Y15>=True_up_year,"",'NPV Calc'!U40) ->  | Z44: =IF(Z15>=True_up_year,"",'NPV Calc'!V40) ->  | AA44: =IF(AA15>=True_up_year,"",'NPV Calc'!W40) ->  | AB44: =IF(AB15>=True_up_year,"",'NPV Calc'!X40) ->  | AC44: =IF(AC15>=True_up_year,"",'NPV Calc'!Y40) ->  | AD44: =IF(AD15>=True_up_year,"",'NPV Calc'!Z40) ->  | AE44: =IF(AE15>=True_up_year,"",'NPV Calc'!AA40) ->  | AF44: =IF(AF15>=True_up_year,"",'NPV Calc'!AB40) ->  | AG44: =IF(AG15>=True_up_year,"",'NPV Calc'!AC40) ->  | AH44: =IF(AH15>=True_up_year,"",'NPV Calc'!AD40) -> 
E45: Current capital contribution/(credit) | I45: =IF(I15=True_up_year,'NPV Calc'!E41,"") -> 0 | J45: =IF(J15=True_up_year,'NPV Calc'!F41,"") ->  | K45: =IF(K15=True_up_year,'NPV Calc'!G41,"") ->  | L45: =IF(L15=True_up_year,'NPV Calc'!H41,"") ->  | M45: =IF(M15=True_up_year,'NPV Calc'!I41,"") ->  | N45: =IF(N15=True_up_year,'NPV Calc'!J41,"") ->  | O45: =IF(O15=True_up_year,'NPV Calc'!K41,"") ->  | P45: =IF(P15=True_up_year,'NPV Calc'!L41,"") ->  | Q45: =IF(Q15=True_up_year,'NPV Calc'!M41,"") ->  | R45: =IF(R15=True_up_year,'NPV Calc'!N41,"") ->  | S45: =IF(S15=True_up_year,'NPV Calc'!O41,"") ->  | T45: =IF(T15=True_up_year,'NPV Calc'!P41,"") ->  | U45: =IF(U15=True_up_year,'NPV Calc'!Q41,"") ->  | V45: =IF(V15=True_up_year,'NPV Calc'!R41,"") ->  | W45: =IF(W15=True_up_year,'NPV Calc'!S41,"") ->  | X45: =IF(X15=True_up_year,'NPV Calc'!T41,"") ->  | Y45: =IF(Y15=True_up_year,'NPV Calc'!U41,"") ->  | Z45: =IF(Z15=True_up_year,'NPV Calc'!V41,"") ->  | AA45: =IF(AA15=True_up_year,'NPV Calc'!W41,"") ->  | AB45: =IF(AB15=True_up_year,'NPV Calc'!X41,"") ->  | AC45: =IF(AC15=True_up_year,'NPV Calc'!Y41,"") ->  | AD45: =IF(AD15=True_up_year,'NPV Calc'!Z41,"") ->  | AE45: =IF(AE15=True_up_year,'NPV Calc'!AA41,"") ->  | AF45: =IF(AF15=True_up_year,'NPV Calc'!AB41,"") ->  | AG45: =IF(AG15=True_up_year,'NPV Calc'!AC41,"") ->  | AH45: =IF(AH15=True_up_year,'NPV Calc'!AD41,"") -> 
E46: PV of annual capital contribution | I46: =IF(AND(I45="",I44=""),"",'NPV Calc'!E52) -> 0 | J46: =IF(AND(J45="",J44=""),"",'NPV Calc'!F52) ->  | K46: =IF(AND(K45="",K44=""),"",'NPV Calc'!G52) ->  | L46: =IF(AND(L45="",L44=""),"",'NPV Calc'!H52) ->  | M46: =IF(AND(M45="",M44=""),"",'NPV Calc'!I52) ->  | N46: =IF(AND(N45="",N44=""),"",'NPV Calc'!J52) ->  | O46: =IF(AND(O45="",O44=""),"",'NPV Calc'!K52) ->  | P46: =IF(AND(P45="",P44=""),"",'NPV Calc'!L52) ->  | Q46: =IF(AND(Q45="",Q44=""),"",'NPV Calc'!M52) ->  | R46: =IF(AND(R45="",R44=""),"",'NPV Calc'!N52) ->  | S46: =IF(AND(S45="",S44=""),"",'NPV Calc'!O52) ->  | T46: =IF(AND(T45="",T44=""),"",'NPV Calc'!P52) ->  | U46: =IF(AND(U45="",U44=""),"",'NPV Calc'!Q52) ->  | V46: =IF(AND(V45="",V44=""),"",'NPV Calc'!R52) ->  | W46: =IF(AND(W45="",W44=""),"",'NPV Calc'!S52) ->  | X46: =IF(AND(X45="",X44=""),"",'NPV Calc'!T52) ->  | Y46: =IF(AND(Y45="",Y44=""),"",'NPV Calc'!U52) ->  | Z46: =IF(AND(Z45="",Z44=""),"",'NPV Calc'!V52) ->  | AA46: =IF(AND(AA45="",AA44=""),"",'NPV Calc'!W52) ->  | AB46: =IF(AND(AB45="",AB44=""),"",'NPV Calc'!X52) ->  | AC46: =IF(AND(AC45="",AC44=""),"",'NPV Calc'!Y52) ->  | AD46: =IF(AND(AD45="",AD44=""),"",'NPV Calc'!Z52) ->  | AE46: =IF(AND(AE45="",AE44=""),"",'NPV Calc'!AA52) ->  | AF46: =IF(AND(AF45="",AF44=""),"",'NPV Calc'!AB52) ->  | AG46: =IF(AND(AG45="",AG44=""),"",'NPV Calc'!AC52) ->  | AH46: =IF(AND(AH45="",AH44=""),"",'NPV Calc'!AD52) -> 
E47: Total PV | I47: ='NPV Calc'!D42 -> 0
C51: PV CCA Residual Tax Shield - $k | I51: ='NPV Calc'!D27 -> 94.81784321
C53: PV Working Capital - $k | I53: ='NPV Calc'!D44 -> 0
C55: PV Capital (after taxes) - $k (B) | G55: =+I55 -> -20117.89848 | I55: =I41+I47+I51+I53 -> -20117.89848
C58: Cumulative PV Cash Flow (after taxes) - $k (A) + (B) | G58: =G32+G55 -> -6964.240878 | I58: =I55+I32 -> -20117.89848 | J58: =IF(ISNUMBER(J17),I58+J32,0) -> -19320.5747 | K58: =IF(ISNUMBER(K17),J58+K32,0) -> -18376.08183 | L58: -17497.25356 | M58: -16677.52352 | N58: -15911.12895 | O58: -15193.00602 | P58: -14518.69878 | Q58: -13884.31231 | R58: -13286.44068 | S58: -12721.93238 | T58: -12188.07007 | U58: -11682.4409 | V58: -11203.06957 | W58: -10748.35943 | X58: -10316.11862 | Y58: -9904.808184 | Z58: -9513.044228 | AA58: -9139.938763 | AB58: -8785.024057 | AC58: -8446.255881 | AD58: -8122.698578 | AE58: -7813.497894 | AF58: -7517.871436 | AG58: -7235.05191 | AH58: -6964.240878
C62: Discounted Cash Flow Summary | O62: Capital Contributions | Z62: Other Assumptions | AD62: Notes:
S63: PV of | U63: Previous | W63: Current
C64: Economic Study Horizon - Years: | G64: =IF(ISNUMBER('Project Inputs'!B21),'Project Inputs'!B21,'Project Inputs'!E19) -> 25 | Q64: Date | S64: Cont | U64: Cont Payments | W64: Cont / (Credit) | Z64: In-Service Date: | AC64: ='Project Inputs'!B15 -> 2018-03-31
S65: $k | U65: $k | W65: $k
C66: Discount Rate - % | G66: ='Prelim Calc'!H13 -> 0.05833272 | O66: Initial economic evaluation | Q66: =YEAR(AC64) -> 2018 | S66: ='Report After Cont $k'!I46 -> 8184.380131 | U66: =IF(AND(RevGuarFlag="Yes",Stage='Standard Inputs'!E75,'Capital Cont Inputs'!B27="No"),IEECapCon,'Report After Cont $k'!I44) ->  | W66: =IF(AND(RevGuarFlag="Yes",Stage='Standard Inputs'!E75,'Capital Cont Inputs'!B27="No"),'Capital Cont Inputs'!B18,IF(OR(Stage='Standard Inputs'!E74,Stage='Standard Inputs'!E75),'Report After Cont $k'!I45,"")) -> 8184.380131 | Z66: Municipal Tax | AC66: ='Standard Inputs'!B29 -> 0.00423223006 | AD66: Transmission system average
G68: Before | J68: After | O68: =IF(ISNUMBER(Q68),'Standard Inputs'!E76,"") ->  | Q68: =IF(OR('Project Inputs'!B28='Standard Inputs'!E76,'Project Inputs'!B28='Standard Inputs'!E77,'Project Inputs'!B28='Standard Inputs'!E78,'Project Inputs'!B28='Standard Inputs'!E79,'Project Inputs'!B28='Standard Inputs'!E80),HLOOKUP('Standard Inputs'!E76,'Capital Cont Inputs'!$B$14:$AA$15,MATCH('Capital Cont Inputs'!$A$15,'Capital Cont Inputs'!$A$14:$A$18,0),0),"") ->  | S68: =IF(ISNA(HLOOKUP('Standard Inputs'!E76,'Report After Cont $k'!$I$16:$AH$58,MATCH('Report After Cont $k'!$E$46,'Report After Cont $k'!E16:E59,0),0)),"",HLOOKUP('Standard Inputs'!E76,'Report After Cont $k'!$I$16:$AH$58,MATCH('Report After Cont $k'!$E$46,'Report After Cont $k'!E16:E59,0),0)) ->  | U68: =IF(ISNA(HLOOKUP('Standard Inputs'!E76,'Report After Cont $k'!$I$16:$AH$58,MATCH('Report After Cont $k'!$E$44,'Report After Cont $k'!E16:E59,0),0)),"",HLOOKUP('Standard Inputs'!E76,'Report After Cont $k'!$I$16:$AH$58,MATCH('Report After Cont $k'!$E$44,'Report After Cont $k'!E16:E59,0),0)) ->  | W68: =IF(ISNA(HLOOKUP('Standard Inputs'!E76,'Report After Cont $k'!$I$16:$AH$58,MATCH('Report After Cont $k'!$E$45,'Report After Cont $k'!$E$16:$E$59,0),0)),"",HLOOKUP('Standard Inputs'!E76,'Report After Cont $k'!$I$16:$AH$58,MATCH('Report After Cont $k'!$E$45,'Report After Cont $k'!$E$16:$E$59,0),0)) ->  | Z68: Federal Income Tax | AC68: ='Standard Inputs'!B25 -> 0.15 | AD68: ='Standard Inputs'!B64&" federal corporate income tax" -> 2015 federal corporate income tax
G69: Cont | J69: Cont | L69: Impact
G70: $k | J70: $k | L70: $k | O70: =IF(ISNUMBER(Q70),'Standard Inputs'!E77,"") ->  | Q70: =IF(OR('Project Inputs'!B28='Standard Inputs'!E77,'Project Inputs'!B28='Standard Inputs'!E78,'Project Inputs'!B28='Standard Inputs'!E79,'Project Inputs'!B28='Standard Inputs'!E80),HLOOKUP('Standard Inputs'!E77,'Capital Cont Inputs'!$B$14:$AA$15,MATCH('Capital Cont Inputs'!$A$15,'Capital Cont Inputs'!$A$14:$A$18,0),0),"") ->  | S70: =IF(ISNA(HLOOKUP('Standard Inputs'!E77,'Report After Cont $k'!$I$16:$AH$58,MATCH('Report After Cont $k'!$E$46,'Report After Cont $k'!E16:E59,0),0)),"",HLOOKUP('Standard Inputs'!E77,'Report After Cont $k'!$I$16:$AH$58,MATCH('Report After Cont $k'!$E$46,'Report After Cont $k'!E16:E59,0),0)) ->  | U70: =IF(ISNA(HLOOKUP('Standard Inputs'!E77,'Report After Cont $k'!$I$16:$AH$58,MATCH('Report After Cont $k'!$E$44,'Report After Cont $k'!E16:E59,0),0)),"",HLOOKUP('Standard Inputs'!E77,'Report After Cont $k'!$I$16:$AH$58,MATCH('Report After Cont $k'!$E$44,'Report After Cont $k'!E16:E59,0),0)) ->  | W70: =IF(ISNA(HLOOKUP('Standard Inputs'!E77,'Report After Cont $k'!$I$16:$AH$58,MATCH('Report After Cont $k'!$E$45,'Report After Cont $k'!$E$16:$E$59,0),0)),"",HLOOKUP('Standard Inputs'!E77,'Report After Cont $k'!$I$16:$AH$58,MATCH('Report After Cont $k'!$E$45,'Report After Cont $k'!$E$16:$E$59,0),0)) ->  | Z70: Ontario Corporation Income Tax | AC70: ='Standard Inputs'!B26 -> 0.115 | AD70: ='Standard Inputs'!B64&" provincial corporate income tax" -> 2015 provincial corporate income tax
C72: PV Incremental Revenue | G72: ='NPV Calc'!D17 -> 15068.39183 | J72: ='Report After Cont $k'!G72 -> 15068.39183 | L72: =IF(J72-G72=0,"",J72-G72) ->  | O72: =IF(ISNUMBER(Q72),'Standard Inputs'!E78,"") ->  | Q72: =IF(OR('Project Inputs'!B28='Standard Inputs'!E78,'Project Inputs'!B28='Standard Inputs'!E79,'Project Inputs'!B28='Standard Inputs'!E80),HLOOKUP('Standard Inputs'!E78,'Capital Cont Inputs'!$B$14:$AA$15,MATCH('Capital Cont Inputs'!$A$15,'Capital Cont Inputs'!$A$14:$A$18,0),0),"") ->  | S72: =IF(ISNA(HLOOKUP('Standard Inputs'!E78,'Report After Cont $k'!$I$16:$AH$58,MATCH('Report After Cont $k'!$E$46,'Report After Cont $k'!E16:E59,0),0)),"",HLOOKUP('Standard Inputs'!E78,'Report After Cont $k'!$I$16:$AH$58,MATCH('Report After Cont $k'!$E$46,'Report After Cont $k'!E16:E59,0),0)) ->  | U72: =IF(ISNA(HLOOKUP('Standard Inputs'!E78,'Report After Cont $k'!$I$16:$AH$58,MATCH('Report After Cont $k'!$E$44,'Report After Cont $k'!E16:E59,0),0)),"",HLOOKUP('Standard Inputs'!E78,'Report After Cont $k'!$I$16:$AH$58,MATCH('Report After Cont $k'!$E$44,'Report After Cont $k'!E16:E59,0),0)) ->  | W72: =IF(ISNA(HLOOKUP('Standard Inputs'!E78,'Report After Cont $k'!$I$16:$AH$58,MATCH('Report After Cont $k'!$E$45,'Report After Cont $k'!$E$16:$E$59,0),0)),"",HLOOKUP('Standard Inputs'!E78,'Report After Cont $k'!$I$16:$AH$58,MATCH('Report After Cont $k'!$E$45,'Report After Cont $k'!$E$16:$E$59,0),0)) ->  | Z72: Working cash net lag days | AC72: ='Standard Inputs'!B58 -> 13.13 | AD72: ='Standard Inputs'!B68 -> As Per Lead Lag study prepared by Navigant for 2015 and 2016 Transmission Rates
C73: PV OM&A Costs | G73: ='NPV Calc'!D21+'NPV Calc'!D20 -> 0 | J73: ='Report After Cont $k'!G73 -> 0 | L73: =IF(J73-G73=0,"",J73-G73) -> 
C74: PV Municipal Tax | G74: ='NPV Calc'!D22 -> -1143.038908 | J74: ='Report After Cont $k'!G74 -> -1143.038908 | O74: =IF(ISNUMBER(Q74),'Standard Inputs'!E79,"") ->  | Q74: =IF(OR('Project Inputs'!B28='Standard Inputs'!E79,'Project Inputs'!B28='Standard Inputs'!E80),HLOOKUP('Standard Inputs'!E79,'Capital Cont Inputs'!$B$14:$AA$15,MATCH('Capital Cont Inputs'!$A$15,'Capital Cont Inputs'!$A$14:$A$18,0),0),"") ->  | S74: =IF(ISNA(HLOOKUP('Standard Inputs'!E79,'Report After Cont $k'!$I$16:$AH$58,MATCH('Report After Cont $k'!$E$46,'Report After Cont $k'!E16:E59,0),0)),"",ISNA(HLOOKUP('Standard Inputs'!E79,'Report After Cont $k'!$I$16:$AH$58,MATCH('Report After Cont $k'!$E$46,'Report After Cont $k'!E16:E59,0),0))) ->  | U74: =IF(ISNA(HLOOKUP('Standard Inputs'!E79,'Report After Cont $k'!$I$16:$AH$58,MATCH('Report After Cont $k'!$E$44,'Report After Cont $k'!E16:E59,0),0)),"",HLOOKUP('Standard Inputs'!E79,'Report After Cont $k'!$I$16:$AH$58,MATCH('Report After Cont $k'!$E$44,'Report After Cont $k'!E16:E59,0),0)) ->  | W74: =IF(ISNA(HLOOKUP('Standard Inputs'!E79,'Report After Cont $k'!$I$16:$AH$58,MATCH('Report After Cont $k'!$E$45,'Report After Cont $k'!$E$16:$E$59,0),0)),"",HLOOKUP('Standard Inputs'!E79,'Report After Cont $k'!$I$16:$AH$58,MATCH('Report After Cont $k'!$E$45,'Report After Cont $k'!$E$16:$E$59,0),0)) ->  | Z74: ="CCA Rate for Class "&'Standard Inputs'!B34&" Assets" -> CCA Rate for Class 47 Assets | AC74: ='Standard Inputs'!C34 -> 0.08 | AD74: =+IF('NPV Calc'!F119=0,"100% Class "&'Standard Inputs'!B34&" assets"&IF('NPV Calc'!F98=0,""," except for Land"),ROUND('NPV Calc'!F106/('NPV Calc'!F86-'NPV Calc'!F98)*100,1)&"% Class "&'Standard Inputs'!B34&" assets"&IF('NPV Calc'!F98=0,""," except for Land")) -> 100% Class 47 assets except for Land
C75: PV Income Taxes | G75: ='NPV Calc'!D26-SUM('NPV Calc'!E80:AD80)*'Standard Inputs'!B27 -> -3690.218523 | J75: ='Report After Cont $k'!G75 -> -3690.218523 | L75: -4.547473509e-13
C76: PV CCA Tax Shield | G76: ='NPV Calc'!D27+SUM('NPV Calc'!E80:AD80)*'Standard Inputs'!B27 -> 3013.341045 | J76: ='Report After Cont $k'!G76 -> 1793.201793 | L76: -1220.139252 | O76: =IF(ISNUMBER(Q76),'Standard Inputs'!E80,"") ->  | Q76: =IF('Project Inputs'!B28='Standard Inputs'!E80,HLOOKUP('Standard Inputs'!E80,'Capital Cont Inputs'!$B$14:$AA$15,MATCH('Capital Cont Inputs'!$A$15,'Capital Cont Inputs'!$A$14:$A$18,0),0),"") ->  | S76: =IF(ISNA(HLOOKUP('Standard Inputs'!E80,'Report After Cont $k'!$I$16:$AH$58,MATCH('Report After Cont $k'!$E$46,'Report After Cont $k'!E16:E59,0),0)),"",HLOOKUP('Standard Inputs'!E80,'Report After Cont $k'!$I$16:$AH$58,MATCH('Report After Cont $k'!$E$46,'Report After Cont $k'!E16:E59,0),0)) ->  | U76: =IF(ISNA(HLOOKUP('Standard Inputs'!E80,'Report After Cont $k'!$I$16:$AH$58,MATCH('Report After Cont $k'!$E$44,'Report After Cont $k'!E16:E59,0),0)),"",HLOOKUP('Standard Inputs'!E80,'Report After Cont $k'!$I$16:$AH$58,MATCH('Report After Cont $k'!$E$44,'Report After Cont $k'!E16:E59,0),0)) ->  | W76: =IF(ISNA(HLOOKUP('Standard Inputs'!E80,'Report After Cont $k'!$I$16:$AH$58,MATCH('Report After Cont $k'!$E$45,'Report After Cont $k'!$E$16:$E$59,0),0)),"",HLOOKUP('Standard Inputs'!E80,'Report After Cont $k'!$I$16:$AH$58,MATCH('Report After Cont $k'!$E$45,'Report After Cont $k'!$E$16:$E$59,0),0)) -> 
C77: PV Capital - Upfront | F77: =SUM('NPV Calc'!D31:D33) -> -20212.71632 | I77: ='Report After Cont $k'!F77 -> -20212.71632
C78: Add: PV Capital Contribution | F78: ='NPV Calc'!D42 -> 0 | G78: =SUM(F77:F78) -> -20212.71632 | I78: ='Report After Cont $k'!F78 -> 8184.380131 | J78: ='Report After Cont $k'!G78 -> -12028.33619 | L78: 8184.380131 | O78: Total | S78: =SUM(S66:S77) -> 8184.380131 | U78: =SUM(U66:U77) -> 0 | W78: =SUM(W66:W77) -> 8184.380131
C79: PV Capital - On-going | G79: =I40 -> 0 | J79: ='Report After Cont $k'!G79 -> 0
C80: PV Working Capital | G80: =I53 -> 0 | J80: ='Report After Cont $k'!G80 -> 0 | L80: =IF(J80-G80=0,"",J80-G80) -> 
C81: PV Surplus / (Shortfall) | G81: =SUM(G72:G80) -> -6964.240878 | J81: ='Report After Cont $k'!G81 -> 1.818989404e-12 | L81: =IF(J81-G81=0,"",J81-G81) -> 6964.240878 | O81: ="Contribution Required (before HST)" -> Contribution Required (before HST) | W81: =IF(W78<=0,"N/A",W78) -> 8184.380131
E83: Profitability Index* | G83: =IF(G78+G79=0," ",(SUM(G72:G76)+G80)/ABS(G78+G79)) -> 0.6554524999 | J83: =IF(J78+J79=0," ",(SUM(J72:J76)+J80)/ABS(J78+J79)) -> 1 | O83: HST @ 13% | W83: =IF(W78<=0,"N/A",W78*'Standard Inputs'!B66) -> 1063.969417
C85: Notes: | O85: Contribution Required (including HST)1 | W85: =IF(W78<=0,"N/A",W78+W83) -> 9248.349548
C86: *PV of total cash flow, excluding net capital expenditure & on-going capital & proceeds on disposal / PV of net capital expenditure & on-going capital & proceeds on disposal
O87: Notes:
O88: 1) Payment from customer must include HST.
AD90: Calculation Time Stamp: | AF90: 22-Apr-15, 4:04 PM
E95: Net Present Value check:
E96: * Previous NPV $ before cap cont: | F96: -6964.240878
E97: * Represents the last recorded NPV before capital contributions when the IEE/true-up calculation was completed.
E98: Cap Contributions included in report? | F98: ='Capital Cont Inputs'!B49 -> Yes

Sheet Report After Cont $k
A1: `
E2: ='Standard Report'!E2 -> Date: | F2: ='Standard Report'!F2 -> 2015-04-22 | J2: =IF(OR('Capital Cont Inputs'!B45="Revenue Guarantee",'Capital Cont Inputs'!B39="Yes"),"THE REVENUE GUARANTEE CALCULATION IS SET TO BE OR HAS BEEN USED. THIS REPORT IS NOT CORRECT.","SUMMARY OF CONTRIBUTION CALCULATIONS") -> SUMMARY OF CONTRIBUTION CALCULATIONS
E3: ='Standard Report'!E3 -> Project # | F3: ='Standard Report'!F3 -> 17503 | J3: ='Standard Report'!I3 -> Transformation Pool - Estimated cost
E8: ='Standard Report'!E8 -> Facility Name: | G8: ='Standard Report'!G8 -> Supply to Essex County Transmission Reinforcement
E9: ='Standard Report'!E9 -> Description: | G9: ='Standard Report'!G9 -> Transformation Capital Contribution Analysis
E10: ='Standard Report'!E10 -> Customer: | G10: ='Standard Report'!G10 -> Hydro One Distribution
I12: In-Service
I13: Date | J13: <------- | K13: Project year ended - annualized from In-Service Date -------->
G14: ='Standard Report'!G14 -> Month | I14: ='Standard Report'!I14 -> 2018-03-31 | J14: ='Standard Report'!J14 -> 2018-03-31 | K14: ='Standard Report'!K14 -> 2018-03-31 | L14: ='Standard Report'!L14 -> 2018-03-31 | M14: ='Standard Report'!M14 -> 2018-03-31 | N14: ='Standard Report'!N14 -> 2018-03-31 | O14: ='Standard Report'!O14 -> 2018-03-31 | P14: ='Standard Report'!P14 -> 2018-03-31 | Q14: ='Standard Report'!Q14 -> 2018-03-31 | R14: ='Standard Report'!R14 -> 2018-03-31 | S14: ='Standard Report'!S14 -> 2018-03-31 | T14: ='Standard Report'!T14 -> 2018-03-31 | U14: ='Standard Report'!U14 -> 2018-03-31 | V14: ='Standard Report'!V14 -> 2018-03-31 | W14: ='Standard Report'!W14 -> 2018-03-31 | X14: ='Standard Report'!X14 -> 2018-03-31 | Y14: ='Standard Report'!Y14 -> 2018-03-31 | Z14: ='Standard Report'!Z14 -> 2018-03-31 | AA14: ='Standard Report'!AA14 -> 2018-03-31 | AB14: ='Standard Report'!AB14 -> 2018-03-31 | AC14: ='Standard Report'!AC14 -> 2018-03-31 | AD14: ='Standard Report'!AD14 -> 2018-03-31 | AE14: ='Standard Report'!AE14 -> 2018-03-31 | AF14: ='Standard Report'!AF14 -> 2018-03-31 | AG14: ='Standard Report'!AG14 -> 2018-03-31 | AH14: ='Standard Report'!AH14 -> 2018-03-31
G15: ='Standard Report'!G15 -> Year | I15: ='Standard Report'!I15 -> 2018 | J15: ='Standard Report'!J15 -> 2019 | K15: ='Standard Report'!K15 -> 2020 | L15: ='Standard Report'!L15 -> 2021 | M15: ='Standard Report'!M15 -> 2022 | N15: ='Standard Report'!N15 -> 2023 | O15: ='Standard Report'!O15 -> 2024 | P15: ='Standard Report'!P15 -> 2025 | Q15: ='Standard Report'!Q15 -> 2026 | R15: ='Standard Report'!R15 -> 2027 | S15: ='Standard Report'!S15 -> 2028 | T15: ='Standard Report'!T15 -> 2029 | U15: ='Standard Report'!U15 -> 2030 | V15: ='Standard Report'!V15 -> 2031 | W15: ='Standard Report'!W15 -> 2032 | X15: ='Standard Report'!X15 -> 2033 | Y15: ='Standard Report'!Y15 -> 2034 | Z15: ='Standard Report'!Z15 -> 2035 | AA15: ='Standard Report'!AA15 -> 2036 | AB15: ='Standard Report'!AB15 -> 2037 | AC15: ='Standard Report'!AC15 -> 2038 | AD15: ='Standard Report'!AD15 -> 2039 | AE15: ='Standard Report'!AE15 -> 2040 | AF15: ='Standard Report'!AF15 -> 2041 | AG15: ='Standard Report'!AG15 -> 2042 | AH15: ='Standard Report'!AH15 -> 2043
J16: ='Standard Report'!J16 ->  | K16: ='Standard Report'!K16 ->  | L16: ='Standard Report'!L16 ->  | M16: ='Standard Report'!M16 ->  | N16: ='Standard Report'!N16 -> 1st true-up | O16: ='Standard Report'!O16 ->  | P16: ='Standard Report'!P16 ->  | Q16: ='Standard Report'!Q16 ->  | R16: ='Standard Report'!R16 ->  | S16: ='Standard Report'!S16 -> 2nd true-up | T16: ='Standard Report'!T16 ->  | U16: ='Standard Report'!U16 ->  | V16: ='Standard Report'!V16 ->  | W16: ='Standard Report'!W16 ->  | X16: ='Standard Report'!X16 -> 3rd true-up | Y16: ='Standard Report'!Y16 ->  | Z16: ='Standard Report'!Z16 ->  | AA16: ='Standard Report'!AA16 ->  | AB16: ='Standard Report'!AB16 ->  | AC16: ='Standard Report'!AC16 ->  | AD16: ='Standard Report'!AD16 ->  | AE16: ='Standard Report'!AE16 ->  | AF16: ='Standard Report'!AF16 ->  | AG16: ='Standard Report'!AG16 ->  | AH16: ='Standard Report'!AH16 -> 
I17: ='Standard Report'!I17 -> 0 | J17: ='Standard Report'!J17 -> 1 | K17: ='Standard Report'!K17 -> 2 | L17: ='Standard Report'!L17 -> 3 | M17: ='Standard Report'!M17 -> 4 | N17: ='Standard Report'!N17 -> 5 | O17: ='Standard Report'!O17 -> 6 | P17: ='Standard Report'!P17 -> 7 | Q17: ='Standard Report'!Q17 -> 8 | R17: ='Standard Report'!R17 -> 9 | S17: ='Standard Report'!S17 -> 10 | T17: ='Standard Report'!T17 -> 11 | U17: ='Standard Report'!U17 -> 12 | V17: ='Standard Report'!V17 -> 13 | W17: ='Standard Report'!W17 -> 14 | X17: ='Standard Report'!X17 -> 15 | Y17: ='Standard Report'!Y17 -> 16 | Z17: ='Standard Report'!Z17 -> 17 | AA17: ='Standard Report'!AA17 -> 18 | AB17: ='Standard Report'!AB17 -> 19 | AC17: ='Standard Report'!AC17 -> 20 | AD17: ='Standard Report'!AD17 -> 21 | AE17: ='Standard Report'!AE17 -> 22 | AF17: ='Standard Report'!AF17 -> 23 | AG17: ='Standard Report'!AG17 -> 24 | AH17: ='Standard Report'!AH17 -> 25
C18: ='Standard Report'!C18 -> Revenue & Expense Forecast
E19: ='Standard Report'!E19 -> Load Forecast (MW) | J19: 38.24252201 | K19: 39.16288127 | L19: 40.08982752 | M19: 41.02340788 | N19: 41.96366986 | O19: 42.91066125 | P19: 43.86443023 | Q19: 44.82224671 | R19: 45.78105015 | S19: 46.75411647 | T19: 47.73413809 | U19: 48.72116472 | V19: 49.69544008 | W19: 50.63564221 | X19: 51.63770044 | Y19: 52.64688063 | Z19: 53.6632334 | AA19: 54.63175584 | AB19: 55.4941383 | AC19: 56.51904359 | AD19: 57.55115112 | AE19: 58.59051149 | AF19: 59.63717568 | AG19: 60.70160601 | AH19: 61.80556775
E20: ='Standard Report'!E20 -> Load adjustments (MW) | J20: 0 | K20: 0 | L20: 0 | M20: 0 | N20: 0 | O20: 0 | P20: 0 | Q20: 0 | R20: 0 | S20: 0 | T20: 0 | U20: 0 | V20: 0 | W20: 0 | X20: 0 | Y20: 0 | Z20: 0 | AA20: 0 | AB20: 0 | AC20: 0 | AD20: 0 | AE20: 0 | AF20: 0 | AG20: 0 | AH20: 0
J21: 38.24252201 | K21: 39.16288127 | L21: 40.08982752 | M21: 41.02340788 | N21: 41.96366986 | O21: 42.91066125 | P21: 43.86443023 | Q21: 44.82224671 | R21: 45.78105015 | S21: 46.75411647 | T21: 47.73413809 | U21: 48.72116472 | V21: 49.69544008 | W21: 50.63564221 | X21: 51.63770044 | Y21: 52.64688063 | Z21: 53.6632334 | AA21: 54.63175584 | AB21: 55.4941383 | AC21: 56.51904359 | AD21: 57.55115112 | AE21: 58.59051149 | AF21: 59.63717568 | AG21: 60.70160601 | AH21: 61.80556775
E22: ='Standard Report'!E22 -> Tariff Applied ($/kW/Month) | J22: 2 | K22: 2 | L22: 2 | M22: 2 | N22: 2 | O22: 2 | P22: 2 | Q22: 2 | R22: 2 | S22: 2 | T22: 2 | U22: 2 | V22: 2 | W22: 2 | X22: 2 | Y22: 2 | Z22: 2 | AA22: 2 | AB22: 2 | AC22: 2 | AD22: 2 | AE22: 2 | AF22: 2 | AG22: 2 | AH22: 2
C23: ='Standard Report'!C23 -> Incremental Revenue - $k | J23: 917.8205281 | K23: 939.9091505 | L23: 962.1558604 | M23: 984.5617892 | N23: 1007.128077 | O23: 1029.85587 | P23: 1052.746326 | Q23: 1075.733921 | R23: 1098.745204 | S23: 1122.098795 | T23: 1145.619314 | U23: 1169.307953 | V23: 1192.690562 | W23: 1215.255413 | X23: 1239.304811 | Y23: 1263.525135 | Z23: 1287.917602 | AA23: 1311.16214 | AB23: 1331.859319 | AC23: 1356.457046 | AD23: 1381.227627 | AE23: 1406.172276 | AF23: 1431.292216 | AG23: 1456.838544 | AH23: 1483.333626
E24: ='Standard Report'!E24 -> Removal Costs - $k | I24: 0
E25: ='Standard Report'!E25 -> On-going OM&A Costs - $k | I25: 0 | J25: 0 | K25: 0 | L25: 0 | M25: 0 | N25: 0 | O25: 0 | P25: 0 | Q25: 0 | R25: 0 | S25: 0 | T25: 0 | U25: 0 | V25: 0 | W25: 0 | X25: 0 | Y25: 0 | Z25: 0 | AA25: 0 | AB25: 0 | AC25: 0 | AD25: 0 | AE25: 0 | AF25: 0 | AG25: 0 | AH25: 0
E26: ='Standard Report'!E26 -> Municipal Tax - $k | J26: -85.54486559 | K26: -85.54486559 | L26: -85.54486559 | M26: -85.54486559 | N26: -85.54486559 | O26: -85.54486559 | P26: -85.54486559 | Q26: -85.54486559 | R26: -85.54486559 | S26: -85.54486559 | T26: -85.54486559 | U26: -85.54486559 | V26: -85.54486559 | W26: -85.54486559 | X26: -85.54486559 | Y26: -85.54486559 | Z26: -85.54486559 | AA26: -85.54486559 | AB26: -85.54486559 | AC26: -85.54486559 | AD26: -85.54486559 | AE26: -85.54486559 | AF26: -85.54486559 | AG26: -85.54486559 | AH26: -85.54486559
C27: ='Standard Report'!C27 -> Net Revenue/(Costs) before taxes - $k | I27: 0 | J27: 832.2756625 | K27: 854.3642849 | L27: 876.6109948 | M27: 899.0169236 | N27: 921.5832109 | O27: 944.3110044 | P27: 967.20146 | Q27: 990.1890555 | R27: 1013.200338 | S27: 1036.55393 | T27: 1060.074449 | U27: 1083.763088 | V27: 1107.145696 | W27: 1129.710548 | X27: 1153.759945 | Y27: 1177.98027 | Z27: 1202.372736 | AA27: 1225.617275 | AB27: 1246.314454 | AC27: 1270.912181 | AD27: 1295.682761 | AE27: 1320.62741 | AF27: 1345.747351 | AG27: 1371.293679 | AH27: 1397.78876
E28: ='Standard Report'!E28 -> Income Taxes - $k | I28: 0 | J28: -96.46145706 | K28: 11.84932404 | L28: -13.10652284 | M28: -36.57972525 | N28: -58.69257215 | O28: -79.55759572 | P28: -99.27835207 | Q28: -117.9324677 | R28: -135.5878681 | S28: -152.4093876 | T28: -168.4245174 | U28: -183.7016237 | V28: -198.1776625 | W28: -211.7746239 | X28: -225.1556079 | Y28: -238.0212561 | Z28: -250.4167409 | AA28: -262.0335064 | AB28: -272.5386645 | AC28: -283.6758355 | AD28: -294.4893107 | AE28: -305.0089724 | AF28: -315.2623399 | AG28: -325.3409735 | AH28: -335.4063182
C29: ='Standard Report'!C29 -> Operating Cash Flow (after taxes) - $k | I29: 0 | J29: 735.8142055 | K29: 866.2136089 | L29: 863.5044719 | M29: 862.4371984 | N29: 862.8906388 | O29: 864.7534087 | P29: 867.9231079 | Q29: 872.2565878 | R29: 877.6124698 | S29: 884.1445421 | T29: 891.6499312 | U29: 900.0614641 | V29: 908.9680337 | W29: 917.9359237 | X29: 928.6043371 | Y29: 939.9590134 | Z29: 951.955995 | AA29: 963.5837682 | AB29: 973.775789 | AC29: 987.2363451 | AD29: 1001.193451 | AE29: 1015.618438 | AF29: 1030.485011 | AG29: 1045.952705 | AH29: 1062.382442
G30: Cumulative PV @
G31: 0.05833272
C32: ='Standard Report'!C32 -> PV Operating Cash Flow (after taxes) - $k (A) | G32: 11971.91127 | I32: 0 | J32: 715.2486658 | K32: 795.5943087 | L32: 749.3919662 | M32: 707.2121264 | N32: 668.5836518 | O32: 633.0967074 | P32: 600.3946316 | Q32: 570.1348442 | R32: 542.018223 | S32: 515.9553852 | T32: 491.6556525 | U32: 468.9392676 | V32: 447.4771054 | W32: 426.9847389 | X32: 408.1393524 | Y32: 390.3592337 | Z32: 373.5512466 | AA32: 357.2733064 | AB32: 341.1519381 | AC32: 326.8043154 | AD32: 313.1572163 | AE32: 300.1599728 | AF32: 287.7674421 | AG32: 275.9877474 | AH32: 264.8722225
C34: ='Standard Report'!C34 -> Capital Expenditures - $k
E35: ='Standard Report'!E35 -> Capital cost before overheads & AFUDC - $k | I35: -17188.1412
E36: ='Standard Report'!E36 -> - Overheads - $k | I36: -2370.739767
E37: ='Standard Report'!E37 -> - AFUDC - $k | I37: -653.835353
E38: ='Standard Report'!E38 -> Total upfront capital expenditures - $k | I38: -20212.71632
E39: ='Standard Report'!E39 -> On-going capital expenditures - $k | J39: 0 | K39: 0 | L39: 0 | M39: 0 | N39: 0 | O39: 0 | P39: 0 | Q39: 0 | R39: 0 | S39: 0 | T39: 0 | U39: 0 | V39: 0 | W39: 0 | X39: 0 | Y39: 0 | Z39: 0 | AA39: 0 | AB39: 0 | AC39: 0 | AD39: 0 | AE39: 0 | AF39: 0 | AG39: 0 | AH39: 0
E40: ='Standard Report'!E40 -> PV On-going capital expenditures - $k | I40: 0
E41: ='Standard Report'!E41 -> Total capital expenditures - $k | I41: -20212.71632
C43: ='Standard Report'!C43 -> Capital Contributions - $k
E44: ='Standard Report'!E44 -> Previous capital contribution/(credit)
E45: ='Standard Report'!E45 -> Current capital contribution/(credit) | I45: 8184.380131
E46: ='Standard Report'!E46 -> PV of annual capital contribution | I46: 8184.380131
E47: ='Standard Report'!E47 -> Total PV | I47: 8184.380131
C51: ='Standard Report'!C51 -> PV CCA Residual Tax Shield - $k | I51: 56.42491968
C52: ='Standard Report'!C52 -> 0
C53: ='Standard Report'!C53 -> PV Working Capital - $k | I53: 0
C54: ='Standard Report'!C54 -> 0
C55: ='Standard Report'!C55 -> PV Capital (after taxes) - $k (B) | G55: -11971.91127 | I55: -11971.91127
C58: ='Standard Report'!C58 -> Cumulative PV Cash Flow (after taxes) - $k (A) + (B) | G58: 0 | I58: -11971.91127 | J58: -11256.6626 | K58: -10461.06829 | L58: -9711.676328 | M58: -9004.464201 | N58: -8335.880549 | O58: -7702.783842 | P58: -7102.38921 | Q58: -6532.254366 | R58: -5990.236143 | S58: -5474.280758 | T58: -4982.625105 | U58: -4513.685838 | V58: -4066.208732 | W58: -3639.223994 | X58: -3231.084641 | Y58: -2840.725408 | Z58: -2467.174161 | AA58: -2109.900855 | AB58: -1768.748916 | AC58: -1441.944601 | AD58: -1128.787385 | AE58: -828.627412 | AF58: -540.8599699 | AG58: -264.8722225 | AH58: -7.389644452e-13
C62: Discounted Cash Flow Summary
C64: Economic Study Horizon - Years: | G64: ='Capital Cont Inputs'!B5 -> 25
C66: Discount Rate - % | G66: ='Prelim Calc'!H13 -> 0.05833272
G69: After Con't
G70: $k
C72: PV Incremental Revenue | G72: 15068.39183
C73: PV OM&A Costs | G73: 0
C74: PV Municipal Tax | G74: -1143.038908
C75: PV Income Taxes | G75: -3690.218523
C76: PV CCA Tax Shield | G76: 1793.201793
C77: PV Capital - Upfront | F77: -20212.71632
C78: Add: PV Capital Contribution | F78: 8184.380131 | G78: -12028.33619
C79: PV Capital - On-going | G79: 0
C80: PV Working Capital | G80: 0
C81: PV Surplus / (Shortfall) | G81: 1.818989404e-12
E83: Profitability Index* | G83: 1

Sheet S92 Report Before Cont $M p1
A1: `
E2: ='Standard Report'!E2 -> Date: | F2: =DateCalculated -> 2015-04-22 | O2: ='Standard Report'!I2 -> SUMMARY OF CONTRIBUTION CALCULATIONS
E3: ='Report After Cont $k'!E3 -> Project # | F3: ='Standard Report'!F3 -> 17503 | O3: ='Project Inputs'!B17&" Pool"&" - "&'Project Inputs'!B28 -> Transformation Pool - Estimated cost
J5: ='Standard Report'!J5:T5 -> 
E8: ='Standard Report'!E8 -> Facility Name: | G8: ='Standard Report'!G8 -> Supply to Essex County Transmission Reinforcement
E9: ='Standard Report'!E9 -> Description: | G9: ='Standard Report'!G9 -> Transformation Capital Contribution Analysis
E10: ='Standard Report'!E10 -> Customer: | G10: ='Standard Report'!G10 -> Hydro One Distribution
I12: In-Service
I13: Date | J13: <------- | K13: Project year ended - annualized from In-Service Date -------->
G14: Month | I14: ='Standard Report'!I14 -> 2018-03-31 | J14: ='Standard Report'!J14 -> 2018-03-31 | K14: ='Standard Report'!K14 -> 2018-03-31 | L14: ='Standard Report'!L14 -> 2018-03-31 | M14: ='Standard Report'!M14 -> 2018-03-31 | N14: ='Standard Report'!N14 -> 2018-03-31 | O14: ='Standard Report'!O14 -> 2018-03-31 | P14: ='Standard Report'!P14 -> 2018-03-31 | Q14: ='Standard Report'!Q14 -> 2018-03-31 | R14: ='Standard Report'!R14 -> 2018-03-31 | S14: ='Standard Report'!S14 -> 2018-03-31 | T14: ='Standard Report'!T14 -> 2018-03-31 | U14: ='Standard Report'!U14 -> 2018-03-31
G15: Year | I15: ='Capital Cont Inputs'!B15 -> 2018 | J15: ='Capital Cont Inputs'!C15 -> 2019 | K15: ='Capital Cont Inputs'!D15 -> 2020 | L15: ='Capital Cont Inputs'!E15 -> 2021 | M15: ='Capital Cont Inputs'!F15 -> 2022 | N15: ='Capital Cont Inputs'!G15 -> 2023 | O15: ='Capital Cont Inputs'!H15 -> 2024 | P15: ='Capital Cont Inputs'!I15 -> 2025 | Q15: ='Capital Cont Inputs'!J15 -> 2026 | R15: ='Capital Cont Inputs'!K15 -> 2027 | S15: ='Capital Cont Inputs'!L15 -> 2028 | T15: ='Capital Cont Inputs'!M15 -> 2029 | U15: ='Capital Cont Inputs'!N15 -> 2030
I17: ='Capital Cont Inputs'!B16 -> 0 | J17: ='Capital Cont Inputs'!C16 -> 1 | K17: ='Capital Cont Inputs'!D16 -> 2 | L17: ='Capital Cont Inputs'!E16 -> 3 | M17: ='Capital Cont Inputs'!F16 -> 4 | N17: ='Capital Cont Inputs'!G16 -> 5 | O17: ='Capital Cont Inputs'!H16 -> 6 | P17: ='Capital Cont Inputs'!I16 -> 7 | Q17: ='Capital Cont Inputs'!J16 -> 8 | R17: ='Capital Cont Inputs'!K16 -> 9 | S17: ='Capital Cont Inputs'!L16 -> 10 | T17: ='Capital Cont Inputs'!M16 -> 11 | U17: ='Capital Cont Inputs'!N16 -> 12
C18: Revenue & Expense Forecast
E19: Load Forecast (MW) | J19: ='NPV Calc'!F10 -> 38.24252201 | K19: ='NPV Calc'!G10 -> 39.16288127 | L19: ='NPV Calc'!H10 -> 40.08982752 | M19: ='NPV Calc'!I10 -> 41.02340788 | N19: ='NPV Calc'!J10 -> 41.96366986 | O19: ='NPV Calc'!K10 -> 42.91066125 | P19: ='NPV Calc'!L10 -> 43.86443023 | Q19: ='NPV Calc'!M10 -> 44.82224671 | R19: ='NPV Calc'!N10 -> 45.78105015 | S19: ='NPV Calc'!O10 -> 46.75411647 | T19: ='NPV Calc'!P10 -> 47.73413809 | U19: ='NPV Calc'!Q10 -> 48.72116472
E20: Load adjustments (MW) | J20: ='NPV Calc'!F11 -> 0 | K20: ='NPV Calc'!G11 -> 0 | L20: ='NPV Calc'!H11 -> 0 | M20: ='NPV Calc'!I11 -> 0 | N20: ='NPV Calc'!J11 -> 0 | O20: ='NPV Calc'!K11 -> 0 | P20: ='NPV Calc'!L11 -> 0 | Q20: ='NPV Calc'!M11 -> 0 | R20: ='NPV Calc'!N11 -> 0 | S20: ='NPV Calc'!O11 -> 0 | T20: ='NPV Calc'!P11 -> 0 | U20: ='NPV Calc'!Q11 -> 0
J21: =J19+J20 -> 38.24252201 | K21: =K19+K20 -> 39.16288127 | L21: 40.08982752 | M21: 41.02340788 | N21: 41.96366986 | O21: 42.91066125 | P21: 43.86443023 | Q21: 44.82224671 | R21: 45.78105015 | S21: 46.75411647 | T21: 47.73413809 | U21: 48.72116472
E22: Tariff Applied ($/kW/Month) | J22: ='NPV Calc'!F14 -> 2 | K22: ='NPV Calc'!G14 -> 2 | L22: ='NPV Calc'!H14 -> 2 | M22: ='NPV Calc'!I14 -> 2 | N22: ='NPV Calc'!J14 -> 2 | O22: ='NPV Calc'!K14 -> 2 | P22: ='NPV Calc'!L14 -> 2 | Q22: ='NPV Calc'!M14 -> 2 | R22: ='NPV Calc'!N14 -> 2 | S22: ='NPV Calc'!O14 -> 2 | T22: ='NPV Calc'!P14 -> 2 | U22: ='NPV Calc'!Q14 -> 2
C23: Incremental Revenue - $M | J23: ='Standard Report'!J23/1000 -> 0.9178205281 | K23: ='Standard Report'!K23/1000 -> 0.9399091505 | L23: ='Standard Report'!L23/1000 -> 0.9621558604 | M23: ='Standard Report'!M23/1000 -> 0.9845617892 | N23: ='Standard Report'!N23/1000 -> 1.007128077 | O23: ='Standard Report'!O23/1000 -> 1.02985587 | P23: ='Standard Report'!P23/1000 -> 1.052746326 | Q23: ='Standard Report'!Q23/1000 -> 1.075733921 | R23: ='Standard Report'!R23/1000 -> 1.098745204 | S23: ='Standard Report'!S23/1000 -> 1.122098795 | T23: ='Standard Report'!T23/1000 -> 1.145619314 | U23: ='Standard Report'!U23/1000 -> 1.169307953
E24: Removal Costs - $M | I24: ='Standard Report'!I24/1000 -> 0
E25: On-going OM&A Costs - $M | I25: ='Standard Report'!I25/1000 -> 0 | J25: ='Standard Report'!J25/1000 -> 0 | K25: ='Standard Report'!K25/1000 -> 0 | L25: ='Standard Report'!L25/1000 -> 0 | M25: ='Standard Report'!M25/1000 -> 0 | N25: ='Standard Report'!N25/1000 -> 0 | O25: ='Standard Report'!O25/1000 -> 0 | P25: ='Standard Report'!P25/1000 -> 0 | Q25: ='Standard Report'!Q25/1000 -> 0 | R25: ='Standard Report'!R25/1000 -> 0 | S25: ='Standard Report'!S25/1000 -> 0 | T25: ='Standard Report'!T25/1000 -> 0 | U25: ='Standard Report'!U25/1000 -> 0
E26: Municipal Tax - $M | J26: ='Standard Report'!J26/1000 -> -0.08554486559 | K26: ='Standard Report'!K26/1000 -> -0.08554486559 | L26: ='Standard Report'!L26/1000 -> -0.08554486559 | M26: ='Standard Report'!M26/1000 -> -0.08554486559 | N26: ='Standard Report'!N26/1000 -> -0.08554486559 | O26: ='Standard Report'!O26/1000 -> -0.08554486559 | P26: ='Standard Report'!P26/1000 -> -0.08554486559 | Q26: ='Standard Report'!Q26/1000 -> -0.08554486559 | R26: ='Standard Report'!R26/1000 -> -0.08554486559 | S26: ='Standard Report'!S26/1000 -> -0.08554486559 | T26: ='Standard Report'!T26/1000 -> -0.08554486559 | U26: ='Standard Report'!U26/1000 -> -0.08554486559
C27: Net Revenue/(Costs) before taxes - $M | I27: ='Standard Report'!I27/1000 -> 0 | J27: ='Standard Report'!J27/1000 -> 0.8322756625 | K27: ='Standard Report'!K27/1000 -> 0.8543642849 | L27: ='Standard Report'!L27/1000 -> 0.8766109948 | M27: ='Standard Report'!M27/1000 -> 0.8990169236 | N27: ='Standard Report'!N27/1000 -> 0.9215832109 | O27: ='Standard Report'!O27/1000 -> 0.9443110044 | P27: ='Standard Report'!P27/1000 -> 0.96720146 | Q27: ='Standard Report'!Q27/1000 -> 0.9901890555 | R27: ='Standard Report'!R27/1000 -> 1.013200338 | S27: ='Standard Report'!S27/1000 -> 1.03655393 | T27: ='Standard Report'!T27/1000 -> 1.060074449 | U27: ='Standard Report'!U27/1000 -> 1.083763088
E28: Income Taxes | I28: ='Standard Report'!I28/1000 -> 0 | J28: ='Standard Report'!J28/1000 -> -0.01202643991 | K28: ='Standard Report'!K28/1000 -> 0.173964557 | L28: ='Standard Report'!L28/1000 -> 0.1360394914 | M28: ='Standard Report'!M28/1000 -> 0.1006346079 | N28: ='Standard Report'!N28/1000 -> 0.06754461435 | O28: ='Standard Report'!O28/1000 -> 0.03658061586 | P28: ='Standard Report'!P28/1000 -> 0.007568802578 | Q28: ='Standard Report'!Q28/1000 -> -0.01963308541 | R28: ='Standard Report'!R28/1000 -> -0.04515243639 | S28: ='Standard Report'!S28/1000 -> -0.06920879046 | T28: ='Standard Report'!T28/1000 -> -0.09187996804 | U28: ='Standard Report'!U28/1000 -> -0.1132806383
C29: Operating Cash Flow (after taxes) - $M | I29: ='Standard Report'!I29/1000 -> 0 | J29: ='Standard Report'!J29/1000 -> 0.8202492226 | K29: ='Standard Report'!K29/1000 -> 1.028328842 | L29: ='Standard Report'!L29/1000 -> 1.012650486 | M29: ='Standard Report'!M29/1000 -> 0.9996515315 | N29: ='Standard Report'!N29/1000 -> 0.9891278253 | O29: ='Standard Report'!O29/1000 -> 0.9808916203 | P29: ='Standard Report'!P29/1000 -> 0.9747702625 | Q29: ='Standard Report'!Q29/1000 -> 0.9705559701 | R29: ='Standard Report'!R29/1000 -> 0.9680479015 | S29: ='Standard Report'!S29/1000 -> 0.9673451392 | T29: ='Standard Report'!T29/1000 -> 0.9681944806 | U29: ='Standard Report'!U29/1000 -> 0.9704824495
G30: Cumulative PV @
G31: ='Prelim Calc'!H13 -> 0.05833272
C32: PV Operating Cash Flow (after taxes) - $M (A) | G32: ='Standard Report'!G32/1000 -> 13.1536576 | I32: ='Standard Report'!I32/1000 -> 0 | J32: ='Standard Report'!J32/1000 -> 0.7973237779 | K32: ='Standard Report'!K32/1000 -> 0.944492866 | L32: ='Standard Report'!L32/1000 -> 0.8788282674 | M32: ='Standard Report'!M32/1000 -> 0.8197300471 | N32: ='Standard Report'!N32/1000 -> 0.7663945624 | O32: ='Standard Report'!O32/1000 -> 0.7181229341 | P32: ='Standard Report'!P32/1000 -> 0.6743072369 | Q32: ='Standard Report'!Q32/1000 -> 0.634386469 | R32: ='Standard Report'!R32/1000 -> 0.5978716363 | S32: ='Standard Report'!S32/1000 -> 0.5645083018 | T32: ='Standard Report'!T32/1000 -> 0.5338623068 | U32: ='Standard Report'!U32/1000 -> 0.5056291679
C34: Capital Expenditures - $M
E35: Upfront - capital cost before overheads & AFUDC | I35: ='Standard Report'!I35/1000 -> -17.1881412
E36: - Overheads | I36: ='Standard Report'!I36/1000 -> -2.370739767
E37: - AFUDC | I37: ='Standard Report'!I37/1000 -> -0.653835353
E38: Total upfront capital expenditures | I38: ='Standard Report'!I38/1000 -> -20.21271632
E39: On-going capital expenditures | J39: ='Standard Report'!J39/1000 -> 0 | K39: ='Standard Report'!K39/1000 -> 0 | L39: ='Standard Report'!L39/1000 -> 0 | M39: ='Standard Report'!M39/1000 -> 0 | N39: ='Standard Report'!N39/1000 -> 0 | O39: ='Standard Report'!O39/1000 -> 0 | P39: ='Standard Report'!P39/1000 -> 0 | Q39: ='Standard Report'!Q39/1000 -> 0 | R39: ='Standard Report'!R39/1000 -> 0 | S39: ='Standard Report'!S39/1000 -> 0 | T39: ='Standard Report'!T39/1000 -> 0 | U39: ='Standard Report'!U39/1000 -> 0
E40: PV On-going capital expenditures | I40: ='Standard Report'!I40/1000 -> 0
E41: Total capital expenditures - $M | I41: ='Standard Report'!I41/1000 -> -20.21271632
C42: Capital Expenditures - $M
E44: Estimated IEE pre-payments | I44: ='Standard Report'!I44 -> 0 | J44: ='Standard Report'!J44 ->  | K44: ='Standard Report'!K44 ->  | L44: ='Standard Report'!L44 ->  | M44: ='Standard Report'!M44 ->  | N44: ='Standard Report'!N44 ->  | O44: ='Standard Report'!O44 ->  | P44: ='Standard Report'!P44 ->  | Q44: ='Standard Report'!Q44 ->  | R44: ='Standard Report'!R44 ->  | S44: ='Standard Report'!S44 ->  | T44: ='Standard Report'!T44 ->  | U44: ='Standard Report'!U44 -> 
E45: Annual capital contributions | I45: ='Standard Report'!I45/1000 -> 0 | J45: ='Standard Report'!J45 ->  | K45: ='Standard Report'!K45 ->  | L45: ='Standard Report'!L45 ->  | M45: ='Standard Report'!M45 ->  | N45: ='Standard Report'!N45 ->  | O45: ='Standard Report'!O45 ->  | P45: ='Standard Report'!P45 ->  | Q45: ='Standard Report'!Q45 ->  | R45: ='Standard Report'!R45 ->  | S45: ='Standard Report'!S45 ->  | T45: ='Standard Report'!T45 ->  | U45: ='Standard Report'!U45 -> 
E46: PV of annual capital contribution | I46: ='Standard Report'!I46/1000 -> 0 | J46: ='Standard Report'!J46/1000 ->  | K46: ='Standard Report'!K46/1000 ->  | L46: ='Standard Report'!L46/1000 ->  | M46: ='Standard Report'!M46/1000 ->  | N46: ='Standard Report'!N46/1000 ->  | O46: ='Standard Report'!O46/1000 ->  | P46: ='Standard Report'!P46/1000 ->  | Q46: ='Standard Report'!Q46/1000 ->  | R46: ='Standard Report'!R46/1000 ->  | S46: ='Standard Report'!S46/1000 ->  | T46: ='Standard Report'!T46/1000 ->  | U46: ='Standard Report'!U46/1000 -> 
E47: Total PV | I47: ='Standard Report'!I47/1000 -> 0
C51: PV CCA Residual Tax Shield - $M | I51: ='Standard Report'!I51/1000 -> 0.09481784321
C53: PV Working Capital - $M | I53: ='Standard Report'!I53/1000 -> 0
C55: PV Capital (after taxes) - $M (B) | G55: ='Standard Report'!G55/1000 -> -20.11789848 | I55: ='Standard Report'!I55/1000 -> -20.11789848
C58: Cumulative PV Cash Flow (after taxes) - $M (A) + (B) | G58: ='Standard Report'!G58/1000 -> -6.964240878 | I58: ='Standard Report'!I58/1000 -> -20.11789848 | J58: ='Standard Report'!J58/1000 -> -19.3205747 | K58: ='Standard Report'!K58/1000 -> -18.37608183 | L58: ='Standard Report'!L58/1000 -> -17.49725356 | M58: ='Standard Report'!M58/1000 -> -16.67752352 | N58: ='Standard Report'!N58/1000 -> -15.91112895 | O58: ='Standard Report'!O58/1000 -> -15.19300602 | P58: ='Standard Report'!P58/1000 -> -14.51869878 | Q58: ='Standard Report'!Q58/1000 -> -13.88431231 | R58: ='Standard Report'!R58/1000 -> -13.28644068 | S58: ='Standard Report'!S58/1000 -> -12.72193238 | T58: ='Standard Report'!T58/1000 -> -12.18807007 | U58: ='Standard Report'!U58/1000 -> -11.6824409
C62: Discounted Cash Flow Summary | O62: Other Assumptions
C64: Economic Study Horizon - Years: | G64: ='Standard Report'!G64 -> 25
C66: Discount Rate - % | G66: ='Prelim Calc'!H13 -> 0.05833272 | O66: In-Service Date: | R66: ='Project Inputs'!B15 -> 2018-03-31
G68: Before | J68: After
G69: Cont | J69: Cont | L69: Impact
G70: $M | J70: $M | L70: $M | O70: Payback Year: | R70: =IF(LOOKUP(0,'Standard Report'!I58:AH58,'Standard Report'!I15:AH15)+1>'Capital Cont Inputs'!B10,'Capital Cont Inputs'!B10,LOOKUP(0,'Standard Report'!I58:AH58,'Standard Report'!I15:AH15)+1) -> 2043
C72: PV Incremental Revenue | G72: ='Standard Report'!G72/1000 -> 15.06839183 | J72: ='Standard Report'!J72/1000 -> 15.06839183 | L72: =IF(J72-G72=0,"",J72-G72) -> 
C73: PV OM&A Costs | G73: ='Standard Report'!G73/1000 -> 0 | J73: ='Standard Report'!J73/1000 -> 0 | L73: =IF(J73-G73=0,"",J73-G73) ->  | O73: No. of years required for payback: | R73: =R70-'Capital Cont Inputs'!B4 -> 25
C74: PV Municipal Tax | G74: ='Standard Report'!G74/1000 -> -1.143038908 | J74: ='Standard Report'!J74/1000 -> -1.143038908
C75: PV Income Taxes | G75: ='Standard Report'!G75/1000 -> -3.690218523 | J75: ='Standard Report'!J75/1000 -> -3.690218523 | L75: -4.440892099e-16
C76: PV CCA Tax Shield | G76: ='Standard Report'!G76/1000 -> 3.013341045 | J76: ='Standard Report'!J76/1000 -> 1.793201793 | L76: -1.220139252
C77: PV Capital - Upfront | F77: ='Standard Report'!F77/1000 -> -20.21271632 | I77: ='Standard Report'!I77/1000 -> -20.21271632
C78: Add: PV Capital Contribution | F78: ='Standard Report'!F78/1000 -> 0 | G78: ='Standard Report'!G78/1000 -> -20.21271632 | I78: ='Standard Report'!I78/1000 -> 8.184380131 | J78: ='Standard Report'!J78/1000 -> -12.02833619 | L78: 8.184380131
C79: PV Capital - On-going | G79: ='Standard Report'!G79/1000 -> 0 | J79: ='Standard Report'!J79/1000 -> 0
C80: PV Working Capital | G80: ='Standard Report'!G80/1000 -> 0 | J80: ='Standard Report'!J80/1000 -> 0 | L80: =IF(J80-G80=0,"",J80-G80) -> 
C81: PV Surplus / (Shortfall) | G81: ='Standard Report'!G81/1000 -> -6.964240878 | J81: ='Standard Report'!J81/1000 -> 1.818989404e-15 | L81: =IF(J81-G81=0,"",J81-G81) -> 6.964240878
E83: Profitability Index* | G83: =IF(G78+G79=0," ",(SUM(G72:G76)+G80)/ABS(G78+G79)) -> 0.6554524999 | J83: =IF(J78+J79=0," ",(SUM(J72:J76)+J80)/ABS(J78+J79)) -> 1
C85: Notes:
C86: *PV of total cash flow, excluding net capital expenditure & on-going capital & proceeds on disposal / PV of net capital expenditure & on-going capital & proceeds on disposal

Sheet S92 Report Before Cont $M p2
A1: `
E2: ='Standard Report'!E2 -> Date: | F2: =DateCalculated -> 2015-04-22 | O2: ='S92 Report Before Cont $M p1'!O2 -> SUMMARY OF CONTRIBUTION CALCULATIONS
E3: ='Standard Report'!E3 -> Project # | F3: ='Standard Report'!F3 -> 17503 | O3: ='Project Inputs'!B17&" Pool"&" - "&'Project Inputs'!B28 -> Transformation Pool - Estimated cost
J5: ='S92 Report Before Cont $M p1'!J5:T5 -> 
E8: ='Standard Report'!E8 -> Facility Name: | G8: ='Standard Report'!G8 -> Supply to Essex County Transmission Reinforcement
E9: ='Standard Report'!E9 -> Description: | G9: ='Standard Report'!G9 -> Transformation Capital Contribution Analysis
E10: ='Standard Report'!E10 -> Customer: | G10: ='Standard Report'!G10 -> Hydro One Distribution
J13: <------- | K13: Project year ended - annualized from In-Service Date -------->
G14: Month | I14: ='Standard Report'!V14 -> 2018-03-31 | J14: ='Standard Report'!W14 -> 2018-03-31 | K14: ='Standard Report'!X14 -> 2018-03-31 | L14: ='Standard Report'!Y14 -> 2018-03-31 | M14: ='Standard Report'!Z14 -> 2018-03-31 | N14: ='Standard Report'!AA14 -> 2018-03-31 | O14: ='Standard Report'!AB14 -> 2018-03-31 | P14: ='Standard Report'!AC14 -> 2018-03-31 | Q14: ='Standard Report'!AD14 -> 2018-03-31 | R14: ='Standard Report'!AE14 -> 2018-03-31 | S14: ='Standard Report'!AF14 -> 2018-03-31 | T14: ='Standard Report'!AG14 -> 2018-03-31 | U14: ='Standard Report'!AH14 -> 2018-03-31
G15: Year | I15: ='Capital Cont Inputs'!O15 -> 2031 | J15: ='Capital Cont Inputs'!P15 -> 2032 | K15: ='Capital Cont Inputs'!Q15 -> 2033 | L15: ='Capital Cont Inputs'!R15 -> 2034 | M15: ='Capital Cont Inputs'!S15 -> 2035 | N15: ='Capital Cont Inputs'!T15 -> 2036 | O15: ='Capital Cont Inputs'!U15 -> 2037 | P15: ='Capital Cont Inputs'!V15 -> 2038 | Q15: ='Capital Cont Inputs'!W15 -> 2039 | R15: ='Capital Cont Inputs'!X15 -> 2040 | S15: ='Capital Cont Inputs'!Y15 -> 2041 | T15: ='Capital Cont Inputs'!Z15 -> 2042 | U15: ='Capital Cont Inputs'!AA15 -> 2043
I17: ='Capital Cont Inputs'!O16 -> 13 | J17: ='Capital Cont Inputs'!P16 -> 14 | K17: ='Capital Cont Inputs'!Q16 -> 15 | L17: ='Capital Cont Inputs'!R16 -> 16 | M17: ='Capital Cont Inputs'!S16 -> 17 | N17: ='Capital Cont Inputs'!T16 -> 18 | O17: ='Capital Cont Inputs'!U16 -> 19 | P17: ='Capital Cont Inputs'!V16 -> 20 | Q17: ='Capital Cont Inputs'!W16 -> 21 | R17: ='Capital Cont Inputs'!X16 -> 22 | S17: ='Capital Cont Inputs'!Y16 -> 23 | T17: ='Capital Cont Inputs'!Z16 -> 24 | U17: ='Capital Cont Inputs'!AA16 -> 25
C18: Revenue & Expense Forecast
E19: Load Forecast (MW) | I19: ='NPV Calc'!R10 -> 49.69544008 | J19: ='NPV Calc'!S10 -> 50.63564221 | K19: ='NPV Calc'!T10 -> 51.63770044 | L19: ='NPV Calc'!U10 -> 52.64688063 | M19: ='NPV Calc'!V10 -> 53.6632334 | N19: ='NPV Calc'!W10 -> 54.63175584 | O19: ='NPV Calc'!X10 -> 55.4941383 | P19: ='NPV Calc'!Y10 -> 56.51904359 | Q19: ='NPV Calc'!Z10 -> 57.55115112 | R19: ='NPV Calc'!AA10 -> 58.59051149 | S19: ='NPV Calc'!AB10 -> 59.63717568 | T19: ='NPV Calc'!AC10 -> 60.70160601 | U19: ='NPV Calc'!AD10 -> 61.80556775
E20: Load adjustments (MW) | I20: ='NPV Calc'!R11 -> 0 | J20: ='NPV Calc'!S11 -> 0 | K20: ='NPV Calc'!T11 -> 0 | L20: ='NPV Calc'!U11 -> 0 | M20: ='NPV Calc'!V11 -> 0 | N20: ='NPV Calc'!W11 -> 0 | O20: ='NPV Calc'!X11 -> 0 | P20: ='NPV Calc'!Y11 -> 0 | Q20: ='NPV Calc'!Z11 -> 0 | R20: ='NPV Calc'!AA11 -> 0 | S20: ='NPV Calc'!AB11 -> 0 | T20: ='NPV Calc'!AC11 -> 0 | U20: ='NPV Calc'!AD11 -> 0
I21: =I19+I20 -> 49.69544008 | J21: =J19+J20 -> 50.63564221 | K21: 51.63770044 | L21: 52.64688063 | M21: 53.6632334 | N21: 54.63175584 | O21: 55.4941383 | P21: 56.51904359 | Q21: 57.55115112 | R21: 58.59051149 | S21: 59.63717568 | T21: 60.70160601 | U21: 61.80556775
E22: Tariff Applied ($/kW/Month) | I22: ='NPV Calc'!R14 -> 2 | J22: ='NPV Calc'!S14 -> 2 | K22: ='NPV Calc'!T14 -> 2 | L22: ='NPV Calc'!U14 -> 2 | M22: ='NPV Calc'!V14 -> 2 | N22: ='NPV Calc'!W14 -> 2 | O22: ='NPV Calc'!X14 -> 2 | P22: ='NPV Calc'!Y14 -> 2 | Q22: ='NPV Calc'!Z14 -> 2 | R22: ='NPV Calc'!AA14 -> 2 | S22: ='NPV Calc'!AB14 -> 2 | T22: ='NPV Calc'!AC14 -> 2 | U22: ='NPV Calc'!AD14 -> 2
C23: Incremental Revenue - $M | I23: ='Standard Report'!V23/1000 -> 1.192690562 | J23: ='Standard Report'!W23/1000 -> 1.215255413 | K23: ='Standard Report'!X23/1000 -> 1.239304811 | L23: ='Standard Report'!Y23/1000 -> 1.263525135 | M23: ='Standard Report'!Z23/1000 -> 1.287917602 | N23: ='Standard Report'!AA23/1000 -> 1.31116214 | O23: ='Standard Report'!AB23/1000 -> 1.331859319 | P23: ='Standard Report'!AC23/1000 -> 1.356457046 | Q23: ='Standard Report'!AD23/1000 -> 1.381227627 | R23: ='Standard Report'!AE23/1000 -> 1.406172276 | S23: ='Standard Report'!AF23/1000 -> 1.431292216 | T23: ='Standard Report'!AG23/1000 -> 1.456838544 | U23: ='Standard Report'!AH23/1000 -> 1.483333626
E24: Removal Costs - $M
E25: On-going OM&A Costs - $M | I25: ='Standard Report'!V25/1000 -> 0 | J25: ='Standard Report'!W25/1000 -> 0 | K25: ='Standard Report'!X25/1000 -> 0 | L25: ='Standard Report'!Y25/1000 -> 0 | M25: ='Standard Report'!Z25/1000 -> 0 | N25: ='Standard Report'!AA25/1000 -> 0 | O25: ='Standard Report'!AB25/1000 -> 0 | P25: ='Standard Report'!AC25/1000 -> 0 | Q25: ='Standard Report'!AD25/1000 -> 0 | R25: ='Standard Report'!AE25/1000 -> 0 | S25: ='Standard Report'!AF25/1000 -> 0 | T25: ='Standard Report'!AG25/1000 -> 0 | U25: ='Standard Report'!AH25/1000 -> 0
E26: Municipal Tax - $M | I26: ='Standard Report'!V26/1000 -> -0.08554486559 | J26: ='Standard Report'!W26/1000 -> -0.08554486559 | K26: ='Standard Report'!X26/1000 -> -0.08554486559 | L26: ='Standard Report'!Y26/1000 -> -0.08554486559 | M26: ='Standard Report'!Z26/1000 -> -0.08554486559 | N26: ='Standard Report'!AA26/1000 -> -0.08554486559 | O26: ='Standard Report'!AB26/1000 -> -0.08554486559 | P26: ='Standard Report'!AC26/1000 -> -0.08554486559 | Q26: ='Standard Report'!AD26/1000 -> -0.08554486559 | R26: ='Standard Report'!AE26/1000 -> -0.08554486559 | S26: ='Standard Report'!AF26/1000 -> -0.08554486559 | T26: ='Standard Report'!AG26/1000 -> -0.08554486559 | U26: ='Standard Report'!AH26/1000 -> -0.08554486559
